Workbook

Sheet 台指大腕
A1: 台指大腕 | CQ1: =#REF! -> 
A3: 盤中價差 | C3: 台指期 | D3: =RTD("sysq.rtd","","WTX&`003.10") -> 12652 | E3: 漲跌 | F3: =RTD("sysq.rtd","","WTX&`004.10") -> 49 | G3: 大狐 | H3: =分線設定!C3 -> 824 | I3: 外資 | J3: =外資大台!H4 -> 1539 | K3: =外資大台!N4 -> 29714 | L3: 大盤總市值(億) | P3: 籌碼統計 | V3: 財務面
A4: =D3-D4 -> 4.87 | C4: 加權指數 | D4: =RTD("sysq.rtd","","TWNT0000`003.1") -> 12647.13 | E4: 漲跌 | F4: =RTD("sysq.rtd","","#001`004.1") -> 39.29 | G4: 散狐 | H4: =分線設定!B3 -> 116 | I4: 前五大 | J4: =前5大大台!P4 -> -1211 | K4: =前5大大台!O4 -> -15588 | L4: =總市值!C3 -> 391603.8 | P4: =SUM(P8:P157) -> 19.4211 | Q4: -0.135 | R4: -73.255 | S4: -13.3721 | T4: 0 | U4: 12642 | V4: =SUMPRODUCT(V8:V157,$J8:$J157) -> 94.05833549 | W4: =SUMPRODUCT(W8:W157,$J8:$J157) -> 897.6738268 | Y4: =SUMPRODUCT(Y8:Y157,$J8:$J157)/100 -> 36.44871396 | Z4: =SUMPRODUCT(Z8:Z157,$J8:$J157)/100 -> 2.862907621
A5: =NOW() -> 44067.72011 | C5: 全部檔數 | D5: =SUBTOTAL(102,D8:D160) -> 150 | E5: 上漲 | F5: =SUBTOTAL(109,AN8:AN160) -> 69 | G5: 命中 機率 | H5: =F5/D5 -> 0.46 | I5: =Q6 -> 20200824 | L5: =SUBTOTAL(109,AO8:AO160) -> 0 | N5: =SUBTOTAL(109,AP8:AP160) -> 0
B6: 日期 | C6: 20200824 | D6: =RTD("sysq.rtd","","TWNT0000`078.1") -> 2020/08/24 | E6: =RTD("sysq.rtd","","TWNT0000`078.1") -> 2020/08/24 | F6: =RTD("sysq.rtd","","TWNT0000`078.1") -> 2020/08/24 | G6: =RTD("sysq.rtd","","TWNT0000`078.1") -> 2020/08/24 | H6: 20200824 | I6: 2020 | L6: =(D6-AC6)/AC6 ->  | N6: =(AD6-D6)/D6 ->  | O6: =AA6-AB6 -> 0 | P6: 20200824 | Q6: 20200824 | R6: 20200824 | S6: 20200824 | T6: 20200824 | U6: 20200821 | V6: 202007 | W6: 202007 | X6: 20200824 | Y6: 20200824 | Z6: 20200824 | AA6: 20200824 | AB6: 20200824 | AC6: 20200824 | AD6: 20200824 | AE6: 20200824 | AF6: 20200821 | AG6: 20200820 | AH6: 20200824 | AI6: 20200821 | AJ6: 20200820 | AK6: =AJ6-AG6 -> 0 | AL6: =AI6-AF6 -> 0 | AM6: =AH6-AE6 -> 0 | AN6: =IF(E6>0,1,0) -> 1 | AO6: =IF(L6>0,1,0) ->  | AP6: =IF(N6>0,1,0) ->  | AQ6: =RTD("sysq.rtd","","TWNT0000`078.1") -> 2020/08/24 | AR6: =RTD("sysq.rtd","","TWNT0000`078.1") -> 2020/08/24
A7: 代碼 | B7: 名稱 | C7: 產業別 | D7: 成交 | E7: 漲跌% | F7: 單量 | G7: 量變 | H7: 前五日漲幅% | I7: 今年漲幅% | J7: 權重% | K7: 影響大盤點數 | L7: 突破壓力 | N7: 跌破支撐 | O7: KD缺口 | P7: 外資1日買超(億) | Q7: 投信1日買超(億) | R7: 外資5日合計(億) | S7: 投信5日合計(億) | T7: 當日融資張數增減 | U7: 昨日融資張數增減 | V7: 當月營收MoM | W7: 當月營收YoY | X7: 市值(億) | Y7: 本益比 | Z7: 殖利率 | AA7: K9$ | AB7: D9$ | AC7: AH | AD7: AL | AE7: 開盤 | AF7: 開盤(T-1) | AG7: 開盤(T-2) | AH7: 收盤 | AI7: 收盤(T-1) | AJ7: 收盤(T-2) | AK7: =AJ7-AG7 ->  | AL7: =AI7-AF7 ->  | AM7: =AH7-AE7 ->  | AN7: =IF(E7>0,1,0) -> 1 | AO7: =IF(L7>0,1,0) -> 1 | AP7: =IF(N7>0,1,0) -> 1 | AQ7: 買進 | AR7: 賣出
A8: 1101 | B8: 台泥 | C8: 水泥工業 | D8: =RTD("sysq.rtd","","1101`003.1") -> 44.05 | E8: =RTD("sysq.rtd","","1101`010.1") -> -0.45 | F8: =RTD("sysq.rtd","","1101`005.1") -> 22 | G8: =RTD("sysq.rtd","","1101`029.1") -> 0.65 | H8: 1.61 | I8: 0.8 | J8: =X8/$L$4*100 -> 0.6456985351 | K8: =(E8/100)*(J8/100)*$D$3 -> -0.367622004 | L8: =(D8-AC8)/AC8 -> -0.01277454056 | N8: =(AD8-D8)/D8 -> -0.01407491487 | O8: =AA8-AB8 -> 1.15 | P8: 0.2176 | Q8: 0.0912 | R8: 5.9266 | S8: 4.3878 | U8: 792 | V8: 2.18 | W8: -2.96 | X8: 2528.58 | Y8: 10.39 | Z8: 6.78 | AA8: 77.76 | AB8: 76.61 | AC8: 44.62 | AD8: 43.43 | AE8: 44.25 | AF8: 44.2 | AG8: 44.45 | AH8: 44.05 | AI8: 44.25 | AJ8: 43.5 | AK8: =AJ8-AG8 -> -0.95 | AL8: =AI8-AF8 -> 0.05 | AM8: =AH8-AE8 -> -0.2 | AN8: =IF(E8>0,1,0) -> 0 | AO8: =IF(L8>0,1,0) -> 0 | AP8: =IF(N8>0,1,0) -> 0 | AQ8: =RTD("sysq.rtd","","1101`001.1") -> 44.05 | AR8: =RTD("sysq.rtd","","1101`002.1") -> 44.1
A9: 1102 | B9: 亞泥 | C9: 水泥工業 | D9: =RTD("sysq.rtd","","1102`003.1") -> 43.3 | E9: =RTD("sysq.rtd","","1102`010.1") -> -0.23 | F9: =RTD("sysq.rtd","","1102`005.1") -> 5 | G9: =RTD("sysq.rtd","","1102`029.1") -> 0.85 | H9: 1.88 | I9: -9.7 | J9: =X9/$L$4*100 -> 0.3716792329 | K9: =(E9/100)*(J9/100)*$D$3 -> -0.1081571701 | L9: =(D9-AC9)/AC9 -> -0.01344269765 | N9: =(AD9-D9)/D9 -> -0.01639722864 | O9: =AA9-AB9 -> 1.24 | P9: 0.1661 | Q9: 0.0033 | R9: -0.5147 | S9: 1.226 | U9: 136 | V9: 0.69 | W9: -12.98 | X9: 1455.51 | Y9: 10.59 | Z9: 6.91 | AA9: 76.22 | AB9: 74.98 | AC9: 43.89 | AD9: 42.59 | AE9: 43.4 | AF9: 42.95 | AG9: 43.05 | AH9: 43.3 | AI9: 43.4 | AJ9: 42.25 | AK9: =AJ9-AG9 -> -0.8 | AL9: =AI9-AF9 -> 0.45 | AM9: =AH9-AE9 -> -0.1 | AN9: =IF(E9>0,1,0) -> 0 | AO9: =IF(L9>0,1,0) -> 0 | AP9: =IF(N9>0,1,0) -> 0 | AQ9: =RTD("sysq.rtd","","1102`001.1") -> 43.25 | AR9: =RTD("sysq.rtd","","1102`002.1") -> 43.3
A10: 1210 | B10: 大成 | C10: 食品原料 | D10: =RTD("sysq.rtd","","1210`003.1") -> 48.75 | E10: =RTD("sysq.rtd","","1210`010.1") -> -0.2 | F10: =RTD("sysq.rtd","","1210`005.1") -> 4 | G10: =RTD("sysq.rtd","","1210`029.1") -> 0.67 | H10: -0.31 | I10: 11.68 | J10: =X10/$L$4*100 -> 0.102994404 | K10: =(E10/100)*(J10/100)*$D$3 -> -0.026061704 | L10: =(D10-AC10)/AC10 -> -0.01415571284 | N10: =(AD10-D10)/D10 -> -0.01025641026 | O10: =AA10-AB10 -> -0.53 | P10: -0.1014 | Q10: 0.002 | R10: 0.229 | S10: 0.0754 | U10: -7 | V10: -0.82 | W10: -1.44 | X10: 403.33 | Y10: 15.05 | Z10: 4.5 | AA10: 76.07 | AB10: 76.6 | AC10: 49.45 | AD10: 48.25 | AE10: 48.8 | AF10: 48.1 | AG10: 49.65 | AH10: 48.75 | AI10: 48.85 | AJ10: 47.9 | AK10: =AJ10-AG10 -> -1.75 | AL10: =AI10-AF10 -> 0.75 | AM10: =AH10-AE10 -> -0.05 | AN10: =IF(E10>0,1,0) -> 0 | AO10: =IF(L10>0,1,0) -> 0 | AP10: =IF(N10>0,1,0) -> 0 | AQ10: =RTD("sysq.rtd","","1210`001.1") -> 48.75 | AR10: =RTD("sysq.rtd","","1210`002.1") -> 48.8
A11: 1216 | B11: 統一 | C11: 加工食品 | D11: =RTD("sysq.rtd","","1216`003.1") -> 67 | E11: =RTD("sysq.rtd","","1216`010.1") -> -0.15 | F11: =RTD("sysq.rtd","","1216`005.1") -> 17 | G11: =RTD("sysq.rtd","","1216`029.1") -> 0.92 | H11: -3.18 | I11: -9.7 | J11: =X11/$L$4*100 -> 0.9721432734 | K11: =(E11/100)*(J11/100)*$D$3 -> -0.1844933504 | L11: =(D11-AC11)/AC11 -> -0.005934718101 | N11: =(AD11-D11)/D11 -> -0.005970149254 | O11: =AA11-AB11 -> -11.69 | P11: -0.8556 | Q11: -0.4857 | R11: -12.2003 | S11: -0.4441 | U11: 112 | V11: 4.9 | W11: 0.6 | X11: 3806.95 | Y11: 20.24 | Z11: 3.73 | AA11: 18.23 | AB11: 29.92 | AC11: 67.4 | AD11: 66.6 | AE11: 67.1 | AF11: 67.6 | AG11: 68.3 | AH11: 67 | AI11: 67.1 | AJ11: 67.1 | AK11: =AJ11-AG11 -> -1.2 | AL11: =AI11-AF11 -> -0.5 | AM11: =AH11-AE11 -> -0.1 | AN11: =IF(E11>0,1,0) -> 0 | AO11: =IF(L11>0,1,0) -> 0 | AP11: =IF(N11>0,1,0) -> 0 | AQ11: =RTD("sysq.rtd","","1216`001.1") -> 67 | AR11: =RTD("sysq.rtd","","1216`002.1") -> 67.1
A12: 1227 | B12: 佳格 | C12: 加工食品 | D12: =RTD("sysq.rtd","","1227`003.1") -> 63.2 | E12: =RTD("sysq.rtd","","1227`010.1") -> -1.25 | F12: =RTD("sysq.rtd","","1227`005.1") -> 3 | G12: =RTD("sysq.rtd","","1227`029.1") -> 1.36 | H12: -0.94 | I12: -9.2 | J12: =X12/$L$4*100 -> 0.1476849816 | K12: =(E12/100)*(J12/100)*$D$3 -> -0.2335637984 | L12: =(D12-AC12)/AC12 -> -0.01787101787 | N12: =(AD12-D12)/D12 -> -0.01344936709 | O12: =AA12-AB12 -> -8.57 | P12: 0.0921 | Q12: 0.0021 | R12: 0.1042 | S12: 0.0219 | U12: 26 | V12: 3.44 | W12: 12.13 | X12: 578.34 | Y12: 15.92 | Z12: 4.14 | AA12: 70.31 | AB12: 78.88 | AC12: 64.35 | AD12: 62.35 | AE12: 64 | AF12: 63.8 | AG12: 63.8 | AH12: 63.2 | AI12: 64 | AJ12: 64 | AK12: =AJ12-AG12 -> 0.2 | AL12: =AI12-AF12 -> 0.2 | AM12: =AH12-AE12 -> -0.8 | AN12: =IF(E12>0,1,0) -> 0 | AO12: =IF(L12>0,1,0) -> 0 | AP12: =IF(N12>0,1,0) -> 0 | AQ12: =RTD("sysq.rtd","","1227`001.1") -> 63.2 | AR12: =RTD("sysq.rtd","","1227`002.1") -> 63.3
A13: 1229 | B13: 聯華投控 | C13: 食品原料 | D13: =RTD("sysq.rtd","","1229`003.1") -> 43.5 | E13: =RTD("sysq.rtd","","1229`010.1") -> 0.81 | F13: =RTD("sysq.rtd","","1229`005.1") -> 4 | G13: =RTD("sysq.rtd","","1229`029.1") -> 0.83 | H13: 0.23 | I13: 17.73 | J13: =X13/$L$4*100 -> 0.1423505083 | K13: =(E13/100)*(J13/100)*$D$3 -> 0.1458825092 | L13: =(D13-AC13)/AC13 -> -0.01226158038 | N13: =(AD13-D13)/D13 -> -0.01287356322 | O13: =AA13-AB13 -> 0.94 | P13: 0.4241 | Q13: -0.0007 | R13: 0.4894 | S13: -0.0003 | U13: 41 | V13: -43.15 | W13: 4.16 | X13: 557.45 | Y13: 17.61 | Z13: 7.42 | AA13: 84.45 | AB13: 83.51 | AC13: 44.04 | AD13: 42.94 | AE13: 43.5 | AF13: 42.8 | AG13: 42.9 | AH13: 43.5 | AI13: 43.15 | AJ13: 42.1 | AK13: =AJ13-AG13 -> -0.8 | AL13: =AI13-AF13 -> 0.35 | AM13: =AH13-AE13 -> 0 | AN13: =IF(E13>0,1,0) -> 1 | AO13: =IF(L13>0,1,0) -> 0 | AP13: =IF(N13>0,1,0) -> 0 | AQ13: =RTD("sysq.rtd","","1229`001.1") -> 43.45 | AR13: =RTD("sysq.rtd","","1229`002.1") -> 43.5
A14: 1301 | B14: 台塑 | C14: 塑化基本原料 | D14: =RTD("sysq.rtd","","1301`003.1") -> 79.2 | E14: =RTD("sysq.rtd","","1301`010.1") -> -0.75 | F14: =RTD("sysq.rtd","","1301`005.1") -> 21 | G14: =RTD("sysq.rtd","","1301`029.1") -> 0.71 | H14: -2.82 | I14: -20.64 | J14: =X14/$L$4*100 -> 1.287441542 | K14: =(E14/100)*(J14/100)*$D$3 -> -1.221653279 | L14: =(D14-AC14)/AC14 -> -0.009628610729 | N14: =(AD14-D14)/D14 -> -0.007828282828 | O14: =AA14-AB14 -> -11.28 | P14: -0.3146 | Q14: 0.0064 | R14: -3.7759 | S14: 0.1576 | U14: -39 | V14: 6.36 | W14: -10.25 | X14: 5041.67 | Y14: 28.29 | Z14: 5.51 | AA14: 40.01 | AB14: 51.29 | AC14: 79.97 | AD14: 78.58 | AE14: 79.7 | AF14: 79.8 | AG14: 80 | AH14: 79.2 | AI14: 79.8 | AJ14: 79 | AK14: =AJ14-AG14 -> -1 | AL14: =AI14-AF14 -> 0 | AM14: =AH14-AE14 -> -0.5 | AN14: =IF(E14>0,1,0) -> 0 | AO14: =IF(L14>0,1,0) -> 0 | AP14: =IF(N14>0,1,0) -> 0 | AQ14: =RTD("sysq.rtd","","1301`001.1") -> 79.2 | AR14: =RTD("sysq.rtd","","1301`002.1") -> 79.3
A15: 1303 | B15: 南亞 | C15: 化學纖維原料 | D15: =RTD("sysq.rtd","","1303`003.1") -> 61.8 | E15: =RTD("sysq.rtd","","1303`010.1") -> -0.8 | F15: =RTD("sysq.rtd","","1303`005.1") -> 4 | G15: =RTD("sysq.rtd","","1303`029.1") -> 0.53 | H15: -3.29 | I15: -15.11 | J15: =X15/$L$4*100 -> 1.251583871 | K15: =(E15/100)*(J15/100)*$D$3 -> -1.266803131 | L15: =(D15-AC15)/AC15 -> -0.01230621704 | N15: =(AD15-D15)/D15 -> -0.01019417476 | O15: -0.024 | P15: -0.1169 | Q15: 0.191 | R15: -2.2986 | S15: 0.4601 | U15: -62 | V15: 4.6 | W15: -11.44 | X15: 4901.25 | Y15: 32.02 | Z15: 3.53 | AA15: 47.3 | AB15: 59.16 | AC15: 62.57 | AD15: 61.17 | AE15: 62.2 | AF15: 62 | AG15: 62 | AH15: 61.8 | AI15: 62.3 | AJ15: 60.8 | AK15: =AJ15-AG15 -> -1.2 | AL15: =AI15-AF15 -> 0.3 | AM15: =AH15-AE15 -> -0.4 | AN15: =IF(E15>0,1,0) -> 0 | AO15: =IF(L15>0,1,0) -> 0 | AP15: =IF(N15>0,1,0) -> 0 | AQ15: =RTD("sysq.rtd","","1303`001.1") -> 61.8 | AR15: =RTD("sysq.rtd","","1303`002.1") -> 61.9
A16: 1319 | B16: 東陽 | C16: 塑化製品 | D16: =RTD("sysq.rtd","","1319`003.1") -> 36.6 | E16: =RTD("sysq.rtd","","1319`010.1") -> 0.97 | F16: =RTD("sysq.rtd","","1319`005.1") -> 3 | G16: =RTD("sysq.rtd","","1319`029.1") -> 1.14 | H16: -1.35 | I16: -21.54 | J16: =X16/$L$4*100 -> 0.05528036245 | K16: =(E16/100)*(J16/100)*$D$3 -> 0.06784249313 | L16: =(D16-AC16)/AC16 -> -0.01453957997 | N16: =(AD16-D16)/D16 -> -0.01530054645 | O16: =AA16-AB16 -> -6 | P16: 0.1863 | Q16: -0.0506 | R16: 0.0658 | S16: -0.3285 | U16: -14 | V16: 16.09 | W16: -19.94 | X16: 216.48 | Y16: 16.41 | Z16: 4.97 | AA16: 49.54 | AB16: 55.54 | AC16: 37.14 | AD16: 36.04 | AE16: 36.8 | AF16: 36.2 | AG16: 37 | AH16: 36.6 | AI16: 36.25 | AJ16: 36.35 | AK16: =AJ16-AG16 -> -0.65 | AL16: =AI16-AF16 -> 0.05 | AM16: =AH16-AE16 -> -0.2 | AN16: =IF(E16>0,1,0) -> 1 | AO16: =IF(L16>0,1,0) -> 0 | AP16: =IF(N16>0,1,0) -> 0 | AQ16: =RTD("sysq.rtd","","1319`001.1") -> 36.55 | AR16: =RTD("sysq.rtd","","1319`002.1") -> 36.6
A17: 1326 | B17: 台化 | C17: 塑化基本原料 | D17: =RTD("sysq.rtd","","1326`003.1") -> 69.5 | E17: =RTD("sysq.rtd","","1326`010.1") -> -0.71 | F17: =RTD("sysq.rtd","","1326`005.1") -> 111 | G17: =RTD("sysq.rtd","","1326`029.1") -> 0.72 | H17: -3.87 | I17: -20.57 | J17: =X17/$L$4*100 -> 1.040214625 | K17: =(E17/100)*(J17/100)*$D$3 -> -0.934416476 | L17: =(D17-AC17)/AC17 -> -0.01236322296 | N17: =(AD17-D17)/D17 -> -0.007482014388 | O17: 0.337 | P17: -0.0376 | Q17: -0.0386 | R17: 1.2681 | S17: 0.0307 | U17: -8 | V17: 3.07 | W17: -25.52 | X17: 4073.52 | Y17: 34.07 | Z17: 5.43 | AA17: 36.79 | AB17: 56.1 | AC17: 70.37 | AD17: 68.98 | AE17: 70.1 | AF17: 70.4 | AG17: 70.9 | AH17: 69.5 | AI17: 70 | AJ17: 69.3 | AK17: =AJ17-AG17 -> -1.6 | AL17: =AI17-AF17 -> -0.4 | AM17: =AH17-AE17 -> -0.6 | AN17: =IF(E17>0,1,0) -> 0 | AO17: =IF(L17>0,1,0) -> 0 | AP17: =IF(N17>0,1,0) -> 0 | AQ17: =RTD("sysq.rtd","","1326`001.1") -> 69.5 | AR17: =RTD("sysq.rtd","","1326`002.1") -> 69.6
A18: 1402 | B18: 遠東新 | C18: 聚酯纖維 | D18: =RTD("sysq.rtd","","1402`003.1") -> 26 | E18: =RTD("sysq.rtd","","1402`010.1") -> -0.95 | F18: =RTD("sysq.rtd","","1402`005.1") -> 6 | G18: =RTD("sysq.rtd","","1402`029.1") -> 0.88 | H18: -1.52 | I18: -12.9 | J18: =X18/$L$4*100 -> 0.3553974706 | K18: =(E18/100)*(J18/100)*$D$3 -> -0.4271664358 | L18: =(D18-AC18)/AC18 -> -0.01477832512 | N18: =(AD18-D18)/D18 -> -0.01192307692 | O18: =AA18-AB18 -> -3.51 | P18: -0.0593 | Q18: -0.2579 | R18: 0.4513 | S18: -0.2456 | U18: -109 | V18: -5.97 | W18: -24.08 | X18: 1391.75 | Y18: 15.66 | Z18: 5.71 | AA18: 56.95 | AB18: 60.46 | AC18: 26.39 | AD18: 25.69 | AE18: 26.25 | AF18: 25.95 | AG18: 26.25 | AH18: 26 | AI18: 26.25 | AJ18: 25.65 | AQ18: =RTD("sysq.rtd","","1402`001.1") -> 26 | AR18: =RTD("sysq.rtd","","1402`002.1") -> 26.05
A19: 1434 | B19: 福懋 | C19: 尼龍纖維 | D19: =RTD("sysq.rtd","","1434`003.1") -> 30.3 | E19: =RTD("sysq.rtd","","1434`010.1") -> -0.66 | F19: =RTD("sysq.rtd","","1434`005.1") -> - | G19: =RTD("sysq.rtd","","1434`029.1") -> 1 | H19: -2.26 | I19: -11.4 | J19: =X19/$L$4*100 -> 0.1303485819 | K19: =(E19/100)*(J19/100)*$D$3 -> -0.108845237 | L19: =(D19-AC19)/AC19 -> -0.0133507001 | N19: =(AD19-D19)/D19 -> -0.009570957096 | O19: =AA19-AB19 -> -12.82 | P19: -0.105 | Q19: -0.0003 | R19: -1.0579 | S19: 0.0001 | U19: 8 | V19: 2.52 | W19: -28.11 | X19: 510.45 | Y19: 12.22 | Z19: 8.2 | AA19: 30.54 | AB19: 43.36 | AC19: 30.71 | AD19: 30.01 | AE19: 30.5 | AF19: 30.55 | AG19: 31.05 | AH19: 30.3 | AI19: 30.5 | AJ19: 30.35 | AK19: =AJ19-AG19 -> -0.7 | AL19: =AI19-AF19 -> -0.05 | AM19: =AH19-AE19 -> -0.2 | AN19: =IF(E19>0,1,0) -> 0 | AO19: =IF(L19>0,1,0) -> 0 | AP19: =IF(N19>0,1,0) -> 0 | AQ19: =RTD("sysq.rtd","","1434`001.1") -> 30.3 | AR19: =RTD("sysq.rtd","","1434`002.1") -> 30.35
A20: 1476 | B20: 儒鴻 | C20: 服裝服飾 | D20: =RTD("sysq.rtd","","1476`003.1") -> 379 | E20: =RTD("sysq.rtd","","1476`010.1") -> -1.3 | F20: =RTD("sysq.rtd","","1476`005.1") -> 1 | G20: =RTD("sysq.rtd","","1476`029.1") -> 0.97 | H20: -3.68 | I20: -5.96 | J20: =X20/$L$4*100 -> 0.2655362384 | K20: =(E20/100)*(J20/100)*$D$3 -> -0.4367433835 | L20: =(D20-AC20)/AC20 -> -0.02977241891 | N20: =(AD20-D20)/D20 -> -0.03527704485 | O20: =AA20-AB20 -> -14.49 | P20: 0.5864 | Q20: -0.6344 | R20: 5.7269 | S20: -0.6142 | U20: -26 | V20: 42.51 | W20: 11.03 | X20: 1039.85 | Y20: 27.85 | Z20: 2.86 | AA20: 48.32 | AB20: 62.81 | AC20: 390.63 | AD20: 365.63 | AE20: 383.5 | AF20: 377 | AG20: 385.5 | AH20: 379 | AI20: 384 | AJ20: 374.5 | AK20: =AJ20-AG20 -> -11 | AL20: =AI20-AF20 -> 7 | AM20: =AH20-AE20 -> -4.5 | AN20: =IF(E20>0,1,0) -> 0 | AO20: =IF(L20>0,1,0) -> 0 | AP20: =IF(N20>0,1,0) -> 0 | AQ20: =RTD("sysq.rtd","","1476`001.1") -> 379 | AR20: =RTD("sysq.rtd","","1476`002.1") -> 379.5
A21: 1477 | B21: 聚陽 | C21: 服裝服飾 | D21: =RTD("sysq.rtd","","1477`003.1") -> 197 | E21: =RTD("sysq.rtd","","1477`010.1") -> 2.6 | F21: =RTD("sysq.rtd","","1477`005.1") -> 4 | G21: =RTD("sysq.rtd","","1477`029.1") -> 0.73 | H21: 0.51 | I21: 25.08 | J21: =X21/$L$4*100 -> 0.1106015825 | K21: =(E21/100)*(J21/100)*$D$3 -> 0.3638261177 | L21: =(D21-AC21)/AC21 -> -0.02537970613 | N21: =(AD21-D21)/D21 -> -0.03994923858 | O21: =AA21-AB21 -> 2.4 | P21: 2.3325 | Q21: 0.8566 | R21: 3.2269 | S21: 2.3163 | U21: -8 | V21: 3.08 | W21: 4.49 | X21: 433.12 | Y21: 23.51 | Z21: 2.6 | AA21: 79.12 | AB21: 76.72 | AC21: 202.13 | AD21: 189.13 | AE21: 192 | AF21: 195 | AG21: 192.5 | AH21: 197 | AI21: 192 | AJ21: 193 | AK21: =AJ21-AG21 -> 0.5 | AL21: =AI21-AF21 -> -3 | AM21: =AH21-AE21 -> 5 | AN21: =IF(E21>0,1,0) -> 1 | AO21: =IF(L21>0,1,0) -> 0 | AP21: =IF(N21>0,1,0) -> 0 | AQ21: =RTD("sysq.rtd","","1477`001.1") -> 196.5 | AR21: =RTD("sysq.rtd","","1477`002.1") -> 197
A22: 1504 | B22: 東元 | C22: 家電照明 | D22: =RTD("sysq.rtd","","1504`003.1") -> 29.65 | E22: =RTD("sysq.rtd","","1504`010.1") -> -0.67 | F22: =RTD("sysq.rtd","","1504`005.1") -> 1 | G22: =RTD("sysq.rtd","","1504`029.1") -> 0.75 | H22: 2.6 | I22: 13.17 | J22: =X22/$L$4*100 -> 0.1489822111 | K22: =(E22/100)*(J22/100)*$D$3 -> -0.1262898366 | L22: =(D22-AC22)/AC22 -> -0.01625746516 | N22: =(AD22-D22)/D22 -> -0.01382799325 | O22: =AA22-AB22 -> 3.5 | P22: 0.0735 | Q22: -0.0004 | R22: 0.7409 | S22: -0.0001 | U22: -40 | V22: -10.59 | W22: -4.26 | X22: 583.42 | Y22: 17.14 | Z22: 3.32 | AA22: 75.74 | AB22: 72.24 | AC22: 30.14 | AD22: 29.24 | AE22: 29.95 | AF22: 29.5 | AG22: 29.7 | AH22: 29.65 | AI22: 29.85 | AJ22: 29.4 | AK22: =AJ22-AG22 -> -0.3 | AL22: =AI22-AF22 -> 0.35 | AM22: =AH22-AE22 -> -0.3 | AN22: =IF(E22>0,1,0) -> 0 | AO22: =IF(L22>0,1,0) -> 0 | AP22: =IF(N22>0,1,0) -> 0 | AQ22: =RTD("sysq.rtd","","1504`001.1") -> 29.65 | AR22: =RTD("sysq.rtd","","1504`002.1") -> 29.7
A23: 1536 | B23: 和大 | C23: 汽車組件 | D23: =RTD("sysq.rtd","","1536`003.1") -> 98.4 | E23: =RTD("sysq.rtd","","1536`010.1") -> -0.3 | F23: =RTD("sysq.rtd","","1536`005.1") -> 1 | G23: =RTD("sysq.rtd","","1536`029.1") -> 0.47 | H23: -0.91 | I23: -14.43 | J23: =X23/$L$4*100 -> 0.06406475116 | K23: =(E23/100)*(J23/100)*$D$3 -> -0.02431641695 | L23: =(D23-AC23)/AC23 -> -0.0153107175 | N23: =(AD23-D23)/D23 -> -0.01910569106 | O23: =AA23-AB23 -> 0.58 | P23: -0.1014 | Q23: -0.0385 | R23: -0.0389 | S23: -0.0413 | U23: 2 | V23: 4.4 | W23: -27.32 | X23: 250.88 | Y23: 64.74 | Z23: 2.03 | AA23: 59.03 | AB23: 58.45 | AC23: 99.93 | AD23: 96.52 | AE23: 98.6 | AF23: 96 | AG23: 99.5 | AH23: 98.4 | AI23: 98.7 | AJ23: 94.2 | AK23: =AJ23-AG23 -> -5.3 | AL23: =AI23-AF23 -> 2.7 | AM23: =AH23-AE23 -> -0.2 | AN23: =IF(E23>0,1,0) -> 0 | AO23: =IF(L23>0,1,0) -> 0 | AP23: =IF(N23>0,1,0) -> 0 | AQ23: =RTD("sysq.rtd","","1536`001.1") -> 98.3 | AR23: =RTD("sysq.rtd","","1536`002.1") -> 98.4
A24: 1590 | B24: 亞德客-KY | C24: 工具機 | D24: =RTD("sysq.rtd","","1590`003.1") -> 673 | E24: =RTD("sysq.rtd","","1590`010.1") -> 3.38 | F24: =RTD("sysq.rtd","","1590`005.1") -> 2 | G24: =RTD("sysq.rtd","","1590`029.1") -> 2.15 | H24: 3.38 | I24: 44.27 | J24: =X24/$L$4*100 -> 0.324851291 | K24: =(E24/100)*(J24/100)*$D$3 -> 1.389186265 | L24: =(D24-AC24)/AC24 -> -0.07268343093 | N24: =(AD24-D24)/D24 -> -0.07317979198 | O24: -1.095 | P24: 1.311 | Q24: -0.01 | R24: 6.8517 | S24: -0.5974 | U24: -2 | V24: 3.9 | W24: 31.42 | X24: 1272.13 | Y24: 42.57 | Z24: 0.73 | AA24: 53.66 | AB24: 56.91 | AC24: 725.75 | AD24: 623.75 | AE24: 651 | AF24: 643 | AG24: 665 | AH24: 673 | AI24: 651 | AJ24: 634 | AK24: =AJ24-AG24 -> -31 | AL24: =AI24-AF24 -> 8 | AM24: =AH24-AE24 -> 22 | AN24: =IF(E24>0,1,0) -> 1 | AO24: =IF(L24>0,1,0) -> 0 | AP24: =IF(N24>0,1,0) -> 0 | AQ24: =RTD("sysq.rtd","","1590`001.1") -> 673 | AR24: =RTD("sysq.rtd","","1590`002.1") -> 677
A25: 1605 | B25: 華新 | C25: 電線電纜 | D25: =RTD("sysq.rtd","","1605`003.1") -> 16.6 | E25: =RTD("sysq.rtd","","1605`010.1") -> -2.06 | F25: =RTD("sysq.rtd","","1605`005.1") -> 40 | G25: =RTD("sysq.rtd","","1605`029.1") -> 0.78 | H25: 0.61 | I25: 7.79 | J25: =X25/$L$4*100 -> 0.1409894388 | K25: =(E25/100)*(J25/100)*$D$3 -> -0.3674624663 | L25: =(D25-AC25)/AC25 -> -0.04046242775 | N25: =(AD25-D25)/D25 -> -0.03012048193 | O25: =AA25-AB25 -> -3.87 | P25: -1.1607 | Q25: 0.0015 | R25: 0.1806 | S25: -0.001 | U25: 3142 | V25: 1 | W25: -10.99 | X25: 552.12 | Y25: 13.61 | Z25: 3.01 | AA25: 75.56 | AB25: 79.43 | AC25: 17.3 | AD25: 16.1 | AE25: 16.95 | AF25: 16.55 | AG25: 16.5 | AH25: 16.6 | AI25: 16.95 | AJ25: 16.3 | AK25: =AJ25-AG25 -> -0.2 | AL25: =AI25-AF25 -> 0.4 | AM25: =AH25-AE25 -> -0.35 | AN25: =IF(E25>0,1,0) -> 0 | AO25: =IF(L25>0,1,0) -> 0 | AP25: =IF(N25>0,1,0) -> 0 | AQ25: =RTD("sysq.rtd","","1605`001.1") -> 16.6 | AR25: =RTD("sysq.rtd","","1605`002.1") -> 16.65
A26: 1707 | B26: 葡萄王 | C26: 保健食品 | D26: =RTD("sysq.rtd","","1707`003.1") -> 178 | E26: =RTD("sysq.rtd","","1707`010.1") -> -0.28 | F26: =RTD("sysq.rtd","","1707`005.1") -> - | G26: =RTD("sysq.rtd","","1707`029.1") -> 0.56 | H26: -1.39 | I26: -8.72 | J26: =X26/$L$4*100 -> 0.06194781562 | K26: =(E26/100)*(J26/100)*$D$3 -> -0.02194538537 | L26: =(D26-AC26)/AC26 -> -0.009074208094 | N26: =(AD26-D26)/D26 -> -0.007696629213 | O26: =AA26-AB26 -> -4.3 | P26: -0.1256 | Q26: 0.0022 | R26: -0.6972 | S26: -0.0958 | U26: -1 | V26: -7.23 | W26: -2.07 | X26: 242.59 | Y26: 18.92 | Z26: 3.64 | AA26: 24.68 | AB26: 28.98 | AC26: 179.63 | AD26: 176.63 | AE26: 178.5 | AF26: 178.5 | AG26: 181.5 | AH26: 178 | AI26: 178.5 | AJ26: 178.5 | AQ26: =RTD("sysq.rtd","","1707`001.1") -> 178 | AR26: =RTD("sysq.rtd","","1707`002.1") -> 178.5
A27: 1717 | B27: 長興 | C27: 化學基礎原料 | D27: =RTD("sysq.rtd","","1717`003.1") -> 35.3 | E27: =RTD("sysq.rtd","","1717`010.1") -> 5.85 | F27: =RTD("sysq.rtd","","1717`005.1") -> 82 | G27: =RTD("sysq.rtd","","1717`029.1") -> 3.56 | H27: 2.62 | I27: 32.71 | J27: =X27/$L$4*100 -> 0.1118017752 | K27: =(E27/100)*(J27/100)*$D$3 -> 0.8274918947 | L27: =(D27-AC27)/AC27 -> -0.05740987984 | N27: =(AD27-D27)/D27 -> -0.07507082153 | O27: =AA27-AB27 -> 12.42 | P27: -0.042 | Q27: 0.154 | R27: 0.2367 | S27: 0.1533 | U27: -198 | V27: 11.04 | W27: -8.55 | X27: 437.82 | Y27: 22.06 | Z27: 4.2 | AA27: 45.16 | AB27: 32.74 | AC27: 37.45 | AD27: 32.65 | AE27: 33.6 | AF27: 32.8 | AG27: 34.7 | AH27: 35.3 | AI27: 33.35 | AJ27: 32.2 | AK27: =AJ27-AG27 -> -2.5 | AL27: =AI27-AF27 -> 0.55 | AM27: =AH27-AE27 -> 1.7 | AN27: =IF(E27>0,1,0) -> 1 | AO27: =IF(L27>0,1,0) -> 0 | AP27: =IF(N27>0,1,0) -> 0 | AQ27: =RTD("sysq.rtd","","1717`001.1") -> 35.25 | AR27: =RTD("sysq.rtd","","1717`002.1") -> 35.35
A28: 1722 | B28: 台肥 | C28: 化學一般應用 | D28: =RTD("sysq.rtd","","1722`003.1") -> 56.9 | E28: =RTD("sysq.rtd","","1722`010.1") -> -0.52 | F28: =RTD("sysq.rtd","","1722`005.1") -> 1 | G28: =RTD("sysq.rtd","","1722`029.1") -> 0.47 | H28: -3.72 | I28: 14.83 | J28: =X28/$L$4*100 -> 0.1423939196 | K28: =(E28/100)*(J28/100)*$D$3 -> -0.09368152926 | L28: =(D28-AC28)/AC28 -> -0.01642178047 | N28: =(AD28-D28)/D28 -> -0.01142355009 | O28: =AA28-AB28 -> -11.9 | P28: -0.194 | Q28: 0.0003 | R28: -1.0858 | S28: 1.4458 | U28: -194 | V28: 21.26 | W28: -6.09 | X28: 557.62 | Y28: 21.72 | Z28: 3.85 | AA28: 44.96 | AB28: 56.86 | AC28: 57.85 | AD28: 56.25 | AE28: 57.2 | AF28: 56.7 | AG28: 58.6 | AH28: 56.9 | AI28: 57.2 | AJ28: 56.7 | AK28: =AJ28-AG28 -> -1.9 | AL28: =AI28-AF28 -> 0.5 | AM28: =AH28-AE28 -> -0.3 | AN28: =IF(E28>0,1,0) -> 0 | AO28: =IF(L28>0,1,0) -> 0 | AP28: =IF(N28>0,1,0) -> 0 | AQ28: =RTD("sysq.rtd","","1722`001.1") -> 56.9 | AR28: =RTD("sysq.rtd","","1722`002.1") -> 57
A29: 1723 | B29: 中碳 | C29: 其他化工 | D29: =RTD("sysq.rtd","","1723`003.1") -> 93.1 | E29: =RTD("sysq.rtd","","1723`010.1") -> -0.43 | F29: =RTD("sysq.rtd","","1723`005.1") -> 1 | G29: =RTD("sysq.rtd","","1723`029.1") -> 0.94 | H29: -0.75 | I29: -24 | J29: =X29/$L$4*100 -> 0.05632223181 | K29: =(E29/100)*(J29/100)*$D$3 -> -0.0306413217 | L29: =(D29-AC29)/AC29 -> -0.0184501845 | N29: =(AD29-D29)/D29 -> -0.01557465091 | O29: =AA29-AB29 -> 3.2 | P29: -0.0326 | Q29: 0.0008 | R29: -0.7605 | S29: 0.0008 | U29: 5 | V29: -20.56 | W29: -55.74 | X29: 220.56 | Y29: 23.69 | Z29: 5.35 | AA29: 31.54 | AB29: 28.34 | AC29: 94.85 | AD29: 91.65 | AE29: 93.5 | AF29: 92.2 | AG29: 94.5 | AH29: 93.1 | AI29: 93.5 | AJ29: 92.2 | AK29: =AJ29-AG29 -> -2.3 | AL29: =AI29-AF29 -> 1.3 | AM29: =AH29-AE29 -> -0.4 | AN29: =IF(E29>0,1,0) -> 0 | AO29: =IF(L29>0,1,0) -> 0 | AP29: =IF(N29>0,1,0) -> 0 | AQ29: =RTD("sysq.rtd","","1723`001.1") -> 93.1 | AR29: =RTD("sysq.rtd","","1723`002.1") -> 93.2
A30: 1789 | B30: 神隆 | C30: 製藥 | D30: =RTD("sysq.rtd","","1789`003.1") -> 31.9 | E30: =RTD("sysq.rtd","","1789`010.1") -> 0.16 | F30: =RTD("sysq.rtd","","1789`005.1") -> 3 | G30: =RTD("sysq.rtd","","1789`029.1") -> 0.71 | H30: -4.06 | I30: 19.92 | J30: =X30/$L$4*100 -> 0.06441459455 | K30: =(E30/100)*(J30/100)*$D$3 -> 0.0130395752 | L30: =(D30-AC30)/AC30 -> -0.02891933029 | N30: =(AD30-D30)/D30 -> -0.0329153605 | O30: =AA30-AB30 -> -0.1 | P30: 0.0089 | Q30: 0.0012 | R30: 0.4362 | S30: 0.0012 | U30: -4 | V30: 61.29 | W30: 36.2 | X30: 252.25 | Y30: 91.14 | Z30: 0.85 | AA30: 35.66 | AB30: 35.76 | AC30: 32.85 | AD30: 30.85 | AE30: 31.85 | AF30: 31.4 | AG30: 33.5 | AH30: 31.9 | AI30: 31.85 | AJ30: 31.2 | AK30: =AJ30-AG30 -> -2.3 | AL30: =AI30-AF30 -> 0.45 | AM30: =AH30-AE30 -> 0.05 | AN30: =IF(E30>0,1,0) -> 1 | AO30: =IF(L30>0,1,0) -> 0 | AP30: =IF(N30>0,1,0) -> 0 | AQ30: =RTD("sysq.rtd","","1789`001.1") -> 31.9 | AR30: =RTD("sysq.rtd","","1789`002.1") -> 32
A31: 1802 | B31: 台玻 | C31: 玻璃工業 | D31: =RTD("sysq.rtd","","1802`003.1") -> 11 | E31: =RTD("sysq.rtd","","1802`010.1") -> 0.92 | F31: =RTD("sysq.rtd","","1802`005.1") -> 4 | G31: =RTD("sysq.rtd","","1802`029.1") -> 0.73 | H31: 4.76 | I31: -3.51 | J31: =X31/$L$4*100 -> 0.08168715421 | K31: =(E31/100)*(J31/100)*$D$3 -> 0.09508254051 | L31: =(D31-AC31)/AC31 -> -0.0350877193 | N31: =(AD31-D31)/D31 -> -0.03636363636 | O31: =AA31-AB31 -> -7.97 | P31: 0.0326 | Q31: 0.0004 | R31: -0.0706 | S31: 0.0004 | U31: 343 | V31: 11.04 | W31: -0.05 | X31: 319.89 | Z31: 0 | AA31: 42.81 | AB31: 50.78 | AC31: 11.4 | AD31: 10.6 | AE31: 11 | AF31: 11.1 | AG31: 11.75 | AH31: 11 | AI31: 10.9 | AJ31: 10.8 | AK31: =AJ31-AG31 -> -0.95 | AL31: =AI31-AF31 -> -0.2 | AM31: =AH31-AE31 -> 0 | AN31: =IF(E31>0,1,0) -> 1 | AO31: =IF(L31>0,1,0) -> 0 | AP31: =IF(N31>0,1,0) -> 0 | AQ31: =RTD("sysq.rtd","","1802`001.1") -> 11 | AR31: =RTD("sysq.rtd","","1802`002.1") -> 11.05
A32: 2002 | B32: 中鋼 | C32: 平板鋼 | D32: =RTD("sysq.rtd","","2002`003.1") -> 20 | E32: =RTD("sysq.rtd","","2002`010.1") -> 0 | F32: =RTD("sysq.rtd","","2002`005.1") -> 26 | G32: =RTD("sysq.rtd","","2002`029.1") -> 0.57 | H32: -1.96 | I32: -16.32 | J32: =X32/$L$4*100 -> 0.8036106902 | K32: =(E32/100)*(J32/100)*$D$3 -> 0 | L32: =(D32-AC32)/AC32 -> -0.006458022851 | N32: =(AD32-D32)/D32 -> -0.004 | O32: =AA32-AB32 -> -16.34 | P32: -0.1592 | Q32: 0.0049 | R32: -2.9081 | S32: 0.0382 | U32: -1 | V32: 3.22 | W32: -19.76 | X32: 3146.97 | Z32: 2.5 | AA32: 40.48 | AB32: 56.82 | AC32: 20.13 | AD32: 19.92 | AE32: 20 | AF32: 20 | AG32: 20.05 | AH32: 20 | AI32: 20 | AJ32: 19.8 | AK32: =AJ32-AG32 -> -0.25 | AL32: =AI32-AF32 -> 0 | AM32: =AH32-AE32 -> 0 | AN32: =IF(E32>0,1,0) -> 0 | AO32: =IF(L32>0,1,0) -> 0 | AP32: =IF(N32>0,1,0) -> 0 | AQ32: =RTD("sysq.rtd","","2002`001.1") -> 20 | AR32: =RTD("sysq.rtd","","2002`002.1") -> 20.05
A33: 2027 | B33: 大成鋼 | C33: 不銹鋼 | D33: =RTD("sysq.rtd","","2027`003.1") -> 21.45 | E33: =RTD("sysq.rtd","","2027`010.1") -> 0.47 | F33: =RTD("sysq.rtd","","2027`005.1") -> 6 | G33: =RTD("sysq.rtd","","2027`029.1") -> 0.7 | H33: 0.47 | I33: -33.07 | J33: =X33/$L$4*100 -> 0.06893191537 | K33: =(E33/100)*(J33/100)*$D$3 -> 0.04098994988 | L33: =(D33-AC33)/AC33 -> -0.02010050251 | N33: =(AD33-D33)/D33 -> -0.02144522145 | O33: =AA33-AB33 -> 13.3 | P33: -0.0497 | Q33: -0.0006 | R33: -0.9353 | S33: -0.0006 | U33: -302 | V33: 4.15 | W33: -33.05 | X33: 269.94 | Z33: 5.62 | AA33: 35.81 | AB33: 22.51 | AC33: 21.89 | AD33: 20.99 | AE33: 21.35 | AF33: 20.65 | AG33: 20.8 | AH33: 21.45 | AI33: 21.35 | AJ33: 20.55 | AK33: =AJ33-AG33 -> -0.25 | AL33: =AI33-AF33 -> 0.7 | AM33: =AH33-AE33 -> 0.1 | AN33: =IF(E33>0,1,0) -> 1 | AO33: =IF(L33>0,1,0) -> 0 | AP33: =IF(N33>0,1,0) -> 0 | AQ33: =RTD("sysq.rtd","","2027`001.1") -> 21.45 | AR33: =RTD("sysq.rtd","","2027`002.1") -> 21.5
A34: 2049 | B34: 上銀 | C34: 機械設備或組件 | D34: =RTD("sysq.rtd","","2049`003.1") -> 319 | E34: =RTD("sysq.rtd","","2049`010.1") -> 0.95 | F34: =RTD("sysq.rtd","","2049`005.1") -> 3 | G34: =RTD("sysq.rtd","","2049`029.1") -> 0.98 | H34: -4.2 | I34: 13.52 | J34: =X34/$L$4*100 -> 0.2597472241 | K34: =(E34/100)*(J34/100)*$D$3 -> 0.3122005785 | L34: =(D34-AC34)/AC34 -> -0.04741997133 | N34: =(AD34-D34)/D34 -> -0.04739811912 | O34: =AA34-AB34 -> -10.5 | P34: -0.4402 | Q34: 0.3446 | R34: 0.4665 | S34: 1.5417 | U34: 13 | V34: 1.52 | W34: -3.51 | X34: 1017.18 | Y34: 114.34 | Z34: 0.66 | AA34: 50.17 | AB34: 60.67 | AC34: 334.88 | AD34: 303.88 | AE34: 317 | AF34: 320 | AG34: 331.5 | AH34: 319 | AI34: 316 | AJ34: 311.5 | AK34: =AJ34-AG34 -> -20 | AL34: =AI34-AF34 -> -4 | AM34: =AH34-AE34 -> 2 | AN34: =IF(E34>0,1,0) -> 1 | AO34: =IF(L34>0,1,0) -> 0 | AP34: =IF(N34>0,1,0) -> 0 | AQ34: =RTD("sysq.rtd","","2049`001.1") -> 318.5 | AR34: =RTD("sysq.rtd","","2049`002.1") -> 319
A35: 2059 | B35: 川湖 | C35: 其他電零組件 | D35: =RTD("sysq.rtd","","2059`003.1") -> 320.5 | E35: =RTD("sysq.rtd","","2059`010.1") -> -2.29 | F35: =RTD("sysq.rtd","","2059`005.1") -> - | G35: =RTD("sysq.rtd","","2059`029.1") -> 1.69 | H35: -2.14 | I35: -11.46 | J35: =X35/$L$4*100 -> 0.07799464663 | K35: =(E35/100)*(J35/100)*$D$3 -> -0.2259745136 | L35: =(D35-AC35)/AC35 -> -0.04436758304 | N35: =(AD35-D35)/D35 -> -0.03157566303 | O35: =AA35-AB35 -> -2.08 | P35: -0.5192 | Q35: 0.0009 | R35: -1.8496 | S35: -0.052 | U35: 10 | V35: 8.68 | W35: -1.71 | X35: 305.43 | Y35: 22.04 | Z35: 2.44 | AA35: 24.73 | AB35: 26.81 | AC35: 335.38 | AD35: 310.38 | AE35: 331 | AF35: 330 | AG35: 333 | AH35: 320.5 | AI35: 328 | AJ35: 329.5 | AK35: =AJ35-AG35 -> -3.5 | AL35: =AI35-AF35 -> -2 | AM35: =AH35-AE35 -> -10.5 | AN35: =IF(E35>0,1,0) -> 0 | AO35: =IF(L35>0,1,0) -> 0 | AP35: =IF(N35>0,1,0) -> 0 | AQ35: =RTD("sysq.rtd","","2059`001.1") -> 320.5 | AR35: =RTD("sysq.rtd","","2059`002.1") -> 323
A36: 2101 | B36: 南港 | C36: 輪胎 | D36: =RTD("sysq.rtd","","2101`003.1") -> 48.1 | E36: =RTD("sysq.rtd","","2101`010.1") -> -1.64 | F36: =RTD("sysq.rtd","","2101`005.1") -> 1 | G36: =RTD("sysq.rtd","","2101`029.1") -> 1 | H36: -3.32 | I36: -0.41 | J36: =X36/$L$4*100 -> 0.1024300581 | K36: =(E36/100)*(J36/100)*$D$3 -> -0.2125349957 | L36: =(D36-AC36)/AC36 -> -0.03703703704 | N36: =(AD36-D36)/D36 -> -0.02390852391 | O36: -0.2305 | P36: -0.026 | Q36: -0.0009 | R36: 2.1697 | S36: -0.0009 | U36: -9 | V36: 11.04 | W36: 7.83 | X36: 401.12 | Y36: 39.11 | Z36: 2.56 | AA36: 66.54 | AB36: 68.81 | AC36: 49.95 | AD36: 46.95 | AE36: 49.1 | AF36: 48.75 | AG36: 50.1 | AH36: 48.1 | AI36: 48.9 | AJ36: 47.7 | AK36: =AJ36-AG36 -> -2.4 | AL36: =AI36-AF36 -> 0.15 | AM36: =AH36-AE36 -> -1 | AN36: =IF(E36>0,1,0) -> 0 | AO36: =IF(L36>0,1,0) -> 0 | AP36: =IF(N36>0,1,0) -> 0 | AQ36: =RTD("sysq.rtd","","2101`001.1") -> 48.1 | AR36: =RTD("sysq.rtd","","2101`002.1") -> 48.2
A37: 2105 | B37: 正新 | C37: 輪胎 | D37: =RTD("sysq.rtd","","2105`003.1") -> 37.65 | E37: =RTD("sysq.rtd","","2105`010.1") -> -1.18 | F37: =RTD("sysq.rtd","","2105`005.1") -> 4 | G37: =RTD("sysq.rtd","","2105`029.1") -> 0.86 | H37: -2.84 | I37: -9.93 | J37: =X37/$L$4*100 -> 0.3116389575 | K37: =(E37/100)*(J37/100)*$D$3 -> -0.4652570187 | L37: =(D37-AC37)/AC37 -> -0.02938901779 | N37: =(AD37-D37)/D37 -> -0.02549800797 | O37: =AA37-AB37 -> -8.11 | P37: -0.0638 | Q37: 0.1672 | R37: 0.5592 | S37: 0.5143 | U37: 31 | V37: 11.36 | W37: -2.3 | X37: 1220.39 | Y37: 121.45 | Z37: 2.62 | AA37: 65.34 | AB37: 73.45 | AC37: 38.79 | AD37: 36.69 | AE37: 38.35 | AF37: 37.85 | AG37: 38.25 | AH37: 37.65 | AI37: 38.1 | AJ37: 37.45 | AK37: =AJ37-AG37 -> -0.8 | AL37: =AI37-AF37 -> 0.25 | AM37: =AH37-AE37 -> -0.7 | AN37: =IF(E37>0,1,0) -> 0 | AO37: =IF(L37>0,1,0) -> 0 | AP37: =IF(N37>0,1,0) -> 0 | AQ37: =RTD("sysq.rtd","","2105`001.1") -> 37.65 | AR37: =RTD("sysq.rtd","","2105`002.1") -> 37.75
A38: 2201 | B38: 裕隆 | C38: 汽車 | D38: =RTD("sysq.rtd","","2201`003.1") -> 24.85 | E38: =RTD("sysq.rtd","","2201`010.1") -> -1 | F38: =RTD("sysq.rtd","","2201`005.1") -> 23 | G38: =RTD("sysq.rtd","","2201`029.1") -> 0.6 | H38: -1.19 | I38: 27.11 | J38: =X38/$L$4*100 -> 0.09981261673 | K38: =(E38/100)*(J38/100)*$D$3 -> -0.1262829227 | L38: =(D38-AC38)/AC38 -> -0.03269754768 | N38: =(AD38-D38)/D38 -> -0.04265593561 | O38: =AA38-AB38 -> -0.06 | P38: 0.1178 | Q38: 0.0009 | R38: 3.3084 | S38: 0.02 | U38: 137 | V38: 14.75 | W38: -3.96 | X38: 390.87 | Z38: 0 | AA38: 67.29 | AB38: 67.35 | AC38: 25.69 | AD38: 23.79 | AE38: 25.1 | AF38: 24.15 | AG38: 24.4 | AH38: 24.85 | AI38: 25.1 | AJ38: 23.3 | AK38: =AJ38-AG38 -> -1.1 | AL38: =AI38-AF38 -> 0.95 | AM38: =AH38-AE38 -> -0.25 | AN38: =IF(E38>0,1,0) -> 0 | AO38: =IF(L38>0,1,0) -> 0 | AP38: =IF(N38>0,1,0) -> 0 | AQ38: =RTD("sysq.rtd","","2201`001.1") -> 24.8 | AR38: =RTD("sysq.rtd","","2201`002.1") -> 24.85
A39: 2207 | B39: 和泰車 | C39: 汽車 | D39: =RTD("sysq.rtd","","2207`003.1") -> 635 | E39: =RTD("sysq.rtd","","2207`010.1") -> 0.79 | F39: =RTD("sysq.rtd","","2207`005.1") -> 1 | G39: =RTD("sysq.rtd","","2207`029.1") -> 0.85 | H39: -1.09 | I39: -7.03 | J39: =X39/$L$4*100 -> 0.8856502414 | K39: =(E39/100)*(J39/100)*$D$3 -> 0.8852145015 | L39: =(D39-AC39)/AC39 -> -0.03127383677 | N39: =(AD39-D39)/D39 -> -0.04330708661 | O39: =AA39-AB39 -> 10.62 | P39: -0.4837 | Q39: 0.6425 | R39: -2.2392 | S39: 0.2706 | U39: -14 | V39: 11.79 | W39: 8.93 | X39: 3468.24 | Y39: 26.82 | Z39: 2.22 | AA39: 42.31 | AB39: 31.69 | AC39: 655.5 | AD39: 607.5 | AE39: 631 | AF39: 610 | AG39: 618 | AH39: 635 | AI39: 630 | AJ39: 598 | AK39: =AJ39-AG39 -> -20 | AL39: =AI39-AF39 -> 20 | AM39: =AH39-AE39 -> 4 | AN39: =IF(E39>0,1,0) -> 1 | AO39: =IF(L39>0,1,0) -> 0 | AP39: =IF(N39>0,1,0) -> 0 | AQ39: =RTD("sysq.rtd","","2207`001.1") -> 633 | AR39: =RTD("sysq.rtd","","2207`002.1") -> 635
A40: 2227 | B40: 裕日車 | C40: 汽車 | D40: =RTD("sysq.rtd","","2227`003.1") -> 249 | E40: =RTD("sysq.rtd","","2227`010.1") -> 0.2 | F40: =RTD("sysq.rtd","","2227`005.1") -> - | G40: =RTD("sysq.rtd","","2227`029.1") -> 0.51 | H40: -0.6 | I40: -13.24 | J40: =X40/$L$4*100 -> 0.1907540223 | K40: =(E40/100)*(J40/100)*$D$3 -> 0.0482683978 | L40: =(D40-AC40)/AC40 -> -0.005988023952 | N40: =(AD40-D40)/D40 -> -0.01004016064 | O40: =AA40-AB40 -> 5.52 | P40: 0.0125 | Q40: 0.0004 | R40: 0.0422 | S40: 0.0004 | V40: 22.3 | W40: -6.99 | X40: 747 | Y40: 12.76 | Z40: 8.56 | AA40: 33.03 | AB40: 27.51 | AC40: 250.5 | AD40: 246.5 | AE40: 247 | AF40: 249.5 | AG40: 251 | AH40: 249 | AI40: 248.5 | AJ40: 246 | AK40: =AJ40-AG40 -> -5 | AL40: =AI40-AF40 -> -1 | AM40: =AH40-AE40 -> 2 | AN40: =IF(E40>0,1,0) -> 1 | AO40: =IF(L40>0,1,0) -> 0 | AP40: =IF(N40>0,1,0) -> 0 | AQ40: =RTD("sysq.rtd","","2227`001.1") -> 248.5 | AR40: =RTD("sysq.rtd","","2227`002.1") -> 249
A41: 2301 | B41: 光寶科 | C41: 電源供應器 | D41: =RTD("sysq.rtd","","2301`003.1") -> 46.9 | E41: =RTD("sysq.rtd","","2301`010.1") -> -0.21 | F41: =RTD("sysq.rtd","","2301`005.1") -> - | G41: =RTD("sysq.rtd","","2301`029.1") -> 0.73 | H41: -1.99 | I41: -4.96 | J41: =X41/$L$4*100 -> 0.2815498726 | K41: =(E41/100)*(J41/100)*$D$3 -> -0.07480554875 | L41: =(D41-AC41)/AC41 -> -0.009503695882 | N41: =(AD41-D41)/D41 -> -0.007462686567 | O41: =AA41-AB41 -> -6.46 | P41: -0.3897 | Q41: 0.2039 | R41: -0.7049 | S41: 0.7246 | U41: -52 | V41: -8.19 | W41: -14.52 | X41: 1102.56 | Y41: 10.35 | Z41: 6.81 | AA41: 27.72 | AB41: 34.18 | AC41: 47.35 | AD41: 46.55 | AE41: 47 | AF41: 47.15 | AG41: 48 | AH41: 46.9 | AI41: 47 | AJ41: 46.9 | AK41: =AJ41-AG41 -> -1.1 | AL41: =AI41-AF41 -> -0.15 | AM41: =AH41-AE41 -> -0.1 | AN41: =IF(E41>0,1,0) -> 0 | AO41: =IF(L41>0,1,0) -> 0 | AP41: =IF(N41>0,1,0) -> 0 | AQ41: =RTD("sysq.rtd","","2301`001.1") -> 46.9 | AR41: =RTD("sysq.rtd","","2301`002.1") -> 46.95
A42: 2303 | B42: 聯電 | C42: 晶圓代工 | D42: =RTD("sysq.rtd","","2303`003.1") -> 22.6 | E42: =RTD("sysq.rtd","","2303`010.1") -> 3.67 | F42: =RTD("sysq.rtd","","2303`005.1") -> 154 | G42: =RTD("sysq.rtd","","2303`029.1") -> 0.76 | H42: -6.42 | I42: 37.39 | J42: =X42/$L$4*100 -> 0.7053710919 | K42: =(E42/100)*(J42/100)*$D$3 -> 3.275238305 | L42: =(D42-AC42)/AC42 -> -0.02795698925 | N42: =(AD42-D42)/D42 -> -0.04203539823 | O42: =AA42-AB42 -> -1.02 | P42: 4.2662 | Q42: -1.1685 | R42: -0.6014 | S42: -3.6981 | U42: 10354 | V42: 6.26 | W42: 12.87 | X42: 2762.26 | Y42: 17.52 | Z42: 3.67 | AA42: 23.42 | AB42: 24.44 | AC42: 23.25 | AD42: 21.65 | AE42: 21.95 | AF42: 22.45 | AG42: 22.8 | AH42: 22.6 | AI42: 21.8 | AJ42: 21.8 | AK42: =AJ42-AG42 -> -1 | AL42: =AI42-AF42 -> -0.65 | AM42: =AH42-AE42 -> 0.65 | AN42: =IF(E42>0,1,0) -> 1 | AO42: =IF(L42>0,1,0) -> 0 | AP42: =IF(N42>0,1,0) -> 0 | AQ42: =RTD("sysq.rtd","","2303`001.1") -> 22.55 | AR42: =RTD("sysq.rtd","","2303`002.1") -> 22.6
A43: 2308 | B43: 台達電 | C43: 電源供應器 | D43: =RTD("sysq.rtd","","2308`003.1") -> 197 | E43: =RTD("sysq.rtd","","2308`010.1") -> 3.14 | F43: =RTD("sysq.rtd","","2308`005.1") -> 8 | G43: =RTD("sysq.rtd","","2308`029.1") -> 0.47 | H43: -3.43 | I43: 30.03 | J43: =X43/$L$4*100 -> 1.306718678 | K43: =(E43/100)*(J43/100)*$D$3 -> 5.191237882 | L43: =(D43-AC43)/AC43 -> -0.0307503075 | N43: =(AD43-D43)/D43 -> -0.04949238579 | O43: =AA43-AB43 -> -3.3 | P43: 4.5324 | Q43: 0.0073 | R43: 21.6013 | S43: -3.2517 | U43: -244 | V43: 8.27 | W43: 4.24 | X43: 5117.16 | Y43: 25.75 | Z43: 2.62 | AA43: 40.07 | AB43: 43.37 | AC43: 203.25 | AD43: 187.25 | AE43: 190 | AF43: 195 | AG43: 201.5 | AH43: 197 | AI43: 191 | AJ43: 190.5 | AK43: =AJ43-AG43 -> -11 | AL43: =AI43-AF43 -> -4 | AM43: =AH43-AE43 -> 7 | AN43: =IF(E43>0,1,0) -> 1 | AO43: =IF(L43>0,1,0) -> 0 | AP43: =IF(N43>0,1,0) -> 0 | AQ43: =RTD("sysq.rtd","","2308`001.1") -> 196.5 | AR43: =RTD("sysq.rtd","","2308`002.1") -> 197
A44: 2313 | B44: 華通 | C44: PCB-高密度板 | D44: =RTD("sysq.rtd","","2313`003.1") -> 45.45 | E44: =RTD("sysq.rtd","","2313`010.1") -> 0.66 | F44: =RTD("sysq.rtd","","2313`005.1") -> 37 | G44: =RTD("sysq.rtd","","2313`029.1") -> 0.57 | H44: -9.46 | I44: 0.78 | J44: =X44/$L$4*100 -> 0.138323479 | K44: =(E44/100)*(J44/100)*$D$3 -> 0.1155045313 | L44: =(D44-AC44)/AC44 -> -0.02780748663 | N44: =(AD44-D44)/D44 -> -0.04180418042 | O44: =AA44-AB44 -> -4.94 | P44: 0.2568 | Q44: -0.6796 | R44: -2.299 | S44: -1.7237 | U44: 1553 | V44: 14.92 | W44: 6.23 | X44: 541.68 | Y44: 11.19 | Z44: 2.66 | AA44: 19.14 | AB44: 24.08 | AC44: 46.75 | AD44: 43.55 | AE44: 45.5 | AF44: 45.35 | AG44: 47.3 | AH44: 45.45 | AI44: 45.15 | AJ44: 44.05 | AK44: =AJ44-AG44 -> -3.25 | AL44: =AI44-AF44 -> -0.2 | AM44: =AH44-AE44 -> -0.05 | AN44: =IF(E44>0,1,0) -> 1 | AO44: =IF(L44>0,1,0) -> 0 | AP44: =IF(N44>0,1,0) -> 0 | AQ44: =RTD("sysq.rtd","","2313`001.1") -> 45.4 | AR44: =RTD("sysq.rtd","","2313`002.1") -> 45.45
A45: 2317 | B45: 鴻海 | C45: 組裝代工 | D45: =RTD("sysq.rtd","","2317`003.1") -> 77.6 | E45: =RTD("sysq.rtd","","2317`010.1") -> -0.77 | F45: =RTD("sysq.rtd","","2317`005.1") -> 32 | G45: =RTD("sysq.rtd","","2317`029.1") -> 0.89 | H45: -3.24 | I45: -14.54 | J45: =X45/$L$4*100 -> 2.747082638 | K45: =(E45/100)*(J45/100)*$D$3 -> -2.676218894 | L45: =(D45-AC45)/AC45 -> -0.01272264631 | N45: =(AD45-D45)/D45 -> -0.007731958763 | O45: =AA45-AB45 -> -5.25 | P45: -3.3873 | Q45: 0.0128 | R45: 3.5812 | S45: 0.175 | U45: -326 | V45: 11.87 | W45: 1.34 | X45: 10757.68 | Y45: 10.4 | Z45: 5.37 | AA45: 34.4 | AB45: 39.65 | AC45: 78.6 | AD45: 77 | AE45: 78.2 | AF45: 78.2 | AG45: 79.6 | AH45: 77.6 | AI45: 78.2 | AJ45: 77.1 | AK45: =AJ45-AG45 -> -2.5 | AL45: =AI45-AF45 -> 0 | AM45: =AH45-AE45 -> -0.6 | AN45: =IF(E45>0,1,0) -> 0 | AO45: =IF(L45>0,1,0) -> 0 | AP45: =IF(N45>0,1,0) -> 0 | AQ45: =RTD("sysq.rtd","","2317`001.1") -> 77.6 | AR45: =RTD("sysq.rtd","","2317`002.1") -> 77.7
A46: 2324 | B46: 仁寶 | C46: PC/NB/平板 | D46: =RTD("sysq.rtd","","2324`003.1") -> 18.45 | E46: =RTD("sysq.rtd","","2324`010.1") -> 0.27 | F46: =RTD("sysq.rtd","","2324`005.1") -> 58 | G46: =RTD("sysq.rtd","","2324`029.1") -> 0.38 | H46: -1.34 | I46: -2.12 | J46: =X46/$L$4*100 -> 0.2076384346 | K46: =(E46/100)*(J46/100)*$D$3 -> 0.0709301198 | L46: =(D46-AC46)/AC46 -> -0.008597528211 | N46: =(AD46-D46)/D46 -> -0.007588075881 | O46: 1.8036 | P46: -0.1442 | Q46: 0.1941 | R46: -1.3475 | S46: 0.5742 | U46: 40 | V46: 9.88 | W46: 14.35 | X46: 813.12 | Y46: 12.55 | Z46: 6.52 | AA46: 27.05 | AB46: 30.32 | AC46: 18.61 | AD46: 18.31 | AE46: 18.4 | AF46: 18.35 | AG46: 18.55 | AH46: 18.45 | AI46: 18.4 | AJ46: 18.35 | AK46: =AJ46-AG46 -> -0.2 | AL46: =AI46-AF46 -> 0.05 | AM46: =AH46-AE46 -> 0.05 | AN46: =IF(E46>0,1,0) -> 1 | AO46: =IF(L46>0,1,0) -> 0 | AP46: =IF(N46>0,1,0) -> 0 | AQ46: =RTD("sysq.rtd","","2324`001.1") -> 18.45 | AR46: =RTD("sysq.rtd","","2324`002.1") -> 18.5
A47: 2327 | B47: 國巨 | C47: 電阻 | D47: =RTD("sysq.rtd","","2327`003.1") -> 333.5 | E47: =RTD("sysq.rtd","","2327`010.1") -> -3.05 | F47: =RTD("sysq.rtd","","2327`005.1") -> 16 | G47: =RTD("sysq.rtd","","2327`029.1") -> 0.78 | H47: -12.01 | I47: -23.68 | J47: =X47/$L$4*100 -> 0.4204198223 | K47: =(E47/100)*(J47/100)*$D$3 -> -1.622341235 | L47: =(D47-AC47)/AC47 -> -0.03579276049 | N47: =(AD47-D47)/D47 -> -0.02584707646 | O47: =AA47-AB47 -> 1.96 | P47: -5.6516 | Q47: 0.1336 | R47: -7.8679 | S47: -2.6985 | U47: -6 | V47: 54.41 | W47: 107.38 | X47: 1646.38 | Y47: 19.16 | Z47: 3.8 | AA47: 19.17 | AB47: 17.21 | AC47: 345.88 | AD47: 324.88 | AE47: 341.5 | AF47: 337 | AG47: 352 | AH47: 333.5 | AI47: 344 | AJ47: 330 | AK47: =AJ47-AG47 -> -22 | AL47: =AI47-AF47 -> 7 | AM47: =AH47-AE47 -> -8 | AN47: =IF(E47>0,1,0) -> 0 | AO47: =IF(L47>0,1,0) -> 0 | AP47: =IF(N47>0,1,0) -> 0 | AQ47: =RTD("sysq.rtd","","2327`001.1") -> 333.5 | AR47: =RTD("sysq.rtd","","2327`002.1") -> 334
A48: 2330 | B48: 台積電 | C48: 晶圓代工 | D48: =RTD("sysq.rtd","","2330`003.1") -> 428 | E48: =RTD("sysq.rtd","","2330`010.1") -> 0.82 | F48: =RTD("sysq.rtd","","2330`005.1") -> 658 | G48: =RTD("sysq.rtd","","2330`029.1") -> 1.16 | H48: -1.61 | I48: 29.31 | J48: =X48/$L$4*100 -> 28.34038638 | K48: =(E48/100)*(J48/100)*$D$3 -> 29.40213062 | L48: =(D48-AC48)/AC48 -> -0.0236780875 | N48: =(AD48-D48)/D48 -> -0.02014018692 | O48: =AA48-AB48 -> 3.27 | P48: 10.313 | Q48: 0.1836 | R48: 49.4581 | S48: -0.6221 | U48: -106 | V48: -12.34 | W48: 25.02 | X48: 110982.03 | Y48: 24.4 | Z48: 2.24 | AA48: 57.28 | AB48: 54.01 | AC48: 438.38 | AD48: 419.38 | AE48: 427.5 | AF48: 421.5 | AG48: 427 | AH48: 428 | AI48: 424.5 | AJ48: 415 | AK48: =AJ48-AG48 -> -12 | AL48: =AI48-AF48 -> 3 | AM48: =AH48-AE48 -> 0.5 | AN48: =IF(E48>0,1,0) -> 1 | AO48: =IF(L48>0,1,0) -> 0 | AP48: =IF(N48>0,1,0) -> 0 | AQ48: =RTD("sysq.rtd","","2330`001.1") -> 428 | AR48: =RTD("sysq.rtd","","2330`002.1") -> 429
A49: 2337 | B49: 旺宏 | C49: 記憶體IC設計 | D49: =RTD("sysq.rtd","","2337`003.1") -> 29.25 | E49: =RTD("sysq.rtd","","2337`010.1") -> 0.86 | F49: =RTD("sysq.rtd","","2337`005.1") -> 56 | G49: =RTD("sysq.rtd","","2337`029.1") -> 0.88 | H49: -3.78 | I49: -21.37 | J49: =X49/$L$4*100 -> 0.1386528936 | K49: =(E49/100)*(J49/100)*$D$3 -> 0.1508643312 | L49: =(D49-AC49)/AC49 -> -0.02271967925 | N49: =(AD49-D49)/D49 -> -0.01811965812 | O49: =AA49-AB49 -> 9.79 | P49: 0.3302 | Q49: 0.0015 | R49: 0.4273 | S49: 0.0007 | U49: -26 | V49: 4.39 | W49: 3.43 | X49: 542.97 | Y49: 10.52 | Z49: 4.1 | AA49: 41.2 | AB49: 31.41 | AC49: 29.93 | AD49: 28.72 | AE49: 29.1 | AF49: 28.5 | AG49: 29.2 | AH49: 29.25 | AI49: 29 | AJ49: 28.25 | AK49: =AJ49-AG49 -> -0.95 | AL49: =AI49-AF49 -> 0.5 | AM49: =AH49-AE49 -> 0.15 | AN49: =IF(E49>0,1,0) -> 1 | AO49: =IF(L49>0,1,0) -> 0 | AP49: =IF(N49>0,1,0) -> 0 | AQ49: =RTD("sysq.rtd","","2337`001.1") -> 29.25 | AR49: =RTD("sysq.rtd","","2337`002.1") -> 29.3
A50: 2344 | B50: 華邦電 | C50: 記憶體IC設計 | D50: =RTD("sysq.rtd","","2344`003.1") -> 11.85 | E50: =RTD("sysq.rtd","","2344`010.1") -> 1.28 | F50: =RTD("sysq.rtd","","2344`005.1") -> 40 | G50: =RTD("sysq.rtd","","2344`029.1") -> 0.59 | H50: -9.54 | I50: -39.39 | J50: =X50/$L$4*100 -> 0.1204355014 | K50: =(E50/100)*(J50/100)*$D$3 -> 0.1950399953 | L50: =(D50-AC50)/AC50 -> -0.02868852459 | N50: =(AD50-D50)/D50 -> -0.03797468354 | O50: =AA50-AB50 -> -2.28 | P50: -0.6533 | Q50: 0.001 | R50: -8.1508 | S50: 0.001 | U50: 2960 | V50: -0.16 | W50: -4.7 | X50: 471.63 | Y50: 47.4 | Z50: 0.85 | AA50: 15.65 | AB50: 17.93 | AC50: 12.2 | AD50: 11.4 | AE50: 11.7 | AF50: 11.85 | AG50: 12.2 | AH50: 11.85 | AI50: 11.7 | AJ50: 11.8 | AK50: =AJ50-AG50 -> -0.4 | AL50: =AI50-AF50 -> -0.15 | AM50: =AH50-AE50 -> 0.15 | AN50: =IF(E50>0,1,0) -> 1 | AO50: =IF(L50>0,1,0) -> 0 | AP50: =IF(N50>0,1,0) -> 0 | AQ50: =RTD("sysq.rtd","","2344`001.1") -> 11.85 | AR50: =RTD("sysq.rtd","","2344`002.1") -> 11.9
A51: 2345 | B51: 智邦 | C51: 網路通訊設備 | D51: =RTD("sysq.rtd","","2345`003.1") -> 244 | E51: =RTD("sysq.rtd","","2345`010.1") -> 7.02 | F51: =RTD("sysq.rtd","","2345`005.1") -> 21 | G51: =RTD("sysq.rtd","","2345`029.1") -> 1.74 | H51: 2.52 | I51: 45.24 | J51: =X51/$L$4*100 -> 0.3479996874 | K51: =(E51/100)*(J51/100)*$D$3 -> 3.090830216 | L51: =(D51-AC51)/AC51 -> -0.05382348379 | N51: =(AD51-D51)/D51 -> -0.09475409836 | O51: =AA51-AB51 -> 13.16 | P51: 4.7355 | Q51: 0.057 | R51: 11.9076 | S51: 0.423 | U51: -61 | V51: -13.9 | W51: -9.67 | X51: 1362.78 | Y51: 27.2 | Z51: 2.71 | AA51: 72.03 | AB51: 58.87 | AC51: 257.88 | AD51: 220.88 | AE51: 228 | AF51: 228 | AG51: 230 | AH51: 244 | AI51: 228 | AJ51: 222 | AK51: =AJ51-AG51 -> -8 | AL51: =AI51-AF51 -> 0 | AM51: =AH51-AE51 -> 16 | AN51: =IF(E51>0,1,0) -> 1 | AO51: =IF(L51>0,1,0) -> 0 | AP51: =IF(N51>0,1,0) -> 0 | AQ51: =RTD("sysq.rtd","","2345`001.1") -> 243.5 | AR51: =RTD("sysq.rtd","","2345`002.1") -> 244
A52: 2347 | B52: 聯強 | C52: 3C賣場 | D52: =RTD("sysq.rtd","","2347`003.1") -> 45.05 | E52: =RTD("sysq.rtd","","2347`010.1") -> 2.85 | F52: =RTD("sysq.rtd","","2347`005.1") -> 4 | G52: =RTD("sysq.rtd","","2347`029.1") -> 0.5 | H52: -1.1 | I52: 20.13 | J52: =X52/$L$4*100 -> 0.1918801605 | K52: =(E52/100)*(J52/100)*$D$3 -> 0.6918853204 | L52: =(D52-AC52)/AC52 -> -0.01616073378 | N52: =(AD52-D52)/D52 -> -0.02574916759 | O52: =AA52-AB52 -> -8.57 | P52: 0.6915 | Q52: 0.1451 | R52: 2.5583 | S52: 0.5301 | U52: 231 | V52: 0.41 | W52: -1.66 | X52: 751.41 | Y52: 10.53 | Z52: 5.94 | AA52: 52.7 | AB52: 61.27 | AC52: 45.79 | AD52: 43.89 | AE52: 44.3 | AF52: 44.7 | AG52: 45.45 | AH52: 45.05 | AI52: 43.8 | AJ52: 44.1 | AK52: =AJ52-AG52 -> -1.35 | AL52: =AI52-AF52 -> -0.9 | AM52: =AH52-AE52 -> 0.75 | AN52: =IF(E52>0,1,0) -> 1 | AO52: =IF(L52>0,1,0) -> 0 | AP52: =IF(N52>0,1,0) -> 0 | AQ52: =RTD("sysq.rtd","","2347`001.1") -> 45 | AR52: =RTD("sysq.rtd","","2347`002.1") -> 45.05
A53: 2352 | B53: 佳世達 | C53: 組裝代工 | D53: =RTD("sysq.rtd","","2352`003.1") -> 19.15 | E53: =RTD("sysq.rtd","","2352`010.1") -> 2.13 | F53: =RTD("sysq.rtd","","2352`005.1") -> 25 | G53: =RTD("sysq.rtd","","2352`029.1") -> 1.49 | H53: 2.41 | I53: -10.09 | J53: =X53/$L$4*100 -> 0.09617884198 | K53: =(E53/100)*(J53/100)*$D$3 -> 0.259190053 | L53: =(D53-AC53)/AC53 -> -0.02594099695 | N53: =(AD53-D53)/D53 -> -0.03080939948 | O53: =AA53-AB53 -> 0.06 | P53: -0.0691 | Q53: 0.3861 | R53: -0.0496 | S53: 0.9933 | U53: -113 | V53: -7.08 | W53: 6.24 | X53: 376.64 | Y53: 13.3 | Z53: 4 | AA53: 68.06 | AB53: 68 | AC53: 19.66 | AD53: 18.56 | AE53: 18.85 | AF53: 18.6 | AG53: 19.25 | AH53: 19.15 | AI53: 18.75 | AJ53: 18.2 | AK53: =AJ53-AG53 -> -1.05 | AL53: =AI53-AF53 -> 0.15 | AM53: =AH53-AE53 -> 0.3 | AN53: =IF(E53>0,1,0) -> 1 | AO53: =IF(L53>0,1,0) -> 0 | AP53: =IF(N53>0,1,0) -> 0 | AQ53: =RTD("sysq.rtd","","2352`001.1") -> 19.15 | AR53: =RTD("sysq.rtd","","2352`002.1") -> 19.2
A54: 2353 | B54: 宏碁 | C54: PC/NB/平板 | D54: =RTD("sysq.rtd","","2353`003.1") -> 23.45 | E54: =RTD("sysq.rtd","","2353`010.1") -> -1.05 | F54: =RTD("sysq.rtd","","2353`005.1") -> 82 | G54: =RTD("sysq.rtd","","2353`029.1") -> 1.39 | H54: -1.26 | I54: 31.37 | J54: =X54/$L$4*100 -> 0.184132534 | K54: =(E54/100)*(J54/100)*$D$3 -> -0.2446127061 | L54: =(D54-AC54)/AC54 -> -0.05595813205 | N54: =(AD54-D54)/D54 -> -0.03880597015 | O54: =AA54-AB54 -> -5.06 | P54: -2.1124 | Q54: 0.002 | R54: 6.627 | S54: 0.002 | U54: 616 | V54: -9.48 | W54: 26.88 | X54: 721.07 | Y54: 21.51 | Z54: 3.29 | AA54: 59.08 | AB54: 64.14 | AC54: 24.84 | AD54: 22.54 | AE54: 24 | AF54: 23.6 | AG54: 23.9 | AH54: 23.45 | AI54: 23.7 | AJ54: 22.7 | AK54: =AJ54-AG54 -> -1.2 | AL54: =AI54-AF54 -> 0.1 | AM54: =AH54-AE54 -> -0.55 | AN54: =IF(E54>0,1,0) -> 0 | AO54: =IF(L54>0,1,0) -> 0 | AP54: =IF(N54>0,1,0) -> 0 | AQ54: =RTD("sysq.rtd","","2353`001.1") -> 23.45 | AR54: =RTD("sysq.rtd","","2353`002.1") -> 23.5
A55: 2354 | B55: 鴻準 | C55: 機殼 | D55: =RTD("sysq.rtd","","2354`003.1") -> 52.1 | E55: =RTD("sysq.rtd","","2354`010.1") -> 0.58 | F55: =RTD("sysq.rtd","","2354`005.1") -> 7 | G55: =RTD("sysq.rtd","","2354`029.1") -> 0.77 | H55: -4.05 | I55: -21.3 | J55: =X55/$L$4*100 -> 0.1881876529 | K55: =(E55/100)*(J55/100)*$D$3 -> 0.1380951107 | L55: =(D55-AC55)/AC55 -> -0.01288366806 | N55: =(AD55-D55)/D55 -> -0.01401151631 | O55: =AA55-AB55 -> -0.01 | P55: -0.1428 | Q55: 0.1449 | R55: -1.2897 | S55: 0.4344 | U55: 20 | V55: 21.86 | W55: -8.12 | X55: 736.95 | Y55: 11.48 | Z55: 4.83 | AA55: 34.01 | AB55: 34.02 | AC55: 52.78 | AD55: 51.37 | AE55: 51.8 | AF55: 51.5 | AG55: 53.7 | AH55: 52.1 | AI55: 51.8 | AJ55: 51.2 | AK55: =AJ55-AG55 -> -2.5 | AL55: =AI55-AF55 -> 0.3 | AM55: =AH55-AE55 -> 0.3 | AN55: =IF(E55>0,1,0) -> 1 | AO55: =IF(L55>0,1,0) -> 0 | AP55: =IF(N55>0,1,0) -> 0 | AQ55: =RTD("sysq.rtd","","2354`001.1") -> 52.1 | AR55: =RTD("sysq.rtd","","2354`002.1") -> 52.2
A56: 2356 | B56: 英業達 | C56: PC/NB/平板 | D56: =RTD("sysq.rtd","","2356`003.1") -> 22.75 | E56: =RTD("sysq.rtd","","2356`010.1") -> -0.44 | F56: =RTD("sysq.rtd","","2356`005.1") -> 18 | G56: =RTD("sysq.rtd","","2356`029.1") -> 1.14 | H56: -3.6 | I56: -0.44 | J56: =X56/$L$4*100 -> 0.2084121758 | K56: =(E56/100)*(J56/100)*$D$3 -> -0.1160205573 | L56: =(D56-AC56)/AC56 -> -0.01939655172 | N56: =(AD56-D56)/D56 -> -0.01538461538 | O56: =AA56-AB56 -> 2.82 | P56: -0.8781 | Q56: -0.0995 | R56: -3.3703 | S56: -0.5898 | U56: -153 | V56: -8.82 | W56: 15.69 | X56: 816.15 | Y56: 11.43 | Z56: 5.69 | AA56: 19.31 | AB56: 16.49 | AC56: 23.2 | AD56: 22.4 | AE56: 23 | AF56: 22.85 | AG56: 23.1 | AH56: 22.75 | AI56: 22.85 | AJ56: 22.5 | AK56: =AJ56-AG56 -> -0.6 | AL56: =AI56-AF56 -> 0 | AM56: =AH56-AE56 -> -0.25 | AN56: =IF(E56>0,1,0) -> 0 | AO56: =IF(L56>0,1,0) -> 0 | AP56: =IF(N56>0,1,0) -> 0 | AQ56: =RTD("sysq.rtd","","2356`001.1") -> 22.75 | AR56: =RTD("sysq.rtd","","2356`002.1") -> 22.8
A57: 2357 | B57: 華碩 | C57: PC/NB/平板 | D57: =RTD("sysq.rtd","","2357`003.1") -> 247.5 | E57: =RTD("sysq.rtd","","2357`010.1") -> -0.8 | F57: =RTD("sysq.rtd","","2357`005.1") -> 5 | G57: =RTD("sysq.rtd","","2357`029.1") -> 0.71 | H57: -1.59 | I57: 6.91 | J57: =X57/$L$4*100 -> 0.4694362006 | K57: =(E57/100)*(J57/100)*$D$3 -> -0.4751445448 | L57: =(D57-AC57)/AC57 -> -0.02463054187 | N57: =(AD57-D57)/D57 -> -0.02323232323 | O57: =AA57-AB57 -> -4.93 | P57: 0.144 | Q57: 0.2345 | R57: 10.0781 | S57: 1.8399 | U57: 48 | V57: -5.66 | W57: 45.49 | X57: 1838.33 | Y57: 12.7 | Z57: 5.61 | AA57: 74.74 | AB57: 79.67 | AC57: 253.75 | AD57: 241.75 | AE57: 247.5 | AF57: 253.5 | AG57: 251.5 | AH57: 247.5 | AI57: 249.5 | AJ57: 246 | AK57: =AJ57-AG57 -> -5.5 | AL57: =AI57-AF57 -> -4 | AM57: =AH57-AE57 -> 0 | AN57: =IF(E57>0,1,0) -> 0 | AO57: =IF(L57>0,1,0) -> 0 | AP57: =IF(N57>0,1,0) -> 0 | AQ57: =RTD("sysq.rtd","","2357`001.1") -> 247.5 | AR57: =RTD("sysq.rtd","","2357`002.1") -> 248
A58: 2360 | B58: 致茂 | C58: 設備或廠務工程 | D58: =RTD("sysq.rtd","","2360`003.1") -> 160 | E58: =RTD("sysq.rtd","","2360`010.1") -> 2.89 | F58: =RTD("sysq.rtd","","2360`005.1") -> 1 | G58: =RTD("sysq.rtd","","2360`029.1") -> 1.31 | H58: 0.63 | I58: 10.34 | J58: =X58/$L$4*100 -> 0.1715279576 | K58: =(E58/100)*(J58/100)*$D$3 -> 0.6271796269 | L58: =(D58-AC58)/AC58 -> -0.03689881418 | N58: =(AD58-D58)/D58 -> -0.0554375 | O58: -0.0425 | P58: 0.5392 | Q58: 0.0018 | R58: 3.0454 | S58: -0.0676 | U58: -9 | V58: 17.08 | W58: 50.4 | X58: 671.71 | Y58: 31.37 | Z58: 1.94 | AA58: 53.65 | AB58: 33.92 | AC58: 166.13 | AD58: 151.13 | AE58: 154.5 | AF58: 152 | AG58: 157.5 | AH58: 160 | AI58: 155.5 | AJ58: 151 | AK58: =AJ58-AG58 -> -6.5 | AL58: =AI58-AF58 -> 3.5 | AM58: =AH58-AE58 -> 5.5 | AN58: =IF(E58>0,1,0) -> 1 | AO58: =IF(L58>0,1,0) -> 0 | AP58: =IF(N58>0,1,0) -> 0 | AQ58: =RTD("sysq.rtd","","2360`001.1") -> 159.5 | AR58: =RTD("sysq.rtd","","2360`002.1") -> 160
A59: 2376 | B59: 技嘉 | C59: 主機板 | D59: =RTD("sysq.rtd","","2376`003.1") -> 86.6 | E59: =RTD("sysq.rtd","","2376`010.1") -> 1.52 | F59: =RTD("sysq.rtd","","2376`005.1") -> 19 | G59: =RTD("sysq.rtd","","2376`029.1") -> 0.83 | H59: 0.12 | I59: 74.25 | J59: =X59/$L$4*100 -> 0.140578309 | K59: =(E59/100)*(J59/100)*$D$3 -> 0.2703467083 | L59: =(D59-AC59)/AC59 -> -0.03077783996 | N59: =(AD59-D59)/D59 -> -0.04676674365 | O59: =AA59-AB59 -> -3.21 | P59: 0.7352 | Q59: -0.2483 | R59: 4.806 | S59: 0.5009 | U59: 366 | V59: 13.91 | W59: 38.29 | X59: 550.51 | Y59: 18 | Z59: 2.58 | AA59: 48.25 | AB59: 51.46 | AC59: 89.35 | AD59: 82.55 | AE59: 85.8 | AF59: 86.5 | AG59: 89.4 | AH59: 86.6 | AI59: 85.3 | AJ59: 83.5 | AK59: =AJ59-AG59 -> -5.9 | AL59: =AI59-AF59 -> -1.2 | AM59: =AH59-AE59 -> 0.8 | AN59: =IF(E59>0,1,0) -> 1 | AO59: =IF(L59>0,1,0) -> 0 | AP59: =IF(N59>0,1,0) -> 0 | AQ59: =RTD("sysq.rtd","","2376`001.1") -> 86.5 | AR59: =RTD("sysq.rtd","","2376`002.1") -> 86.6
A60: 2377 | B60: 微星 | C60: 主機板 | D60: =RTD("sysq.rtd","","2377`003.1") -> 141 | E60: =RTD("sysq.rtd","","2377`010.1") -> -2.76 | F60: =RTD("sysq.rtd","","2377`005.1") -> 7 | G60: =RTD("sysq.rtd","","2377`029.1") -> 0.79 | H60: -5.05 | I60: 62.63 | J60: =X60/$L$4*100 -> 0.3041977631 | K60: =(E60/100)*(J60/100)*$D$3 -> -1.062243987 | L60: =(D60-AC60)/AC60 -> -0.06702838616 | N60: =(AD60-D60)/D60 -> -0.04872340426 | O60: =AA60-AB60 -> -6.11 | P60: -0.8963 | Q60: 0.5507 | R60: 6.6546 | S60: 3.362 | U60: 316 | V60: 0.44 | W60: 41.82 | X60: 1191.25 | Y60: 18.68 | Z60: 2.82 | AA60: 57.16 | AB60: 63.27 | AC60: 151.13 | AD60: 134.13 | AE60: 148.5 | AF60: 145.5 | AG60: 146 | AH60: 141 | AI60: 149 | AJ60: 141 | AK60: =AJ60-AG60 -> -5 | AL60: =AI60-AF60 -> 3.5 | AM60: =AH60-AE60 -> -7.5 | AN60: =IF(E60>0,1,0) -> 0 | AO60: =IF(L60>0,1,0) -> 0 | AP60: =IF(N60>0,1,0) -> 0 | AQ60: =RTD("sysq.rtd","","2377`001.1") -> 141 | AR60: =RTD("sysq.rtd","","2377`002.1") -> 141.5
A61: 2379 | B61: 瑞昱 | C61: 消費性IC設計 | D61: =RTD("sysq.rtd","","2379`003.1") -> 393 | E61: =RTD("sysq.rtd","","2379`010.1") -> 4.24 | F61: =RTD("sysq.rtd","","2379`005.1") -> 7 | G61: =RTD("sysq.rtd","","2379`029.1") -> 0.52 | H61: -4.15 | I61: 67.23 | J61: =X61/$L$4*100 -> 0.5125052413 | K61: =(E61/100)*(J61/100)*$D$3 -> 2.749307717 | L61: =(D61-AC61)/AC61 -> -0.03232954965 | N61: =(AD61-D61)/D61 -> -0.05564885496 | O61: =AA61-AB61 -> -0.18 | P61: 3.0886 | Q61: -0.8241 | R61: -12.5335 | S61: -5.0246 | U61: 86 | V61: 14.09 | W61: 40.04 | X61: 2006.99 | Y61: 27.77 | Z61: 2.92 | AA61: 34.35 | AB61: 34.53 | AC61: 406.13 | AD61: 371.13 | AE61: 381 | AF61: 382 | AG61: 398 | AH61: 393 | AI61: 377 | AJ61: 373 | AK61: =AJ61-AG61 -> -25 | AL61: =AI61-AF61 -> -5 | AM61: =AH61-AE61 -> 12 | AN61: =IF(E61>0,1,0) -> 1 | AO61: =IF(L61>0,1,0) -> 0 | AP61: =IF(N61>0,1,0) -> 0 | AQ61: =RTD("sysq.rtd","","2379`001.1") -> 392.5 | AR61: =RTD("sysq.rtd","","2379`002.1") -> 393
A62: 2382 | B62: 廣達 | C62: PC/NB/平板 | D62: =RTD("sysq.rtd","","2382`003.1") -> 77.6 | E62: =RTD("sysq.rtd","","2382`010.1") -> -0.39 | F62: =RTD("sysq.rtd","","2382`005.1") -> 4 | G62: =RTD("sysq.rtd","","2382`029.1") -> 0.47 | H62: -7.95 | I62: 20.68 | J62: =X62/$L$4*100 -> 0.7654164745 | K62: =(E62/100)*(J62/100)*$D$3 -> -0.3776779202 | L62: =(D62-AC62)/AC62 -> -0.01772151899 | N62: =(AD62-D62)/D62 -> -0.01288659794 | O62: =AA62-AB62 -> -8.28 | P62: 1.4702 | Q62: 0.2163 | R62: 6.8092 | S62: 1.6483 | U62: 337 | V62: 16.54 | W62: 31.25 | X62: 2997.4 | Y62: 16.91 | Z62: 4.75 | AA62: 46.88 | AB62: 55.16 | AC62: 79 | AD62: 76.6 | AE62: 78.3 | AF62: 80 | AG62: 81.5 | AH62: 77.6 | AI62: 77.9 | AJ62: 78.9 | AK62: =AJ62-AG62 -> -2.6 | AL62: =AI62-AF62 -> -2.1 | AM62: =AH62-AE62 -> -0.7 | AN62: =IF(E62>0,1,0) -> 0 | AO62: =IF(L62>0,1,0) -> 0 | AP62: =IF(N62>0,1,0) -> 0 | AQ62: =RTD("sysq.rtd","","2382`001.1") -> 77.5 | AR62: =RTD("sysq.rtd","","2382`002.1") -> 77.6
A63: 2383 | B63: 台光電 | C63: PCB原料 | D63: =RTD("sysq.rtd","","2383`003.1") -> 172 | E63: =RTD("sysq.rtd","","2383`010.1") -> 0.29 | F63: =RTD("sysq.rtd","","2383`005.1") -> 9 | G63: =RTD("sysq.rtd","","2383`029.1") -> 0.57 | H63: 1.18 | I63: 25.55 | J63: =X63/$L$4*100 -> 0.1404225393 | K63: =(E63/100)*(J63/100)*$D$3 -> 0.05152215305 | L63: =(D63-AC63)/AC63 -> -0.02344858911 | N63: =(AD63-D63)/D63 -> -0.02831395349 | O63: 0.0514 | P63: 0.2391 | Q63: 0.4894 | R63: -3.7353 | S63: 1.3819 | U63: 258 | V63: 10.96 | W63: -1.33 | X63: 549.9 | Y63: 15.15 | Z63: 3.5 | AA63: 56.73 | AB63: 37.39 | AC63: 176.13 | AD63: 167.13 | AE63: 171 | AF63: 163.5 | AG63: 170.5 | AH63: 172 | AI63: 171.5 | AJ63: 160 | AK63: =AJ63-AG63 -> -10.5 | AL63: =AI63-AF63 -> 8 | AM63: =AH63-AE63 -> 1 | AN63: =IF(E63>0,1,0) -> 1 | AO63: =IF(L63>0,1,0) -> 0 | AP63: =IF(N63>0,1,0) -> 0 | AQ63: =RTD("sysq.rtd","","2383`001.1") -> 171.5 | AR63: =RTD("sysq.rtd","","2383`002.1") -> 172
A64: 2385 | B64: 群光 | C64: 電腦週邊配件 | D64: =RTD("sysq.rtd","","2385`003.1") -> 90.5 | E64: =RTD("sysq.rtd","","2385`010.1") -> 2.03 | F64: =RTD("sysq.rtd","","2385`005.1") -> - | G64: =RTD("sysq.rtd","","2385`029.1") -> 0.67 | H64: 2.61 | I64: 1.69 | J64: =X64/$L$4*100 -> 0.1708895573 | K64: =(E64/100)*(J64/100)*$D$3 -> 0.4389052197 | L64: =(D64-AC64)/AC64 -> -0.01790558871 | N64: =(AD64-D64)/D64 -> -0.03038674033 | O64: 0.5634 | P64: 0.2854 | Q64: 0.2131 | R64: 0.7034 | S64: 0.731 | U64: 22 | V64: 2.25 | W64: 2.31 | X64: 669.21 | Y64: 11.91 | Z64: 6.65 | AA64: 50.24 | AB64: 43.47 | AC64: 92.15 | AD64: 87.75 | AE64: 89 | AF64: 88.5 | AG64: 90.9 | AH64: 90.5 | AI64: 88.7 | AJ64: 87.3 | AK64: =AJ64-AG64 -> -3.6 | AL64: =AI64-AF64 -> 0.2 | AM64: =AH64-AE64 -> 1.5 | AN64: =IF(E64>0,1,0) -> 1 | AO64: =IF(L64>0,1,0) -> 0 | AP64: =IF(N64>0,1,0) -> 0 | AQ64: =RTD("sysq.rtd","","2385`001.1") -> 90.4 | AR64: =RTD("sysq.rtd","","2385`002.1") -> 90.5
A65: 2395 | B65: 研華 | C65: 工業電腦 | D65: =RTD("sysq.rtd","","2395`003.1") -> 311.5 | E65: =RTD("sysq.rtd","","2395`010.1") -> 1.14 | F65: =RTD("sysq.rtd","","2395`005.1") -> 4 | G65: =RTD("sysq.rtd","","2395`029.1") -> 1.07 | H65: 1.3 | I65: 3.15 | J65: =X65/$L$4*100 -> 0.6136176411 | K65: =(E65/100)*(J65/100)*$D$3 -> 0.885037905 | L65: =(D65-AC65)/AC65 -> -0.02427564605 | N65: =(AD65-D65)/D65 -> -0.0264847512 | O65: =AA65-AB65 -> 2.43 | P65: 0.3 | Q65: 0.0024 | R65: 0.9632 | S65: 0.0841 | U65: 8 | V65: -14.01 | W65: -3.61 | X65: 2402.95 | Y65: 29.36 | Z65: 2.85 | AA65: 58.98 | AB65: 56.55 | AC65: 319.25 | AD65: 303.25 | AE65: 307 | AF65: 309.5 | AG65: 311.5 | AH65: 311.5 | AI65: 308 | AJ65: 306.5 | AK65: =AJ65-AG65 -> -5 | AL65: =AI65-AF65 -> -1.5 | AM65: =AH65-AE65 -> 4.5 | AN65: =IF(E65>0,1,0) -> 1 | AO65: =IF(L65>0,1,0) -> 0 | AP65: =IF(N65>0,1,0) -> 0 | AQ65: =RTD("sysq.rtd","","2395`001.1") -> 311 | AR65: =RTD("sysq.rtd","","2395`002.1") -> 311.5
A66: 2404 | B66: 漢唐 | C66: 設備或廠務工程 | D66: =RTD("sysq.rtd","","2404`003.1") -> 201 | E66: =RTD("sysq.rtd","","2404`010.1") -> 0.75 | F66: =RTD("sysq.rtd","","2404`005.1") -> 2 | G66: =RTD("sysq.rtd","","2404`029.1") -> 0.57 | H66: -3.13 | I66: 2.55 | J66: =X66/$L$4*100 -> 0.09782336126 | K66: =(E66/100)*(J66/100)*$D$3 -> 0.0928245875 | L66: =(D66-AC66)/AC66 -> -0.01412595644 | N66: =(AD66-D66)/D66 -> -0.02049751244 | O66: =AA66-AB66 -> 0.85 | P66: 0.0342 | Q66: 0.0009 | R66: -5.7968 | S66: 0.0346 | U66: 95 | V66: -15.76 | W66: 160 | X66: 383.08 | Y66: 11.94 | Z66: 6.52 | AA66: 25.83 | AB66: 24.98 | AC66: 203.88 | AD66: 196.88 | AE66: 200.5 | AF66: 197 | AG66: 202.5 | AH66: 201 | AI66: 199.5 | AJ66: 197 | AK66: =AJ66-AG66 -> -5.5 | AL66: =AI66-AF66 -> 2.5 | AM66: =AH66-AE66 -> 0.5 | AN66: =IF(E66>0,1,0) -> 1 | AO66: =IF(L66>0,1,0) -> 0 | AP66: =IF(N66>0,1,0) -> 0 | AQ66: =RTD("sysq.rtd","","2404`001.1") -> 200.5 | AR66: =RTD("sysq.rtd","","2404`002.1") -> 201
A67: 2408 | B67: 南亞科 | C67: 記憶體IC設計 | D67: =RTD("sysq.rtd","","2408`003.1") -> 51 | E67: =RTD("sysq.rtd","","2408`010.1") -> 2.31 | F67: =RTD("sysq.rtd","","2408`005.1") -> 18 | G67: =RTD("sysq.rtd","","2408`029.1") -> 0.8 | H67: -6.25 | I67: -38.85 | J67: =X67/$L$4*100 -> 0.4004251236 | K67: =(E67/100)*(J67/100)*$D$3 -> 1.170287271 | L67: =(D67-AC67)/AC67 -> -0.022426682 | N67: =(AD67-D67)/D67 -> -0.03588235294 | O67: =AA67-AB67 -> 4.03 | P67: 1.5837 | Q67: 0.654 | R67: -5.6889 | S67: 2.4868 | U67: -7 | V67: -7.76 | W67: 7.23 | X67: 1568.08 | Y67: 18.15 | Z67: 3.01 | AA67: 26.48 | AB67: 22.45 | AC67: 52.17 | AD67: 49.17 | AE67: 49.9 | AF67: 50.2 | AG67: 51.6 | AH67: 51 | AI67: 49.85 | AJ67: 49.2 | AK67: =AJ67-AG67 -> -2.4 | AL67: =AI67-AF67 -> -0.35 | AM67: =AH67-AE67 -> 1.1 | AN67: =IF(E67>0,1,0) -> 1 | AO67: =IF(L67>0,1,0) -> 0 | AP67: =IF(N67>0,1,0) -> 0 | AQ67: =RTD("sysq.rtd","","2408`001.1") -> 50.9 | AR67: =RTD("sysq.rtd","","2408`002.1") -> 51
A68: 2409 | B68: 友達 | C68: 面板生產 | D68: =RTD("sysq.rtd","","2409`003.1") -> 9.73 | E68: =RTD("sysq.rtd","","2409`010.1") -> 0.62 | F68: =RTD("sysq.rtd","","2409`005.1") -> 121 | G68: =RTD("sysq.rtd","","2409`029.1") -> 1.28 | H68: -2.21 | I68: -3.18 | J68: =X68/$L$4*100 -> 0.2391294466 | K68: =(E68/100)*(J68/100)*$D$3 -> 0.1875788771 | L68: =(D68-AC68)/AC68 -> -0.04701273262 | N68: =(AD68-D68)/D68 -> -0.03083247688 | O68: =AA68-AB68 -> 6.09 | P68: -0.1402 | Q68: -1.1693 | R68: -2.8358 | S68: -0.169 | U68: -4301 | V68: 5.97 | W68: 3.89 | X68: 936.44 | Z68: 0 | AA68: 47.16 | AB68: 41.07 | AC68: 10.21 | AD68: 9.43 | AE68: 9.78 | AF68: 9.46 | AG68: 10.05 | AH68: 9.73 | AI68: 9.67 | AJ68: 9.25 | AK68: =AJ68-AG68 -> -0.8 | AL68: =AI68-AF68 -> 0.21 | AM68: =AH68-AE68 -> -0.05 | AN68: =IF(E68>0,1,0) -> 1 | AO68: =IF(L68>0,1,0) -> 0 | AP68: =IF(N68>0,1,0) -> 0 | AQ68: =RTD("sysq.rtd","","2409`001.1") -> 9.73 | AR68: =RTD("sysq.rtd","","2409`002.1") -> 9.74
A69: 2412 | B69: 中華電 | C69: 電信服務 | D69: =RTD("sysq.rtd","","2412`003.1") -> 109 | E69: =RTD("sysq.rtd","","2412`010.1") -> -0.46 | F69: =RTD("sysq.rtd","","2412`005.1") -> 29 | G69: =RTD("sysq.rtd","","2412`029.1") -> 0.37 | H69: 0.46 | I69: -0.91 | J69: =X69/$L$4*100 -> 2.159228281 | K69: =(E69/100)*(J69/100)*$D$3 -> -1.256653586 | L69: =(D69-AC69)/AC69 -> -0.005746602207 | N69: =(AD69-D69)/D69 -> -0.003394495413 | O69: =AA69-AB69 -> 4.64 | P69: -0.5315 | Q69: 0.152 | R69: -1.7049 | S69: 0.4975 | U69: -42 | V69: 1.98 | W69: -2.39 | X69: 8455.62 | Y69: 25.83 | Z69: 3.86 | AA69: 72.65 | AB69: 68.01 | AC69: 109.63 | AD69: 108.63 | AE69: 109.5 | AF69: 109 | AG69: 108.5 | AH69: 109 | AI69: 109.5 | AJ69: 109 | AK69: =AJ69-AG69 -> 0.5 | AL69: =AI69-AF69 -> 0.5 | AM69: =AH69-AE69 -> -0.5 | AN69: =IF(E69>0,1,0) -> 0 | AO69: =IF(L69>0,1,0) -> 0 | AP69: =IF(N69>0,1,0) -> 0 | AQ69: =RTD("sysq.rtd","","2412`001.1") -> 109 | AR69: =RTD("sysq.rtd","","2412`002.1") -> 109.5
A70: 2439 | B70: 美律 | C70: 手機零組件 | D70: =RTD("sysq.rtd","","2439`003.1") -> 160.5 | E70: =RTD("sysq.rtd","","2439`010.1") -> 1.26 | F70: =RTD("sysq.rtd","","2439`005.1") -> 7 | G70: =RTD("sysq.rtd","","2439`029.1") -> 1.06 | H70: -3.02 | I70: -4.18 | J70: =X70/$L$4*100 -> 0.08550478826 | K70: =(E70/100)*(J70/100)*$D$3 -> 0.1363076292 | L70: =(D70-AC70)/AC70 -> -0.01912852166 | N70: =(AD70-D70)/D70 -> -0.02411214953 | O70: =AA70-AB70 -> -1.7 | P70: -0.3483 | Q70: 0.3231 | R70: -0.1759 | S70: 0.5126 | U70: 78 | V70: 13.04 | W70: -18.32 | X70: 334.84 | Y70: 19.62 | Z70: 4.86 | AA70: 44 | AB70: 45.7 | AC70: 163.63 | AD70: 156.63 | AE70: 160 | AF70: 159.5 | AG70: 166.5 | AH70: 160.5 | AI70: 158.5 | AJ70: 155.5 | AK70: =AJ70-AG70 -> -11 | AL70: =AI70-AF70 -> -1 | AM70: =AH70-AE70 -> 0.5 | AN70: =IF(E70>0,1,0) -> 1 | AO70: =IF(L70>0,1,0) -> 0 | AP70: =IF(N70>0,1,0) -> 0 | AQ70: =RTD("sysq.rtd","","2439`001.1") -> 160.5 | AR70: =RTD("sysq.rtd","","2439`002.1") -> 161
A71: 2448 | B71: 晶電 | C71: LED原材料 | D71: =RTD("sysq.rtd","","2448`003.1") -> 38.05 | E71: =RTD("sysq.rtd","","2448`010.1") -> -0.13 | F71: =RTD("sysq.rtd","","2448`005.1") -> 12 | G71: =RTD("sysq.rtd","","2448`029.1") -> 0.69 | H71: -12.02 | I71: 17.62 | J71: =X71/$L$4*100 -> 0.1057829367 | K71: =(E71/100)*(J71/100)*$D$3 -> -0.0173987543 | L71: =(D71-AC71)/AC71 -> -0.0384129391 | N71: =(AD71-D71)/D71 -> -0.0494086728 | O71: =AA71-AB71 -> 0.75 | P71: -1.1426 | Q71: 0.3165 | R71: -3.9381 | S71: 0.5114 | U71: 1321 | V71: 10.5 | W71: -19.15 | X71: 414.25 | Z71: 0 | AA71: 17.45 | AB71: 16.7 | AC71: 39.57 | AD71: 36.17 | AE71: 38 | AF71: 38 | AG71: 40.25 | AH71: 38.05 | AI71: 38.1 | AJ71: 36.8 | AK71: =AJ71-AG71 -> -3.45 | AL71: =AI71-AF71 -> 0.1 | AM71: =AH71-AE71 -> 0.05 | AN71: =IF(E71>0,1,0) -> 0 | AO71: =IF(L71>0,1,0) -> 0 | AP71: =IF(N71>0,1,0) -> 0 | AQ71: =RTD("sysq.rtd","","2448`001.1") -> 38.05 | AR71: =RTD("sysq.rtd","","2448`002.1") -> 38.1
A72: 2449 | B72: 京元電子 | C72: 封裝測試 | D72: =RTD("sysq.rtd","","2449`003.1") -> 31.2 | E72: =RTD("sysq.rtd","","2449`010.1") -> -1.73 | F72: =RTD("sysq.rtd","","2449`005.1") -> 38 | G72: =RTD("sysq.rtd","","2449`029.1") -> 1.23 | H72: -13.57 | I72: -16.91 | J72: =X72/$L$4*100 -> 0.09741989225 | K72: =(E72/100)*(J72/100)*$D$3 -> -0.2132322705 | L72: =(D72-AC72)/AC72 -> -0.02773449673 | N72: =(AD72-D72)/D72 -> -0.02596153846 | O72: =AA72-AB72 -> -12.06 | P72: -2.2885 | Q72: -0.7152 | R72: -13.3405 | S72: -0.921 | U72: 280 | V72: -0.72 | W72: 5.85 | X72: 381.5 | Y72: 9.45 | Z72: 5.67 | AA72: 16.92 | AB72: 28.98 | AC72: 32.09 | AD72: 30.39 | AE72: 31.65 | AF72: 32 | AG72: 32.5 | AH72: 31.2 | AI72: 31.75 | AJ72: 31.45 | AK72: =AJ72-AG72 -> -1.05 | AL72: =AI72-AF72 -> -0.25 | AM72: =AH72-AE72 -> -0.45 | AN72: =IF(E72>0,1,0) -> 0 | AO72: =IF(L72>0,1,0) -> 0 | AP72: =IF(N72>0,1,0) -> 0 | AQ72: =RTD("sysq.rtd","","2449`001.1") -> 31.15 | AR72: =RTD("sysq.rtd","","2449`002.1") -> 31.2
A73: 2451 | B73: 創見 | C73: 記憶體模組 | D73: =RTD("sysq.rtd","","2451`003.1") -> 64.5 | E73: =RTD("sysq.rtd","","2451`010.1") -> -0.31 | F73: =RTD("sysq.rtd","","2451`005.1") -> - | G73: =RTD("sysq.rtd","","2451`029.1") -> 0.61 | H73: 0.16 | I73: -17.2 | J73: =X73/$L$4*100 -> 0.0706683643 | K73: =(E73/100)*(J73/100)*$D$3 -> -0.0277169805 | L73: =(D73-AC73)/AC73 -> -0.008150084576 | N73: =(AD73-D73)/D73 -> -0.007286821705 | O73: =AA73-AB73 -> 13.59 | P73: -0.0813 | Q73: -0.0009 | R73: -0.9215 | S73: -0.0009 | U73: 22 | V73: 10.85 | W73: -22.43 | X73: 276.74 | Y73: 16.67 | Z73: 6.96 | AA73: 38.86 | AB73: 25.27 | AC73: 65.03 | AD73: 64.03 | AE73: 64.8 | AF73: 64.4 | AG73: 64.1 | AH73: 64.5 | AI73: 64.7 | AJ73: 64 | AK73: =AJ73-AG73 -> -0.1 | AL73: =AI73-AF73 -> 0.3 | AM73: =AH73-AE73 -> -0.3 | AN73: =IF(E73>0,1,0) -> 0 | AO73: =IF(L73>0,1,0) -> 0 | AP73: =IF(N73>0,1,0) -> 0 | AQ73: =RTD("sysq.rtd","","2451`001.1") -> 64.4 | AR73: =RTD("sysq.rtd","","2451`002.1") -> 64.5
A74: 2454 | B74: 聯發科 | C74: 消費性IC設計 | D74: =RTD("sysq.rtd","","2454`003.1") -> 585 | E74: =RTD("sysq.rtd","","2454`010.1") -> -3.15 | F74: =RTD("sysq.rtd","","2454`005.1") -> 64 | G74: =RTD("sysq.rtd","","2454`029.1") -> 0.69 | H74: -14.6 | I74: 31.91 | J74: =X74/$L$4*100 -> 2.37351374 | K74: =(E74/100)*(J74/100)*$D$3 -> -9.45935419 | L74: =(D74-AC74)/AC74 -> -0.03345724907 | N74: =(AD74-D74)/D74 -> -0.0235042735 | O74: =AA74-AB74 -> 1.65 | P74: -3.9806 | Q74: -2.6012 | R74: -27.9732 | S74: -16.6066 | U74: -548 | V74: 5.59 | W74: 29.02 | X74: 9294.77 | Y74: 35.41 | Z74: 1.74 | AA74: 19.34 | AB74: 17.69 | AC74: 605.25 | AD74: 571.25 | AE74: 599 | AF74: 583 | AG74: 603 | AH74: 585 | AI74: 604 | AJ74: 565 | AK74: =AJ74-AG74 -> -38 | AL74: =AI74-AF74 -> 21 | AM74: =AH74-AE74 -> -14 | AN74: =IF(E74>0,1,0) -> 0 | AO74: =IF(L74>0,1,0) -> 0 | AP74: =IF(N74>0,1,0) -> 0 | AQ74: =RTD("sysq.rtd","","2454`001.1") -> 585 | AR74: =RTD("sysq.rtd","","2454`002.1") -> 586
A75: 2458 | B75: 義隆 | C75: 消費性IC設計 | D75: =RTD("sysq.rtd","","2458`003.1") -> 143.5 | E75: =RTD("sysq.rtd","","2458`010.1") -> 3.24 | F75: =RTD("sysq.rtd","","2458`005.1") -> 21 | G75: =RTD("sysq.rtd","","2458`029.1") -> 1.82 | H75: 0.35 | I75: 57.35 | J75: =X75/$L$4*100 -> 0.1113548949 | K75: =(E75/100)*(J75/100)*$D$3 -> 0.4564713303 | L75: =(D75-AC75)/AC75 -> -0.0441617265 | N75: =(AD75-D75)/D75 -> -0.05832752613 | O75: =AA75-AB75 -> 17.06 | P75: 2.1166 | Q75: 0.2315 | R75: 5.2193 | S75: 0.7231 | U75: 121 | V75: 14.95 | W75: 83.23 | X75: 436.07 | Y75: 15.84 | Z75: 4.68 | AA75: 60.88 | AB75: 43.82 | AC75: 150.13 | AD75: 135.13 | AE75: 139 | AF75: 137 | AG75: 138 | AH75: 143.5 | AI75: 139 | AJ75: 134.5 | AK75: =AJ75-AG75 -> -3.5 | AL75: =AI75-AF75 -> 2 | AM75: =AH75-AE75 -> 4.5 | AN75: =IF(E75>0,1,0) -> 1 | AO75: =IF(L75>0,1,0) -> 0 | AP75: =IF(N75>0,1,0) -> 0 | AQ75: =RTD("sysq.rtd","","2458`001.1") -> 143.5 | AR75: =RTD("sysq.rtd","","2458`002.1") -> 144
A76: 2474 | B76: 可成 | C76: 機殼 | D76: =RTD("sysq.rtd","","2474`003.1") -> 212 | E76: =RTD("sysq.rtd","","2474`010.1") -> 4.18 | F76: =RTD("sysq.rtd","","2474`005.1") -> 22 | G76: =RTD("sysq.rtd","","2474`029.1") -> 0.47 | H76: 2.91 | I76: -6.61 | J76: =X76/$L$4*100 -> 0.4170618365 | K76: =(E76/100)*(J76/100)*$D$3 -> 2.205646536 | L76: =(D76-AC76)/AC76 -> -0.0330672748 | N76: =(AD76-D76)/D76 -> -0.05070754717 | O76: =AA76-AB76 -> 7.89 | P76: 4.1623 | Q76: 0.1015 | R76: -21.1994 | S76: 4.0176 | U76: -614 | V76: 5.14 | W76: -9.54 | X76: 1633.23 | Y76: 11.93 | Z76: 4.91 | AA76: 39.28 | AB76: 31.39 | AC76: 219.25 | AD76: 201.25 | AE76: 205.5 | AF76: 197 | AG76: 195 | AH76: 212 | AI76: 203.5 | AJ76: 190.5 | AK76: =AJ76-AG76 -> -4.5 | AL76: =AI76-AF76 -> 6.5 | AM76: =AH76-AE76 -> 6.5 | AN76: =IF(E76>0,1,0) -> 1 | AO76: =IF(L76>0,1,0) -> 0 | AP76: =IF(N76>0,1,0) -> 0 | AQ76: =RTD("sysq.rtd","","2474`001.1") -> 211.5 | AR76: =RTD("sysq.rtd","","2474`002.1") -> 212
A77: 2492 | B77: 華新科 | C77: 電容 | D77: =RTD("sysq.rtd","","2492`003.1") -> 162.5 | E77: =RTD("sysq.rtd","","2492`010.1") -> -1.52 | F77: =RTD("sysq.rtd","","2492`005.1") -> 10 | G77: =RTD("sysq.rtd","","2492`029.1") -> 0.9 | H77: -11.44 | I77: -32.01 | J77: =X77/$L$4*100 -> 0.2015889529 | K77: =(E77/100)*(J77/100)*$D$3 -> -0.3876765217 | L77: =(D77-AC77)/AC77 -> -0.04552129222 | N77: =(AD77-D77)/D77 -> -0.03846153846 | O77: =AA77-AB77 -> -14.08 | P77: -3.6801 | Q77: 0.0018 | R77: -7.661 | S77: -0.0033 | U77: -47 | V77: 6.15 | W77: 39.27 | X77: 789.43 | Y77: 14.47 | Z77: 3.33 | AA77: 27.4 | AB77: 41.48 | AC77: 170.25 | AD77: 156.25 | AE77: 167.5 | AF77: 164 | AG77: 175 | AH77: 162.5 | AI77: 165 | AJ77: 161.5 | AK77: =AJ77-AG77 -> -13.5 | AL77: =AI77-AF77 -> 1 | AM77: =AH77-AE77 -> -5 | AN77: =IF(E77>0,1,0) -> 0 | AO77: =IF(L77>0,1,0) -> 0 | AP77: =IF(N77>0,1,0) -> 0 | AQ77: =RTD("sysq.rtd","","2492`001.1") -> 162 | AR77: =RTD("sysq.rtd","","2492`002.1") -> 162.5
A78: 2498 | B78: 宏達電 | C78: 手機製造 | D78: =RTD("sysq.rtd","","2498`003.1") -> 28.9 | E78: =RTD("sysq.rtd","","2498`010.1") -> 0.35 | F78: =RTD("sysq.rtd","","2498`005.1") -> 4 | G78: =RTD("sysq.rtd","","2498`029.1") -> 0.92 | H78: -4.3 | I78: -24.84 | J78: =X78/$L$4*100 -> 0.06042586921 | K78: =(E78/100)*(J78/100)*$D$3 -> 0.0267577834 | L78: =(D78-AC78)/AC78 -> -0.03085177733 | N78: =(AD78-D78)/D78 -> -0.03010380623 | O78: =AA78-AB78 -> 7.57 | P78: -0.1327 | Q78: -0.0005 | R78: -1.301 | S78: -0.0005 | U78: 2 | V78: -56.26 | W78: -35.55 | X78: 236.63 | Z78: 0 | AA78: 35.66 | AB78: 28.09 | AC78: 29.82 | AD78: 28.03 | AE78: 28.95 | AF78: 28.35 | AG78: 29.4 | AH78: 28.9 | AI78: 28.8 | AJ78: 28.1 | AK78: =AJ78-AG78 -> -1.3 | AL78: =AI78-AF78 -> 0.45 | AM78: =AH78-AE78 -> -0.05 | AN78: =IF(E78>0,1,0) -> 1 | AO78: =IF(L78>0,1,0) -> 0 | AP78: =IF(N78>0,1,0) -> 0 | AQ78: =RTD("sysq.rtd","","2498`001.1") -> 28.9 | AR78: =RTD("sysq.rtd","","2498`002.1") -> 28.95
A79: 2542 | B79: 興富發 | C79: 建築業 | D79: =RTD("sysq.rtd","","2542`003.1") -> 44.65 | E79: =RTD("sysq.rtd","","2542`010.1") -> 0.68 | F79: =RTD("sysq.rtd","","2542`005.1") -> 4 | G79: =RTD("sysq.rtd","","2542`029.1") -> 0.94 | H79: 0.68 | I79: -3.56 | J79: =X79/$L$4*100 -> 0.1330170953 | K79: =(E79/100)*(J79/100)*$D$3 -> 0.1144393957 | L79: =(D79-AC79)/AC79 -> -0.008218569525 | N79: =(AD79-D79)/D79 -> -0.009406494961 | O79: 1.9656 | P79: 0.0568 | Q79: 0.0008 | R79: -0.7038 | S79: 0.0008 | U79: 14 | V79: 14.13 | W79: -3.89 | X79: 520.9 | Y79: 19.58 | Z79: 9.02 | AA79: 76.07 | AB79: 71.98 | AC79: 45.02 | AD79: 44.23 | AE79: 44.4 | AF79: 43.8 | AG79: 44.45 | AH79: 44.65 | AI79: 44.35 | AJ79: 43.5 | AK79: =AJ79-AG79 -> -0.95 | AL79: =AI79-AF79 -> 0.55 | AM79: =AH79-AE79 -> 0.25 | AN79: =IF(E79>0,1,0) -> 1 | AO79: =IF(L79>0,1,0) -> 0 | AP79: =IF(N79>0,1,0) -> 0 | AQ79: =RTD("sysq.rtd","","2542`001.1") -> 44.6 | AR79: =RTD("sysq.rtd","","2542`002.1") -> 44.65
A80: 2603 | B80: 長榮 | C80: 海運 | D80: =RTD("sysq.rtd","","2603`003.1") -> 15.2 | E80: =RTD("sysq.rtd","","2603`010.1") -> 0 | F80: =RTD("sysq.rtd","","2603`005.1") -> 133 | G80: =RTD("sysq.rtd","","2603`029.1") -> 0.65 | H80: 2.01 | I80: 22.58 | J80: =X80/$L$4*100 -> 0.1868138154 | K80: =(E80/100)*(J80/100)*$D$3 -> 0 | L80: =(D80-AC80)/AC80 -> -0.02813299233 | N80: =(AD80-D80)/D80 -> -0.03026315789 | O80: =AA80-AB80 -> -1.26 | P80: 0.7217 | Q80: 1.56 | R80: 5.8385 | S80: 5.697 | U80: -1485 | V80: 8.92 | W80: 1.6 | X80: 731.57 | Y80: 27.64 | Z80: 0 | AA80: 84.68 | AB80: 85.94 | AC80: 15.64 | AD80: 14.74 | AE80: 15.35 | AF80: 15.4 | AG80: 15.55 | AH80: 15.2 | AI80: 15.2 | AJ80: 15 | AK80: =AJ80-AG80 -> -0.55 | AL80: =AI80-AF80 -> -0.2 | AM80: =AH80-AE80 -> -0.15 | AN80: =IF(E80>0,1,0) -> 0 | AO80: =IF(L80>0,1,0) -> 0 | AP80: =IF(N80>0,1,0) -> 0 | AQ80: =RTD("sysq.rtd","","2603`001.1") -> 15.2 | AR80: =RTD("sysq.rtd","","2603`002.1") -> 15.25
A81: 2606 | B81: 裕民 | C81: 海運 | D81: =RTD("sysq.rtd","","2606`003.1") -> 29.25 | E81: =RTD("sysq.rtd","","2606`010.1") -> 0.34 | F81: =RTD("sysq.rtd","","2606`005.1") -> - | G81: =RTD("sysq.rtd","","2606`029.1") -> 0.42 | H81: -2.17 | I81: -12.95 | J81: =X81/$L$4*100 -> 0.06311991865 | K81: =(E81/100)*(J81/100)*$D$3 -> 0.02715216917 | L81: =(D81-AC81)/AC81 -> -0.01779717931 | N81: =(AD81-D81)/D81 -> -0.02324786325 | O81: =AA81-AB81 -> -6.6 | P81: 0.0126 | Q81: 0.0022 | R81: 0.0664 | S81: 0.02 | U81: -2 | V81: 46.83 | W81: -5.6 | X81: 247.18 | Y81: 20.45 | Z81: 6.52 | AA81: 59.86 | AB81: 66.46 | AC81: 29.78 | AD81: 28.57 | AE81: 29.15 | AF81: 29 | AG81: 29.7 | AH81: 29.25 | AI81: 29.15 | AJ81: 28.75 | AK81: =AJ81-AG81 -> -0.95 | AL81: =AI81-AF81 -> 0.15 | AM81: =AH81-AE81 -> 0.1 | AN81: =IF(E81>0,1,0) -> 1 | AO81: =IF(L81>0,1,0) -> 0 | AP81: =IF(N81>0,1,0) -> 0 | AQ81: =RTD("sysq.rtd","","2606`001.1") -> 29.25 | AR81: =RTD("sysq.rtd","","2606`002.1") -> 29.3
A82: 2610 | B82: 華航 | C82: 空運 | D82: =RTD("sysq.rtd","","2610`003.1") -> 8.29 | E82: =RTD("sysq.rtd","","2610`010.1") -> 1.1 | F82: =RTD("sysq.rtd","","2610`005.1") -> 121 | G82: =RTD("sysq.rtd","","2610`029.1") -> 0.82 | H82: 2.22 | I82: -8.5 | J82: =X82/$L$4*100 -> 0.1147588455 | K82: =(E82/100)*(J82/100)*$D$3 -> 0.1597121805 | L82: =(D82-AC82)/AC82 -> -0.02009456265 | N82: =(AD82-D82)/D82 -> -0.03498190591 | O82: =AA82-AB82 -> 9.93 | P82: 0.0663 | Q82: 0 | R82: -1.5893 | S82: 0.3198 | U82: -31 | V82: 6.48 | W82: -44.05 | X82: 449.4 | Z82: 0 | AA82: 59.01 | AB82: 49.08 | AC82: 8.46 | AD82: 8 | AE82: 8.23 | AF82: 8.14 | AG82: 8.02 | AH82: 8.29 | AI82: 8.2 | AJ82: 8.05 | AK82: =AJ82-AG82 -> 0.03 | AL82: =AI82-AF82 -> 0.06 | AM82: =AH82-AE82 -> 0.06 | AN82: =IF(E82>0,1,0) -> 1 | AO82: =IF(L82>0,1,0) -> 0 | AP82: =IF(N82>0,1,0) -> 0 | AQ82: =RTD("sysq.rtd","","2610`001.1") -> 8.28 | AR82: =RTD("sysq.rtd","","2610`002.1") -> 8.29
A83: 2615 | B83: 萬海 | C83: 海運 | D83: =RTD("sysq.rtd","","2615`003.1") -> 20.4 | E83: =RTD("sysq.rtd","","2615`010.1") -> 1.49 | F83: =RTD("sysq.rtd","","2615`005.1") -> 12 | G83: =RTD("sysq.rtd","","2615`029.1") -> 1.01 | H83: 1.75 | I83: 10.27 | J83: =X83/$L$4*100 -> 0.1155581228 | K83: =(E83/100)*(J83/100)*$D$3 -> 0.217844164 | L83: =(D83-AC83)/AC83 -> -0.02205177373 | N83: =(AD83-D83)/D83 -> -0.03137254902 | O83: =AA83-AB83 -> -1.86 | P83: 0.3743 | Q83: -0.001 | R83: 0.946 | S83: 0.9078 | U83: 503 | V83: 7.68 | W83: -3.99 | X83: 452.53 | Y83: 12.59 | Z83: 3.98 | AA83: 73.49 | AB83: 75.35 | AC83: 20.86 | AD83: 19.76 | AE83: 20.15 | AF83: 20.3 | AG83: 20.65 | AH83: 20.4 | AI83: 20.1 | AJ83: 19.95 | AK83: =AJ83-AG83 -> -0.7 | AL83: =AI83-AF83 -> -0.2 | AM83: =AH83-AE83 -> 0.25 | AN83: =IF(E83>0,1,0) -> 1 | AO83: =IF(L83>0,1,0) -> 0 | AP83: =IF(N83>0,1,0) -> 0 | AQ83: =RTD("sysq.rtd","","2615`001.1") -> 20.4 | AR83: =RTD("sysq.rtd","","2615`002.1") -> 20.45
A84: 2618 | B84: 長榮航 | C84: 空運 | D84: =RTD("sysq.rtd","","2618`003.1") -> 11.1 | E84: =RTD("sysq.rtd","","2618`010.1") -> -0.45 | F84: =RTD("sysq.rtd","","2618`005.1") -> 7 | G84: =RTD("sysq.rtd","","2618`029.1") -> 0.58 | H84: -3.06 | I84: -19.27 | J84: =X84/$L$4*100 -> 0.1375752738 | K84: =(E84/100)*(J84/100)*$D$3 -> -0.07832710638 | L84: =(D84-AC84)/AC84 -> -0.02030008826 | N84: =(AD84-D84)/D84 -> -0.01531531532 | O84: =AA84-AB84 -> -8.9 | P84: -0.1713 | Q84: 0.0001 | R84: -0.831 | S84: -0.001 | U84: -372 | V84: 0.81 | W84: -57 | X84: 538.75 | Y84: 277.5 | Z84: 2.24 | AA84: 46.27 | AB84: 55.17 | AC84: 11.33 | AD84: 10.93 | AE84: 11.2 | AF84: 10.95 | AG84: 11.1 | AH84: 11.1 | AI84: 11.15 | AJ84: 10.85 | AK84: =AJ84-AG84 -> -0.25 | AL84: =AI84-AF84 -> 0.2 | AM84: =AH84-AE84 -> -0.1 | AN84: =IF(E84>0,1,0) -> 0 | AO84: =IF(L84>0,1,0) -> 0 | AP84: =IF(N84>0,1,0) -> 0 | AQ84: =RTD("sysq.rtd","","2618`001.1") -> 11.1 | AR84: =RTD("sysq.rtd","","2618`002.1") -> 11.15
A85: 2633 | B85: 台灣高鐵 | C85: 陸運及倉儲物流 | D85: =RTD("sysq.rtd","","2633`003.1") -> 32.35 | E85: =RTD("sysq.rtd","","2633`010.1") -> -0.77 | F85: =RTD("sysq.rtd","","2633`005.1") -> 24 | G85: =RTD("sysq.rtd","","2633`029.1") -> 0.74 | H85: -4.71 | I85: -15.76 | J85: =X85/$L$4*100 -> 0.2171199564 | K85: =(E85/100)*(J85/100)*$D$3 -> -0.21151913 | L85: =(D85-AC85)/AC85 -> -0.009794918886 | N85: =(AD85-D85)/D85 -> -0.008655332303 | O85: =AA85-AB85 -> -8.93 | P85: -0.218 | Q85: 0.0016 | R85: -1.6854 | S85: 0.0133 | U85: -4 | V85: 8.43 | W85: -14.24 | X85: 850.25 | Y85: 34.05 | Z85: 3.71 | AA85: 28.14 | AB85: 37.07 | AC85: 32.67 | AD85: 32.07 | AE85: 32.55 | AF85: 32.4 | AG85: 33.05 | AH85: 32.35 | AI85: 32.6 | AJ85: 32.35 | AK85: =AJ85-AG85 -> -0.7 | AL85: =AI85-AF85 -> 0.2 | AM85: =AH85-AE85 -> -0.2 | AN85: =IF(E85>0,1,0) -> 0 | AO85: =IF(L85>0,1,0) -> 0 | AP85: =IF(N85>0,1,0) -> 0 | AQ85: =RTD("sysq.rtd","","2633`001.1") -> 32.3 | AR85: =RTD("sysq.rtd","","2633`002.1") -> 32.4
A86: 2801 | B86: 彰銀 | C86: 銀行業-銀行 | D86: =RTD("sysq.rtd","","2801`003.1") -> 18.25 | E86: =RTD("sysq.rtd","","2801`010.1") -> -0.27 | F86: =RTD("sysq.rtd","","2801`005.1") -> 6 | G86: =RTD("sysq.rtd","","2801`029.1") -> 0.93 | H86: -1.08 | I86: -19.6 | J86: =X86/$L$4*100 -> 0.4839610852 | K86: =(E86/100)*(J86/100)*$D$3 -> -0.1653230425 | L86: =(D86-AC86)/AC86 -> -0.0108401084 | N86: =(AD86-D86)/D86 -> -0.01095890411 | O86: 0.1396 | P86: -0.34 | Q86: 0.0029 | R86: -1.4171 | S86: 0.0197 | U86: -16 | V86: 8.79 | W86: -12.97 | X86: 1895.21 | Y86: 16.74 | Z86: 4.37 | AA86: 47.53 | AB86: 61.56 | AC86: 18.45 | AD86: 18.05 | AE86: 18.3 | AF86: 18.3 | AG86: 18.4 | AH86: 18.25 | AI86: 18.3 | AJ86: 18.15 | AK86: =AJ86-AG86 -> -0.25 | AL86: =AI86-AF86 -> 0 | AM86: =AH86-AE86 -> -0.05 | AN86: =IF(E86>0,1,0) -> 0 | AO86: =IF(L86>0,1,0) -> 0 | AP86: =IF(N86>0,1,0) -> 0 | AQ86: =RTD("sysq.rtd","","2801`001.1") -> 18.25 | AR86: =RTD("sysq.rtd","","2801`002.1") -> 18.3
A87: 2809 | B87: 京城銀 | C87: 銀行業-銀行 | D87: =RTD("sysq.rtd","","2809`003.1") -> 37.15 | E87: =RTD("sysq.rtd","","2809`010.1") -> -0.4 | F87: =RTD("sysq.rtd","","2809`005.1") -> - | G87: =RTD("sysq.rtd","","2809`029.1") -> 0.61 | H87: 0.81 | I87: 10.9 | J87: =X87/$L$4*100 -> 0.1063677114 | K87: =(E87/100)*(J87/100)*$D$3 -> -0.05383057141 | L87: =(D87-AC87)/AC87 -> -0.0143274078 | N87: =(AD87-D87)/D87 -> -0.01507402423 | O87: =AA87-AB87 -> 4.29 | P87: 0.0011 | Q87: 0.0007 | R87: 0.7412 | S87: 0.1916 | U87: -65 | V87: 69.01 | W87: 45.66 | X87: 416.54 | Y87: 9 | Z87: 4.02 | AA87: 71.86 | AB87: 67.57 | AC87: 37.69 | AD87: 36.59 | AE87: 37.3 | AF87: 36.45 | AG87: 36.7 | AH87: 37.15 | AI87: 37.3 | AJ87: 36.2 | AK87: =AJ87-AG87 -> -0.5 | AL87: =AI87-AF87 -> 0.85 | AM87: =AH87-AE87 -> -0.15 | AN87: =IF(E87>0,1,0) -> 0 | AO87: =IF(L87>0,1,0) -> 0 | AP87: =IF(N87>0,1,0) -> 0 | AQ87: =RTD("sysq.rtd","","2809`001.1") -> 37.1 | AR87: =RTD("sysq.rtd","","2809`002.1") -> 37.15
A88: 2812 | B88: 台中銀 | C88: 銀行業-銀行 | D88: =RTD("sysq.rtd","","2812`003.1") -> 12 | E88: =RTD("sysq.rtd","","2812`010.1") -> -0.41 | F88: =RTD("sysq.rtd","","2812`005.1") -> 93 | G88: =RTD("sysq.rtd","","2812`029.1") -> 1.49 | H88: -0.41 | I88: 0 | J88: =X88/$L$4*100 -> 0.1136505826 | K88: =(E88/100)*(J88/100)*$D$3 -> -0.05895419399 | L88: =(D88-AC88)/AC88 -> -0.01315789474 | N88: =(AD88-D88)/D88 -> -0.01166666667 | O88: =AA88-AB88 -> -12.02 | P88: -0.3118 | Q88: 0.0022 | R88: -1.2347 | S88: 0.0014 | U88: -186 | V88: 24.16 | W88: 9.04 | X88: 445.06 | Y88: 11.01 | Z88: 6.64 | AA88: 52.95 | AB88: 64.97 | AC88: 12.16 | AD88: 11.86 | AE88: 12.05 | AF88: 12 | AG88: 12.1 | AH88: 12 | AI88: 12.05 | AJ88: 11.9 | AK88: =AJ88-AG88 -> -0.2 | AL88: =AI88-AF88 -> 0.05 | AM88: =AH88-AE88 -> -0.05 | AN88: =IF(E88>0,1,0) -> 0 | AO88: =IF(L88>0,1,0) -> 0 | AP88: =IF(N88>0,1,0) -> 0 | AQ88: =RTD("sysq.rtd","","2812`001.1") -> 11.95 | AR88: =RTD("sysq.rtd","","2812`002.1") -> 12
A89: 2823 | B89: 中壽 | C89: 保險業 | D89: =RTD("sysq.rtd","","2823`003.1") -> 20.4 | E89: =RTD("sysq.rtd","","2823`010.1") -> 0 | F89: =RTD("sysq.rtd","","2823`005.1") -> 3 | G89: =RTD("sysq.rtd","","2823`029.1") -> 0.76 | H89: -2.63 | I89: -20.31 | J89: =X89/$L$4*100 -> 0.2325232799 | K89: =(E89/100)*(J89/100)*$D$3 -> 0 | L89: =(D89-AC89)/AC89 -> -0.01734104046 | N89: =(AD89-D89)/D89 -> -0.01666666667 | O89: =AA89-AB89 -> -3.45 | P89: 0.3591 | Q89: 0.0019 | R89: -2.1281 | S89: 0.012 | U89: 7 | V89: -3.8 | W89: 2.92 | X89: 910.57 | Y89: 5.96 | Z89: 5.88 | AA89: 46.47 | AB89: 49.92 | AC89: 20.76 | AD89: 20.06 | AE89: 20.3 | AF89: 20.1 | AG89: 20.45 | AH89: 20.4 | AI89: 20.4 | AJ89: 19.95 | AK89: =AJ89-AG89 -> -0.5 | AL89: =AI89-AF89 -> 0.3 | AM89: =AH89-AE89 -> 0.1 | AN89: =IF(E89>0,1,0) -> 0 | AO89: =IF(L89>0,1,0) -> 0 | AP89: =IF(N89>0,1,0) -> 0 | AQ89: =RTD("sysq.rtd","","2823`001.1") -> 20.4 | AR89: =RTD("sysq.rtd","","2823`002.1") -> 20.45
A90: 2834 | B90: 臺企銀 | C90: 銀行業-銀行 | D90: =RTD("sysq.rtd","","2834`003.1") -> 10 | E90: =RTD("sysq.rtd","","2834`010.1") -> -0.99 | F90: =RTD("sysq.rtd","","2834`005.1") -> 335 | G90: =RTD("sysq.rtd","","2834`029.1") -> 0.98 | H90: -1.96 | I90: -20.63 | J90: =X90/$L$4*100 -> 0.1912289922 | K90: =(E90/100)*(J90/100)*$D$3 -> -0.2395234917 | L90: =(D90-AC90)/AC90 -> -0.005964214712 | N90: =(AD90-D90)/D90 -> -0.004 | O90: =AA90-AB90 -> -11.29 | P90: -0.3408 | Q90: 0.0014 | R90: -1.4623 | S90: -0.0004 | U90: -105 | V90: 16.09 | W90: -1.53 | X90: 748.86 | Y90: 12.2 | Z90: 6.93 | AA90: 31 | AB90: 42.29 | AC90: 10.06 | AD90: 9.96 | AE90: 10.05 | AF90: 10.05 | AG90: 10.15 | AH90: 10 | AI90: 10.1 | AJ90: 10 | AK90: =AJ90-AG90 -> -0.15 | AL90: =AI90-AF90 -> 0.05 | AM90: =AH90-AE90 -> -0.05 | AN90: =IF(E90>0,1,0) -> 0 | AO90: =IF(L90>0,1,0) -> 0 | AP90: =IF(N90>0,1,0) -> 0 | AQ90: =RTD("sysq.rtd","","2834`001.1") -> 10 | AR90: =RTD("sysq.rtd","","2834`002.1") -> 10.05
A91: 2845 | B91: 遠東銀 | C91: 銀行業-銀行 | D91: =RTD("sysq.rtd","","2845`003.1") -> 11.25 | E91: =RTD("sysq.rtd","","2845`010.1") -> 0 | F91: =RTD("sysq.rtd","","2845`005.1") -> 1 | G91: =RTD("sysq.rtd","","2845`029.1") -> 1.42 | H91: -0.88 | I91: -5.86 | J91: =X91/$L$4*100 -> 0.0964061125 | K91: =(E91/100)*(J91/100)*$D$3 -> 0 | L91: =(D91-AC91)/AC91 -> -0.00354295837 | N91: =(AD91-D91)/D91 -> -0.005333333333 | O91: =AA91-AB91 -> -8.79 | P91: -0.1899 | Q91: -0.0004 | R91: -0.6836 | S91: -0.0002 | U91: 28 | V91: 5.31 | W91: 3.61 | X91: 377.53 | Y91: 13.24 | Z91: 6.58 | AA91: 53.74 | AB91: 62.53 | AC91: 11.29 | AD91: 11.19 | AE91: 11.2 | AF91: 11.15 | AG91: 11.3 | AH91: 11.25 | AI91: 11.25 | AJ91: 11.15 | AK91: =AJ91-AG91 -> -0.15 | AL91: =AI91-AF91 -> 0.1 | AM91: =AH91-AE91 -> 0.05 | AN91: =IF(E91>0,1,0) -> 0 | AO91: =IF(L91>0,1,0) -> 0 | AP91: =IF(N91>0,1,0) -> 0 | AQ91: =RTD("sysq.rtd","","2845`001.1") -> 11.2 | AR91: =RTD("sysq.rtd","","2845`002.1") -> 11.25
A92: 2867 | B92: 三商壽 | C92: 保險業 | D92: =RTD("sysq.rtd","","2867`003.1") -> 9.41 | E92: =RTD("sysq.rtd","","2867`010.1") -> -0.95 | F92: =RTD("sysq.rtd","","2867`005.1") -> 2 | G92: =RTD("sysq.rtd","","2867`029.1") -> 1.18 | H92: -3.68 | I92: -18.88 | J92: =X92/$L$4*100 -> 0.05699638257 | K92: =(E92/100)*(J92/100)*$D$3 -> -0.06850623206 | L92: =(D92-AC92)/AC92 -> -0.01362683438 | N92: =(AD92-D92)/D92 -> -0.009564293305 | O92: -0.1413 | P92: 0.035 | Q92: 0.0007 | R92: -0.3221 | S92: 0.0009 | U92: -167 | V92: 11.26 | W92: 4.53 | X92: 223.2 | Y92: 3.69 | Z92: 0 | AA92: 41.09 | AB92: 55.14 | AC92: 9.54 | AD92: 9.32 | AE92: 9.5 | AF92: 9.35 | AG92: 9.69 | AH92: 9.41 | AI92: 9.5 | AJ92: 9.3 | AK92: =AJ92-AG92 -> -0.39 | AL92: =AI92-AF92 -> 0.15 | AM92: =AH92-AE92 -> -0.09 | AN92: =IF(E92>0,1,0) -> 0 | AO92: =IF(L92>0,1,0) -> 0 | AP92: =IF(N92>0,1,0) -> 0 | AQ92: =RTD("sysq.rtd","","2867`001.1") -> 9.4 | AR92: =RTD("sysq.rtd","","2867`002.1") -> 9.41
A93: 2880 | B93: 華南金 | C93: 銀行業-金控 | D93: =RTD("sysq.rtd","","2880`003.1") -> 18.4 | E93: =RTD("sysq.rtd","","2880`010.1") -> -1.08 | F93: =RTD("sysq.rtd","","2880`005.1") -> 250 | G93: =RTD("sysq.rtd","","2880`029.1") -> 1.09 | H93: -2.13 | I93: -16.36 | J93: =X93/$L$4*100 -> 0.6039982247 | K93: =(E93/100)*(J93/100)*$D$3 -> -0.8253128383 | L93: =(D93-AC93)/AC93 -> -0.01340482574 | N93: =(AD93-D93)/D93 -> -0.008152173913 | O93: =AA93-AB93 -> -18.83 | P93: -0.592 | Q93: 0.0024 | R93: -3.6127 | S93: 0.025 | U93: -144 | V93: 10.16 | W93: -8.89 | X93: 2365.28 | Y93: 21.65 | Z93: 6.02 | AA93: 26.77 | AB93: 45.6 | AC93: 18.65 | AD93: 18.25 | AE93: 18.6 | AF93: 18.55 | AG93: 18.75 | AH93: 18.4 | AI93: 18.6 | AJ93: 18.45 | AK93: =AJ93-AG93 -> -0.3 | AL93: =AI93-AF93 -> 0.05 | AM93: =AH93-AE93 -> -0.2 | AN93: =IF(E93>0,1,0) -> 0 | AO93: =IF(L93>0,1,0) -> 0 | AP93: =IF(N93>0,1,0) -> 0 | AQ93: =RTD("sysq.rtd","","2880`001.1") -> 18.4 | AR93: =RTD("sysq.rtd","","2880`002.1") -> 18.45
A94: 2881 | B94: 富邦金 | C94: 銀行業-金控 | D94: =RTD("sysq.rtd","","2881`003.1") -> 41.7 | E94: =RTD("sysq.rtd","","2881`010.1") -> -0.24 | F94: =RTD("sysq.rtd","","2881`005.1") -> 12 | G94: =RTD("sysq.rtd","","2881`029.1") -> 0.4 | H94: -1.88 | I94: -10.13 | J94: =X94/$L$4*100 -> 1.089726402 | K94: =(E94/100)*(J94/100)*$D$3 -> -0.3308932425 | L94: =(D94-AC94)/AC94 -> -0.01278409091 | N94: =(AD94-D94)/D94 -> -0.01342925659 | O94: =AA94-AB94 -> -12.22 | P94: -0.7178 | Q94: 0.1447 | R94: -4.0298 | S94: 0.4745 | U94: 309 | V94: 47.98 | W94: -3.76 | X94: 4267.41 | Y94: 6.95 | Z94: 4.78 | AA94: 37.49 | AB94: 49.71 | AC94: 42.24 | AD94: 41.14 | AE94: 41.95 | AF94: 41.95 | AG94: 42.9 | AH94: 41.7 | AI94: 41.8 | AJ94: 41.4 | AK94: =AJ94-AG94 -> -1.5 | AL94: =AI94-AF94 -> -0.15 | AM94: =AH94-AE94 -> -0.25 | AN94: =IF(E94>0,1,0) -> 0 | AO94: =IF(L94>0,1,0) -> 0 | AP94: =IF(N94>0,1,0) -> 0 | AQ94: =RTD("sysq.rtd","","2881`001.1") -> 41.7 | AR94: =RTD("sysq.rtd","","2881`002.1") -> 41.75
A95: 2882 | B95: 國泰金 | C95: 銀行業-金控 | D95: =RTD("sysq.rtd","","2882`003.1") -> 39.9 | E95: =RTD("sysq.rtd","","2882`010.1") -> 0.13 | F95: =RTD("sysq.rtd","","2882`005.1") -> 32 | G95: =RTD("sysq.rtd","","2882`029.1") -> 0.64 | H95: -1.97 | I95: -6.23 | J95: =X95/$L$4*100 -> 1.341794947 | K95: =(E95/100)*(J95/100)*$D$3 -> 0.2206930657 | L95: =(D95-AC95)/AC95 -> -0.004987531172 | N95: =(AD95-D95)/D95 -> -0.005012531328 | O95: =AA95-AB95 -> -16.57 | P95: 0.0586 | Q95: 0.145 | R95: -0.1527 | S95: 0.4439 | U95: -250 | V95: 26.37 | W95: 1.67 | X95: 5254.52 | Y95: 8.06 | Z95: 5.02 | AA95: 35.38 | AB95: 51.95 | AC95: 40.1 | AD95: 39.7 | AE95: 39.9 | AF95: 39.9 | AG95: 40.45 | AH95: 39.9 | AI95: 39.85 | AJ95: 39.8 | AK95: =AJ95-AG95 -> -0.65 | AL95: =AI95-AF95 -> -0.05 | AM95: =AH95-AE95 -> 0 | AN95: =IF(E95>0,1,0) -> 1 | AO95: =IF(L95>0,1,0) -> 0 | AP95: =IF(N95>0,1,0) -> 0 | AQ95: =RTD("sysq.rtd","","2882`001.1") -> 39.85 | AR95: =RTD("sysq.rtd","","2882`002.1") -> 39.9
A96: 2883 | B96: 開發金 | C96: 銀行業-金控 | D96: =RTD("sysq.rtd","","2883`003.1") -> 8.53 | E96: =RTD("sysq.rtd","","2883`010.1") -> -0.35 | F96: =RTD("sysq.rtd","","2883`005.1") -> 580 | G96: =RTD("sysq.rtd","","2883`029.1") -> 0.49 | H96: -1.95 | I96: -12.33 | J96: =X96/$L$4*100 -> 0.3261025557 | K96: =(E96/100)*(J96/100)*$D$3 -> -0.1444047337 | L96: =(D96-AC96)/AC96 -> -0.008139534884 | N96: =(AD96-D96)/D96 -> -0.008206330598 | O96: =AA96-AB96 -> -2.44 | P96: -0.2827 | Q96: 0.1487 | R96: -3.2192 | S96: 0.4639 | U96: -1375 | V96: -7.33 | W96: -4.05 | X96: 1277.03 | Y96: 14.22 | Z96: 7.01 | AA96: 36.91 | AB96: 39.35 | AC96: 8.6 | AD96: 8.46 | AE96: 8.55 | AF96: 8.53 | AG96: 8.7 | AH96: 8.53 | AI96: 8.56 | AJ96: 8.41 | AK96: =AJ96-AG96 -> -0.29 | AL96: =AI96-AF96 -> 0.03 | AM96: =AH96-AE96 -> -0.02 | AN96: =IF(E96>0,1,0) -> 0 | AO96: =IF(L96>0,1,0) -> 0 | AP96: =IF(N96>0,1,0) -> 0 | AQ96: =RTD("sysq.rtd","","2883`001.1") -> 8.53 | AR96: =RTD("sysq.rtd","","2883`002.1") -> 8.54
A97: 2884 | B97: 玉山金 | C97: 銀行業-金控 | D97: =RTD("sysq.rtd","","2884`003.1") -> 27.05 | E97: =RTD("sysq.rtd","","2884`010.1") -> -1.28 | F97: =RTD("sysq.rtd","","2884`005.1") -> 179 | G97: =RTD("sysq.rtd","","2884`029.1") -> 0.75 | H97: -0.18 | I97: -3.05 | J97: =X97/$L$4*100 -> 0.8665799464 | K97: =(E97/100)*(J97/100)*$D$3 -> -1.403388094 | L97: =(D97-AC97)/AC97 -> -0.01385344513 | N97: =(AD97-D97)/D97 -> -0.008502772643 | O97: =AA97-AB97 -> -9.46 | P97: -1.4627 | Q97: 0.0033 | R97: 1.0115 | S97: 0.0474 | U97: -912 | V97: 2.83 | W97: 3.22 | X97: 3393.56 | Y97: 16.2 | Z97: 5.8 | AA97: 41.91 | AB97: 51.37 | AC97: 27.43 | AD97: 26.82 | AE97: 27.35 | AF97: 27.2 | AG97: 27.55 | AH97: 27.05 | AI97: 27.4 | AJ97: 27.05 | AK97: =AJ97-AG97 -> -0.5 | AL97: =AI97-AF97 -> 0.2 | AM97: =AH97-AE97 -> -0.3 | AN97: =IF(E97>0,1,0) -> 0 | AO97: =IF(L97>0,1,0) -> 0 | AP97: =IF(N97>0,1,0) -> 0 | AQ97: =RTD("sysq.rtd","","2884`001.1") -> 27.05 | AR97: =RTD("sysq.rtd","","2884`002.1") -> 27.1
A98: 2885 | B98: 元大金 | C98: 銀行業-金控 | D98: =RTD("sysq.rtd","","2885`003.1") -> 18.45 | E98: =RTD("sysq.rtd","","2885`010.1") -> -0.81 | F98: =RTD("sysq.rtd","","2885`005.1") -> 21 | G98: =RTD("sysq.rtd","","2885`029.1") -> 0.84 | H98: -1.86 | I98: -8.66 | J98: =X98/$L$4*100 -> 0.5718432763 | K98: =(E98/100)*(J98/100)*$D$3 -> -0.5860318517 | L98: =(D98-AC98)/AC98 -> -0.01861702128 | N98: =(AD98-D98)/D98 -> -0.0135501355 | O98: =AA98-AB98 -> -13.37 | P98: -1.0012 | Q98: 0.0045 | R98: -2.023 | S98: 0.0331 | U98: 29 | V98: 21.21 | W98: 21.59 | X98: 2239.36 | Y98: 11.25 | Z98: 5.65 | AA98: 47.37 | AB98: 60.74 | AC98: 18.8 | AD98: 18.2 | AE98: 18.65 | AF98: 18.65 | AG98: 18.8 | AH98: 18.45 | AI98: 18.6 | AJ98: 18.45 | AK98: =AJ98-AG98 -> -0.35 | AL98: =AI98-AF98 -> -0.05 | AM98: =AH98-AE98 -> -0.2 | AN98: =IF(E98>0,1,0) -> 0 | AO98: =IF(L98>0,1,0) -> 0 | AP98: =IF(N98>0,1,0) -> 0 | AQ98: =RTD("sysq.rtd","","2885`001.1") -> 18.4 | AR98: =RTD("sysq.rtd","","2885`002.1") -> 18.45
A99: 2886 | B99: 兆豐金 | C99: 銀行業-金控 | D99: =RTD("sysq.rtd","","2886`003.1") -> 29.6 | E99: =RTD("sysq.rtd","","2886`010.1") -> 0 | F99: =RTD("sysq.rtd","","2886`005.1") -> 65 | G99: =RTD("sysq.rtd","","2886`029.1") -> 0.95 | H99: -1.33 | I99: -3.27 | J99: =X99/$L$4*100 -> 1.027964999 | K99: =(E99/100)*(J99/100)*$D$3 -> 0 | L99: =(D99-AC99)/AC99 -> -0.006711409396 | N99: =(AD99-D99)/D99 -> -0.006756756757 | O99: -0.377 | P99: 2.1503 | Q99: -0.5343 | R99: -1.3688 | S99: -1.7531 | U99: -25 | V99: -0.78 | W99: -0.26 | X99: 4025.55 | Y99: 17.31 | Z99: 5.74 | AA99: 14.65 | AB99: 19.54 | AC99: 29.8 | AD99: 29.4 | AE99: 29.7 | AF99: 29.65 | AG99: 29.9 | AH99: 29.6 | AI99: 29.6 | AJ99: 29.4 | AK99: =AJ99-AG99 -> -0.5 | AL99: =AI99-AF99 -> -0.05 | AM99: =AH99-AE99 -> -0.1 | AN99: =IF(E99>0,1,0) -> 0 | AO99: =IF(L99>0,1,0) -> 0 | AP99: =IF(N99>0,1,0) -> 0 | AQ99: =RTD("sysq.rtd","","2886`001.1") -> 29.6 | AR99: =RTD("sysq.rtd","","2886`002.1") -> 29.65
A100: 2887 | B100: 台新金 | C100: 銀行業-金控 | D100: =RTD("sysq.rtd","","2887`003.1") -> 13.15 | E100: =RTD("sysq.rtd","","2887`010.1") -> -2.23 | F100: =RTD("sysq.rtd","","2887`005.1") -> 309 | G100: =RTD("sysq.rtd","","2887`029.1") -> 0.53 | H100: -0.38 | I100: -9.31 | J100: =X100/$L$4*100 -> 0.3663090093 | K100: =(E100/100)*(J100/100)*$D$3 -> -1.033502773 | L100: =(D100-AC100)/AC100 -> -0.03663003663 | N100: =(AD100-D100)/D100 -> -0.02281368821 | O100: =AA100-AB100 -> -10.07 | P100: -0.6179 | Q100: 0.0015 | R100: -0.373 | S100: 0.0204 | U100: 4140 | V100: 2.81 | W100: 1.36 | X100: 1434.48 | Y100: 11.24 | Z100: 5.95 | AA100: 55.06 | AB100: 65.13 | AC100: 13.65 | AD100: 12.85 | AE100: 13.5 | AF100: 13.1 | AG100: 13.15 | AH100: 13.15 | AI100: 13.45 | AJ100: 13 | AK100: =AJ100-AG100 -> -0.15 | AL100: =AI100-AF100 -> 0.35 | AM100: =AH100-AE100 -> -0.35 | AN100: =IF(E100>0,1,0) -> 0 | AO100: =IF(L100>0,1,0) -> 0 | AP100: =IF(N100>0,1,0) -> 0 | AQ100: =RTD("sysq.rtd","","2887`001.1") -> 13.15 | AR100: =RTD("sysq.rtd","","2887`002.1") -> 13.2
A101: 2888 | B101: 新光金 | C101: 銀行業-金控 | D101: =RTD("sysq.rtd","","2888`003.1") -> 8.22 | E101: =RTD("sysq.rtd","","2888`010.1") -> -0.36 | F101: =RTD("sysq.rtd","","2888`005.1") -> 3 | G101: =RTD("sysq.rtd","","2888`029.1") -> 0.66 | H101: -2.84 | I101: -20.58 | J101: =X101/$L$4*100 -> 0.2733068474 | K101: =(E101/100)*(J101/100)*$D$3 -> -0.1244836164 | L101: =(D101-AC101)/AC101 -> -0.008443908323 | N101: =(AD101-D101)/D101 -> -0.004866180049 | O101: =AA101-AB101 -> -13.46 | P101: -0.4089 | Q101: 0.0029 | R101: -2.7998 | S101: 0.02 | U101: 226 | V101: -8.94 | W101: 25.96 | X101: 1070.28 | Y101: 5.87 | Z101: 4.73 | AA101: 30.31 | AB101: 43.77 | AC101: 8.29 | AD101: 8.18 | AE101: 8.27 | AF101: 8.27 | AG101: 8.39 | AH101: 8.22 | AI101: 8.25 | AJ101: 8.18 | AK101: =AJ101-AG101 -> -0.21 | AL101: =AI101-AF101 -> -0.02 | AM101: =AH101-AE101 -> -0.05 | AN101: =IF(E101>0,1,0) -> 0 | AO101: =IF(L101>0,1,0) -> 0 | AP101: =IF(N101>0,1,0) -> 0 | AQ101: =RTD("sysq.rtd","","2888`001.1") -> 8.22 | AR101: =RTD("sysq.rtd","","2888`002.1") -> 8.23
A102: 2889 | B102: 國票金 | C102: 銀行業-金控 | D102: =RTD("sysq.rtd","","2889`003.1") -> 11.55 | E102: =RTD("sysq.rtd","","2889`010.1") -> 0 | F102: =RTD("sysq.rtd","","2889`005.1") -> 6 | G102: =RTD("sysq.rtd","","2889`029.1") -> 0.54 | H102: -1.28 | I102: 2.67 | J102: =X102/$L$4*100 -> 0.08542818022 | K102: =(E102/100)*(J102/100)*$D$3 -> 0 | L102: =(D102-AC102)/AC102 -> -0.0119760479 | N102: =(AD102-D102)/D102 -> -0.01385281385 | O102: =AA102-AB102 -> -13.15 | P102: -0.0209 | Q102: -0.0006 | R102: -0.2116 | S102: -0.0006 | U102: 14 | V102: 27.48 | W102: 21.48 | X102: 334.54 | Y102: 13.43 | Z102: 7.1 | AA102: 39.53 | AB102: 52.68 | AC102: 11.69 | AD102: 11.39 | AE102: 11.55 | AF102: 11.5 | AG102: 11.7 | AH102: 11.55 | AI102: 11.55 | AJ102: 11.5 | AK102: =AJ102-AG102 -> -0.2 | AL102: =AI102-AF102 -> 0.05 | AM102: =AH102-AE102 -> 0 | AN102: =IF(E102>0,1,0) -> 0 | AO102: =IF(L102>0,1,0) -> 0 | AP102: =IF(N102>0,1,0) -> 0 | AQ102: =RTD("sysq.rtd","","2889`001.1") -> 11.5 | AR102: =RTD("sysq.rtd","","2889`002.1") -> 11.55
A103: 2890 | B103: 永豐金 | C103: 銀行業-金控 | D103: =RTD("sysq.rtd","","2890`003.1") -> 10.9 | E103: =RTD("sysq.rtd","","2890`010.1") -> 0 | F103: =RTD("sysq.rtd","","2890`005.1") -> 392 | G103: =RTD("sysq.rtd","","2890`029.1") -> 0.82 | H103: -0.91 | I103: -16.15 | J103: =X103/$L$4*100 -> 0.3137201427 | K103: =(E103/100)*(J103/100)*$D$3 -> 0 | L103: =(D103-AC103)/AC103 -> -0.01268115942 | N103: =(AD103-D103)/D103 -> -0.01467889908 | O103: =AA103-AB103 -> -4.46 | P103: -0.1056 | Q103: 0.1302 | R103: -1.3041 | S103: 0.402 | U103: 444 | V103: 31.13 | W103: 13.58 | X103: 1228.54 | Y103: 10.58 | Z103: 6.42 | AA103: 52.38 | AB103: 56.84 | AC103: 11.04 | AD103: 10.74 | AE103: 10.85 | AF103: 10.85 | AG103: 10.9 | AH103: 10.9 | AI103: 10.9 | AJ103: 10.75 | AK103: =AJ103-AG103 -> -0.15 | AL103: =AI103-AF103 -> 0.05 | AM103: =AH103-AE103 -> 0.05 | AN103: =IF(E103>0,1,0) -> 0 | AO103: =IF(L103>0,1,0) -> 0 | AP103: =IF(N103>0,1,0) -> 0 | AQ103: =RTD("sysq.rtd","","2890`001.1") -> 10.9 | AR103: =RTD("sysq.rtd","","2890`002.1") -> 10.95
A104: 2891 | B104: 中信金 | C104: 銀行業-金控 | D104: =RTD("sysq.rtd","","2891`003.1") -> 19.05 | E104: =RTD("sysq.rtd","","2891`010.1") -> -0.78 | F104: =RTD("sysq.rtd","","2891`005.1") -> 203 | G104: =RTD("sysq.rtd","","2891`029.1") -> 0.73 | H104: -2.31 | I104: -14.96 | J104: =X104/$L$4*100 -> 0.9484535135 | K104: =(E104/100)*(J104/100)*$D$3 -> -0.9359870405 | L104: =(D104-AC104)/AC104 -> -0.01192946058 | N104: =(AD104-D104)/D104 -> -0.009448818898 | O104: =AA104-AB104 -> -7.05 | P104: -1.8417 | Q104: -0.3661 | R104: -13.0414 | S104: -1.7321 | U104: -69 | V104: 45 | W104: -12.94 | X104: 3714.18 | Y104: 9.16 | Z104: 5.21 | AA104: 21.69 | AB104: 28.74 | AC104: 19.28 | AD104: 18.87 | AE104: 19.2 | AF104: 19.1 | AG104: 19.35 | AH104: 19.05 | AI104: 19.2 | AJ104: 19 | AK104: =AJ104-AG104 -> -0.35 | AL104: =AI104-AF104 -> 0.1 | AM104: =AH104-AE104 -> -0.15 | AN104: =IF(E104>0,1,0) -> 0 | AO104: =IF(L104>0,1,0) -> 0 | AP104: =IF(N104>0,1,0) -> 0 | AQ104: =RTD("sysq.rtd","","2891`001.1") -> 19.05 | AR104: =RTD("sysq.rtd","","2891`002.1") -> 19.1
A105: 2892 | B105: 第一金 | C105: 銀行業-金控 | D105: =RTD("sysq.rtd","","2892`003.1") -> 21.35 | E105: =RTD("sysq.rtd","","2892`010.1") -> -0.93 | F105: =RTD("sysq.rtd","","2892`005.1") -> 142 | G105: =RTD("sysq.rtd","","2892`029.1") -> 0.84 | H105: -2.29 | I105: -9.92 | J105: =X105/$L$4*100 -> 0.6997991337 | K105: =(E105/100)*(J105/100)*$D$3 -> -0.8234088535 | L105: =(D105-AC105)/AC105 -> -0.01157407407 | N105: =(AD105-D105)/D105 -> -0.007025761124 | O105: =AA105-AB105 -> -8.97 | P105: -0.6832 | Q105: 0.1571 | R105: -4.4209 | S105: 0.5008 | U105: -34 | V105: 22.51 | W105: -6.53 | X105: 2740.44 | Y105: 15.25 | Z105: 6.26 | AA105: 22.54 | AB105: 31.51 | AC105: 21.6 | AD105: 21.2 | AE105: 21.55 | AF105: 21.5 | AG105: 21.7 | AH105: 21.35 | AI105: 21.55 | AJ105: 21.35 | AK105: =AJ105-AG105 -> -0.35 | AL105: =AI105-AF105 -> 0.05 | AM105: =AH105-AE105 -> -0.2 | AN105: =IF(E105>0,1,0) -> 0 | AO105: =IF(L105>0,1,0) -> 0 | AP105: =IF(N105>0,1,0) -> 0 | AQ105: =RTD("sysq.rtd","","2892`001.1") -> 21.35 | AR105: =RTD("sysq.rtd","","2892`002.1") -> 21.4
A106: 2903 | B106: 遠百 | C106: 百貨業 | D106: =RTD("sysq.rtd","","2903`003.1") -> 26 | E106: =RTD("sysq.rtd","","2903`010.1") -> 0.97 | F106: =RTD("sysq.rtd","","2903`005.1") -> 5 | G106: =RTD("sysq.rtd","","2903`029.1") -> 1.45 | H106: 0.97 | I106: -0.19 | J106: =X106/$L$4*100 -> 0.09407467445 | K106: =(E106/100)*(J106/100)*$D$3 -> 0.1154525798 | L106: =(D106-AC106)/AC106 -> -0.01552442257 | N106: =(AD106-D106)/D106 -> -0.02653846154 | O106: =AA106-AB106 -> 5.98 | P106: -0.1066 | Q106: 0.0015 | R106: -0.269 | S106: 0.0015 | U106: 21 | V106: 6.52 | W106: -0.36 | X106: 368.4 | Y106: 24.53 | Z106: 3.11 | AA106: 84.91 | AB106: 78.93 | AC106: 26.41 | AD106: 25.31 | AE106: 25.8 | AF106: 25 | AG106: 25.75 | AH106: 26 | AI106: 25.75 | AJ106: 24.95 | AK106: =AJ106-AG106 -> -0.8 | AL106: =AI106-AF106 -> 0.75 | AM106: =AH106-AE106 -> 0.2 | AN106: =IF(E106>0,1,0) -> 1 | AO106: =IF(L106>0,1,0) -> 0 | AP106: =IF(N106>0,1,0) -> 0 | AQ106: =RTD("sysq.rtd","","2903`001.1") -> 25.95 | AR106: =RTD("sysq.rtd","","2903`002.1") -> 26
A107: 2912 | B107: 統一超 | C107: 量販超市/便利店 | D107: =RTD("sysq.rtd","","2912`003.1") -> 271 | E107: =RTD("sysq.rtd","","2912`010.1") -> 0 | F107: =RTD("sysq.rtd","","2912`005.1") -> 1 | G107: =RTD("sysq.rtd","","2912`029.1") -> 0.73 | H107: -1.09 | I107: -10.86 | J107: =X107/$L$4*100 -> 0.7194465427 | K107: =(E107/100)*(J107/100)*$D$3 -> 0 | L107: =(D107-AC107)/AC107 -> -0.01454545455 | N107: =(AD107-D107)/D107 -> -0.0147601476 | O107: =AA107-AB107 -> -12.53 | P107: -1.7502 | Q107: 0.0051 | R107: -8.5439 | S107: 0.0295 | U107: 8 | V107: 6.37 | W107: 3.02 | X107: 2817.38 | Y107: 27.79 | Z107: 3.32 | AA107: 22.22 | AB107: 34.75 | AC107: 275 | AD107: 267 | AE107: 271 | AF107: 271.5 | AG107: 275 | AH107: 271 | AI107: 271 | AJ107: 270.5 | AK107: =AJ107-AG107 -> -4.5 | AL107: =AI107-AF107 -> -0.5 | AM107: =AH107-AE107 -> 0 | AN107: =IF(E107>0,1,0) -> 0 | AO107: =IF(L107>0,1,0) -> 0 | AP107: =IF(N107>0,1,0) -> 0 | AQ107: =RTD("sysq.rtd","","2912`001.1") -> 271 | AR107: =RTD("sysq.rtd","","2912`002.1") -> 271.5
A108: 2915 | B108: 潤泰全 | C108: 量販超市/便利店 | D108: =RTD("sysq.rtd","","2915`003.1") -> 64.8 | E108: =RTD("sysq.rtd","","2915`010.1") -> 0.15 | F108: =RTD("sysq.rtd","","2915`005.1") -> 1 | G108: =RTD("sysq.rtd","","2915`029.1") -> 0.71 | H108: -0.92 | I108: -11.84 | J108: =X108/$L$4*100 -> 0.09346947093 | K108: =(E108/100)*(J108/100)*$D$3 -> 0.01773863619 | L108: =(D108-AC108)/AC108 -> -0.007352941176 | N108: =(AD108-D108)/D108 -> -0.008024691358 | O108: =AA108-AB108 -> -7.27 | P108: -0.0032 | Q108: 0.0021 | R108: -0.6833 | S108: 0.0021 | U108: -88 | V108: -57 | W108: -23.65 | X108: 366.03 | Y108: 4.98 | Z108: 7.73 | AA108: 42.3 | AB108: 49.57 | AC108: 65.28 | AD108: 64.28 | AE108: 64.8 | AF108: 64.6 | AG108: 66.1 | AH108: 64.8 | AI108: 64.7 | AJ108: 64.1 | AK108: =AJ108-AG108 -> -2 | AL108: =AI108-AF108 -> 0.1 | AM108: =AH108-AE108 -> 0 | AN108: =IF(E108>0,1,0) -> 1 | AO108: =IF(L108>0,1,0) -> 0 | AP108: =IF(N108>0,1,0) -> 0 | AQ108: =RTD("sysq.rtd","","2915`001.1") -> 64.7 | AR108: =RTD("sysq.rtd","","2915`002.1") -> 64.8
A109: 3005 | B109: 神基 | C109: PC/NB/平板 | D109: =RTD("sysq.rtd","","3005`003.1") -> 46.15 | E109: =RTD("sysq.rtd","","3005`010.1") -> 2.78 | F109: =RTD("sysq.rtd","","3005`005.1") -> 25 | G109: =RTD("sysq.rtd","","3005`029.1") -> 2.55 | H109: 3.59 | I109: -1.18 | J109: =X109/$L$4*100 -> 0.06882466411 | K109: =(E109/100)*(J109/100)*$D$3 -> 0.2420739628 | L109: =(D109-AC109)/AC109 -> -0.03492262652 | N109: =(AD109-D109)/D109 -> -0.04160346696 | O109: =AA109-AB109 -> 3.59 | P109: -0.09 | Q109: 0.0016 | R109: 0.2177 | S109: 0.0424 | U109: 507 | V109: 5.62 | W109: 2.29 | X109: 269.52 | Y109: 11.01 | Z109: 6.24 | AA109: 72.92 | AB109: 69.33 | AC109: 47.82 | AD109: 44.23 | AE109: 46 | AF109: 43.4 | AG109: 44 | AH109: 46.15 | AI109: 44.9 | AJ109: 43.05 | AK109: =AJ109-AG109 -> -0.95 | AL109: =AI109-AF109 -> 1.5 | AM109: =AH109-AE109 -> 0.15 | AN109: =IF(E109>0,1,0) -> 1 | AO109: =IF(L109>0,1,0) -> 0 | AP109: =IF(N109>0,1,0) -> 0 | AQ109: =RTD("sysq.rtd","","3005`001.1") -> 46.15 | AR109: =RTD("sysq.rtd","","3005`002.1") -> 46.2
A110: 3008 | B110: 大立光 | C110: 光學元件或組裝 | D110: =RTD("sysq.rtd","","3008`003.1") -> 3605 | E110: =RTD("sysq.rtd","","3008`010.1") -> 1.69 | F110: =RTD("sysq.rtd","","3008`005.1") -> 3 | G110: =RTD("sysq.rtd","","3008`029.1") -> 0.48 | H110: -7.56 | I110: -27.9 | J110: =X110/$L$4*100 -> 1.234857782 | K110: =(E110/100)*(J110/100)*$D$3 -> 2.640358092 | L110: =(D110-AC110)/AC110 -> -0.0210454854 | N110: =(AD110-D110)/D110 -> -0.03398058252 | O110: =AA110-AB110 -> 0.15 | P110: 2.0315 | Q110: -0.0314 | R110: -42.3668 | S110: -0.545 | U110: 34 | V110: 11.51 | W110: -15.17 | X110: 4835.75 | Y110: 17.05 | Z110: 2.23 | AA110: 26.23 | AB110: 26.08 | AC110: 3682.5 | AD110: 3482.5 | AE110: 3545 | AF110: 3600 | AG110: 3715 | AH110: 3605 | AI110: 3545 | AJ110: 3560 | AK110: =AJ110-AG110 -> -155 | AL110: =AI110-AF110 -> -55 | AM110: =AH110-AE110 -> 60 | AN110: =IF(E110>0,1,0) -> 1 | AO110: =IF(L110>0,1,0) -> 0 | AP110: =IF(N110>0,1,0) -> 0 | AQ110: =RTD("sysq.rtd","","3008`001.1") -> 3600 | AR110: =RTD("sysq.rtd","","3008`002.1") -> 3605
A111: 3023 | B111: 信邦 | C111: 連接線器 | D111: =RTD("sysq.rtd","","3023`003.1") -> 168.5 | E111: =RTD("sysq.rtd","","3023`010.1") -> -0.88 | F111: =RTD("sysq.rtd","","3023`005.1") -> 75 | G111: =RTD("sysq.rtd","","3023`029.1") -> 0.79 | H111: -2.88 | I111: 35.89 | J111: =X111/$L$4*100 -> 0.1001599065 | K111: =(E111/100)*(J111/100)*$D$3 -> -0.1115156361 | L111: =(D111-AC111)/AC111 -> -0.02533549283 | N111: =(AD111-D111)/D111 -> -0.01554896142 | O111: 0.2226 | P111: 0 | Q111: 0.0014 | R111: -0.3667 | S111: -0.002 | U111: 7 | V111: 4 | W111: 12.18 | X111: 392.23 | Y111: 20.88 | Z111: 3.12 | AA111: 37.1 | AB111: 35.06 | AC111: 172.88 | AD111: 165.88 | AE111: 170.5 | AF111: 167 | AG111: 173 | AH111: 168.5 | AI111: 170 | AJ111: 166 | AK111: =AJ111-AG111 -> -7 | AL111: =AI111-AF111 -> 3 | AM111: =AH111-AE111 -> -2 | AN111: =IF(E111>0,1,0) -> 0 | AO111: =IF(L111>0,1,0) -> 0 | AP111: =IF(N111>0,1,0) -> 0 | AQ111: =RTD("sysq.rtd","","3023`001.1") -> 168.5 | AR111: =RTD("sysq.rtd","","3023`002.1") -> 169.5
A112: 3034 | B112: 聯詠 | C112: 消費性IC設計 | D112: =RTD("sysq.rtd","","3034`003.1") -> 264 | E112: =RTD("sysq.rtd","","3034`010.1") -> 0.38 | F112: =RTD("sysq.rtd","","3034`005.1") -> 5 | G112: =RTD("sysq.rtd","","3034`029.1") -> 0.5 | H112: -8.65 | I112: 20.55 | J112: =X112/$L$4*100 -> 0.4102283992 | K112: =(E112/100)*(J112/100)*$D$3 -> 0.1972279689 | L112: =(D112-AC112)/AC112 -> -0.01356350185 | N112: =(AD112-D112)/D112 -> -0.02034090909 | O112: 0.095 | P112: 0.3624 | Q112: -0.0859 | R112: 2.6077 | S112: -5.0935 | U112: -93 | V112: 15.2 | W112: 24.57 | X112: 1606.47 | Y112: 18.68 | Z112: 3.99 | AA112: 27.32 | AB112: 23.58 | AC112: 267.63 | AD112: 258.63 | AE112: 260 | AF112: 266 | AG112: 267 | AH112: 264 | AI112: 263 | AJ112: 256 | AK112: =AJ112-AG112 -> -11 | AL112: =AI112-AF112 -> -3 | AM112: =AH112-AE112 -> 4 | AN112: =IF(E112>0,1,0) -> 1 | AO112: =IF(L112>0,1,0) -> 0 | AP112: =IF(N112>0,1,0) -> 0 | AQ112: =RTD("sysq.rtd","","3034`001.1") -> 263.5 | AR112: =RTD("sysq.rtd","","3034`002.1") -> 264
A113: 3037 | B113: 欣興 | C113: PCB-高密度板 | D113: =RTD("sysq.rtd","","3037`003.1") -> 79.2 | E113: =RTD("sysq.rtd","","3037`010.1") -> -1.74 | F113: =RTD("sysq.rtd","","3037`005.1") -> 117 | G113: =RTD("sysq.rtd","","3037`029.1") -> 0.76 | H113: -4.58 | I113: 88.57 | J113: =X113/$L$4*100 -> 0.3043254432 | K113: =(E113/100)*(J113/100)*$D$3 -> -0.6699566383 | L113: =(D113-AC113)/AC113 -> -0.06127770535 | N113: =(AD113-D113)/D113 -> -0.06843434343 | O113: -0.0241 | P113: 10.1073 | Q113: -2.3981 | R113: 13.6582 | S113: -7.1461 | U113: -119 | V113: 8.8 | W113: 5.99 | X113: 1191.75 | Y113: 27.89 | Z113: 1.35 | AA113: 33.52 | AB113: 49.35 | AC113: 84.37 | AD113: 73.78 | AE113: 81 | AF113: 80 | AG113: 89 | AH113: 79.2 | AI113: 80.6 | AJ113: 79.7 | AK113: =AJ113-AG113 -> -9.3 | AL113: =AI113-AF113 -> 0.6 | AM113: =AH113-AE113 -> -1.8 | AN113: =IF(E113>0,1,0) -> 0 | AO113: =IF(L113>0,1,0) -> 0 | AP113: =IF(N113>0,1,0) -> 0 | AQ113: =RTD("sysq.rtd","","3037`001.1") -> 79.1 | AR113: =RTD("sysq.rtd","","3037`002.1") -> 79.2
A114: 3044 | B114: 健鼎 | C114: PCB-高密度板 | D114: =RTD("sysq.rtd","","3044`003.1") -> 117.5 | E114: =RTD("sysq.rtd","","3044`010.1") -> -1.67 | F114: =RTD("sysq.rtd","","3044`005.1") -> 2 | G114: =RTD("sysq.rtd","","3044`029.1") -> 0.74 | H114: -4.47 | I114: -6.37 | J114: =X114/$L$4*100 -> 0.157707867 | K114: =(E114/100)*(J114/100)*$D$3 -> -0.3332184288 | L114: =(D114-AC114)/AC114 -> -0.0359369872 | N114: =(AD114-D114)/D114 -> -0.03931914894 | O114: =AA114-AB114 -> 8.04 | P114: -0.5444 | Q114: 0.001 | R114: -1.3991 | S114: -0.0215 | U114: -174 | V114: 11.07 | W114: 2.41 | X114: 617.59 | Y114: 10.36 | Z114: 6.07 | AA114: 43.42 | AB114: 35.38 | AC114: 121.88 | AD114: 112.88 | AE114: 119.5 | AF114: 119 | AG114: 118 | AH114: 117.5 | AI114: 119.5 | AJ114: 115 | AK114: =AJ114-AG114 -> -3 | AL114: =AI114-AF114 -> 0.5 | AM114: =AH114-AE114 -> -2 | AN114: =IF(E114>0,1,0) -> 0 | AO114: =IF(L114>0,1,0) -> 0 | AP114: =IF(N114>0,1,0) -> 0 | AQ114: =RTD("sysq.rtd","","3044`001.1") -> 117 | AR114: =RTD("sysq.rtd","","3044`002.1") -> 117.5
A115: 3045 | B115: 台灣大 | C115: 電信服務 | D115: =RTD("sysq.rtd","","3045`003.1") -> 102.5 | E115: =RTD("sysq.rtd","","3045`010.1") -> -0.49 | F115: =RTD("sysq.rtd","","3045`005.1") -> 67 | G115: =RTD("sysq.rtd","","3045`029.1") -> 0.23 | H115: -0.97 | I115: -8.48 | J115: =X115/$L$4*100 -> 0.9185585022 | K115: =(E115/100)*(J115/100)*$D$3 -> -0.5694585063 | L115: =(D115-AC115)/AC115 -> -0.006108794725 | N115: =(AD115-D115)/D115 -> -0.003609756098 | O115: =AA115-AB115 -> 2.29 | P115: -0.2005 | Q115: 0.1558 | R115: -5.4316 | S115: 0.4912 | U115: 19 | V115: -2.13 | W115: 0.35 | X115: 3597.11 | Y115: 22.93 | Z115: 4.61 | AA115: 27.6 | AB115: 25.31 | AC115: 103.13 | AD115: 102.13 | AE115: 103 | AF115: 103 | AG115: 103 | AH115: 102.5 | AI115: 103 | AJ115: 102.5 | AK115: =AJ115-AG115 -> -0.5 | AL115: =AI115-AF115 -> 0 | AM115: =AH115-AE115 -> -0.5 | AN115: =IF(E115>0,1,0) -> 0 | AO115: =IF(L115>0,1,0) -> 0 | AP115: =IF(N115>0,1,0) -> 0 | AQ115: =RTD("sysq.rtd","","3045`001.1") -> 102.5 | AR115: =RTD("sysq.rtd","","3045`002.1") -> 103
A116: 3231 | B116: 緯創 | C116: PC/NB/平板 | D116: =RTD("sysq.rtd","","3231`003.1") -> 32.6 | E116: =RTD("sysq.rtd","","3231`010.1") -> 4.15 | F116: =RTD("sysq.rtd","","3231`005.1") -> 9 | G116: =RTD("sysq.rtd","","3231`029.1") -> 1.35 | H116: -5.51 | I116: 14.99 | J116: =X116/$L$4*100 -> 0.2364737012 | K116: =(E116/100)*(J116/100)*$D$3 -> 1.241624086 | L116: =(D116-AC116)/AC116 -> -0.04426854295 | N116: =(AD116-D116)/D116 -> -0.06717791411 | O116: =AA116-AB116 -> 0.14 | P116: 1.3216 | Q116: 0.173 | R116: -6.8684 | S116: 0.7391 | U116: 253 | V116: -0.68 | W116: 17.82 | X116: 926.04 | Y116: 11.16 | Z116: 6.52 | AA116: 27.99 | AB116: 27.85 | AC116: 34.11 | AD116: 30.41 | AE116: 31.55 | AF116: 31.45 | AG116: 32.45 | AH116: 32.6 | AI116: 31.3 | AJ116: 30.9 | AK116: =AJ116-AG116 -> -1.55 | AL116: =AI116-AF116 -> -0.15 | AM116: =AH116-AE116 -> 1.05 | AN116: =IF(E116>0,1,0) -> 1 | AO116: =IF(L116>0,1,0) -> 0 | AP116: =IF(N116>0,1,0) -> 0 | AQ116: =RTD("sysq.rtd","","3231`001.1") -> 32.6 | AR116: =RTD("sysq.rtd","","3231`002.1") -> 32.65
A117: 3406 | B117: 玉晶光 | C117: 光學元件或組裝 | D117: =RTD("sysq.rtd","","3406`003.1") -> 629 | E117: =RTD("sysq.rtd","","3406`010.1") -> 2.61 | F117: =RTD("sysq.rtd","","3406`005.1") -> 28 | G117: =RTD("sysq.rtd","","3406`029.1") -> 0.87 | H117: -5.41 | I117: 7.16 | J117: =X117/$L$4*100 -> 0.1790278848 | K117: =(E117/100)*(J117/100)*$D$3 -> 0.5911808685 | L117: =(D117-AC117)/AC117 -> -0.03156274057 | N117: =(AD117-D117)/D117 -> -0.05007949126 | O117: =AA117-AB117 -> 3.89 | P117: 3.7363 | Q117: -0.0368 | R117: 15.988 | S117: -2.0923 | U117: 71 | V117: 40.97 | W117: 21.83 | X117: 701.08 | Y117: 21.21 | Z117: 1.47 | AA117: 35.71 | AB117: 31.82 | AC117: 649.5 | AD117: 597.5 | AE117: 614 | AF117: 609 | AG117: 640 | AH117: 629 | AI117: 613 | AJ117: 593 | AK117: =AJ117-AG117 -> -47 | AL117: =AI117-AF117 -> 4 | AM117: =AH117-AE117 -> 15 | AN117: =IF(E117>0,1,0) -> 1 | AO117: =IF(L117>0,1,0) -> 0 | AP117: =IF(N117>0,1,0) -> 0 | AQ117: =RTD("sysq.rtd","","3406`001.1") -> 628 | AR117: =RTD("sysq.rtd","","3406`002.1") -> 629
A118: 3443 | B118: 創意 | C118: 其他IC設計 | D118: =RTD("sysq.rtd","","3443`003.1") -> 283.5 | E118: =RTD("sysq.rtd","","3443`010.1") -> 2.16 | F118: =RTD("sysq.rtd","","3443`005.1") -> 10 | G118: =RTD("sysq.rtd","","3443`029.1") -> 1.05 | H118: -5.81 | I118: 17.63 | J118: =X118/$L$4*100 -> 0.09701642323 | K118: =(E118/100)*(J118/100)*$D$3 -> 0.2651295859 | L118: =(D118-AC118)/AC118 -> -0.05540932263 | N118: =(AD118-D118)/D118 -> -0.05774250441 | O118: =AA118-AB118 -> -0.25 | P118: 1.409 | Q118: 0.0294 | R118: 5.9045 | S118: -0.5681 | U118: -34 | V118: 1.9 | W118: 14.88 | X118: 379.92 | Y118: 74.21 | Z118: 1.8 | AA118: 30.06 | AB118: 30.31 | AC118: 300.13 | AD118: 267.13 | AE118: 280.5 | AF118: 275 | AG118: 295.5 | AH118: 283.5 | AI118: 277.5 | AJ118: 267.5 | AK118: =AJ118-AG118 -> -28 | AL118: =AI118-AF118 -> 2.5 | AM118: =AH118-AE118 -> 3 | AN118: =IF(E118>0,1,0) -> 1 | AO118: =IF(L118>0,1,0) -> 0 | AP118: =IF(N118>0,1,0) -> 0 | AQ118: =RTD("sysq.rtd","","3443`001.1") -> 283.5 | AR118: =RTD("sysq.rtd","","3443`002.1") -> 284
A119: 3481 | B119: 群創 | C119: 面板生產 | D119: =RTD("sysq.rtd","","3481`003.1") -> 8.09 | E119: =RTD("sysq.rtd","","3481`010.1") -> 0.62 | F119: =RTD("sysq.rtd","","3481`005.1") -> 160 | G119: =RTD("sysq.rtd","","3481`029.1") -> 0.81 | H119: -2.18 | I119: -2.88 | J119: =X119/$L$4*100 -> 0.2006185844 | K119: =(E119/100)*(J119/100)*$D$3 -> 0.1573700324 | L119: =(D119-AC119)/AC119 -> -0.02997601918 | N119: =(AD119-D119)/D119 -> -0.02101359703 | O119: -0.3238 | P119: 0.4786 | Q119: -0.0007 | R119: 1.2906 | S119: -0.0007 | U119: -8174 | V119: -1.7 | W119: 15.74 | X119: 785.63 | Z119: 1.24 | AA119: 54.96 | AB119: 43.17 | AC119: 8.34 | AD119: 7.92 | AE119: 8.09 | AF119: 7.85 | AG119: 8.21 | AH119: 8.09 | AI119: 8.04 | AJ119: 7.68 | AK119: =AJ119-AG119 -> -0.53 | AL119: =AI119-AF119 -> 0.19 | AM119: =AH119-AE119 -> 0 | AN119: =IF(E119>0,1,0) -> 1 | AO119: =IF(L119>0,1,0) -> 0 | AP119: =IF(N119>0,1,0) -> 0 | AQ119: =RTD("sysq.rtd","","3481`001.1") -> 8.09 | AR119: =RTD("sysq.rtd","","3481`002.1") -> 8.1
A120: 3532 | B120: 台勝科 | C120: 其他IC製造 | D120: =RTD("sysq.rtd","","3532`003.1") -> 107.5 | E120: =RTD("sysq.rtd","","3532`010.1") -> 0 | F120: =RTD("sysq.rtd","","3532`005.1") -> 2 | G120: =RTD("sysq.rtd","","3532`029.1") -> 2.14 | H120: -10.42 | I120: -8.12 | J120: =X120/$L$4*100 -> 0.1064698555 | K120: =(E120/100)*(J120/100)*$D$3 -> 0 | L120: =(D120-AC120)/AC120 -> -0.0590809628 | N120: =(AD120-D120)/D120 -> -0.06744186047 | O120: =AA120-AB120 -> 1.53 | P120: 0.1537 | Q120: -0.0416 | R120: 0.1329 | S120: -0.0416 | U120: -44 | V120: 0.58 | W120: 35.86 | X120: 416.94 | Y120: 34.68 | Z120: 3.26 | AA120: 13.83 | AB120: 12.3 | AC120: 114.25 | AD120: 100.25 | AE120: 108 | AF120: 107 | AG120: 115 | AH120: 107.5 | AI120: 107.5 | AJ120: 106 | AK120: =AJ120-AG120 -> -9 | AL120: =AI120-AF120 -> 0.5 | AM120: =AH120-AE120 -> -0.5 | AN120: =IF(E120>0,1,0) -> 0 | AO120: =IF(L120>0,1,0) -> 0 | AP120: =IF(N120>0,1,0) -> 0 | AQ120: =RTD("sysq.rtd","","3532`001.1") -> 106.5 | AR120: =RTD("sysq.rtd","","3532`002.1") -> 107.5
A121: 3533 | B121: 嘉澤 | C121: 端子 | D121: =RTD("sysq.rtd","","3533`003.1") -> 415.5 | E121: =RTD("sysq.rtd","","3533`010.1") -> 4.66 | F121: =RTD("sysq.rtd","","3533`005.1") -> 2 | G121: =RTD("sysq.rtd","","3533`029.1") -> 1.33 | H121: -0.95 | I121: 28.84 | J121: =X121/$L$4*100 -> 0.1097920909 | K121: =(E121/100)*(J121/100)*$D$3 -> 0.6473157228 | L121: =(D121-AC121)/AC121 -> -0.04810996564 | N121: =(AD121-D121)/D121 -> -0.0697954272 | O121: -0.1401 | P121: -1.4792 | Q121: 0.5893 | R121: -0.6719 | S121: 0.3638 | U121: 38 | V121: -11.15 | W121: -2.61 | X121: 429.95 | Y121: 16.19 | Z121: 2.64 | AA121: 40.31 | AB121: 25.85 | AC121: 436.5 | AD121: 386.5 | AE121: 400.5 | AF121: 392 | AG121: 403 | AH121: 415.5 | AI121: 397 | AJ121: 379 | AK121: =AJ121-AG121 -> -24 | AL121: =AI121-AF121 -> 5 | AM121: =AH121-AE121 -> 15 | AN121: =IF(E121>0,1,0) -> 1 | AO121: =IF(L121>0,1,0) -> 0 | AP121: =IF(N121>0,1,0) -> 0 | AQ121: =RTD("sysq.rtd","","3533`001.1") -> 415 | AR121: =RTD("sysq.rtd","","3533`002.1") -> 415.5
A122: 3653 | B122: 健策 | C122: 散熱元件 | D122: =RTD("sysq.rtd","","3653`003.1") -> 305 | E122: =RTD("sysq.rtd","","3653`010.1") -> 1.67 | F122: =RTD("sysq.rtd","","3653`005.1") -> 2 | G122: =RTD("sysq.rtd","","3653`029.1") -> 1.04 | H122: -7.58 | I122: 30.06 | J122: =X122/$L$4*100 -> 0.09426108735 | K122: =(E122/100)*(J122/100)*$D$3 -> 0.1991627433 | L122: =(D122-AC122)/AC122 -> -0.04463586531 | N122: =(AD122-D122)/D122 -> -0.05163934426 | O122: =AA122-AB122 -> -8.79 | P122: 0.5216 | Q122: -0.334 | R122: -1.4402 | S122: 0.31 | U122: 134 | V122: -7.82 | W122: 22.71 | X122: 369.13 | Y122: 39.77 | Z122: 1.67 | AA122: 26.4 | AB122: 35.19 | AC122: 319.25 | AD122: 289.25 | AE122: 303 | AF122: 305 | AG122: 320 | AH122: 305 | AI122: 300 | AJ122: 298.5 | AQ122: =RTD("sysq.rtd","","3653`001.1") -> 305 | AR122: =RTD("sysq.rtd","","3653`002.1") -> 305.5
A123: 3702 | B123: 大聯大 | C123: 電子組件買賣 | D123: =RTD("sysq.rtd","","3702`003.1") -> 41 | E123: =RTD("sysq.rtd","","3702`010.1") -> 1.74 | F123: =RTD("sysq.rtd","","3702`005.1") -> 7 | G123: =RTD("sysq.rtd","","3702`029.1") -> 0.89 | H123: 0.74 | I123: 4.86 | J123: =X123/$L$4*100 -> 0.1757924719 | K123: =(E123/100)*(J123/100)*$D$3 -> 0.3869979856 | L123: =(D123-AC123)/AC123 -> -0.01465993752 | N123: =(AD123-D123)/D123 -> -0.02170731707 | O123: =AA123-AB123 -> -1.65 | P123: 0.4064 | Q123: 0.208 | R123: -0.1183 | S123: 0.6146 | U123: -19 | V123: 21.04 | W123: 24.47 | X123: 688.41 | Y123: 10.57 | Z123: 5.96 | AA123: 55.09 | AB123: 56.74 | AC123: 41.61 | AD123: 40.11 | AE123: 40.55 | AF123: 40.4 | AG123: 41 | AH123: 41 | AI123: 40.3 | AJ123: 40.1 | AK123: =AJ123-AG123 -> -0.9 | AL123: =AI123-AF123 -> -0.1 | AM123: =AH123-AE123 -> 0.45 | AN123: =IF(E123>0,1,0) -> 1 | AO123: =IF(L123>0,1,0) -> 0 | AP123: =IF(N123>0,1,0) -> 0 | AQ123: =RTD("sysq.rtd","","3702`001.1") -> 41 | AR123: =RTD("sysq.rtd","","3702`002.1") -> 41.05
A124: 3706 | B124: 神達 | C124: PC/NB/平板 | D124: =RTD("sysq.rtd","","3706`003.1") -> 28.1 | E124: =RTD("sysq.rtd","","3706`010.1") -> 0.54 | F124: =RTD("sysq.rtd","","3706`005.1") -> 17 | G124: =RTD("sysq.rtd","","3706`029.1") -> 0.79 | H124: -2.6 | I124: -3.1 | J124: =X124/$L$4*100 -> 0.08657730083 | K124: =(E124/100)*(J124/100)*$D$3 -> 0.05915030455 | L124: =(D124-AC124)/AC124 -> -0.006716154118 | N124: =(AD124-D124)/D124 -> -0.01103202847 | O124: =AA124-AB124 -> 1.21 | P124: -0.0326 | Q124: 0.0013 | R124: -1.6579 | S124: -0.0076 | U124: -123 | V124: -7.26 | W124: 16.16 | X124: 339.04 | Y124: 9.96 | Z124: 7.87 | AA124: 35.15 | AB124: 33.94 | AC124: 28.29 | AD124: 27.79 | AE124: 28 | AF124: 27.75 | AG124: 28.35 | AH124: 28.1 | AI124: 27.95 | AJ124: 27.75 | AK124: =AJ124-AG124 -> -0.6 | AL124: =AI124-AF124 -> 0.2 | AM124: =AH124-AE124 -> 0.1 | AN124: =IF(E124>0,1,0) -> 1 | AO124: =IF(L124>0,1,0) -> 0 | AP124: =IF(N124>0,1,0) -> 0 | AQ124: =RTD("sysq.rtd","","3706`001.1") -> 28.05 | AR124: =RTD("sysq.rtd","","3706`002.1") -> 28.1
A125: 3711 | B125: 日月光投控 | C125: 封裝測試 | D125: =RTD("sysq.rtd","","3711`003.1") -> 61.3 | E125: =RTD("sysq.rtd","","3711`010.1") -> -0.97 | F125: =RTD("sysq.rtd","","3711`005.1") -> 9 | G125: =RTD("sysq.rtd","","3711`029.1") -> 0.52 | H125: -10.38 | I125: -26.32 | J125: =X125/$L$4*100 -> 0.6791073018 | K125: =(E125/100)*(J125/100)*$D$3 -> -0.8334303615 | L125: =(D125-AC125)/AC125 -> -0.0195137556 | N125: =(AD125-D125)/D125 -> -0.01582381729 | O125: =AA125-AB125 -> 0.97 | P125: -1.3363 | Q125: -0.0508 | R125: -10.5113 | S125: -0.1377 | U125: -36 | V125: 2.38 | W125: 2.61 | X125: 2659.41 | Y125: 11.39 | Z125: 3.23 | AA125: 18.95 | AB125: 17.98 | AC125: 62.52 | AD125: 60.33 | AE125: 62 | AF125: 61.5 | AG125: 64.2 | AH125: 61.3 | AI125: 61.9 | AJ125: 61.1 | AK125: =AJ125-AG125 -> -3.1 | AL125: =AI125-AF125 -> 0.4 | AM125: =AH125-AE125 -> -0.7 | AN125: =IF(E125>0,1,0) -> 0 | AO125: =IF(L125>0,1,0) -> 0 | AP125: =IF(N125>0,1,0) -> 0 | AQ125: =RTD("sysq.rtd","","3711`001.1") -> 61.3 | AR125: =RTD("sysq.rtd","","3711`002.1") -> 61.4
A126: 4904 | B126: 遠傳 | C126: 電信服務 | D126: =RTD("sysq.rtd","","4904`003.1") -> 62.3 | E126: =RTD("sysq.rtd","","4904`010.1") -> -0.48 | F126: =RTD("sysq.rtd","","4904`005.1") -> 3 | G126: =RTD("sysq.rtd","","4904`029.1") -> 0.59 | H126: -1.27 | I126: -13.59 | J126: =X126/$L$4*100 -> 0.518393846 | K126: =(E126/100)*(J126/100)*$D$3 -> -0.3148185091 | L126: =(D126-AC126)/AC126 -> -0.01032565528 | N126: =(AD126-D126)/D126 -> -0.008828250401 | O126: =AA126-AB126 -> -3.85 | P126: -0.2534 | Q126: 0.157 | R126: 0.0417 | S126: 0.483 | U126: -19 | V126: 1.83 | W126: -7.59 | X126: 2030.05 | Y126: 23.25 | Z126: 5.19 | AA126: 36.73 | AB126: 40.58 | AC126: 62.95 | AD126: 61.75 | AE126: 62.6 | AF126: 62.4 | AG126: 62.7 | AH126: 62.3 | AI126: 62.6 | AJ126: 61.9 | AK126: =AJ126-AG126 -> -0.8 | AL126: =AI126-AF126 -> 0.2 | AM126: =AH126-AE126 -> -0.3 | AN126: =IF(E126>0,1,0) -> 0 | AO126: =IF(L126>0,1,0) -> 0 | AP126: =IF(N126>0,1,0) -> 0 | AQ126: =RTD("sysq.rtd","","4904`001.1") -> 62.3 | AR126: =RTD("sysq.rtd","","4904`002.1") -> 62.4
A127: 4938 | B127: 和碩 | C127: PC/NB/平板 | D127: =RTD("sysq.rtd","","4938`003.1") -> 63.3 | E127: =RTD("sysq.rtd","","4938`010.1") -> -1.71 | F127: =RTD("sysq.rtd","","4938`005.1") -> 16 | G127: =RTD("sysq.rtd","","4938`029.1") -> 0.93 | H127: -8.39 | I127: -7.46 | J127: =X127/$L$4*100 -> 0.4220107159 | K127: =(E127/100)*(J127/100)*$D$3 -> -0.9130168078 | L127: =(D127-AC127)/AC127 -> -0.02764976959 | N127: =(AD127-D127)/D127 -> -0.02211690363 | O127: =AA127-AB127 -> -13.52 | P127: -0.9889 | Q127: 0.3003 | R127: 1.9841 | S127: 0.2103 | U127: 697 | V127: -5.41 | W127: 5.23 | X127: 1652.61 | Y127: 7.14 | Z127: 6.99 | AA127: 34.78 | AB127: 48.3 | AC127: 65.1 | AD127: 61.9 | AE127: 64.5 | AF127: 65 | AG127: 66.7 | AH127: 63.3 | AI127: 64.4 | AJ127: 64 | AK127: =AJ127-AG127 -> -2.7 | AL127: =AI127-AF127 -> -0.6 | AM127: =AH127-AE127 -> -1.2 | AN127: =IF(E127>0,1,0) -> 0 | AO127: =IF(L127>0,1,0) -> 0 | AP127: =IF(N127>0,1,0) -> 0 | AQ127: =RTD("sysq.rtd","","4938`001.1") -> 63.3 | AR127: =RTD("sysq.rtd","","4938`002.1") -> 63.4
A128: 4958 | B128: 臻鼎-KY | C128: PCB-軟板 | D128: =RTD("sysq.rtd","","4958`003.1") -> 128 | E128: =RTD("sysq.rtd","","4958`010.1") -> -1.16 | F128: =RTD("sysq.rtd","","4958`005.1") -> 7 | G128: =RTD("sysq.rtd","","4958`029.1") -> 0.74 | H128: -5.88 | I128: -10.49 | J128: =X128/$L$4*100 -> 0.2949026542 | K128: =(E128/100)*(J128/100)*$D$3 -> -0.4328085721 | L128: =(D128-AC128)/AC128 -> -0.03125709528 | N128: =(AD128-D128)/D128 -> -0.038046875 | O128: =AA128-AB128 -> 1.43 | P128: -0.0114 | Q128: -0.6974 | R128: -5.4863 | S128: 0.1732 | U128: 140 | V128: 18.43 | W128: 8.73 | X128: 1154.85 | Y128: 12.51 | Z128: 3.47 | AA128: 26.49 | AB128: 25.06 | AC128: 132.13 | AD128: 123.13 | AE128: 128.5 | AF128: 126 | AG128: 132 | AH128: 128 | AI128: 129.5 | AJ128: 124 | AK128: =AJ128-AG128 -> -8 | AL128: =AI128-AF128 -> 3.5 | AM128: =AH128-AE128 -> -0.5 | AN128: =IF(E128>0,1,0) -> 0 | AO128: =IF(L128>0,1,0) -> 0 | AP128: =IF(N128>0,1,0) -> 0 | AQ128: =RTD("sysq.rtd","","4958`001.1") -> 128 | AR128: =RTD("sysq.rtd","","4958`002.1") -> 128.5
A129: 5269 | B129: 祥碩 | C129: 消費性IC設計 | D129: =RTD("sysq.rtd","","5269`003.1") -> 1765 | E129: =RTD("sysq.rtd","","5269`010.1") -> 4.75 | F129: =RTD("sysq.rtd","","5269`005.1") -> 3 | G129: =RTD("sysq.rtd","","5269`029.1") -> 1.13 | H129: -0.84 | I129: 168.65 | J129: =X129/$L$4*100 -> 0.3119913545 | K129: =(E129/100)*(J129/100)*$D$3 -> 1.874974443 | L129: =(D129-AC129)/AC129 -> -0.03814713896 | N129: =(AD129-D129)/D129 -> -0.05099150142 | O129: =AA129-AB129 -> 6.68 | P129: 0.7237 | Q129: 1.1319 | R129: 10.3895 | S129: -0.2195 | U129: 2 | V129: 14.37 | W129: 114.56 | X129: 1221.77 | Y129: 67.88 | Z129: 0.71 | AA129: 39.36 | AB129: 32.68 | AC129: 1835 | AD129: 1675 | AE129: 1710 | AF129: 1705 | AG129: 1715 | AH129: 1765 | AI129: 1685 | AJ129: 1645 | AK129: =AJ129-AG129 -> -70 | AL129: =AI129-AF129 -> -20 | AM129: =AH129-AE129 -> 55 | AN129: =IF(E129>0,1,0) -> 1 | AO129: =IF(L129>0,1,0) -> 0 | AP129: =IF(N129>0,1,0) -> 0 | AQ129: =RTD("sysq.rtd","","5269`001.1") -> 1760 | AR129: =RTD("sysq.rtd","","5269`002.1") -> 1765
A130: 5522 | B130: 遠雄 | C130: 建築業 | D130: =RTD("sysq.rtd","","5522`003.1") -> 44.6 | E130: =RTD("sysq.rtd","","5522`010.1") -> 0.68 | F130: =RTD("sysq.rtd","","5522`005.1") -> - | G130: =RTD("sysq.rtd","","5522`029.1") -> 0.51 | H130: -0.56 | I130: 10.67 | J130: =X130/$L$4*100 -> 0.08901599014 | K130: =(E130/100)*(J130/100)*$D$3 -> 0.07658366089 | L130: =(D130-AC130)/AC130 -> -0.01653803749 | N130: =(AD130-D130)/D130 -> -0.01905829596 | O130: -0.2618 | P130: 0.0464 | Q130: 0.0009 | R130: 0.0755 | S130: 0.0009 | U130: -43 | V130: 66.83 | W130: -1.71 | X130: 348.59 | Y130: 11.83 | Z130: 8.15 | AA130: 62.34 | AB130: 60.82 | AC130: 45.35 | AD130: 43.75 | AE130: 44.6 | AF130: 43.05 | AG130: 44.8 | AH130: 44.6 | AI130: 44.3 | AJ130: 43.25 | AK130: =AJ130-AG130 -> -1.55 | AL130: =AI130-AF130 -> 1.25 | AM130: =AH130-AE130 -> 0 | AN130: =IF(E130>0,1,0) -> 1 | AO130: =IF(L130>0,1,0) -> 0 | AP130: =IF(N130>0,1,0) -> 0 | AQ130: =RTD("sysq.rtd","","5522`001.1") -> 44.55 | AR130: =RTD("sysq.rtd","","5522`002.1") -> 44.6
A131: 5871 | B131: 中租-KY | C131: 其他服務 | D131: =RTD("sysq.rtd","","5871`003.1") -> 132.5 | E131: =RTD("sysq.rtd","","5871`010.1") -> -1.12 | F131: =RTD("sysq.rtd","","5871`005.1") -> 5 | G131: =RTD("sysq.rtd","","5871`029.1") -> 0.48 | H131: -2.57 | I131: -3.99 | J131: =X131/$L$4*100 -> 0.4673754443 | K131: =(E131/100)*(J131/100)*$D$3 -> -0.6622822215 | L131: =(D131-AC131)/AC131 -> -0.01669758813 | N131: =(AD131-D131)/D131 -> -0.01320754717 | O131: =AA131-AB131 -> -3.85 | P131: -0.7211 | Q131: 0.0444 | R131: 2.8407 | S131: 0.1096 | U131: 90 | V131: 5.48 | W131: -0.41 | X131: 1830.26 | Y131: 11.63 | Z131: 3.73 | AA131: 68.41 | AB131: 72.26 | AC131: 134.75 | AD131: 130.75 | AE131: 134 | AF131: 134.5 | AG131: 137 | AH131: 132.5 | AI131: 134 | AJ131: 132.5 | AK131: =AJ131-AG131 -> -4.5 | AL131: =AI131-AF131 -> -0.5 | AM131: =AH131-AE131 -> -1.5 | AN131: =IF(E131>0,1,0) -> 0 | AO131: =IF(L131>0,1,0) -> 0 | AP131: =IF(N131>0,1,0) -> 0 | AQ131: =RTD("sysq.rtd","","5871`001.1") -> 132.5 | AR131: =RTD("sysq.rtd","","5871`002.1") -> 133
A132: 5876 | B132: 上海商銀 | C132: 銀行業-銀行 | D132: =RTD("sysq.rtd","","5876`003.1") -> 41.35 | E132: =RTD("sysq.rtd","","5876`010.1") -> -1.08 | F132: =RTD("sysq.rtd","","5876`005.1") -> 54 | G132: =RTD("sysq.rtd","","5876`029.1") -> 0.86 | H132: -6.76 | I132: -20.48 | J132: =X132/$L$4*100 -> 0.4732180842 | K132: =(E132/100)*(J132/100)*$D$3 -> -0.6466127617 | L132: =(D132-AC132)/AC132 -> -0.02453408823 | N132: =(AD132-D132)/D132 -> -0.01596130593 | O132: =AA132-AB132 -> -18.05 | P132: -0.1994 | Q132: 0.0016 | R132: -1.7796 | S132: 0.0265 | U132: -25 | V132: 32.16 | W132: 6.61 | X132: 1853.14 | Y132: 12.61 | Z132: 4.9 | AA132: 24.88 | AB132: 42.93 | AC132: 42.39 | AD132: 40.69 | AE132: 41.9 | AF132: 42.35 | AG132: 42.55 | AH132: 41.35 | AI132: 41.8 | AJ132: 41.55 | AK132: =AJ132-AG132 -> -1 | AL132: =AI132-AF132 -> -0.55 | AM132: =AH132-AE132 -> -0.55 | AN132: =IF(E132>0,1,0) -> 0 | AO132: =IF(L132>0,1,0) -> 0 | AP132: =IF(N132>0,1,0) -> 0 | AQ132: =RTD("sysq.rtd","","5876`001.1") -> 41.35 | AR132: =RTD("sysq.rtd","","5876`002.1") -> 41.5
A133: 5880 | B133: 合庫金 | C133: 銀行業-金控 | D133: =RTD("sysq.rtd","","5880`003.1") -> 20.25 | E133: =RTD("sysq.rtd","","5880`010.1") -> -1.22 | F133: =RTD("sysq.rtd","","5880`005.1") -> 123 | G133: =RTD("sysq.rtd","","5880`029.1") -> 0.66 | H133: -0.98 | I133: -2.41 | J133: =X133/$L$4*100 -> 0.6895183346 | K133: =(E133/100)*(J133/100)*$D$3 -> -1.064301888 | L133: =(D133-AC133)/AC133 -> -0.0141187926 | N133: =(AD133-D133)/D133 -> -0.01037037037 | O133: =AA133-AB133 -> -13.9 | P133: -0.7868 | Q133: 0.0024 | R133: -3.2644 | S133: 0.0403 | U133: -6 | V133: 20.42 | W133: 21.93 | X133: 2700.18 | Y133: 15.23 | Z133: 5.61 | AA133: 52.35 | AB133: 66.25 | AC133: 20.54 | AD133: 20.04 | AE133: 20.45 | AF133: 20.2 | AG133: 20.4 | AH133: 20.25 | AI133: 20.5 | AJ133: 20.15 | AK133: =AJ133-AG133 -> -0.25 | AL133: =AI133-AF133 -> 0.3 | AM133: =AH133-AE133 -> -0.2 | AN133: =IF(E133>0,1,0) -> 0 | AO133: =IF(L133>0,1,0) -> 0 | AP133: =IF(N133>0,1,0) -> 0 | AQ133: =RTD("sysq.rtd","","5880`001.1") -> 20.25 | AR133: =RTD("sysq.rtd","","5880`002.1") -> 20.3
A134: 6176 | B134: 瑞儀 | C134: 面板零組件 | D134: =RTD("sysq.rtd","","6176`003.1") -> 110.5 | E134: =RTD("sysq.rtd","","6176`010.1") -> -0.45 | F134: =RTD("sysq.rtd","","6176`005.1") -> 14 | G134: =RTD("sysq.rtd","","6176`029.1") -> 0.39 | H134: -7.14 | I134: -7.92 | J134: =X134/$L$4*100 -> 0.1312168064 | K134: =(E134/100)*(J134/100)*$D$3 -> -0.07470697654 | L134: =(D134-AC134)/AC134 -> -0.02857142857 | N134: =(AD134-D134)/D134 -> -0.02488687783 | O134: =AA134-AB134 -> -0.31 | P134: 0.1337 | Q134: -0.0559 | R134: -3.896 | S134: -0.1804 | U134: -29 | V134: -2.44 | W134: -6.98 | X134: 513.85 | Y134: 9.51 | Z134: 7.21 | AA134: 29.63 | AB134: 29.94 | AC134: 113.75 | AD134: 107.75 | AE134: 112 | AF134: 109.5 | AG134: 112 | AH134: 110.5 | AI134: 111 | AJ134: 108 | AK134: =AJ134-AG134 -> -4 | AL134: =AI134-AF134 -> 1.5 | AM134: =AH134-AE134 -> -1.5 | AN134: =IF(E134>0,1,0) -> 0 | AO134: =IF(L134>0,1,0) -> 0 | AP134: =IF(N134>0,1,0) -> 0 | AQ134: =RTD("sysq.rtd","","6176`001.1") -> 110.5 | AR134: =RTD("sysq.rtd","","6176`002.1") -> 111
A135: 6213 | B135: 聯茂 | C135: PCB原料 | D135: =RTD("sysq.rtd","","6213`003.1") -> 119.5 | E135: =RTD("sysq.rtd","","6213`010.1") -> -1.65 | F135: =RTD("sysq.rtd","","6213`005.1") -> 4 | G135: =RTD("sysq.rtd","","6213`029.1") -> 0.55 | H135: -5.16 | I135: -6.27 | J135: =X135/$L$4*100 -> 0.1016026913 | K135: =(E135/100)*(J135/100)*$D$3 -> -0.2121037463 | L135: =(D135-AC135)/AC135 -> -0.03144756038 | N135: =(AD135-D135)/D135 -> -0.02610878661 | O135: =AA135-AB135 -> 8.8 | P135: -1.0612 | Q135: -0.0525 | R135: -1.412 | S135: -0.6638 | U135: -1 | V135: -16.52 | W135: 0.17 | X135: 397.88 | Y135: 15.16 | Z135: 4.12 | AA135: 30.79 | AB135: 21.99 | AC135: 123.38 | AD135: 116.38 | AE135: 121.5 | AF135: 116 | AG135: 122 | AH135: 119.5 | AI135: 121.5 | AJ135: 114 | AK135: =AJ135-AG135 -> -8 | AL135: =AI135-AF135 -> 5.5 | AM135: =AH135-AE135 -> -2 | AN135: =IF(E135>0,1,0) -> 0 | AO135: =IF(L135>0,1,0) -> 0 | AP135: =IF(N135>0,1,0) -> 0 | AQ135: =RTD("sysq.rtd","","6213`001.1") -> 119.5 | AR135: =RTD("sysq.rtd","","6213`002.1") -> 120
A136: 6239 | B136: 力成 | C136: 封裝測試 | D136: =RTD("sysq.rtd","","6239`003.1") -> 88.5 | E136: =RTD("sysq.rtd","","6239`010.1") -> 1.72 | F136: =RTD("sysq.rtd","","6239`005.1") -> 1 | G136: =RTD("sysq.rtd","","6239`029.1") -> 0.46 | H136: -4.53 | I136: -11.32 | J136: =X136/$L$4*100 -> 0.1760810288 | K136: =(E136/100)*(J136/100)*$D$3 -> 0.3831776744 | L136: =(D136-AC136)/AC136 -> -0.01939058172 | N136: =(AD136-D136)/D136 -> -0.02542372881 | O136: =AA136-AB136 -> 11.37 | P136: 0.0244 | Q136: 0.1347 | R136: -6.5497 | S136: 0.3545 | U136: 90 | V136: -1.26 | W136: 12.63 | X136: 689.54 | Y136: 9.7 | Z136: 5.17 | AA136: 28.33 | AB136: 16.96 | AC136: 90.25 | AD136: 86.25 | AE136: 87.1 | AF136: 86.3 | AG136: 88.8 | AH136: 88.5 | AI136: 87 | AJ136: 85.2 | AK136: =AJ136-AG136 -> -3.6 | AL136: =AI136-AF136 -> 0.7 | AM136: =AH136-AE136 -> 1.4 | AN136: =IF(E136>0,1,0) -> 1 | AO136: =IF(L136>0,1,0) -> 0 | AP136: =IF(N136>0,1,0) -> 0 | AQ136: =RTD("sysq.rtd","","6239`001.1") -> 88.5 | AR136: =RTD("sysq.rtd","","6239`002.1") -> 88.6
A137: 6269 | B137: 台郡 | C137: PCB-軟板 | D137: =RTD("sysq.rtd","","6269`003.1") -> 128.5 | E137: =RTD("sysq.rtd","","6269`010.1") -> 1.98 | F137: =RTD("sysq.rtd","","6269`005.1") -> 3 | G137: =RTD("sysq.rtd","","6269`029.1") -> 0.67 | H137: -5.17 | I137: 12.23 | J137: =X137/$L$4*100 -> 0.1112016788 | K137: =(E137/100)*(J137/100)*$D$3 -> 0.2785708809 | L137: =(D137-AC137)/AC137 -> -0.03018867925 | N137: =(AD137-D137)/D137 -> -0.03112840467 | O137: =AA137-AB137 -> 2.25 | P137: -0.5101 | Q137: 0.1947 | R137: 6.4053 | S137: 0.024 | U137: 42 | V137: 15.6 | W137: -3.88 | X137: 435.47 | Y137: 11.71 | Z137: 3.94 | AA137: 30.29 | AB137: 28.04 | AC137: 132.5 | AD137: 124.5 | AE137: 128.5 | AF137: 125 | AG137: 131 | AH137: 128.5 | AI137: 126 | AJ137: 121.5 | AK137: =AJ137-AG137 -> -9.5 | AL137: =AI137-AF137 -> 1 | AM137: =AH137-AE137 -> 0 | AN137: =IF(E137>0,1,0) -> 1 | AO137: =IF(L137>0,1,0) -> 0 | AP137: =IF(N137>0,1,0) -> 0 | AQ137: =RTD("sysq.rtd","","6269`001.1") -> 128.5 | AR137: =RTD("sysq.rtd","","6269`002.1") -> 129
A138: 6278 | B138: 台表科 | C138: 面板零組件 | D138: =RTD("sysq.rtd","","6278`003.1") -> 122.5 | E138: =RTD("sysq.rtd","","6278`010.1") -> 2.94 | F138: =RTD("sysq.rtd","","6278`005.1") -> 10 | G138: =RTD("sysq.rtd","","6278`029.1") -> 0.57 | H138: -10.26 | I138: 4.7 | J138: =X138/$L$4*100 -> 0.09146744746 | K138: =(E138/100)*(J138/100)*$D$3 -> 0.3402303667 | L138: =(D138-AC138)/AC138 -> -0.03921568627 | N138: =(AD138-D138)/D138 -> -0.05714285714 | O138: =AA138-AB138 -> -5.11 | P138: 1.6109 | Q138: -0.2235 | R138: 2.1522 | S138: -2.6398 | U138: 175 | V138: 14.91 | W138: 7.17 | X138: 358.19 | Y138: 20.25 | Z138: 2.35 | AA138: 21.44 | AB138: 26.55 | AC138: 127.5 | AD138: 115.5 | AE138: 119 | AF138: 119 | AG138: 131.5 | AH138: 122.5 | AI138: 119 | AJ138: 119 | AK138: =AJ138-AG138 -> -12.5 | AL138: =AI138-AF138 -> 0 | AM138: =AH138-AE138 -> 3.5 | AN138: =IF(E138>0,1,0) -> 1 | AO138: =IF(L138>0,1,0) -> 0 | AP138: =IF(N138>0,1,0) -> 0 | AQ138: =RTD("sysq.rtd","","6278`001.1") -> 122 | AR138: =RTD("sysq.rtd","","6278`002.1") -> 122.5
A139: 6285 | B139: 啟碁 | C139: 網路通訊設備 | D139: =RTD("sysq.rtd","","6285`003.1") -> 74 | E139: =RTD("sysq.rtd","","6285`010.1") -> 6.17 | F139: =RTD("sysq.rtd","","6285`005.1") -> 21 | G139: =RTD("sysq.rtd","","6285`029.1") -> 2.31 | H139: 6.63 | I139: -1.99 | J139: =X139/$L$4*100 -> 0.07374034675 | K139: =(E139/100)*(J139/100)*$D$3 -> 0.575638089 | L139: =(D139-AC139)/AC139 -> -0.05792488861 | N139: =(AD139-D139)/D139 -> -0.07905405405 | O139: =AA139-AB139 -> 3.22 | P139: -1.4104 | Q139: 0.1741 | R139: -6.0151 | S139: 0.5892 | U139: 895 | V139: 5.86 | W139: -6.32 | X139: 288.77 | Y139: 19.42 | Z139: 3.59 | AA139: 73.67 | AB139: 70.45 | AC139: 78.55 | AD139: 68.15 | AE139: 71.5 | AF139: 66.1 | AG139: 67.2 | AH139: 74 | AI139: 69.7 | AJ139: 65.8 | AK139: =AJ139-AG139 -> -1.4 | AL139: =AI139-AF139 -> 3.6 | AM139: =AH139-AE139 -> 2.5 | AN139: =IF(E139>0,1,0) -> 1 | AO139: =IF(L139>0,1,0) -> 0 | AP139: =IF(N139>0,1,0) -> 0 | AQ139: =RTD("sysq.rtd","","6285`001.1") -> 74 | AR139: =RTD("sysq.rtd","","6285`002.1") -> 74.1
A140: 6409 | B140: 旭隼 | C140: 其他電子或零件 | D140: =RTD("sysq.rtd","","6409`003.1") -> 1155 | E140: =RTD("sysq.rtd","","6409`010.1") -> 10 | F140: =RTD("sysq.rtd","","6409`005.1") -> - | G140: =RTD("sysq.rtd","","6409`029.1") -> 1.6 | H140: 17.38 | I140: 61.54 | J140: =X140/$L$4*100 -> 0.2456896486 | K140: =(E140/100)*(J140/100)*$D$3 -> 3.108465434 | L140: =(D140-AC140)/AC140 -> -0.05230769231 | N140: =(AD140-D140)/D140 -> -0.09199134199 | O140: =AA140-AB140 -> 7.54 | P140: -0.1022 | Q140: 0 | R140: 0.3113 | S140: 0 | U140: 4 | V140: -3.96 | W140: 20.56 | X140: 962.13 | Y140: 40.99 | Z140: 2.26 | AA140: 74.32 | AB140: 66.78 | AC140: 1218.75 | AD140: 1048.75 | AE140: 1070 | AF140: 994 | AG140: 999 | AH140: 1155 | AI140: 1050 | AJ140: 984 | AK140: =AJ140-AG140 -> -15 | AL140: =AI140-AF140 -> 56 | AM140: =AH140-AE140 -> 85 | AN140: =IF(E140>0,1,0) -> 1 | AO140: =IF(L140>0,1,0) -> 0 | AP140: =IF(N140>0,1,0) -> 0 | AQ140: =RTD("sysq.rtd","","6409`001.1") -> 1155 | AR140: =RTD("sysq.rtd","","6409`002.1") -> -
A141: 6415 | B141: 矽力-KY | C141: 類比或通訊IC設計 | D141: =RTD("sysq.rtd","","6415`003.1") -> 1870 | E141: =RTD("sysq.rtd","","6415`010.1") -> 5.35 | F141: =RTD("sysq.rtd","","6415`005.1") -> - | G141: =RTD("sysq.rtd","","6415`029.1") -> 0.82 | H141: 8.41 | I141: 96.84 | J141: =X141/$L$4*100 -> 0.4401898041 | K141: =(E141/100)*(J141/100)*$D$3 -> 2.97956555 | L141: =(D141-AC141)/AC141 -> -0.06382978723 | N141: =(AD141-D141)/D141 -> -0.1029411765 | O141: =AA141-AB141 -> 17.15 | P141: 1.7246 | Q141: -0.4709 | R141: 7.0038 | S141: -1.7349 | U141: -8 | V141: 9.04 | W141: 28.53 | X141: 1723.8 | Y141: 63.95 | Z141: 0.42 | AA141: 70.79 | AB141: 53.64 | AC141: 1997.5 | AD141: 1677.5 | AE141: 1755 | AF141: 1805 | AG141: 1630 | AH141: 1870 | AI141: 1775 | AJ141: 1790 | AK141: =AJ141-AG141 -> 160 | AL141: =AI141-AF141 -> -30 | AM141: =AH141-AE141 -> 115 | AN141: =IF(E141>0,1,0) -> 1 | AO141: =IF(L141>0,1,0) -> 0 | AP141: =IF(N141>0,1,0) -> 0 | AQ141: =RTD("sysq.rtd","","6415`001.1") -> 1865 | AR141: =RTD("sysq.rtd","","6415`002.1") -> 1870
A142: 6456 | B142: GIS-KY | C142: 面板生產 | D142: =RTD("sysq.rtd","","6456`003.1") -> 122.5 | E142: =RTD("sysq.rtd","","6456`010.1") -> 0.82 | F142: =RTD("sysq.rtd","","6456`005.1") -> 10 | G142: =RTD("sysq.rtd","","6456`029.1") -> 0.58 | H142: -8.92 | I142: 8.41 | J142: =X142/$L$4*100 -> 0.1061812985 | K142: =(E142/100)*(J142/100)*$D$3 -> 0.1101592747 | L142: =(D142-AC142)/AC142 -> -0.03162055336 | N142: =(AD142-D142)/D142 -> -0.04897959184 | O142: =AA142-AB142 -> 2.36 | P142: 1.04 | Q142: -0.0017 | R142: 4.0481 | S142: -1.2716 | U142: 68 | V142: -16.17 | W142: -0.4 | X142: 415.81 | Y142: 11.61 | Z142: 2.88 | AA142: 32.27 | AB142: 29.91 | AC142: 126.5 | AD142: 116.5 | AE142: 120 | AF142: 118.5 | AG142: 123.5 | AH142: 122.5 | AI142: 121.5 | AJ142: 116 | AK142: =AJ142-AG142 -> -7.5 | AL142: =AI142-AF142 -> 3 | AM142: =AH142-AE142 -> 2.5 | AN142: =IF(E142>0,1,0) -> 1 | AO142: =IF(L142>0,1,0) -> 0 | AP142: =IF(N142>0,1,0) -> 0 | AQ142: =RTD("sysq.rtd","","6456`001.1") -> 122 | AR142: =RTD("sysq.rtd","","6456`002.1") -> 122.5
A143: 6505 | B143: 台塑化 | C143: 油品相關 | D143: =RTD("sysq.rtd","","6505`003.1") -> 82.1 | E143: =RTD("sysq.rtd","","6505`010.1") -> -1.2 | F143: =RTD("sysq.rtd","","6505`005.1") -> 6 | G143: =RTD("sysq.rtd","","6505`029.1") -> 0.59 | H143: -2.96 | I143: -15.79 | J143: =X143/$L$4*100 -> 1.997123113 | K143: =(E143/100)*(J143/100)*$D$3 -> -3.032112195 | L143: =(D143-AC143)/AC143 -> -0.01464234277 | N143: =(AD143-D143)/D143 -> -0.01181485993 | O143: =AA143-AB143 -> -9.93 | P143: -0.1872 | Q143: 0.009 | R143: -1.2235 | S143: 0.0355 | U143: -83 | V143: 4.49 | W143: -41.24 | X143: 7820.81 | Y143: 912.22 | Z143: 3.49 | AA143: 50.85 | AB143: 60.78 | AC143: 83.32 | AD143: 81.13 | AE143: 82.7 | AF143: 82.4 | AG143: 83.3 | AH143: 82.1 | AI143: 83.1 | AJ143: 81.6 | AK143: =AJ143-AG143 -> -1.7 | AL143: =AI143-AF143 -> 0.7 | AM143: =AH143-AE143 -> -0.6 | AN143: =IF(E143>0,1,0) -> 0 | AO143: =IF(L143>0,1,0) -> 0 | AP143: =IF(N143>0,1,0) -> 0 | AQ143: =RTD("sysq.rtd","","6505`001.1") -> 82.1 | AR143: =RTD("sysq.rtd","","6505`002.1") -> 82.3
A144: 6592 | B144: 和潤企業 | C144: 其他服務 | D144: =RTD("sysq.rtd","","6592`003.1") -> 79.4 | E144: =RTD("sysq.rtd","","6592`010.1") -> 1.02 | F144: =RTD("sysq.rtd","","6592`005.1") -> 1 | G144: =RTD("sysq.rtd","","6592`029.1") -> 0.98 | H144: -0.25 | I144: -10.69 | J144: =X144/$L$4*100 -> 0.1044193136 | K144: =(E144/100)*(J144/100)*$D$3 -> 0.1347535419 | L144: =(D144-AC144)/AC144 -> -0.009975062344 | N144: =(AD144-D144)/D144 -> -0.01511335013 | O144: =AA144-AB144 -> 8.22 | P144: 0.4145 | Q144: 0.0035 | R144: 0.3119 | S144: -0.0415 | U144: -6 | V144: 4.7 | W144: 5.6 | X144: 408.91 | Y144: 17.72 | Z144: 3.94 | AA144: 55.85 | AB144: 47.63 | AC144: 80.2 | AD144: 78.2 | AE144: 78.6 | AF144: 77.4 | AG144: 79 | AH144: 79.4 | AI144: 78.6 | AJ144: 77.1 | AK144: =AJ144-AG144 -> -1.9 | AL144: =AI144-AF144 -> 1.2 | AM144: =AH144-AE144 -> 0.8 | AN144: =IF(E144>0,1,0) -> 1 | AO144: =IF(L144>0,1,0) -> 0 | AP144: =IF(N144>0,1,0) -> 0 | AQ144: =RTD("sysq.rtd","","6592`001.1") -> 79.3 | AR144: =RTD("sysq.rtd","","6592`002.1") -> 79.4
A145: 6669 | B145: 緯穎 | C145: 工業電腦 | D145: =RTD("sysq.rtd","","6669`003.1") -> 798 | E145: =RTD("sysq.rtd","","6669`010.1") -> 3.64 | F145: =RTD("sysq.rtd","","6669`005.1") -> 3 | G145: =RTD("sysq.rtd","","6669`029.1") -> 1.31 | H145: 0.25 | I145: 25.67 | J145: =X145/$L$4*100 -> 0.3562835703 | K145: =(E145/100)*(J145/100)*$D$3 -> 1.640802702 | L145: =(D145-AC145)/AC145 -> -0.04057709648 | N145: =(AD145-D145)/D145 -> -0.06547619048 | O145: -1.1424 | P145: 3.0636 | Q145: 0.0085 | R145: 3.5199 | S145: -1.8144 | U145: -13 | V145: -30.32 | W145: 38.53 | X145: 1395.22 | Y145: 20.08 | Z145: 2.99 | AA145: 40.56 | AB145: 31.78 | AC145: 831.75 | AD145: 745.75 | AE145: 769 | AF145: 766 | AG145: 806 | AH145: 798 | AI145: 770 | AJ145: 753 | AK145: =AJ145-AG145 -> -53 | AL145: =AI145-AF145 -> 4 | AM145: =AH145-AE145 -> 29 | AN145: =IF(E145>0,1,0) -> 1 | AO145: =IF(L145>0,1,0) -> 0 | AP145: =IF(N145>0,1,0) -> 0 | AQ145: =RTD("sysq.rtd","","6669`001.1") -> 796 | AR145: =RTD("sysq.rtd","","6669`002.1") -> 798
A146: 8046 | B146: 南電 | C146: IC載板 | D146: =RTD("sysq.rtd","","8046`003.1") -> 132 | E146: =RTD("sysq.rtd","","8046`010.1") -> -6.05 | F146: =RTD("sysq.rtd","","8046`005.1") -> 90 | G146: =RTD("sysq.rtd","","8046`029.1") -> 0.84 | H146: -4.69 | I146: 187.27 | J146: =X146/$L$4*100 -> 0.2178068752 | K146: =(E146/100)*(J146/100)*$D$3 -> -1.667194014 | L146: =(D146-AC146)/AC146 -> -0.09589041096 | N146: =(AD146-D146)/D146 -> -0.09090909091 | O146: =AA146-AB146 -> -10.73 | P146: -6.8006 | Q146: -0.8565 | R146: 2.2445 | S146: -4.1862 | U146: 768 | V146: 4.14 | W146: 21.67 | X146: 852.94 | Y146: 44.15 | Z146: 0.5 | AA146: 61.53 | AB146: 72.26 | AC146: 146 | AD146: 120 | AE146: 139.5 | AF146: 132.5 | AG146: 142 | AH146: 132 | AI146: 140.5 | AJ146: 128 | AK146: =AJ146-AG146 -> -14 | AL146: =AI146-AF146 -> 8 | AM146: =AH146-AE146 -> -7.5 | AN146: =IF(E146>0,1,0) -> 0 | AO146: =IF(L146>0,1,0) -> 0 | AP146: =IF(N146>0,1,0) -> 0 | AQ146: =RTD("sysq.rtd","","8046`001.1") -> 132 | AR146: =RTD("sysq.rtd","","8046`002.1") -> 132.5
A147: 8341 | B147: 日友 | C147: 其他服務 | D147: =RTD("sysq.rtd","","8341`003.1") -> 253 | E147: =RTD("sysq.rtd","","8341`010.1") -> 1.2 | F147: =RTD("sysq.rtd","","8341`005.1") -> - | G147: =RTD("sysq.rtd","","8341`029.1") -> 0.27 | H147: -2.5 | I147: 8.12 | J147: =X147/$L$4*100 -> 0.07203709463 | K147: =(E147/100)*(J147/100)*$D$3 -> 0.1093695986 | L147: =(D147-AC147)/AC147 -> -0.01652089407 | N147: =(AD147-D147)/D147 -> -0.02272727273 | O147: =AA147-AB147 -> 2.57 | P147: 0 | Q147: 0.0017 | R147: -0.4028 | S147: -0.1133 | U147: 3 | V147: 10.69 | W147: 3.19 | X147: 282.1 | Y147: 27.99 | Z147: 3.2 | AA147: 27.37 | AB147: 24.8 | AC147: 257.25 | AD147: 247.25 | AE147: 250 | AF147: 251.5 | AG147: 255.5 | AH147: 253 | AI147: 250 | AJ147: 252 | AK147: =AJ147-AG147 -> -3.5 | AL147: =AI147-AF147 -> -1.5 | AM147: =AH147-AE147 -> 3 | AN147: =IF(E147>0,1,0) -> 1 | AO147: =IF(L147>0,1,0) -> 0 | AP147: =IF(N147>0,1,0) -> 0 | AQ147: =RTD("sysq.rtd","","8341`001.1") -> 253 | AR147: =RTD("sysq.rtd","","8341`002.1") -> 253.5
A148: 8454 | B148: 富邦媒 | C148: 專賣店/其他零售 | D148: =RTD("sysq.rtd","","8454`003.1") -> 682 | E148: =RTD("sysq.rtd","","8454`010.1") -> 0.44 | F148: =RTD("sysq.rtd","","8454`005.1") -> - | G148: =RTD("sysq.rtd","","8454`029.1") -> 0.46 | H148: 12.36 | I148: 135.17 | J148: =X148/$L$4*100 -> 0.2439200028 | K148: =(E148/100)*(J148/100)*$D$3 -> 0.1357873385 | L148: =(D148-AC148)/AC148 -> -0.02187163858 | N148: =(AD148-D148)/D148 -> -0.01576246334 | O148: =AA148-AB148 -> 11.04 | P148: 0.2867 | Q148: 0.0895 | R148: 2.2383 | S148: 1.5205 | U148: 28 | V148: -5.99 | W148: 26.72 | X148: 955.2 | Y148: 59.77 | Z148: 1.25 | AA148: 70.36 | AB148: 59.32 | AC148: 697.25 | AD148: 671.25 | AE148: 686 | AF148: 687 | AG148: 690 | AH148: 682 | AI148: 679 | AJ148: 675 | AK148: =AJ148-AG148 -> -15 | AL148: =AI148-AF148 -> -8 | AM148: =AH148-AE148 -> -4 | AN148: =IF(E148>0,1,0) -> 1 | AO148: =IF(L148>0,1,0) -> 0 | AP148: =IF(N148>0,1,0) -> 0 | AQ148: =RTD("sysq.rtd","","8454`001.1") -> 682 | AR148: =RTD("sysq.rtd","","8454`002.1") -> 685
A149: 8464 | B149: 億豐 | C149: 其他製造 | D149: =RTD("sysq.rtd","","8464`003.1") -> 361 | E149: =RTD("sysq.rtd","","8464`010.1") -> 4.18 | F149: =RTD("sysq.rtd","","8464`005.1") -> - | G149: =RTD("sysq.rtd","","8464`029.1") -> 1.68 | H149: 3.74 | I149: 30.32 | J149: =X149/$L$4*100 -> 0.2701199529 | K149: =(E149/100)*(J149/100)*$D$3 -> 1.428539095 | L149: =(D149-AC149)/AC149 -> -0.05094905095 | N149: =(AD149-D149)/D149 -> -0.07096952909 | O149: =AA149-AB149 -> -2.26 | P149: -0.1696 | Q149: 0.613 | R149: 0.8973 | S149: 0.9892 | U149: 7 | V149: 4.14 | W149: 1.49 | X149: 1057.8 | Y149: 23.08 | Z149: 2.89 | AA149: 52.69 | AB149: 54.95 | AC149: 380.38 | AD149: 335.38 | AE149: 352.5 | AF149: 348 | AG149: 365 | AH149: 361 | AI149: 346.5 | AJ149: 338.5 | AK149: =AJ149-AG149 -> -26.5 | AL149: =AI149-AF149 -> -1.5 | AM149: =AH149-AE149 -> 8.5 | AN149: =IF(E149>0,1,0) -> 1 | AO149: =IF(L149>0,1,0) -> 0 | AP149: =IF(N149>0,1,0) -> 0 | AQ149: =RTD("sysq.rtd","","8464`001.1") -> 361 | AR149: =RTD("sysq.rtd","","8464`002.1") -> 362.5
A150: 9904 | B150: 寶成 | C150: 製鞋 | D150: =RTD("sysq.rtd","","9904`003.1") -> 27.55 | E150: =RTD("sysq.rtd","","9904`010.1") -> 2.61 | F150: =RTD("sysq.rtd","","9904`005.1") -> 10 | G150: =RTD("sysq.rtd","","9904`029.1") -> 0.74 | H150: -4.17 | I150: -29.72 | J150: =X150/$L$4*100 -> 0.2073115736 | K150: =(E150/100)*(J150/100)*$D$3 -> 0.6845784736 | L150: =(D150-AC150)/AC150 -> -0.02512384996 | N150: =(AD150-D150)/D150 -> -0.03593466425 | O150: =AA150-AB150 -> -4.79 | P150: 0.4846 | Q150: 0.1229 | R150: -6.7596 | S150: 0.4037 | U150: 267 | V150: -9.85 | W150: -22.81 | X150: 811.84 | Y150: 14.65 | Z150: 4.66 | AA150: 33.79 | AB150: 38.58 | AC150: 28.26 | AD150: 26.56 | AE150: 27 | AF150: 27.1 | AG150: 27.1 | AH150: 27.55 | AI150: 26.85 | AJ150: 26.7 | AK150: =AJ150-AG150 -> -0.4 | AL150: =AI150-AF150 -> -0.25 | AM150: =AH150-AE150 -> 0.55 | AN150: =IF(E150>0,1,0) -> 1 | AO150: =IF(L150>0,1,0) -> 0 | AP150: =IF(N150>0,1,0) -> 0 | AQ150: =RTD("sysq.rtd","","9904`001.1") -> 27.5 | AR150: =RTD("sysq.rtd","","9904`002.1") -> 27.55
A151: 9910 | B151: 豐泰 | C151: 製鞋 | D151: =RTD("sysq.rtd","","9910`003.1") -> 182 | E151: =RTD("sysq.rtd","","9910`010.1") -> 3.41 | F151: =RTD("sysq.rtd","","9910`005.1") -> 2 | G151: =RTD("sysq.rtd","","9910`029.1") -> 0.81 | H151: -8.54 | I151: -6.67 | J151: =X151/$L$4*100 -> 0.4097661974 | K151: =(E151/100)*(J151/100)*$D$3 -> 1.767867418 | L151: =(D151-AC151)/AC151 -> -0.05149051491 | N151: =(AD151-D151)/D151 -> -0.07208791209 | O151: =AA151-AB151 -> 1.32 | P151: -0.0375 | Q151: 0.9597 | R151: -3.456 | S151: 3.3629 | U151: 20 | V151: -5.64 | W151: -17.32 | X151: 1604.66 | Y151: 25.07 | Z151: 3.41 | AA151: 84.36 | AB151: 83.04 | AC151: 191.88 | AD151: 168.88 | AE151: 176 | AF151: 173.5 | AG151: 179 | AH151: 182 | AI151: 176 | AJ151: 169.5 | AK151: =AJ151-AG151 -> -9.5 | AL151: =AI151-AF151 -> 2.5 | AM151: =AH151-AE151 -> 6 | AN151: =IF(E151>0,1,0) -> 1 | AO151: =IF(L151>0,1,0) -> 0 | AP151: =IF(N151>0,1,0) -> 0 | AQ151: =RTD("sysq.rtd","","9910`001.1") -> 182 | AR151: =RTD("sysq.rtd","","9910`002.1") -> 183
A152: 9914 | B152: 美利達 | C152: 其他製造 | D152: =RTD("sysq.rtd","","9914`003.1") -> 254.5 | E152: =RTD("sysq.rtd","","9914`010.1") -> -1.17 | F152: =RTD("sysq.rtd","","9914`005.1") -> 3 | G152: =RTD("sysq.rtd","","9914`029.1") -> 0.86 | H152: 1.39 | I152: 44.19 | J152: =X152/$L$4*100 -> 0.1943060818 | K152: =(E152/100)*(J152/100)*$D$3 -> -0.287628184 | L152: =(D152-AC152)/AC152 -> -0.06088560886 | N152: =(AD152-D152)/D152 -> -0.06876227898 | O152: =AA152-AB152 -> 8.87 | P152: 0.4683 | Q152: 0.2204 | R152: 0.134 | S152: 0.3259 | U152: -9 | V152: -13.46 | W152: -10.4 | X152: 760.91 | Y152: 25.2 | Z152: 1.63 | AA152: 54.33 | AB152: 45.46 | AC152: 271 | AD152: 237 | AE152: 253 | AF152: 243.5 | AG152: 252 | AH152: 254.5 | AI152: 257.5 | AJ152: 240.5 | AK152: =AJ152-AG152 -> -11.5 | AL152: =AI152-AF152 -> 14 | AM152: =AH152-AE152 -> 1.5 | AN152: =IF(E152>0,1,0) -> 0 | AO152: =IF(L152>0,1,0) -> 0 | AP152: =IF(N152>0,1,0) -> 0 | AQ152: =RTD("sysq.rtd","","9914`001.1") -> 254.5 | AR152: =RTD("sysq.rtd","","9914`002.1") -> 256
A153: 9917 | B153: 中保科 | C153: 其他服務 | D153: =RTD("sysq.rtd","","9917`003.1") -> 85.8 | E153: =RTD("sysq.rtd","","9917`010.1") -> 0.35 | F153: =RTD("sysq.rtd","","9917`005.1") -> - | G153: =RTD("sysq.rtd","","9917`029.1") -> 0.45 | H153: 0 | I153: -3.38 | J153: =X153/$L$4*100 -> 0.09885756982 | K153: =(E153/100)*(J153/100)*$D$3 -> 0.04377610907 | L153: =(D153-AC153)/AC153 -> -0.004409375725 | N153: =(AD153-D153)/D153 -> -0.007226107226 | O153: =AA153-AB153 -> 0.85 | P153: -0.0112 | Q153: 0.0019 | R153: -0.3784 | S153: 0.0019 | U153: 0 | V153: -5.76 | W153: 0.03 | X153: 387.13 | Y153: 17.69 | Z153: 4.68 | AA153: 41.29 | AB153: 40.44 | AC153: 86.18 | AD153: 85.18 | AE153: 85.8 | AF153: 85.9 | AG153: 86 | AH153: 85.8 | AI153: 85.5 | AJ153: 85.5 | AK153: =AJ153-AG153 -> -0.5 | AL153: =AI153-AF153 -> -0.4 | AM153: =AH153-AE153 -> 0 | AN153: =IF(E153>0,1,0) -> 1 | AO153: =IF(L153>0,1,0) -> 0 | AP153: =IF(N153>0,1,0) -> 0 | AQ153: =RTD("sysq.rtd","","9917`001.1") -> 85.7 | AR153: =RTD("sysq.rtd","","9917`002.1") -> 85.8
A154: 9921 | B154: 巨大 | C154: 其他製造 | D154: =RTD("sysq.rtd","","9921`003.1") -> 312 | E154: =RTD("sysq.rtd","","9921`010.1") -> -0.48 | F154: =RTD("sysq.rtd","","9921`005.1") -> 2 | G154: =RTD("sysq.rtd","","9921`029.1") -> 0.66 | H154: -1.42 | I154: 46.48 | J154: =X154/$L$4*100 -> 0.2988224323 | K154: =(E154/100)*(J154/100)*$D$3 -> -0.1814736678 | L154: =(D154-AC154)/AC154 -> -0.04697904576 | N154: =(AD154-D154)/D154 -> -0.05647435897 | O154: =AA154-AB154 -> 8.29 | P154: 0.6216 | Q154: 0.0349 | R154: 6.2073 | S154: 0.0387 | U154: -22 | V154: -11.07 | W154: 27.81 | X154: 1170.2 | Y154: 30.77 | Z154: 1.47 | AA154: 58.78 | AB154: 50.49 | AC154: 327.38 | AD154: 294.38 | AE154: 306.5 | AF154: 299.5 | AG154: 306.5 | AH154: 312 | AI154: 313.5 | AJ154: 300 | AK154: =AJ154-AG154 -> -6.5 | AL154: =AI154-AF154 -> 14 | AM154: =AH154-AE154 -> 5.5 | AN154: =IF(E154>0,1,0) -> 0 | AO154: =IF(L154>0,1,0) -> 0 | AP154: =IF(N154>0,1,0) -> 0 | AQ154: =RTD("sysq.rtd","","9921`001.1") -> 312 | AR154: =RTD("sysq.rtd","","9921`002.1") -> 313
A155: 9933 | B155: 中鼎 | C155: 其他服務 | D155: =RTD("sysq.rtd","","9933`003.1") -> 34.75 | E155: =RTD("sysq.rtd","","9933`010.1") -> -0.57 | F155: =RTD("sysq.rtd","","9933`005.1") -> 2 | G155: =RTD("sysq.rtd","","9933`029.1") -> 0.79 | H155: -1.14 | I155: -8.79 | J155: =X155/$L$4*100 -> 0.06773427633 | K155: =(E155/100)*(J155/100)*$D$3 -> -0.04884752165 | L155: =(D155-AC155)/AC155 -> -0.01250355215 | N155: =(AD155-D155)/D155 -> -0.01323741007 | O155: =AA155-AB155 -> 3.29 | P155: -0.1025 | Q155: 0.0022 | R155: -0.2662 | S155: 0.0023 | U155: 10 | V155: 36.55 | W155: -4.97 | X155: 265.25 | Y155: 26.73 | Z155: 5.72 | AA155: 30.29 | AB155: 27 | AC155: 35.19 | AD155: 34.29 | AE155: 34.95 | AF155: 35.2 | AG155: 34.9 | AH155: 34.75 | AI155: 34.95 | AJ155: 35 | AK155: =AJ155-AG155 -> 0.1 | AL155: =AI155-AF155 -> -0.25 | AM155: =AH155-AE155 -> -0.2 | AN155: =IF(E155>0,1,0) -> 0 | AO155: =IF(L155>0,1,0) -> 0 | AP155: =IF(N155>0,1,0) -> 0 | AQ155: =RTD("sysq.rtd","","9933`001.1") -> 34.75 | AR155: =RTD("sysq.rtd","","9933`002.1") -> 34.8
A156: 9941 | B156: 裕融 | C156: 其他服務 | D156: =RTD("sysq.rtd","","9941`003.1") -> 113.5 | E156: =RTD("sysq.rtd","","9941`010.1") -> 0 | F156: =RTD("sysq.rtd","","9941`005.1") -> 45 | G156: =RTD("sysq.rtd","","9941`029.1") -> 1.69 | H156: -1.3 | I156: -0.87 | J156: =X156/$L$4*100 -> 0.08755533016 | K156: =(E156/100)*(J156/100)*$D$3 -> 0 | L156: =(D156-AC156)/AC156 -> -0.01731601732 | N156: =(AD156-D156)/D156 -> -0.01762114537 | O156: =AA156-AB156 -> -4.32 | P156: 0.1339 | Q156: -0.0004 | R156: 0.2099 | S156: 0.6806 | U156: 108 | V156: 2.1 | W156: 4.9 | X156: 342.87 | Y156: 15.19 | Z156: 4.85 | AA156: 76.13 | AB156: 80.45 | AC156: 115.5 | AD156: 111.5 | AE156: 114 | AF156: 113.5 | AG156: 115 | AH156: 113.5 | AI156: 113.5 | AJ156: 112 | AK156: =AJ156-AG156 -> -3 | AL156: =AI156-AF156 -> 0 | AM156: =AH156-AE156 -> -0.5 | AN156: =IF(E156>0,1,0) -> 0 | AO156: =IF(L156>0,1,0) -> 0 | AP156: =IF(N156>0,1,0) -> 0 | AQ156: =RTD("sysq.rtd","","9941`001.1") -> 113 | AR156: =RTD("sysq.rtd","","9941`002.1") -> 113.5
A157: 9945 | B157: 潤泰新 | C157: 其他服務 | D157: =RTD("sysq.rtd","","9945`003.1") -> 37.85 | E157: =RTD("sysq.rtd","","9945`010.1") -> -1.05 | F157: =RTD("sysq.rtd","","9945`005.1") -> 32 | G157: =RTD("sysq.rtd","","9945`029.1") -> 1.03 | H157: -30.42 | I157: -16.26 | J157: =X157/$L$4*100 -> 0.145453134 | K157: =(E157/100)*(J157/100)*$D$3 -> -0.1932286704 | L157: =(D157-AC157)/AC157 -> -0.02824133504 | N157: =(AD157-D157)/D157 -> -0.02377807133 | O157: =AA157-AB157 -> -5.83 | P157: -1.2635 | Q157: 0.0009 | R157: -4.8419 | S157: 0.0012 | U157: 593 | V157: 26.76 | W157: -2.15 | X157: 569.6 | Y157: 5.06 | Z157: 15.69 | AA157: 69.15 | AB157: 74.98 | AC157: 38.95 | AD157: 36.95 | AE157: 38.4 | AF157: 37.85 | AG157: 39.05 | AH157: 37.85 | AI157: 38.25 | AJ157: 37.45 | AK157: =AJ157-AG157 -> -1.6 | AL157: =AI157-AF157 -> 0.4 | AM157: =AH157-AE157 -> -0.55 | AN157: =IF(E157>0,1,0) -> 0 | AO157: =IF(L157>0,1,0) -> 0 | AP157: =IF(N157>0,1,0) -> 0 | AQ157: =RTD("sysq.rtd","","9945`001.1") -> 37.8 | AR157: =RTD("sysq.rtd","","9945`002.1") -> 37.85

Sheet 戰略地圖

Sheet 10大權值 (hidden)
B1: 日期 | C1: 20200824 | D1: =RTD("sysq.rtd","","TWNT0000`078.1") -> 2020/08/24 | E1: =RTD("sysq.rtd","","TWNT0000`078.1") -> 2020/08/24 | F1: =RTD("sysq.rtd","","TWNT0000`078.1") -> 2020/08/24 | G1: =RTD("sysq.rtd","","TWNT0000`078.1") -> 2020/08/24
A2: 代碼 | B2: 名稱 | C2: 收盤 | D2: 開盤 | E2: 今高 | F2: 今低 | G2: 成交 | H2: 開 | I2: 高 | J2: 低 | K2: 收
A3: 2330 | B3: 台積電 | C3: 428 | D3: =RTD("sysq.rtd","","2330`011.1") -> 427.5 | E3: =RTD("sysq.rtd","","2330`012.1") -> 434.5 | F3: =RTD("sysq.rtd","","2330`013.1") -> 425 | G3: =RTD("sysq.rtd","","2330`003.1") -> 428 | H3: =(D3-$C3)/$C3 -> -0.001168224299 | I3: =(E3-$C3)/$C3 -> 0.01518691589 | J3: =(F3-$C3)/$C3 -> -0.007009345794 | K3: =(G3-$C3)/$C3 -> 0
A4: 2454 | B4: 聯發科 | C4: 585 | D4: =RTD("sysq.rtd","","2454`011.1") -> 599 | E4: =RTD("sysq.rtd","","2454`012.1") -> 600 | F4: =RTD("sysq.rtd","","2454`013.1") -> 583 | G4: =RTD("sysq.rtd","","2454`003.1") -> 585 | H4: =(D4-$C4)/$C4 -> 0.02393162393 | I4: =(E4-$C4)/$C4 -> 0.02564102564 | J4: =(F4-$C4)/$C4 -> -0.003418803419 | K4: =(G4-$C4)/$C4 -> 0
A5: 2317 | B5: 鴻海 | C5: 77.6 | D5: =RTD("sysq.rtd","","2317`011.1") -> 78.2 | E5: =RTD("sysq.rtd","","2317`012.1") -> 78.4 | F5: =RTD("sysq.rtd","","2317`013.1") -> 77.6 | G5: =RTD("sysq.rtd","","2317`003.1") -> 77.6 | H5: =(D5-$C5)/$C5 -> 0.007731958763 | I5: =(E5-$C5)/$C5 -> 0.01030927835 | J5: =(F5-$C5)/$C5 -> 0 | K5: =(G5-$C5)/$C5 -> 0
A6: 2412 | B6: 中華電 | C6: 109 | D6: =RTD("sysq.rtd","","2412`011.1") -> 109.5 | E6: =RTD("sysq.rtd","","2412`012.1") -> 109.5 | F6: =RTD("sysq.rtd","","2412`013.1") -> 109 | G6: =RTD("sysq.rtd","","2412`003.1") -> 109 | H6: =(D6-$C6)/$C6 -> 0.004587155963 | I6: =(E6-$C6)/$C6 -> 0.004587155963 | J6: =(F6-$C6)/$C6 -> 0 | K6: =(G6-$C6)/$C6 -> 0
A7: 6505 | B7: 台塑化 | C7: 82.1 | D7: =RTD("sysq.rtd","","6505`011.1") -> 82.7 | E7: =RTD("sysq.rtd","","6505`012.1") -> 82.9 | F7: =RTD("sysq.rtd","","6505`013.1") -> 81.8 | G7: =RTD("sysq.rtd","","6505`003.1") -> 82.1 | H7: =(D7-$C7)/$C7 -> 0.00730816078 | I7: =(E7-$C7)/$C7 -> 0.009744214373 | J7: =(F7-$C7)/$C7 -> -0.00365408039 | K7: =(G7-$C7)/$C7 -> 0
A8: 3008 | B8: 大立光 | C8: 3605 | D8: =RTD("sysq.rtd","","3008`011.1") -> 3545 | E8: =RTD("sysq.rtd","","3008`012.1") -> 3610 | F8: =RTD("sysq.rtd","","3008`013.1") -> 3510 | G8: =RTD("sysq.rtd","","3008`003.1") -> 3605 | H8: =(D8-$C8)/$C8 -> -0.01664355062 | I8: =(E8-$C8)/$C8 -> 0.001386962552 | J8: =(F8-$C8)/$C8 -> -0.02635228849 | K8: =(G8-$C8)/$C8 -> 0
A9: 2882 | B9: 國泰金 | C9: 39.9 | D9: =RTD("sysq.rtd","","2882`011.1") -> 39.9 | E9: =RTD("sysq.rtd","","2882`012.1") -> 40 | F9: =RTD("sysq.rtd","","2882`013.1") -> 39.8 | G9: =RTD("sysq.rtd","","2882`003.1") -> 39.9 | H9: =(D9-$C9)/$C9 -> 0 | I9: =(E9-$C9)/$C9 -> 0.002506265664 | J9: =(F9-$C9)/$C9 -> -0.002506265664 | K9: =(G9-$C9)/$C9 -> 0
A10: 1301 | B10: 台塑 | C10: 79.2 | D10: =RTD("sysq.rtd","","1301`011.1") -> 79.7 | E10: =RTD("sysq.rtd","","1301`012.1") -> 79.7 | F10: =RTD("sysq.rtd","","1301`013.1") -> 79 | G10: =RTD("sysq.rtd","","1301`003.1") -> 79.2 | H10: =(D10-$C10)/$C10 -> 0.006313131313 | I10: =(E10-$C10)/$C10 -> 0.006313131313 | J10: =(F10-$C10)/$C10 -> -0.002525252525 | K10: =(G10-$C10)/$C10 -> 0
A11: 1303 | B11: 南亞 | C11: 61.8 | D11: =RTD("sysq.rtd","","1303`011.1") -> 62.2 | E11: =RTD("sysq.rtd","","1303`012.1") -> 62.3 | F11: =RTD("sysq.rtd","","1303`013.1") -> 61.6 | G11: =RTD("sysq.rtd","","1303`003.1") -> 61.8 | H11: =(D11-$C11)/$C11 -> 0.006472491909 | I11: =(E11-$C11)/$C11 -> 0.008090614887 | J11: =(F11-$C11)/$C11 -> -0.003236245955 | K11: =(G11-$C11)/$C11 -> 0
A12: 2308 | B12: 台達電 | C12: 197 | D12: =RTD("sysq.rtd","","2308`011.1") -> 190 | E12: =RTD("sysq.rtd","","2308`012.1") -> 197.5 | F12: =RTD("sysq.rtd","","2308`013.1") -> 189.5 | G12: =RTD("sysq.rtd","","2308`003.1") -> 197 | H12: =(D12-$C12)/$C12 -> -0.03553299492 | I12: =(E12-$C12)/$C12 -> 0.002538071066 | J12: =(F12-$C12)/$C12 -> -0.03807106599 | K12: =(G12-$C12)/$C12 -> 0

Sheet 操作說明
A1: 說明： 1.【台指大腕】為操作台指期，判斷重量級權值股狀態的工具，講究內力操盤，結合即時走勢、權重%、影響大盤點數、技術指標、籌碼、業績等面向數據研判大盤動向 2.使用時，請每日開盤前或下午5點選功能列[更新全部]，保持數據為最新狀態；開啟數據贏家看盤室軟體，excel會開始串流即時行情 3.本情境設有快捷鍵[權重排名][上漲貢獻][下跌貢獻]為您立即顯示最新影響大盤的個股 4.技術指標部份，[突破壓力][跌破支撐]採CDP短線當沖指標計算，右方竄出代表行情可能有突破盤整的機率 5.投資人可自設訊號及條件，一鍵式分析，如需協助或客製化，可洽精誠資訊業務 6.本情境權值股樣本為台灣50，及中型100成份股 7.大腕選股條件為[外資5日買超>0，月營收mom>0，月營收yoy>0，量變排名(由大至小)]

Sheet 分線設定
A1: 日期 | B1: =RTD("sysq.rtd","","WTX&`078.10") -> 2020/08/25 | C1: =RTD("sysq.rtd","","WTX&`078.10") -> 2020/08/25 | D1: =RTD("sysq.rtd","","WTX&`078.10") -> 2020/08/25 | E1: =RTD("sysq.rtd","","WTX&`078.10") -> 2020/08/25 | F1: =RTD("sysq.rtd","","WTX&`078.10") -> 2020/08/25 | G1: =RTD("sysq.rtd","","WTX&`078.10") -> 2020/08/25
A2: 欄位 | B2: 期貨指標 | C2: 期貨指標 | D2: 期貨指標 | E2: 期貨指標 | F2: 期貨指標 | G2: 漲跌
A3: 最新 | B3: =RTD("sysq.rtd","","!DTSH`LC.99") -> 116 | C3: =RTD("sysq.rtd","","!DTDH`LC.99") -> 824 | D3: =RTD("sysq.rtd","","!XTSH`LC.99") -> 356 | E3: =RTD("sysq.rtd","","!XTDH`LC.99") -> -226 | F3: =RTD("sysq.rtd","","!DTAI`LC.99") -> 312.8820472 | G3: =RTD("sysq.rtd","","WTX&`004.10") -> 49
A4: 名稱 | B4: 大台散狐 | C4: 大台大狐 | D4: 小台散狐 | E4: 小台大狐 | F4: TAI | G4: 臺股指數期貨
A5: 0845 | B5: =RTD("sysq.rtd","","!DTSH`LC.99-0845:2") ->  | C5: =RTD("sysq.rtd","","!DTDH`LC.99-0845:2") ->  | D5: =RTD("sysq.rtd","","!XTSH`LC.99-0845:2") ->  | E5: =RTD("sysq.rtd","","!XTDH`LC.99-0845:2") ->  | F5: =RTD("sysq.rtd","","!DTAI`LC.99-0845:2") ->  | G5: =RTD("sysq.rtd","","WTX&`004.10-0845:2") ->  | H5: =SQRT(ABS(F5))*(ABS(F5)/F5) -> 
A6: 0846 | B6: =RTD("sysq.rtd","","!DTSH`LC.99-0846:2") ->  | C6: =RTD("sysq.rtd","","!DTDH`LC.99-0846:2") ->  | D6: =RTD("sysq.rtd","","!XTSH`LC.99-0846:2") ->  | E6: =RTD("sysq.rtd","","!XTDH`LC.99-0846:2") ->  | F6: =RTD("sysq.rtd","","!DTAI`LC.99-0846:2") ->  | G6: =RTD("sysq.rtd","","WTX&`004.10-0846:2") ->  | H6: =SQRT(ABS(F6))*(ABS(F6)/F6) -> 
A7: 0847 | B7: =RTD("sysq.rtd","","!DTSH`LC.99-0847:2") ->  | C7: =RTD("sysq.rtd","","!DTDH`LC.99-0847:2") ->  | D7: =RTD("sysq.rtd","","!XTSH`LC.99-0847:2") ->  | E7: =RTD("sysq.rtd","","!XTDH`LC.99-0847:2") ->  | F7: =RTD("sysq.rtd","","!DTAI`LC.99-0847:2") ->  | G7: =RTD("sysq.rtd","","WTX&`004.10-0847:2") -> 
A8: 0848 | B8: =RTD("sysq.rtd","","!DTSH`LC.99-0848:2") ->  | C8: =RTD("sysq.rtd","","!DTDH`LC.99-0848:2") ->  | D8: =RTD("sysq.rtd","","!XTSH`LC.99-0848:2") ->  | E8: =RTD("sysq.rtd","","!XTDH`LC.99-0848:2") ->  | F8: =RTD("sysq.rtd","","!DTAI`LC.99-0848:2") ->  | G8: =RTD("sysq.rtd","","WTX&`004.10-0848:2") -> 
A9: 0849 | B9: =RTD("sysq.rtd","","!DTSH`LC.99-0849:2") ->  | C9: =RTD("sysq.rtd","","!DTDH`LC.99-0849:2") ->  | D9: =RTD("sysq.rtd","","!XTSH`LC.99-0849:2") ->  | E9: =RTD("sysq.rtd","","!XTDH`LC.99-0849:2") ->  | F9: =RTD("sysq.rtd","","!DTAI`LC.99-0849:2") ->  | G9: =RTD("sysq.rtd","","WTX&`004.10-0849:2") -> 
A10: 0850 | B10: =RTD("sysq.rtd","","!DTSH`LC.99-0850:2") ->  | C10: =RTD("sysq.rtd","","!DTDH`LC.99-0850:2") ->  | D10: =RTD("sysq.rtd","","!XTSH`LC.99-0850:2") ->  | E10: =RTD("sysq.rtd","","!XTDH`LC.99-0850:2") ->  | F10: =RTD("sysq.rtd","","!DTAI`LC.99-0850:2") ->  | G10: =RTD("sysq.rtd","","WTX&`004.10-0850:2") -> 
A11: 0851 | B11: =RTD("sysq.rtd","","!DTSH`LC.99-0851:2") ->  | C11: =RTD("sysq.rtd","","!DTDH`LC.99-0851:2") ->  | D11: =RTD("sysq.rtd","","!XTSH`LC.99-0851:2") ->  | E11: =RTD("sysq.rtd","","!XTDH`LC.99-0851:2") ->  | F11: =RTD("sysq.rtd","","!DTAI`LC.99-0851:2") ->  | G11: =RTD("sysq.rtd","","WTX&`004.10-0851:2") -> 
A12: 0852 | B12: =RTD("sysq.rtd","","!DTSH`LC.99-0852:2") ->  | C12: =RTD("sysq.rtd","","!DTDH`LC.99-0852:2") ->  | D12: =RTD("sysq.rtd","","!XTSH`LC.99-0852:2") ->  | E12: =RTD("sysq.rtd","","!XTDH`LC.99-0852:2") ->  | F12: =RTD("sysq.rtd","","!DTAI`LC.99-0852:2") ->  | G12: =RTD("sysq.rtd","","WTX&`004.10-0852:2") -> 
A13: 0853 | B13: =RTD("sysq.rtd","","!DTSH`LC.99-0853:2") ->  | C13: =RTD("sysq.rtd","","!DTDH`LC.99-0853:2") ->  | D13: =RTD("sysq.rtd","","!XTSH`LC.99-0853:2") ->  | E13: =RTD("sysq.rtd","","!XTDH`LC.99-0853:2") ->  | F13: =RTD("sysq.rtd","","!DTAI`LC.99-0853:2") ->  | G13: =RTD("sysq.rtd","","WTX&`004.10-0853:2") -> 
A14: 0854 | B14: =RTD("sysq.rtd","","!DTSH`LC.99-0854:2") ->  | C14: =RTD("sysq.rtd","","!DTDH`LC.99-0854:2") ->  | D14: =RTD("sysq.rtd","","!XTSH`LC.99-0854:2") ->  | E14: =RTD("sysq.rtd","","!XTDH`LC.99-0854:2") ->  | F14: =RTD("sysq.rtd","","!DTAI`LC.99-0854:2") ->  | G14: =RTD("sysq.rtd","","WTX&`004.10-0854:2") -> 
A15: 0855 | B15: =RTD("sysq.rtd","","!DTSH`LC.99-0855:2") ->  | C15: =RTD("sysq.rtd","","!DTDH`LC.99-0855:2") ->  | D15: =RTD("sysq.rtd","","!XTSH`LC.99-0855:2") ->  | E15: =RTD("sysq.rtd","","!XTDH`LC.99-0855:2") ->  | F15: =RTD("sysq.rtd","","!DTAI`LC.99-0855:2") ->  | G15: =RTD("sysq.rtd","","WTX&`004.10-0855:2") -> 
A16: 0856 | B16: =RTD("sysq.rtd","","!DTSH`LC.99-0856:2") ->  | C16: =RTD("sysq.rtd","","!DTDH`LC.99-0856:2") ->  | D16: =RTD("sysq.rtd","","!XTSH`LC.99-0856:2") ->  | E16: =RTD("sysq.rtd","","!XTDH`LC.99-0856:2") ->  | F16: =RTD("sysq.rtd","","!DTAI`LC.99-0856:2") ->  | G16: =RTD("sysq.rtd","","WTX&`004.10-0856:2") -> 
A17: 0857 | B17: =RTD("sysq.rtd","","!DTSH`LC.99-0857:2") ->  | C17: =RTD("sysq.rtd","","!DTDH`LC.99-0857:2") ->  | D17: =RTD("sysq.rtd","","!XTSH`LC.99-0857:2") ->  | E17: =RTD("sysq.rtd","","!XTDH`LC.99-0857:2") ->  | F17: =RTD("sysq.rtd","","!DTAI`LC.99-0857:2") ->  | G17: =RTD("sysq.rtd","","WTX&`004.10-0857:2") -> 
A18: 0858 | B18: =RTD("sysq.rtd","","!DTSH`LC.99-0858:2") ->  | C18: =RTD("sysq.rtd","","!DTDH`LC.99-0858:2") ->  | D18: =RTD("sysq.rtd","","!XTSH`LC.99-0858:2") ->  | E18: =RTD("sysq.rtd","","!XTDH`LC.99-0858:2") ->  | F18: =RTD("sysq.rtd","","!DTAI`LC.99-0858:2") ->  | G18: =RTD("sysq.rtd","","WTX&`004.10-0858:2") -> 
A19: 0859 | B19: =RTD("sysq.rtd","","!DTSH`LC.99-0859:2") ->  | C19: =RTD("sysq.rtd","","!DTDH`LC.99-0859:2") ->  | D19: =RTD("sysq.rtd","","!XTSH`LC.99-0859:2") ->  | E19: =RTD("sysq.rtd","","!XTDH`LC.99-0859:2") ->  | F19: =RTD("sysq.rtd","","!DTAI`LC.99-0859:2") ->  | G19: =RTD("sysq.rtd","","WTX&`004.10-0859:2") -> 
A20: 0900 | B20: =RTD("sysq.rtd","","!DTSH`LC.99-0900:2") ->  | C20: =RTD("sysq.rtd","","!DTDH`LC.99-0900:2") ->  | D20: =RTD("sysq.rtd","","!XTSH`LC.99-0900:2") ->  | E20: =RTD("sysq.rtd","","!XTDH`LC.99-0900:2") ->  | F20: =RTD("sysq.rtd","","!DTAI`LC.99-0900:2") ->  | G20: =RTD("sysq.rtd","","WTX&`004.10-0900:2") -> 
A21: 0901 | B21: =RTD("sysq.rtd","","!DTSH`LC.99-0901:2") ->  | C21: =RTD("sysq.rtd","","!DTDH`LC.99-0901:2") ->  | D21: =RTD("sysq.rtd","","!XTSH`LC.99-0901:2") ->  | E21: =RTD("sysq.rtd","","!XTDH`LC.99-0901:2") ->  | F21: =RTD("sysq.rtd","","!DTAI`LC.99-0901:2") ->  | G21: =RTD("sysq.rtd","","WTX&`004.10-0901:2") -> 
A22: 0902 | B22: =RTD("sysq.rtd","","!DTSH`LC.99-0902:2") ->  | C22: =RTD("sysq.rtd","","!DTDH`LC.99-0902:2") ->  | D22: =RTD("sysq.rtd","","!XTSH`LC.99-0902:2") ->  | E22: =RTD("sysq.rtd","","!XTDH`LC.99-0902:2") ->  | F22: =RTD("sysq.rtd","","!DTAI`LC.99-0902:2") ->  | G22: =RTD("sysq.rtd","","WTX&`004.10-0902:2") -> 
A23: 0903 | B23: =RTD("sysq.rtd","","!DTSH`LC.99-0903:2") ->  | C23: =RTD("sysq.rtd","","!DTDH`LC.99-0903:2") ->  | D23: =RTD("sysq.rtd","","!XTSH`LC.99-0903:2") ->  | E23: =RTD("sysq.rtd","","!XTDH`LC.99-0903:2") ->  | F23: =RTD("sysq.rtd","","!DTAI`LC.99-0903:2") ->  | G23: =RTD("sysq.rtd","","WTX&`004.10-0903:2") -> 
A24: 0904 | B24: =RTD("sysq.rtd","","!DTSH`LC.99-0904:2") ->  | C24: =RTD("sysq.rtd","","!DTDH`LC.99-0904:2") ->  | D24: =RTD("sysq.rtd","","!XTSH`LC.99-0904:2") ->  | E24: =RTD("sysq.rtd","","!XTDH`LC.99-0904:2") ->  | F24: =RTD("sysq.rtd","","!DTAI`LC.99-0904:2") ->  | G24: =RTD("sysq.rtd","","WTX&`004.10-0904:2") -> 
A25: 0905 | B25: =RTD("sysq.rtd","","!DTSH`LC.99-0905:2") ->  | C25: =RTD("sysq.rtd","","!DTDH`LC.99-0905:2") ->  | D25: =RTD("sysq.rtd","","!XTSH`LC.99-0905:2") ->  | E25: =RTD("sysq.rtd","","!XTDH`LC.99-0905:2") ->  | F25: =RTD("sysq.rtd","","!DTAI`LC.99-0905:2") ->  | G25: =RTD("sysq.rtd","","WTX&`004.10-0905:2") -> 
A26: 0906 | B26: =RTD("sysq.rtd","","!DTSH`LC.99-0906:2") ->  | C26: =RTD("sysq.rtd","","!DTDH`LC.99-0906:2") ->  | D26: =RTD("sysq.rtd","","!XTSH`LC.99-0906:2") ->  | E26: =RTD("sysq.rtd","","!XTDH`LC.99-0906:2") ->  | F26: =RTD("sysq.rtd","","!DTAI`LC.99-0906:2") ->  | G26: =RTD("sysq.rtd","","WTX&`004.10-0906:2") -> 
A27: 0907 | B27: =RTD("sysq.rtd","","!DTSH`LC.99-0907:2") ->  | C27: =RTD("sysq.rtd","","!DTDH`LC.99-0907:2") ->  | D27: =RTD("sysq.rtd","","!XTSH`LC.99-0907:2") ->  | E27: =RTD("sysq.rtd","","!XTDH`LC.99-0907:2") ->  | F27: =RTD("sysq.rtd","","!DTAI`LC.99-0907:2") ->  | G27: =RTD("sysq.rtd","","WTX&`004.10-0907:2") -> 
A28: 0908 | B28: =RTD("sysq.rtd","","!DTSH`LC.99-0908:2") ->  | C28: =RTD("sysq.rtd","","!DTDH`LC.99-0908:2") ->  | D28: =RTD("sysq.rtd","","!XTSH`LC.99-0908:2") ->  | E28: =RTD("sysq.rtd","","!XTDH`LC.99-0908:2") ->  | F28: =RTD("sysq.rtd","","!DTAI`LC.99-0908:2") ->  | G28: =RTD("sysq.rtd","","WTX&`004.10-0908:2") -> 
A29: 0909 | B29: =RTD("sysq.rtd","","!DTSH`LC.99-0909:2") ->  | C29: =RTD("sysq.rtd","","!DTDH`LC.99-0909:2") ->  | D29: =RTD("sysq.rtd","","!XTSH`LC.99-0909:2") ->  | E29: =RTD("sysq.rtd","","!XTDH`LC.99-0909:2") ->  | F29: =RTD("sysq.rtd","","!DTAI`LC.99-0909:2") ->  | G29: =RTD("sysq.rtd","","WTX&`004.10-0909:2") -> 
A30: 0910 | B30: =RTD("sysq.rtd","","!DTSH`LC.99-0910:2") ->  | C30: =RTD("sysq.rtd","","!DTDH`LC.99-0910:2") ->  | D30: =RTD("sysq.rtd","","!XTSH`LC.99-0910:2") ->  | E30: =RTD("sysq.rtd","","!XTDH`LC.99-0910:2") ->  | F30: =RTD("sysq.rtd","","!DTAI`LC.99-0910:2") ->  | G30: =RTD("sysq.rtd","","WTX&`004.10-0910:2") -> 
A31: 0911 | B31: =RTD("sysq.rtd","","!DTSH`LC.99-0911:2") ->  | C31: =RTD("sysq.rtd","","!DTDH`LC.99-0911:2") ->  | D31: =RTD("sysq.rtd","","!XTSH`LC.99-0911:2") ->  | E31: =RTD("sysq.rtd","","!XTDH`LC.99-0911:2") ->  | F31: =RTD("sysq.rtd","","!DTAI`LC.99-0911:2") ->  | G31: =RTD("sysq.rtd","","WTX&`004.10-0911:2") -> 
A32: 0912 | B32: =RTD("sysq.rtd","","!DTSH`LC.99-0912:2") ->  | C32: =RTD("sysq.rtd","","!DTDH`LC.99-0912:2") ->  | D32: =RTD("sysq.rtd","","!XTSH`LC.99-0912:2") ->  | E32: =RTD("sysq.rtd","","!XTDH`LC.99-0912:2") ->  | F32: =RTD("sysq.rtd","","!DTAI`LC.99-0912:2") ->  | G32: =RTD("sysq.rtd","","WTX&`004.10-0912:2") -> 
A33: 0913 | B33: =RTD("sysq.rtd","","!DTSH`LC.99-0913:2") ->  | C33: =RTD("sysq.rtd","","!DTDH`LC.99-0913:2") ->  | D33: =RTD("sysq.rtd","","!XTSH`LC.99-0913:2") ->  | E33: =RTD("sysq.rtd","","!XTDH`LC.99-0913:2") ->  | F33: =RTD("sysq.rtd","","!DTAI`LC.99-0913:2") ->  | G33: =RTD("sysq.rtd","","WTX&`004.10-0913:2") -> 
A34: 0914 | B34: =RTD("sysq.rtd","","!DTSH`LC.99-0914:2") ->  | C34: =RTD("sysq.rtd","","!DTDH`LC.99-0914:2") ->  | D34: =RTD("sysq.rtd","","!XTSH`LC.99-0914:2") ->  | E34: =RTD("sysq.rtd","","!XTDH`LC.99-0914:2") ->  | F34: =RTD("sysq.rtd","","!DTAI`LC.99-0914:2") ->  | G34: =RTD("sysq.rtd","","WTX&`004.10-0914:2") -> 
A35: 0915 | B35: =RTD("sysq.rtd","","!DTSH`LC.99-0915:2") ->  | C35: =RTD("sysq.rtd","","!DTDH`LC.99-0915:2") ->  | D35: =RTD("sysq.rtd","","!XTSH`LC.99-0915:2") ->  | E35: =RTD("sysq.rtd","","!XTDH`LC.99-0915:2") ->  | F35: =RTD("sysq.rtd","","!DTAI`LC.99-0915:2") ->  | G35: =RTD("sysq.rtd","","WTX&`004.10-0915:2") -> 
A36: 0916 | B36: =RTD("sysq.rtd","","!DTSH`LC.99-0916:2") ->  | C36: =RTD("sysq.rtd","","!DTDH`LC.99-0916:2") ->  | D36: =RTD("sysq.rtd","","!XTSH`LC.99-0916:2") ->  | E36: =RTD("sysq.rtd","","!XTDH`LC.99-0916:2") ->  | F36: =RTD("sysq.rtd","","!DTAI`LC.99-0916:2") ->  | G36: =RTD("sysq.rtd","","WTX&`004.10-0916:2") -> 
A37: 0917 | B37: =RTD("sysq.rtd","","!DTSH`LC.99-0917:2") ->  | C37: =RTD("sysq.rtd","","!DTDH`LC.99-0917:2") ->  | D37: =RTD("sysq.rtd","","!XTSH`LC.99-0917:2") ->  | E37: =RTD("sysq.rtd","","!XTDH`LC.99-0917:2") ->  | F37: =RTD("sysq.rtd","","!DTAI`LC.99-0917:2") ->  | G37: =RTD("sysq.rtd","","WTX&`004.10-0917:2") -> 
A38: 0918 | B38: =RTD("sysq.rtd","","!DTSH`LC.99-0918:2") ->  | C38: =RTD("sysq.rtd","","!DTDH`LC.99-0918:2") ->  | D38: =RTD("sysq.rtd","","!XTSH`LC.99-0918:2") ->  | E38: =RTD("sysq.rtd","","!XTDH`LC.99-0918:2") ->  | F38: =RTD("sysq.rtd","","!DTAI`LC.99-0918:2") ->  | G38: =RTD("sysq.rtd","","WTX&`004.10-0918:2") -> 
A39: 0919 | B39: =RTD("sysq.rtd","","!DTSH`LC.99-0919:2") ->  | C39: =RTD("sysq.rtd","","!DTDH`LC.99-0919:2") ->  | D39: =RTD("sysq.rtd","","!XTSH`LC.99-0919:2") ->  | E39: =RTD("sysq.rtd","","!XTDH`LC.99-0919:2") ->  | F39: =RTD("sysq.rtd","","!DTAI`LC.99-0919:2") ->  | G39: =RTD("sysq.rtd","","WTX&`004.10-0919:2") -> 
A40: 0920 | B40: =RTD("sysq.rtd","","!DTSH`LC.99-0920:2") ->  | C40: =RTD("sysq.rtd","","!DTDH`LC.99-0920:2") ->  | D40: =RTD("sysq.rtd","","!XTSH`LC.99-0920:2") ->  | E40: =RTD("sysq.rtd","","!XTDH`LC.99-0920:2") ->  | F40: =RTD("sysq.rtd","","!DTAI`LC.99-0920:2") ->  | G40: =RTD("sysq.rtd","","WTX&`004.10-0920:2") -> 
A41: 0921 | B41: =RTD("sysq.rtd","","!DTSH`LC.99-0921:2") ->  | C41: =RTD("sysq.rtd","","!DTDH`LC.99-0921:2") ->  | D41: =RTD("sysq.rtd","","!XTSH`LC.99-0921:2") ->  | E41: =RTD("sysq.rtd","","!XTDH`LC.99-0921:2") ->  | F41: =RTD("sysq.rtd","","!DTAI`LC.99-0921:2") ->  | G41: =RTD("sysq.rtd","","WTX&`004.10-0921:2") -> 
A42: 0922 | B42: =RTD("sysq.rtd","","!DTSH`LC.99-0922:2") ->  | C42: =RTD("sysq.rtd","","!DTDH`LC.99-0922:2") ->  | D42: =RTD("sysq.rtd","","!XTSH`LC.99-0922:2") ->  | E42: =RTD("sysq.rtd","","!XTDH`LC.99-0922:2") ->  | F42: =RTD("sysq.rtd","","!DTAI`LC.99-0922:2") ->  | G42: =RTD("sysq.rtd","","WTX&`004.10-0922:2") -> 
A43: 0923 | B43: =RTD("sysq.rtd","","!DTSH`LC.99-0923:2") ->  | C43: =RTD("sysq.rtd","","!DTDH`LC.99-0923:2") ->  | D43: =RTD("sysq.rtd","","!XTSH`LC.99-0923:2") ->  | E43: =RTD("sysq.rtd","","!XTDH`LC.99-0923:2") ->  | F43: =RTD("sysq.rtd","","!DTAI`LC.99-0923:2") ->  | G43: =RTD("sysq.rtd","","WTX&`004.10-0923:2") -> 
A44: 0924 | B44: =RTD("sysq.rtd","","!DTSH`LC.99-0924:2") ->  | C44: =RTD("sysq.rtd","","!DTDH`LC.99-0924:2") ->  | D44: =RTD("sysq.rtd","","!XTSH`LC.99-0924:2") ->  | E44: =RTD("sysq.rtd","","!XTDH`LC.99-0924:2") ->  | F44: =RTD("sysq.rtd","","!DTAI`LC.99-0924:2") ->  | G44: =RTD("sysq.rtd","","WTX&`004.10-0924:2") -> 
A45: 0925 | B45: =RTD("sysq.rtd","","!DTSH`LC.99-0925:2") ->  | C45: =RTD("sysq.rtd","","!DTDH`LC.99-0925:2") ->  | D45: =RTD("sysq.rtd","","!XTSH`LC.99-0925:2") ->  | E45: =RTD("sysq.rtd","","!XTDH`LC.99-0925:2") ->  | F45: =RTD("sysq.rtd","","!DTAI`LC.99-0925:2") ->  | G45: =RTD("sysq.rtd","","WTX&`004.10-0925:2") -> 
A46: 0926 | B46: =RTD("sysq.rtd","","!DTSH`LC.99-0926:2") ->  | C46: =RTD("sysq.rtd","","!DTDH`LC.99-0926:2") ->  | D46: =RTD("sysq.rtd","","!XTSH`LC.99-0926:2") ->  | E46: =RTD("sysq.rtd","","!XTDH`LC.99-0926:2") ->  | F46: =RTD("sysq.rtd","","!DTAI`LC.99-0926:2") ->  | G46: =RTD("sysq.rtd","","WTX&`004.10-0926:2") -> 
A47: 0927 | B47: =RTD("sysq.rtd","","!DTSH`LC.99-0927:2") ->  | C47: =RTD("sysq.rtd","","!DTDH`LC.99-0927:2") ->  | D47: =RTD("sysq.rtd","","!XTSH`LC.99-0927:2") ->  | E47: =RTD("sysq.rtd","","!XTDH`LC.99-0927:2") ->  | F47: =RTD("sysq.rtd","","!DTAI`LC.99-0927:2") ->  | G47: =RTD("sysq.rtd","","WTX&`004.10-0927:2") -> 
A48: 0928 | B48: =RTD("sysq.rtd","","!DTSH`LC.99-0928:2") ->  | C48: =RTD("sysq.rtd","","!DTDH`LC.99-0928:2") ->  | D48: =RTD("sysq.rtd","","!XTSH`LC.99-0928:2") ->  | E48: =RTD("sysq.rtd","","!XTDH`LC.99-0928:2") ->  | F48: =RTD("sysq.rtd","","!DTAI`LC.99-0928:2") ->  | G48: =RTD("sysq.rtd","","WTX&`004.10-0928:2") -> 
A49: 0929 | B49: =RTD("sysq.rtd","","!DTSH`LC.99-0929:2") ->  | C49: =RTD("sysq.rtd","","!DTDH`LC.99-0929:2") ->  | D49: =RTD("sysq.rtd","","!XTSH`LC.99-0929:2") ->  | E49: =RTD("sysq.rtd","","!XTDH`LC.99-0929:2") ->  | F49: =RTD("sysq.rtd","","!DTAI`LC.99-0929:2") ->  | G49: =RTD("sysq.rtd","","WTX&`004.10-0929:2") -> 
A50: 0930 | B50: =RTD("sysq.rtd","","!DTSH`LC.99-0930:2") ->  | C50: =RTD("sysq.rtd","","!DTDH`LC.99-0930:2") ->  | D50: =RTD("sysq.rtd","","!XTSH`LC.99-0930:2") ->  | E50: =RTD("sysq.rtd","","!XTDH`LC.99-0930:2") ->  | F50: =RTD("sysq.rtd","","!DTAI`LC.99-0930:2") ->  | G50: =RTD("sysq.rtd","","WTX&`004.10-0930:2") -> 
A51: 0931 | B51: =RTD("sysq.rtd","","!DTSH`LC.99-0931:2") ->  | C51: =RTD("sysq.rtd","","!DTDH`LC.99-0931:2") ->  | D51: =RTD("sysq.rtd","","!XTSH`LC.99-0931:2") ->  | E51: =RTD("sysq.rtd","","!XTDH`LC.99-0931:2") ->  | F51: =RTD("sysq.rtd","","!DTAI`LC.99-0931:2") ->  | G51: =RTD("sysq.rtd","","WTX&`004.10-0931:2") -> 
A52: 0932 | B52: =RTD("sysq.rtd","","!DTSH`LC.99-0932:2") ->  | C52: =RTD("sysq.rtd","","!DTDH`LC.99-0932:2") ->  | D52: =RTD("sysq.rtd","","!XTSH`LC.99-0932:2") ->  | E52: =RTD("sysq.rtd","","!XTDH`LC.99-0932:2") ->  | F52: =RTD("sysq.rtd","","!DTAI`LC.99-0932:2") ->  | G52: =RTD("sysq.rtd","","WTX&`004.10-0932:2") -> 
A53: 0933 | B53: =RTD("sysq.rtd","","!DTSH`LC.99-0933:2") ->  | C53: =RTD("sysq.rtd","","!DTDH`LC.99-0933:2") ->  | D53: =RTD("sysq.rtd","","!XTSH`LC.99-0933:2") ->  | E53: =RTD("sysq.rtd","","!XTDH`LC.99-0933:2") ->  | F53: =RTD("sysq.rtd","","!DTAI`LC.99-0933:2") ->  | G53: =RTD("sysq.rtd","","WTX&`004.10-0933:2") -> 
A54: 0934 | B54: =RTD("sysq.rtd","","!DTSH`LC.99-0934:2") ->  | C54: =RTD("sysq.rtd","","!DTDH`LC.99-0934:2") ->  | D54: =RTD("sysq.rtd","","!XTSH`LC.99-0934:2") ->  | E54: =RTD("sysq.rtd","","!XTDH`LC.99-0934:2") ->  | F54: =RTD("sysq.rtd","","!DTAI`LC.99-0934:2") ->  | G54: =RTD("sysq.rtd","","WTX&`004.10-0934:2") -> 
A55: 0935 | B55: =RTD("sysq.rtd","","!DTSH`LC.99-0935:2") ->  | C55: =RTD("sysq.rtd","","!DTDH`LC.99-0935:2") ->  | D55: =RTD("sysq.rtd","","!XTSH`LC.99-0935:2") ->  | E55: =RTD("sysq.rtd","","!XTDH`LC.99-0935:2") ->  | F55: =RTD("sysq.rtd","","!DTAI`LC.99-0935:2") ->  | G55: =RTD("sysq.rtd","","WTX&`004.10-0935:2") -> 
A56: 0936 | B56: =RTD("sysq.rtd","","!DTSH`LC.99-0936:2") ->  | C56: =RTD("sysq.rtd","","!DTDH`LC.99-0936:2") ->  | D56: =RTD("sysq.rtd","","!XTSH`LC.99-0936:2") ->  | E56: =RTD("sysq.rtd","","!XTDH`LC.99-0936:2") ->  | F56: =RTD("sysq.rtd","","!DTAI`LC.99-0936:2") ->  | G56: =RTD("sysq.rtd","","WTX&`004.10-0936:2") -> 
A57: 0937 | B57: =RTD("sysq.rtd","","!DTSH`LC.99-0937:2") ->  | C57: =RTD("sysq.rtd","","!DTDH`LC.99-0937:2") ->  | D57: =RTD("sysq.rtd","","!XTSH`LC.99-0937:2") ->  | E57: =RTD("sysq.rtd","","!XTDH`LC.99-0937:2") ->  | F57: =RTD("sysq.rtd","","!DTAI`LC.99-0937:2") ->  | G57: =RTD("sysq.rtd","","WTX&`004.10-0937:2") -> 
A58: 0938 | B58: =RTD("sysq.rtd","","!DTSH`LC.99-0938:2") ->  | C58: =RTD("sysq.rtd","","!DTDH`LC.99-0938:2") ->  | D58: =RTD("sysq.rtd","","!XTSH`LC.99-0938:2") ->  | E58: =RTD("sysq.rtd","","!XTDH`LC.99-0938:2") ->  | F58: =RTD("sysq.rtd","","!DTAI`LC.99-0938:2") ->  | G58: =RTD("sysq.rtd","","WTX&`004.10-0938:2") -> 
A59: 0939 | B59: =RTD("sysq.rtd","","!DTSH`LC.99-0939:2") ->  | C59: =RTD("sysq.rtd","","!DTDH`LC.99-0939:2") ->  | D59: =RTD("sysq.rtd","","!XTSH`LC.99-0939:2") ->  | E59: =RTD("sysq.rtd","","!XTDH`LC.99-0939:2") ->  | F59: =RTD("sysq.rtd","","!DTAI`LC.99-0939:2") ->  | G59: =RTD("sysq.rtd","","WTX&`004.10-0939:2") -> 
A60: 0940 | B60: =RTD("sysq.rtd","","!DTSH`LC.99-0940:2") ->  | C60: =RTD("sysq.rtd","","!DTDH`LC.99-0940:2") ->  | D60: =RTD("sysq.rtd","","!XTSH`LC.99-0940:2") ->  | E60: =RTD("sysq.rtd","","!XTDH`LC.99-0940:2") ->  | F60: =RTD("sysq.rtd","","!DTAI`LC.99-0940:2") ->  | G60: =RTD("sysq.rtd","","WTX&`004.10-0940:2") -> 
A61: 0941 | B61: =RTD("sysq.rtd","","!DTSH`LC.99-0941:2") ->  | C61: =RTD("sysq.rtd","","!DTDH`LC.99-0941:2") ->  | D61: =RTD("sysq.rtd","","!XTSH`LC.99-0941:2") ->  | E61: =RTD("sysq.rtd","","!XTDH`LC.99-0941:2") ->  | F61: =RTD("sysq.rtd","","!DTAI`LC.99-0941:2") ->  | G61: =RTD("sysq.rtd","","WTX&`004.10-0941:2") -> 
A62: 0942 | B62: =RTD("sysq.rtd","","!DTSH`LC.99-0942:2") ->  | C62: =RTD("sysq.rtd","","!DTDH`LC.99-0942:2") ->  | D62: =RTD("sysq.rtd","","!XTSH`LC.99-0942:2") ->  | E62: =RTD("sysq.rtd","","!XTDH`LC.99-0942:2") ->  | F62: =RTD("sysq.rtd","","!DTAI`LC.99-0942:2") ->  | G62: =RTD("sysq.rtd","","WTX&`004.10-0942:2") -> 
A63: 0943 | B63: =RTD("sysq.rtd","","!DTSH`LC.99-0943:2") ->  | C63: =RTD("sysq.rtd","","!DTDH`LC.99-0943:2") ->  | D63: =RTD("sysq.rtd","","!XTSH`LC.99-0943:2") ->  | E63: =RTD("sysq.rtd","","!XTDH`LC.99-0943:2") ->  | F63: =RTD("sysq.rtd","","!DTAI`LC.99-0943:2") ->  | G63: =RTD("sysq.rtd","","WTX&`004.10-0943:2") -> 
A64: 0944 | B64: =RTD("sysq.rtd","","!DTSH`LC.99-0944:2") ->  | C64: =RTD("sysq.rtd","","!DTDH`LC.99-0944:2") ->  | D64: =RTD("sysq.rtd","","!XTSH`LC.99-0944:2") ->  | E64: =RTD("sysq.rtd","","!XTDH`LC.99-0944:2") ->  | F64: =RTD("sysq.rtd","","!DTAI`LC.99-0944:2") ->  | G64: =RTD("sysq.rtd","","WTX&`004.10-0944:2") -> 
A65: 0945 | B65: =RTD("sysq.rtd","","!DTSH`LC.99-0945:2") ->  | C65: =RTD("sysq.rtd","","!DTDH`LC.99-0945:2") ->  | D65: =RTD("sysq.rtd","","!XTSH`LC.99-0945:2") ->  | E65: =RTD("sysq.rtd","","!XTDH`LC.99-0945:2") ->  | F65: =RTD("sysq.rtd","","!DTAI`LC.99-0945:2") ->  | G65: =RTD("sysq.rtd","","WTX&`004.10-0945:2") -> 
A66: 0946 | B66: =RTD("sysq.rtd","","!DTSH`LC.99-0946:2") ->  | C66: =RTD("sysq.rtd","","!DTDH`LC.99-0946:2") ->  | D66: =RTD("sysq.rtd","","!XTSH`LC.99-0946:2") ->  | E66: =RTD("sysq.rtd","","!XTDH`LC.99-0946:2") ->  | F66: =RTD("sysq.rtd","","!DTAI`LC.99-0946:2") ->  | G66: =RTD("sysq.rtd","","WTX&`004.10-0946:2") -> 
A67: 0947 | B67: =RTD("sysq.rtd","","!DTSH`LC.99-0947:2") ->  | C67: =RTD("sysq.rtd","","!DTDH`LC.99-0947:2") ->  | D67: =RTD("sysq.rtd","","!XTSH`LC.99-0947:2") ->  | E67: =RTD("sysq.rtd","","!XTDH`LC.99-0947:2") ->  | F67: =RTD("sysq.rtd","","!DTAI`LC.99-0947:2") ->  | G67: =RTD("sysq.rtd","","WTX&`004.10-0947:2") -> 
A68: 0948 | B68: =RTD("sysq.rtd","","!DTSH`LC.99-0948:2") ->  | C68: =RTD("sysq.rtd","","!DTDH`LC.99-0948:2") ->  | D68: =RTD("sysq.rtd","","!XTSH`LC.99-0948:2") ->  | E68: =RTD("sysq.rtd","","!XTDH`LC.99-0948:2") ->  | F68: =RTD("sysq.rtd","","!DTAI`LC.99-0948:2") ->  | G68: =RTD("sysq.rtd","","WTX&`004.10-0948:2") -> 
A69: 0949 | B69: =RTD("sysq.rtd","","!DTSH`LC.99-0949:2") ->  | C69: =RTD("sysq.rtd","","!DTDH`LC.99-0949:2") ->  | D69: =RTD("sysq.rtd","","!XTSH`LC.99-0949:2") ->  | E69: =RTD("sysq.rtd","","!XTDH`LC.99-0949:2") ->  | F69: =RTD("sysq.rtd","","!DTAI`LC.99-0949:2") ->  | G69: =RTD("sysq.rtd","","WTX&`004.10-0949:2") -> 
A70: 0950 | B70: =RTD("sysq.rtd","","!DTSH`LC.99-0950:2") ->  | C70: =RTD("sysq.rtd","","!DTDH`LC.99-0950:2") ->  | D70: =RTD("sysq.rtd","","!XTSH`LC.99-0950:2") ->  | E70: =RTD("sysq.rtd","","!XTDH`LC.99-0950:2") ->  | F70: =RTD("sysq.rtd","","!DTAI`LC.99-0950:2") ->  | G70: =RTD("sysq.rtd","","WTX&`004.10-0950:2") ->  | H70: =SQRT(ABS(F70))*(ABS(F70)/F70) -> 
A71: 0951 | B71: =RTD("sysq.rtd","","!DTSH`LC.99-0951:2") ->  | C71: =RTD("sysq.rtd","","!DTDH`LC.99-0951:2") ->  | D71: =RTD("sysq.rtd","","!XTSH`LC.99-0951:2") ->  | E71: =RTD("sysq.rtd","","!XTDH`LC.99-0951:2") ->  | F71: =RTD("sysq.rtd","","!DTAI`LC.99-0951:2") ->  | G71: =RTD("sysq.rtd","","WTX&`004.10-0951:2") -> 
A72: 0952 | B72: =RTD("sysq.rtd","","!DTSH`LC.99-0952:2") ->  | C72: =RTD("sysq.rtd","","!DTDH`LC.99-0952:2") ->  | D72: =RTD("sysq.rtd","","!XTSH`LC.99-0952:2") ->  | E72: =RTD("sysq.rtd","","!XTDH`LC.99-0952:2") ->  | F72: =RTD("sysq.rtd","","!DTAI`LC.99-0952:2") ->  | G72: =RTD("sysq.rtd","","WTX&`004.10-0952:2") -> 
A73: 0953 | B73: =RTD("sysq.rtd","","!DTSH`LC.99-0953:2") ->  | C73: =RTD("sysq.rtd","","!DTDH`LC.99-0953:2") ->  | D73: =RTD("sysq.rtd","","!XTSH`LC.99-0953:2") ->  | E73: =RTD("sysq.rtd","","!XTDH`LC.99-0953:2") ->  | F73: =RTD("sysq.rtd","","!DTAI`LC.99-0953:2") ->  | G73: =RTD("sysq.rtd","","WTX&`004.10-0953:2") -> 
A74: 0954 | B74: =RTD("sysq.rtd","","!DTSH`LC.99-0954:2") ->  | C74: =RTD("sysq.rtd","","!DTDH`LC.99-0954:2") ->  | D74: =RTD("sysq.rtd","","!XTSH`LC.99-0954:2") ->  | E74: =RTD("sysq.rtd","","!XTDH`LC.99-0954:2") ->  | F74: =RTD("sysq.rtd","","!DTAI`LC.99-0954:2") ->  | G74: =RTD("sysq.rtd","","WTX&`004.10-0954:2") -> 
A75: 0955 | B75: =RTD("sysq.rtd","","!DTSH`LC.99-0955:2") ->  | C75: =RTD("sysq.rtd","","!DTDH`LC.99-0955:2") ->  | D75: =RTD("sysq.rtd","","!XTSH`LC.99-0955:2") ->  | E75: =RTD("sysq.rtd","","!XTDH`LC.99-0955:2") ->  | F75: =RTD("sysq.rtd","","!DTAI`LC.99-0955:2") ->  | G75: =RTD("sysq.rtd","","WTX&`004.10-0955:2") -> 
A76: 0956 | B76: =RTD("sysq.rtd","","!DTSH`LC.99-0956:2") ->  | C76: =RTD("sysq.rtd","","!DTDH`LC.99-0956:2") ->  | D76: =RTD("sysq.rtd","","!XTSH`LC.99-0956:2") ->  | E76: =RTD("sysq.rtd","","!XTDH`LC.99-0956:2") ->  | F76: =RTD("sysq.rtd","","!DTAI`LC.99-0956:2") ->  | G76: =RTD("sysq.rtd","","WTX&`004.10-0956:2") -> 
A77: 0957 | B77: =RTD("sysq.rtd","","!DTSH`LC.99-0957:2") ->  | C77: =RTD("sysq.rtd","","!DTDH`LC.99-0957:2") ->  | D77: =RTD("sysq.rtd","","!XTSH`LC.99-0957:2") ->  | E77: =RTD("sysq.rtd","","!XTDH`LC.99-0957:2") ->  | F77: =RTD("sysq.rtd","","!DTAI`LC.99-0957:2") ->  | G77: =RTD("sysq.rtd","","WTX&`004.10-0957:2") -> 
A78: 0958 | B78: =RTD("sysq.rtd","","!DTSH`LC.99-0958:2") ->  | C78: =RTD("sysq.rtd","","!DTDH`LC.99-0958:2") ->  | D78: =RTD("sysq.rtd","","!XTSH`LC.99-0958:2") ->  | E78: =RTD("sysq.rtd","","!XTDH`LC.99-0958:2") ->  | F78: =RTD("sysq.rtd","","!DTAI`LC.99-0958:2") ->  | G78: =RTD("sysq.rtd","","WTX&`004.10-0958:2") -> 
A79: 0959 | B79: =RTD("sysq.rtd","","!DTSH`LC.99-0959:2") ->  | C79: =RTD("sysq.rtd","","!DTDH`LC.99-0959:2") ->  | D79: =RTD("sysq.rtd","","!XTSH`LC.99-0959:2") ->  | E79: =RTD("sysq.rtd","","!XTDH`LC.99-0959:2") ->  | F79: =RTD("sysq.rtd","","!DTAI`LC.99-0959:2") ->  | G79: =RTD("sysq.rtd","","WTX&`004.10-0959:2") -> 
A80: 1000 | B80: =RTD("sysq.rtd","","!DTSH`LC.99-1000:2") ->  | C80: =RTD("sysq.rtd","","!DTDH`LC.99-1000:2") ->  | D80: =RTD("sysq.rtd","","!XTSH`LC.99-1000:2") ->  | E80: =RTD("sysq.rtd","","!XTDH`LC.99-1000:2") ->  | F80: =RTD("sysq.rtd","","!DTAI`LC.99-1000:2") ->  | G80: =RTD("sysq.rtd","","WTX&`004.10-1000:2") -> 
A81: 1001 | B81: =RTD("sysq.rtd","","!DTSH`LC.99-1001:2") ->  | C81: =RTD("sysq.rtd","","!DTDH`LC.99-1001:2") ->  | D81: =RTD("sysq.rtd","","!XTSH`LC.99-1001:2") ->  | E81: =RTD("sysq.rtd","","!XTDH`LC.99-1001:2") ->  | F81: =RTD("sysq.rtd","","!DTAI`LC.99-1001:2") ->  | G81: =RTD("sysq.rtd","","WTX&`004.10-1001:2") -> 
A82: 1002 | B82: =RTD("sysq.rtd","","!DTSH`LC.99-1002:2") ->  | C82: =RTD("sysq.rtd","","!DTDH`LC.99-1002:2") ->  | D82: =RTD("sysq.rtd","","!XTSH`LC.99-1002:2") ->  | E82: =RTD("sysq.rtd","","!XTDH`LC.99-1002:2") ->  | F82: =RTD("sysq.rtd","","!DTAI`LC.99-1002:2") ->  | G82: =RTD("sysq.rtd","","WTX&`004.10-1002:2") -> 
A83: 1003 | B83: =RTD("sysq.rtd","","!DTSH`LC.99-1003:2") ->  | C83: =RTD("sysq.rtd","","!DTDH`LC.99-1003:2") ->  | D83: =RTD("sysq.rtd","","!XTSH`LC.99-1003:2") ->  | E83: =RTD("sysq.rtd","","!XTDH`LC.99-1003:2") ->  | F83: =RTD("sysq.rtd","","!DTAI`LC.99-1003:2") ->  | G83: =RTD("sysq.rtd","","WTX&`004.10-1003:2") -> 
A84: 1004 | B84: =RTD("sysq.rtd","","!DTSH`LC.99-1004:2") ->  | C84: =RTD("sysq.rtd","","!DTDH`LC.99-1004:2") ->  | D84: =RTD("sysq.rtd","","!XTSH`LC.99-1004:2") ->  | E84: =RTD("sysq.rtd","","!XTDH`LC.99-1004:2") ->  | F84: =RTD("sysq.rtd","","!DTAI`LC.99-1004:2") ->  | G84: =RTD("sysq.rtd","","WTX&`004.10-1004:2") -> 
A85: 1005 | B85: =RTD("sysq.rtd","","!DTSH`LC.99-1005:2") ->  | C85: =RTD("sysq.rtd","","!DTDH`LC.99-1005:2") ->  | D85: =RTD("sysq.rtd","","!XTSH`LC.99-1005:2") ->  | E85: =RTD("sysq.rtd","","!XTDH`LC.99-1005:2") ->  | F85: =RTD("sysq.rtd","","!DTAI`LC.99-1005:2") ->  | G85: =RTD("sysq.rtd","","WTX&`004.10-1005:2") -> 
A86: 1006 | B86: =RTD("sysq.rtd","","!DTSH`LC.99-1006:2") ->  | C86: =RTD("sysq.rtd","","!DTDH`LC.99-1006:2") ->  | D86: =RTD("sysq.rtd","","!XTSH`LC.99-1006:2") ->  | E86: =RTD("sysq.rtd","","!XTDH`LC.99-1006:2") ->  | F86: =RTD("sysq.rtd","","!DTAI`LC.99-1006:2") ->  | G86: =RTD("sysq.rtd","","WTX&`004.10-1006:2") -> 
A87: 1007 | B87: =RTD("sysq.rtd","","!DTSH`LC.99-1007:2") ->  | C87: =RTD("sysq.rtd","","!DTDH`LC.99-1007:2") ->  | D87: =RTD("sysq.rtd","","!XTSH`LC.99-1007:2") ->  | E87: =RTD("sysq.rtd","","!XTDH`LC.99-1007:2") ->  | F87: =RTD("sysq.rtd","","!DTAI`LC.99-1007:2") ->  | G87: =RTD("sysq.rtd","","WTX&`004.10-1007:2") -> 
A88: 1008 | B88: =RTD("sysq.rtd","","!DTSH`LC.99-1008:2") ->  | C88: =RTD("sysq.rtd","","!DTDH`LC.99-1008:2") ->  | D88: =RTD("sysq.rtd","","!XTSH`LC.99-1008:2") ->  | E88: =RTD("sysq.rtd","","!XTDH`LC.99-1008:2") ->  | F88: =RTD("sysq.rtd","","!DTAI`LC.99-1008:2") ->  | G88: =RTD("sysq.rtd","","WTX&`004.10-1008:2") -> 
A89: 1009 | B89: =RTD("sysq.rtd","","!DTSH`LC.99-1009:2") ->  | C89: =RTD("sysq.rtd","","!DTDH`LC.99-1009:2") ->  | D89: =RTD("sysq.rtd","","!XTSH`LC.99-1009:2") ->  | E89: =RTD("sysq.rtd","","!XTDH`LC.99-1009:2") ->  | F89: =RTD("sysq.rtd","","!DTAI`LC.99-1009:2") ->  | G89: =RTD("sysq.rtd","","WTX&`004.10-1009:2") -> 
A90: 1010 | B90: =RTD("sysq.rtd","","!DTSH`LC.99-1010:2") ->  | C90: =RTD("sysq.rtd","","!DTDH`LC.99-1010:2") ->  | D90: =RTD("sysq.rtd","","!XTSH`LC.99-1010:2") ->  | E90: =RTD("sysq.rtd","","!XTDH`LC.99-1010:2") ->  | F90: =RTD("sysq.rtd","","!DTAI`LC.99-1010:2") ->  | G90: =RTD("sysq.rtd","","WTX&`004.10-1010:2") -> 
A91: 1011 | B91: =RTD("sysq.rtd","","!DTSH`LC.99-1011:2") ->  | C91: =RTD("sysq.rtd","","!DTDH`LC.99-1011:2") ->  | D91: =RTD("sysq.rtd","","!XTSH`LC.99-1011:2") ->  | E91: =RTD("sysq.rtd","","!XTDH`LC.99-1011:2") ->  | F91: =RTD("sysq.rtd","","!DTAI`LC.99-1011:2") ->  | G91: =RTD("sysq.rtd","","WTX&`004.10-1011:2") -> 
A92: 1012 | B92: =RTD("sysq.rtd","","!DTSH`LC.99-1012:2") ->  | C92: =RTD("sysq.rtd","","!DTDH`LC.99-1012:2") ->  | D92: =RTD("sysq.rtd","","!XTSH`LC.99-1012:2") ->  | E92: =RTD("sysq.rtd","","!XTDH`LC.99-1012:2") ->  | F92: =RTD("sysq.rtd","","!DTAI`LC.99-1012:2") ->  | G92: =RTD("sysq.rtd","","WTX&`004.10-1012:2") -> 
A93: 1013 | B93: =RTD("sysq.rtd","","!DTSH`LC.99-1013:2") ->  | C93: =RTD("sysq.rtd","","!DTDH`LC.99-1013:2") ->  | D93: =RTD("sysq.rtd","","!XTSH`LC.99-1013:2") ->  | E93: =RTD("sysq.rtd","","!XTDH`LC.99-1013:2") ->  | F93: =RTD("sysq.rtd","","!DTAI`LC.99-1013:2") ->  | G93: =RTD("sysq.rtd","","WTX&`004.10-1013:2") -> 
A94: 1014 | B94: =RTD("sysq.rtd","","!DTSH`LC.99-1014:2") ->  | C94: =RTD("sysq.rtd","","!DTDH`LC.99-1014:2") ->  | D94: =RTD("sysq.rtd","","!XTSH`LC.99-1014:2") ->  | E94: =RTD("sysq.rtd","","!XTDH`LC.99-1014:2") ->  | F94: =RTD("sysq.rtd","","!DTAI`LC.99-1014:2") ->  | G94: =RTD("sysq.rtd","","WTX&`004.10-1014:2") -> 
A95: 1015 | B95: =RTD("sysq.rtd","","!DTSH`LC.99-1015:2") ->  | C95: =RTD("sysq.rtd","","!DTDH`LC.99-1015:2") ->  | D95: =RTD("sysq.rtd","","!XTSH`LC.99-1015:2") ->  | E95: =RTD("sysq.rtd","","!XTDH`LC.99-1015:2") ->  | F95: =RTD("sysq.rtd","","!DTAI`LC.99-1015:2") ->  | G95: =RTD("sysq.rtd","","WTX&`004.10-1015:2") -> 
A96: 1016 | B96: =RTD("sysq.rtd","","!DTSH`LC.99-1016:2") ->  | C96: =RTD("sysq.rtd","","!DTDH`LC.99-1016:2") ->  | D96: =RTD("sysq.rtd","","!XTSH`LC.99-1016:2") ->  | E96: =RTD("sysq.rtd","","!XTDH`LC.99-1016:2") ->  | F96: =RTD("sysq.rtd","","!DTAI`LC.99-1016:2") ->  | G96: =RTD("sysq.rtd","","WTX&`004.10-1016:2") -> 
A97: 1017 | B97: =RTD("sysq.rtd","","!DTSH`LC.99-1017:2") ->  | C97: =RTD("sysq.rtd","","!DTDH`LC.99-1017:2") ->  | D97: =RTD("sysq.rtd","","!XTSH`LC.99-1017:2") ->  | E97: =RTD("sysq.rtd","","!XTDH`LC.99-1017:2") ->  | F97: =RTD("sysq.rtd","","!DTAI`LC.99-1017:2") ->  | G97: =RTD("sysq.rtd","","WTX&`004.10-1017:2") -> 
A98: 1018 | B98: =RTD("sysq.rtd","","!DTSH`LC.99-1018:2") ->  | C98: =RTD("sysq.rtd","","!DTDH`LC.99-1018:2") ->  | D98: =RTD("sysq.rtd","","!XTSH`LC.99-1018:2") ->  | E98: =RTD("sysq.rtd","","!XTDH`LC.99-1018:2") ->  | F98: =RTD("sysq.rtd","","!DTAI`LC.99-1018:2") ->  | G98: =RTD("sysq.rtd","","WTX&`004.10-1018:2") -> 
A99: 1019 | B99: =RTD("sysq.rtd","","!DTSH`LC.99-1019:2") ->  | C99: =RTD("sysq.rtd","","!DTDH`LC.99-1019:2") ->  | D99: =RTD("sysq.rtd","","!XTSH`LC.99-1019:2") ->  | E99: =RTD("sysq.rtd","","!XTDH`LC.99-1019:2") ->  | F99: =RTD("sysq.rtd","","!DTAI`LC.99-1019:2") ->  | G99: =RTD("sysq.rtd","","WTX&`004.10-1019:2") -> 
A100: 1020 | B100: =RTD("sysq.rtd","","!DTSH`LC.99-1020:2") ->  | C100: =RTD("sysq.rtd","","!DTDH`LC.99-1020:2") ->  | D100: =RTD("sysq.rtd","","!XTSH`LC.99-1020:2") ->  | E100: =RTD("sysq.rtd","","!XTDH`LC.99-1020:2") ->  | F100: =RTD("sysq.rtd","","!DTAI`LC.99-1020:2") ->  | G100: =RTD("sysq.rtd","","WTX&`004.10-1020:2") -> 
A101: 1021 | B101: =RTD("sysq.rtd","","!DTSH`LC.99-1021:2") ->  | C101: =RTD("sysq.rtd","","!DTDH`LC.99-1021:2") ->  | D101: =RTD("sysq.rtd","","!XTSH`LC.99-1021:2") ->  | E101: =RTD("sysq.rtd","","!XTDH`LC.99-1021:2") ->  | F101: =RTD("sysq.rtd","","!DTAI`LC.99-1021:2") ->  | G101: =RTD("sysq.rtd","","WTX&`004.10-1021:2") -> 
A102: 1022 | B102: =RTD("sysq.rtd","","!DTSH`LC.99-1022:2") ->  | C102: =RTD("sysq.rtd","","!DTDH`LC.99-1022:2") ->  | D102: =RTD("sysq.rtd","","!XTSH`LC.99-1022:2") ->  | E102: =RTD("sysq.rtd","","!XTDH`LC.99-1022:2") ->  | F102: =RTD("sysq.rtd","","!DTAI`LC.99-1022:2") ->  | G102: =RTD("sysq.rtd","","WTX&`004.10-1022:2") -> 
A103: 1023 | B103: =RTD("sysq.rtd","","!DTSH`LC.99-1023:2") ->  | C103: =RTD("sysq.rtd","","!DTDH`LC.99-1023:2") ->  | D103: =RTD("sysq.rtd","","!XTSH`LC.99-1023:2") ->  | E103: =RTD("sysq.rtd","","!XTDH`LC.99-1023:2") ->  | F103: =RTD("sysq.rtd","","!DTAI`LC.99-1023:2") ->  | G103: =RTD("sysq.rtd","","WTX&`004.10-1023:2") -> 
A104: 1024 | B104: =RTD("sysq.rtd","","!DTSH`LC.99-1024:2") ->  | C104: =RTD("sysq.rtd","","!DTDH`LC.99-1024:2") ->  | D104: =RTD("sysq.rtd","","!XTSH`LC.99-1024:2") ->  | E104: =RTD("sysq.rtd","","!XTDH`LC.99-1024:2") ->  | F104: =RTD("sysq.rtd","","!DTAI`LC.99-1024:2") ->  | G104: =RTD("sysq.rtd","","WTX&`004.10-1024:2") -> 
A105: 1025 | B105: =RTD("sysq.rtd","","!DTSH`LC.99-1025:2") ->  | C105: =RTD("sysq.rtd","","!DTDH`LC.99-1025:2") ->  | D105: =RTD("sysq.rtd","","!XTSH`LC.99-1025:2") ->  | E105: =RTD("sysq.rtd","","!XTDH`LC.99-1025:2") ->  | F105: =RTD("sysq.rtd","","!DTAI`LC.99-1025:2") ->  | G105: =RTD("sysq.rtd","","WTX&`004.10-1025:2") -> 
A106: 1026 | B106: =RTD("sysq.rtd","","!DTSH`LC.99-1026:2") ->  | C106: =RTD("sysq.rtd","","!DTDH`LC.99-1026:2") ->  | D106: =RTD("sysq.rtd","","!XTSH`LC.99-1026:2") ->  | E106: =RTD("sysq.rtd","","!XTDH`LC.99-1026:2") ->  | F106: =RTD("sysq.rtd","","!DTAI`LC.99-1026:2") ->  | G106: =RTD("sysq.rtd","","WTX&`004.10-1026:2") -> 
A107: 1027 | B107: =RTD("sysq.rtd","","!DTSH`LC.99-1027:2") ->  | C107: =RTD("sysq.rtd","","!DTDH`LC.99-1027:2") ->  | D107: =RTD("sysq.rtd","","!XTSH`LC.99-1027:2") ->  | E107: =RTD("sysq.rtd","","!XTDH`LC.99-1027:2") ->  | F107: =RTD("sysq.rtd","","!DTAI`LC.99-1027:2") ->  | G107: =RTD("sysq.rtd","","WTX&`004.10-1027:2") -> 
A108: 1028 | B108: =RTD("sysq.rtd","","!DTSH`LC.99-1028:2") ->  | C108: =RTD("sysq.rtd","","!DTDH`LC.99-1028:2") ->  | D108: =RTD("sysq.rtd","","!XTSH`LC.99-1028:2") ->  | E108: =RTD("sysq.rtd","","!XTDH`LC.99-1028:2") ->  | F108: =RTD("sysq.rtd","","!DTAI`LC.99-1028:2") ->  | G108: =RTD("sysq.rtd","","WTX&`004.10-1028:2") -> 
A109: 1029 | B109: =RTD("sysq.rtd","","!DTSH`LC.99-1029:2") ->  | C109: =RTD("sysq.rtd","","!DTDH`LC.99-1029:2") ->  | D109: =RTD("sysq.rtd","","!XTSH`LC.99-1029:2") ->  | E109: =RTD("sysq.rtd","","!XTDH`LC.99-1029:2") ->  | F109: =RTD("sysq.rtd","","!DTAI`LC.99-1029:2") ->  | G109: =RTD("sysq.rtd","","WTX&`004.10-1029:2") -> 
A110: 1030 | B110: =RTD("sysq.rtd","","!DTSH`LC.99-1030:2") ->  | C110: =RTD("sysq.rtd","","!DTDH`LC.99-1030:2") ->  | D110: =RTD("sysq.rtd","","!XTSH`LC.99-1030:2") ->  | E110: =RTD("sysq.rtd","","!XTDH`LC.99-1030:2") ->  | F110: =RTD("sysq.rtd","","!DTAI`LC.99-1030:2") ->  | G110: =RTD("sysq.rtd","","WTX&`004.10-1030:2") -> 
A111: 1031 | B111: =RTD("sysq.rtd","","!DTSH`LC.99-1031:2") ->  | C111: =RTD("sysq.rtd","","!DTDH`LC.99-1031:2") ->  | D111: =RTD("sysq.rtd","","!XTSH`LC.99-1031:2") ->  | E111: =RTD("sysq.rtd","","!XTDH`LC.99-1031:2") ->  | F111: =RTD("sysq.rtd","","!DTAI`LC.99-1031:2") ->  | G111: =RTD("sysq.rtd","","WTX&`004.10-1031:2") -> 
A112: 1032 | B112: =RTD("sysq.rtd","","!DTSH`LC.99-1032:2") ->  | C112: =RTD("sysq.rtd","","!DTDH`LC.99-1032:2") ->  | D112: =RTD("sysq.rtd","","!XTSH`LC.99-1032:2") ->  | E112: =RTD("sysq.rtd","","!XTDH`LC.99-1032:2") ->  | F112: =RTD("sysq.rtd","","!DTAI`LC.99-1032:2") ->  | G112: =RTD("sysq.rtd","","WTX&`004.10-1032:2") -> 
A113: 1033 | B113: =RTD("sysq.rtd","","!DTSH`LC.99-1033:2") ->  | C113: =RTD("sysq.rtd","","!DTDH`LC.99-1033:2") ->  | D113: =RTD("sysq.rtd","","!XTSH`LC.99-1033:2") ->  | E113: =RTD("sysq.rtd","","!XTDH`LC.99-1033:2") ->  | F113: =RTD("sysq.rtd","","!DTAI`LC.99-1033:2") ->  | G113: =RTD("sysq.rtd","","WTX&`004.10-1033:2") -> 
A114: 1034 | B114: =RTD("sysq.rtd","","!DTSH`LC.99-1034:2") ->  | C114: =RTD("sysq.rtd","","!DTDH`LC.99-1034:2") ->  | D114: =RTD("sysq.rtd","","!XTSH`LC.99-1034:2") ->  | E114: =RTD("sysq.rtd","","!XTDH`LC.99-1034:2") ->  | F114: =RTD("sysq.rtd","","!DTAI`LC.99-1034:2") ->  | G114: =RTD("sysq.rtd","","WTX&`004.10-1034:2") -> 
A115: 1035 | B115: =RTD("sysq.rtd","","!DTSH`LC.99-1035:2") ->  | C115: =RTD("sysq.rtd","","!DTDH`LC.99-1035:2") ->  | D115: =RTD("sysq.rtd","","!XTSH`LC.99-1035:2") ->  | E115: =RTD("sysq.rtd","","!XTDH`LC.99-1035:2") ->  | F115: =RTD("sysq.rtd","","!DTAI`LC.99-1035:2") ->  | G115: =RTD("sysq.rtd","","WTX&`004.10-1035:2") -> 
A116: 1036 | B116: =RTD("sysq.rtd","","!DTSH`LC.99-1036:2") ->  | C116: =RTD("sysq.rtd","","!DTDH`LC.99-1036:2") ->  | D116: =RTD("sysq.rtd","","!XTSH`LC.99-1036:2") ->  | E116: =RTD("sysq.rtd","","!XTDH`LC.99-1036:2") ->  | F116: =RTD("sysq.rtd","","!DTAI`LC.99-1036:2") ->  | G116: =RTD("sysq.rtd","","WTX&`004.10-1036:2") -> 
A117: 1037 | B117: =RTD("sysq.rtd","","!DTSH`LC.99-1037:2") ->  | C117: =RTD("sysq.rtd","","!DTDH`LC.99-1037:2") ->  | D117: =RTD("sysq.rtd","","!XTSH`LC.99-1037:2") ->  | E117: =RTD("sysq.rtd","","!XTDH`LC.99-1037:2") ->  | F117: =RTD("sysq.rtd","","!DTAI`LC.99-1037:2") ->  | G117: =RTD("sysq.rtd","","WTX&`004.10-1037:2") -> 
A118: 1038 | B118: =RTD("sysq.rtd","","!DTSH`LC.99-1038:2") ->  | C118: =RTD("sysq.rtd","","!DTDH`LC.99-1038:2") ->  | D118: =RTD("sysq.rtd","","!XTSH`LC.99-1038:2") ->  | E118: =RTD("sysq.rtd","","!XTDH`LC.99-1038:2") ->  | F118: =RTD("sysq.rtd","","!DTAI`LC.99-1038:2") ->  | G118: =RTD("sysq.rtd","","WTX&`004.10-1038:2") -> 
A119: 1039 | B119: =RTD("sysq.rtd","","!DTSH`LC.99-1039:2") ->  | C119: =RTD("sysq.rtd","","!DTDH`LC.99-1039:2") ->  | D119: =RTD("sysq.rtd","","!XTSH`LC.99-1039:2") ->  | E119: =RTD("sysq.rtd","","!XTDH`LC.99-1039:2") ->  | F119: =RTD("sysq.rtd","","!DTAI`LC.99-1039:2") ->  | G119: =RTD("sysq.rtd","","WTX&`004.10-1039:2") -> 
A120: 1040 | B120: =RTD("sysq.rtd","","!DTSH`LC.99-1040:2") ->  | C120: =RTD("sysq.rtd","","!DTDH`LC.99-1040:2") ->  | D120: =RTD("sysq.rtd","","!XTSH`LC.99-1040:2") ->  | E120: =RTD("sysq.rtd","","!XTDH`LC.99-1040:2") ->  | F120: =RTD("sysq.rtd","","!DTAI`LC.99-1040:2") ->  | G120: =RTD("sysq.rtd","","WTX&`004.10-1040:2") -> 
A121: 1041 | B121: =RTD("sysq.rtd","","!DTSH`LC.99-1041:2") ->  | C121: =RTD("sysq.rtd","","!DTDH`LC.99-1041:2") ->  | D121: =RTD("sysq.rtd","","!XTSH`LC.99-1041:2") ->  | E121: =RTD("sysq.rtd","","!XTDH`LC.99-1041:2") ->  | F121: =RTD("sysq.rtd","","!DTAI`LC.99-1041:2") ->  | G121: =RTD("sysq.rtd","","WTX&`004.10-1041:2") -> 
A122: 1042 | B122: =RTD("sysq.rtd","","!DTSH`LC.99-1042:2") ->  | C122: =RTD("sysq.rtd","","!DTDH`LC.99-1042:2") ->  | D122: =RTD("sysq.rtd","","!XTSH`LC.99-1042:2") ->  | E122: =RTD("sysq.rtd","","!XTDH`LC.99-1042:2") ->  | F122: =RTD("sysq.rtd","","!DTAI`LC.99-1042:2") ->  | G122: =RTD("sysq.rtd","","WTX&`004.10-1042:2") -> 
A123: 1043 | B123: =RTD("sysq.rtd","","!DTSH`LC.99-1043:2") ->  | C123: =RTD("sysq.rtd","","!DTDH`LC.99-1043:2") ->  | D123: =RTD("sysq.rtd","","!XTSH`LC.99-1043:2") ->  | E123: =RTD("sysq.rtd","","!XTDH`LC.99-1043:2") ->  | F123: =RTD("sysq.rtd","","!DTAI`LC.99-1043:2") ->  | G123: =RTD("sysq.rtd","","WTX&`004.10-1043:2") -> 
A124: 1044 | B124: =RTD("sysq.rtd","","!DTSH`LC.99-1044:2") ->  | C124: =RTD("sysq.rtd","","!DTDH`LC.99-1044:2") ->  | D124: =RTD("sysq.rtd","","!XTSH`LC.99-1044:2") ->  | E124: =RTD("sysq.rtd","","!XTDH`LC.99-1044:2") ->  | F124: =RTD("sysq.rtd","","!DTAI`LC.99-1044:2") ->  | G124: =RTD("sysq.rtd","","WTX&`004.10-1044:2") -> 
A125: 1045 | B125: =RTD("sysq.rtd","","!DTSH`LC.99-1045:2") ->  | C125: =RTD("sysq.rtd","","!DTDH`LC.99-1045:2") ->  | D125: =RTD("sysq.rtd","","!XTSH`LC.99-1045:2") ->  | E125: =RTD("sysq.rtd","","!XTDH`LC.99-1045:2") ->  | F125: =RTD("sysq.rtd","","!DTAI`LC.99-1045:2") ->  | G125: =RTD("sysq.rtd","","WTX&`004.10-1045:2") -> 
A126: 1046 | B126: =RTD("sysq.rtd","","!DTSH`LC.99-1046:2") ->  | C126: =RTD("sysq.rtd","","!DTDH`LC.99-1046:2") ->  | D126: =RTD("sysq.rtd","","!XTSH`LC.99-1046:2") ->  | E126: =RTD("sysq.rtd","","!XTDH`LC.99-1046:2") ->  | F126: =RTD("sysq.rtd","","!DTAI`LC.99-1046:2") ->  | G126: =RTD("sysq.rtd","","WTX&`004.10-1046:2") -> 
A127: 1047 | B127: =RTD("sysq.rtd","","!DTSH`LC.99-1047:2") ->  | C127: =RTD("sysq.rtd","","!DTDH`LC.99-1047:2") ->  | D127: =RTD("sysq.rtd","","!XTSH`LC.99-1047:2") ->  | E127: =RTD("sysq.rtd","","!XTDH`LC.99-1047:2") ->  | F127: =RTD("sysq.rtd","","!DTAI`LC.99-1047:2") ->  | G127: =RTD("sysq.rtd","","WTX&`004.10-1047:2") -> 
A128: 1048 | B128: =RTD("sysq.rtd","","!DTSH`LC.99-1048:2") ->  | C128: =RTD("sysq.rtd","","!DTDH`LC.99-1048:2") ->  | D128: =RTD("sysq.rtd","","!XTSH`LC.99-1048:2") ->  | E128: =RTD("sysq.rtd","","!XTDH`LC.99-1048:2") ->  | F128: =RTD("sysq.rtd","","!DTAI`LC.99-1048:2") ->  | G128: =RTD("sysq.rtd","","WTX&`004.10-1048:2") -> 
A129: 1049 | B129: =RTD("sysq.rtd","","!DTSH`LC.99-1049:2") ->  | C129: =RTD("sysq.rtd","","!DTDH`LC.99-1049:2") ->  | D129: =RTD("sysq.rtd","","!XTSH`LC.99-1049:2") ->  | E129: =RTD("sysq.rtd","","!XTDH`LC.99-1049:2") ->  | F129: =RTD("sysq.rtd","","!DTAI`LC.99-1049:2") ->  | G129: =RTD("sysq.rtd","","WTX&`004.10-1049:2") -> 
A130: 1050 | B130: =RTD("sysq.rtd","","!DTSH`LC.99-1050:2") ->  | C130: =RTD("sysq.rtd","","!DTDH`LC.99-1050:2") ->  | D130: =RTD("sysq.rtd","","!XTSH`LC.99-1050:2") ->  | E130: =RTD("sysq.rtd","","!XTDH`LC.99-1050:2") ->  | F130: =RTD("sysq.rtd","","!DTAI`LC.99-1050:2") ->  | G130: =RTD("sysq.rtd","","WTX&`004.10-1050:2") -> 
A131: 1051 | B131: =RTD("sysq.rtd","","!DTSH`LC.99-1051:2") ->  | C131: =RTD("sysq.rtd","","!DTDH`LC.99-1051:2") ->  | D131: =RTD("sysq.rtd","","!XTSH`LC.99-1051:2") ->  | E131: =RTD("sysq.rtd","","!XTDH`LC.99-1051:2") ->  | F131: =RTD("sysq.rtd","","!DTAI`LC.99-1051:2") ->  | G131: =RTD("sysq.rtd","","WTX&`004.10-1051:2") -> 
A132: 1052 | B132: =RTD("sysq.rtd","","!DTSH`LC.99-1052:2") ->  | C132: =RTD("sysq.rtd","","!DTDH`LC.99-1052:2") ->  | D132: =RTD("sysq.rtd","","!XTSH`LC.99-1052:2") ->  | E132: =RTD("sysq.rtd","","!XTDH`LC.99-1052:2") ->  | F132: =RTD("sysq.rtd","","!DTAI`LC.99-1052:2") ->  | G132: =RTD("sysq.rtd","","WTX&`004.10-1052:2") -> 
A133: 1053 | B133: =RTD("sysq.rtd","","!DTSH`LC.99-1053:2") ->  | C133: =RTD("sysq.rtd","","!DTDH`LC.99-1053:2") ->  | D133: =RTD("sysq.rtd","","!XTSH`LC.99-1053:2") ->  | E133: =RTD("sysq.rtd","","!XTDH`LC.99-1053:2") ->  | F133: =RTD("sysq.rtd","","!DTAI`LC.99-1053:2") ->  | G133: =RTD("sysq.rtd","","WTX&`004.10-1053:2") -> 
A134: 1054 | B134: =RTD("sysq.rtd","","!DTSH`LC.99-1054:2") ->  | C134: =RTD("sysq.rtd","","!DTDH`LC.99-1054:2") ->  | D134: =RTD("sysq.rtd","","!XTSH`LC.99-1054:2") ->  | E134: =RTD("sysq.rtd","","!XTDH`LC.99-1054:2") ->  | F134: =RTD("sysq.rtd","","!DTAI`LC.99-1054:2") ->  | G134: =RTD("sysq.rtd","","WTX&`004.10-1054:2") ->  | H134: =SQRT(ABS(F134))*(ABS(F134)/F134) -> 
A135: 1055 | B135: =RTD("sysq.rtd","","!DTSH`LC.99-1055:2") ->  | C135: =RTD("sysq.rtd","","!DTDH`LC.99-1055:2") ->  | D135: =RTD("sysq.rtd","","!XTSH`LC.99-1055:2") ->  | E135: =RTD("sysq.rtd","","!XTDH`LC.99-1055:2") ->  | F135: =RTD("sysq.rtd","","!DTAI`LC.99-1055:2") ->  | G135: =RTD("sysq.rtd","","WTX&`004.10-1055:2") -> 
A136: 1056 | B136: =RTD("sysq.rtd","","!DTSH`LC.99-1056:2") ->  | C136: =RTD("sysq.rtd","","!DTDH`LC.99-1056:2") ->  | D136: =RTD("sysq.rtd","","!XTSH`LC.99-1056:2") ->  | E136: =RTD("sysq.rtd","","!XTDH`LC.99-1056:2") ->  | F136: =RTD("sysq.rtd","","!DTAI`LC.99-1056:2") ->  | G136: =RTD("sysq.rtd","","WTX&`004.10-1056:2") -> 
A137: 1057 | B137: =RTD("sysq.rtd","","!DTSH`LC.99-1057:2") ->  | C137: =RTD("sysq.rtd","","!DTDH`LC.99-1057:2") ->  | D137: =RTD("sysq.rtd","","!XTSH`LC.99-1057:2") ->  | E137: =RTD("sysq.rtd","","!XTDH`LC.99-1057:2") ->  | F137: =RTD("sysq.rtd","","!DTAI`LC.99-1057:2") ->  | G137: =RTD("sysq.rtd","","WTX&`004.10-1057:2") -> 
A138: 1058 | B138: =RTD("sysq.rtd","","!DTSH`LC.99-1058:2") ->  | C138: =RTD("sysq.rtd","","!DTDH`LC.99-1058:2") ->  | D138: =RTD("sysq.rtd","","!XTSH`LC.99-1058:2") ->  | E138: =RTD("sysq.rtd","","!XTDH`LC.99-1058:2") ->  | F138: =RTD("sysq.rtd","","!DTAI`LC.99-1058:2") ->  | G138: =RTD("sysq.rtd","","WTX&`004.10-1058:2") -> 
A139: 1059 | B139: =RTD("sysq.rtd","","!DTSH`LC.99-1059:2") ->  | C139: =RTD("sysq.rtd","","!DTDH`LC.99-1059:2") ->  | D139: =RTD("sysq.rtd","","!XTSH`LC.99-1059:2") ->  | E139: =RTD("sysq.rtd","","!XTDH`LC.99-1059:2") ->  | F139: =RTD("sysq.rtd","","!DTAI`LC.99-1059:2") ->  | G139: =RTD("sysq.rtd","","WTX&`004.10-1059:2") -> 
A140: 1100 | B140: =RTD("sysq.rtd","","!DTSH`LC.99-1100:2") ->  | C140: =RTD("sysq.rtd","","!DTDH`LC.99-1100:2") ->  | D140: =RTD("sysq.rtd","","!XTSH`LC.99-1100:2") ->  | E140: =RTD("sysq.rtd","","!XTDH`LC.99-1100:2") ->  | F140: =RTD("sysq.rtd","","!DTAI`LC.99-1100:2") ->  | G140: =RTD("sysq.rtd","","WTX&`004.10-1100:2") -> 
A141: 1101 | B141: =RTD("sysq.rtd","","!DTSH`LC.99-1101:2") ->  | C141: =RTD("sysq.rtd","","!DTDH`LC.99-1101:2") ->  | D141: =RTD("sysq.rtd","","!XTSH`LC.99-1101:2") ->  | E141: =RTD("sysq.rtd","","!XTDH`LC.99-1101:2") ->  | F141: =RTD("sysq.rtd","","!DTAI`LC.99-1101:2") ->  | G141: =RTD("sysq.rtd","","WTX&`004.10-1101:2") -> 
A142: 1102 | B142: =RTD("sysq.rtd","","!DTSH`LC.99-1102:2") ->  | C142: =RTD("sysq.rtd","","!DTDH`LC.99-1102:2") ->  | D142: =RTD("sysq.rtd","","!XTSH`LC.99-1102:2") ->  | E142: =RTD("sysq.rtd","","!XTDH`LC.99-1102:2") ->  | F142: =RTD("sysq.rtd","","!DTAI`LC.99-1102:2") ->  | G142: =RTD("sysq.rtd","","WTX&`004.10-1102:2") -> 
A143: 1103 | B143: =RTD("sysq.rtd","","!DTSH`LC.99-1103:2") ->  | C143: =RTD("sysq.rtd","","!DTDH`LC.99-1103:2") ->  | D143: =RTD("sysq.rtd","","!XTSH`LC.99-1103:2") ->  | E143: =RTD("sysq.rtd","","!XTDH`LC.99-1103:2") ->  | F143: =RTD("sysq.rtd","","!DTAI`LC.99-1103:2") ->  | G143: =RTD("sysq.rtd","","WTX&`004.10-1103:2") -> 
A144: 1104 | B144: =RTD("sysq.rtd","","!DTSH`LC.99-1104:2") ->  | C144: =RTD("sysq.rtd","","!DTDH`LC.99-1104:2") ->  | D144: =RTD("sysq.rtd","","!XTSH`LC.99-1104:2") ->  | E144: =RTD("sysq.rtd","","!XTDH`LC.99-1104:2") ->  | F144: =RTD("sysq.rtd","","!DTAI`LC.99-1104:2") ->  | G144: =RTD("sysq.rtd","","WTX&`004.10-1104:2") -> 
A145: 1105 | B145: =RTD("sysq.rtd","","!DTSH`LC.99-1105:2") ->  | C145: =RTD("sysq.rtd","","!DTDH`LC.99-1105:2") ->  | D145: =RTD("sysq.rtd","","!XTSH`LC.99-1105:2") ->  | E145: =RTD("sysq.rtd","","!XTDH`LC.99-1105:2") ->  | F145: =RTD("sysq.rtd","","!DTAI`LC.99-1105:2") ->  | G145: =RTD("sysq.rtd","","WTX&`004.10-1105:2") -> 
A146: 1106 | B146: =RTD("sysq.rtd","","!DTSH`LC.99-1106:2") ->  | C146: =RTD("sysq.rtd","","!DTDH`LC.99-1106:2") ->  | D146: =RTD("sysq.rtd","","!XTSH`LC.99-1106:2") ->  | E146: =RTD("sysq.rtd","","!XTDH`LC.99-1106:2") ->  | F146: =RTD("sysq.rtd","","!DTAI`LC.99-1106:2") ->  | G146: =RTD("sysq.rtd","","WTX&`004.10-1106:2") -> 
A147: 1107 | B147: =RTD("sysq.rtd","","!DTSH`LC.99-1107:2") ->  | C147: =RTD("sysq.rtd","","!DTDH`LC.99-1107:2") ->  | D147: =RTD("sysq.rtd","","!XTSH`LC.99-1107:2") ->  | E147: =RTD("sysq.rtd","","!XTDH`LC.99-1107:2") ->  | F147: =RTD("sysq.rtd","","!DTAI`LC.99-1107:2") ->  | G147: =RTD("sysq.rtd","","WTX&`004.10-1107:2") -> 
A148: 1108 | B148: =RTD("sysq.rtd","","!DTSH`LC.99-1108:2") ->  | C148: =RTD("sysq.rtd","","!DTDH`LC.99-1108:2") ->  | D148: =RTD("sysq.rtd","","!XTSH`LC.99-1108:2") ->  | E148: =RTD("sysq.rtd","","!XTDH`LC.99-1108:2") ->  | F148: =RTD("sysq.rtd","","!DTAI`LC.99-1108:2") ->  | G148: =RTD("sysq.rtd","","WTX&`004.10-1108:2") -> 
A149: 1109 | B149: =RTD("sysq.rtd","","!DTSH`LC.99-1109:2") ->  | C149: =RTD("sysq.rtd","","!DTDH`LC.99-1109:2") ->  | D149: =RTD("sysq.rtd","","!XTSH`LC.99-1109:2") ->  | E149: =RTD("sysq.rtd","","!XTDH`LC.99-1109:2") ->  | F149: =RTD("sysq.rtd","","!DTAI`LC.99-1109:2") ->  | G149: =RTD("sysq.rtd","","WTX&`004.10-1109:2") -> 
A150: 1110 | B150: =RTD("sysq.rtd","","!DTSH`LC.99-1110:2") ->  | C150: =RTD("sysq.rtd","","!DTDH`LC.99-1110:2") ->  | D150: =RTD("sysq.rtd","","!XTSH`LC.99-1110:2") ->  | E150: =RTD("sysq.rtd","","!XTDH`LC.99-1110:2") ->  | F150: =RTD("sysq.rtd","","!DTAI`LC.99-1110:2") ->  | G150: =RTD("sysq.rtd","","WTX&`004.10-1110:2") -> 
A151: 1111 | B151: =RTD("sysq.rtd","","!DTSH`LC.99-1111:2") ->  | C151: =RTD("sysq.rtd","","!DTDH`LC.99-1111:2") ->  | D151: =RTD("sysq.rtd","","!XTSH`LC.99-1111:2") ->  | E151: =RTD("sysq.rtd","","!XTDH`LC.99-1111:2") ->  | F151: =RTD("sysq.rtd","","!DTAI`LC.99-1111:2") ->  | G151: =RTD("sysq.rtd","","WTX&`004.10-1111:2") -> 
A152: 1112 | B152: =RTD("sysq.rtd","","!DTSH`LC.99-1112:2") ->  | C152: =RTD("sysq.rtd","","!DTDH`LC.99-1112:2") ->  | D152: =RTD("sysq.rtd","","!XTSH`LC.99-1112:2") ->  | E152: =RTD("sysq.rtd","","!XTDH`LC.99-1112:2") ->  | F152: =RTD("sysq.rtd","","!DTAI`LC.99-1112:2") ->  | G152: =RTD("sysq.rtd","","WTX&`004.10-1112:2") -> 
A153: 1113 | B153: =RTD("sysq.rtd","","!DTSH`LC.99-1113:2") ->  | C153: =RTD("sysq.rtd","","!DTDH`LC.99-1113:2") ->  | D153: =RTD("sysq.rtd","","!XTSH`LC.99-1113:2") ->  | E153: =RTD("sysq.rtd","","!XTDH`LC.99-1113:2") ->  | F153: =RTD("sysq.rtd","","!DTAI`LC.99-1113:2") ->  | G153: =RTD("sysq.rtd","","WTX&`004.10-1113:2") -> 
A154: 1114 | B154: =RTD("sysq.rtd","","!DTSH`LC.99-1114:2") ->  | C154: =RTD("sysq.rtd","","!DTDH`LC.99-1114:2") ->  | D154: =RTD("sysq.rtd","","!XTSH`LC.99-1114:2") ->  | E154: =RTD("sysq.rtd","","!XTDH`LC.99-1114:2") ->  | F154: =RTD("sysq.rtd","","!DTAI`LC.99-1114:2") ->  | G154: =RTD("sysq.rtd","","WTX&`004.10-1114:2") -> 
A155: 1115 | B155: =RTD("sysq.rtd","","!DTSH`LC.99-1115:2") ->  | C155: =RTD("sysq.rtd","","!DTDH`LC.99-1115:2") ->  | D155: =RTD("sysq.rtd","","!XTSH`LC.99-1115:2") ->  | E155: =RTD("sysq.rtd","","!XTDH`LC.99-1115:2") ->  | F155: =RTD("sysq.rtd","","!DTAI`LC.99-1115:2") ->  | G155: =RTD("sysq.rtd","","WTX&`004.10-1115:2") -> 
A156: 1116 | B156: =RTD("sysq.rtd","","!DTSH`LC.99-1116:2") ->  | C156: =RTD("sysq.rtd","","!DTDH`LC.99-1116:2") ->  | D156: =RTD("sysq.rtd","","!XTSH`LC.99-1116:2") ->  | E156: =RTD("sysq.rtd","","!XTDH`LC.99-1116:2") ->  | F156: =RTD("sysq.rtd","","!DTAI`LC.99-1116:2") ->  | G156: =RTD("sysq.rtd","","WTX&`004.10-1116:2") -> 
A157: 1117 | B157: =RTD("sysq.rtd","","!DTSH`LC.99-1117:2") ->  | C157: =RTD("sysq.rtd","","!DTDH`LC.99-1117:2") ->  | D157: =RTD("sysq.rtd","","!XTSH`LC.99-1117:2") ->  | E157: =RTD("sysq.rtd","","!XTDH`LC.99-1117:2") ->  | F157: =RTD("sysq.rtd","","!DTAI`LC.99-1117:2") ->  | G157: =RTD("sysq.rtd","","WTX&`004.10-1117:2") -> 
A158: 1118 | B158: =RTD("sysq.rtd","","!DTSH`LC.99-1118:2") ->  | C158: =RTD("sysq.rtd","","!DTDH`LC.99-1118:2") ->  | D158: =RTD("sysq.rtd","","!XTSH`LC.99-1118:2") ->  | E158: =RTD("sysq.rtd","","!XTDH`LC.99-1118:2") ->  | F158: =RTD("sysq.rtd","","!DTAI`LC.99-1118:2") ->  | G158: =RTD("sysq.rtd","","WTX&`004.10-1118:2") -> 
A159: 1119 | B159: =RTD("sysq.rtd","","!DTSH`LC.99-1119:2") ->  | C159: =RTD("sysq.rtd","","!DTDH`LC.99-1119:2") ->  | D159: =RTD("sysq.rtd","","!XTSH`LC.99-1119:2") ->  | E159: =RTD("sysq.rtd","","!XTDH`LC.99-1119:2") ->  | F159: =RTD("sysq.rtd","","!DTAI`LC.99-1119:2") ->  | G159: =RTD("sysq.rtd","","WTX&`004.10-1119:2") -> 
A160: 1120 | B160: =RTD("sysq.rtd","","!DTSH`LC.99-1120:2") ->  | C160: =RTD("sysq.rtd","","!DTDH`LC.99-1120:2") ->  | D160: =RTD("sysq.rtd","","!XTSH`LC.99-1120:2") ->  | E160: =RTD("sysq.rtd","","!XTDH`LC.99-1120:2") ->  | F160: =RTD("sysq.rtd","","!DTAI`LC.99-1120:2") ->  | G160: =RTD("sysq.rtd","","WTX&`004.10-1120:2") -> 
A161: 1121 | B161: =RTD("sysq.rtd","","!DTSH`LC.99-1121:2") ->  | C161: =RTD("sysq.rtd","","!DTDH`LC.99-1121:2") ->  | D161: =RTD("sysq.rtd","","!XTSH`LC.99-1121:2") ->  | E161: =RTD("sysq.rtd","","!XTDH`LC.99-1121:2") ->  | F161: =RTD("sysq.rtd","","!DTAI`LC.99-1121:2") ->  | G161: =RTD("sysq.rtd","","WTX&`004.10-1121:2") -> 
A162: 1122 | B162: =RTD("sysq.rtd","","!DTSH`LC.99-1122:2") ->  | C162: =RTD("sysq.rtd","","!DTDH`LC.99-1122:2") ->  | D162: =RTD("sysq.rtd","","!XTSH`LC.99-1122:2") ->  | E162: =RTD("sysq.rtd","","!XTDH`LC.99-1122:2") ->  | F162: =RTD("sysq.rtd","","!DTAI`LC.99-1122:2") ->  | G162: =RTD("sysq.rtd","","WTX&`004.10-1122:2") -> 
A163: 1123 | B163: =RTD("sysq.rtd","","!DTSH`LC.99-1123:2") ->  | C163: =RTD("sysq.rtd","","!DTDH`LC.99-1123:2") ->  | D163: =RTD("sysq.rtd","","!XTSH`LC.99-1123:2") ->  | E163: =RTD("sysq.rtd","","!XTDH`LC.99-1123:2") ->  | F163: =RTD("sysq.rtd","","!DTAI`LC.99-1123:2") ->  | G163: =RTD("sysq.rtd","","WTX&`004.10-1123:2") -> 
A164: 1124 | B164: =RTD("sysq.rtd","","!DTSH`LC.99-1124:2") ->  | C164: =RTD("sysq.rtd","","!DTDH`LC.99-1124:2") ->  | D164: =RTD("sysq.rtd","","!XTSH`LC.99-1124:2") ->  | E164: =RTD("sysq.rtd","","!XTDH`LC.99-1124:2") ->  | F164: =RTD("sysq.rtd","","!DTAI`LC.99-1124:2") ->  | G164: =RTD("sysq.rtd","","WTX&`004.10-1124:2") -> 
A165: 1125 | B165: =RTD("sysq.rtd","","!DTSH`LC.99-1125:2") ->  | C165: =RTD("sysq.rtd","","!DTDH`LC.99-1125:2") ->  | D165: =RTD("sysq.rtd","","!XTSH`LC.99-1125:2") ->  | E165: =RTD("sysq.rtd","","!XTDH`LC.99-1125:2") ->  | F165: =RTD("sysq.rtd","","!DTAI`LC.99-1125:2") ->  | G165: =RTD("sysq.rtd","","WTX&`004.10-1125:2") -> 
A166: 1126 | B166: =RTD("sysq.rtd","","!DTSH`LC.99-1126:2") ->  | C166: =RTD("sysq.rtd","","!DTDH`LC.99-1126:2") ->  | D166: =RTD("sysq.rtd","","!XTSH`LC.99-1126:2") ->  | E166: =RTD("sysq.rtd","","!XTDH`LC.99-1126:2") ->  | F166: =RTD("sysq.rtd","","!DTAI`LC.99-1126:2") ->  | G166: =RTD("sysq.rtd","","WTX&`004.10-1126:2") -> 
A167: 1127 | B167: =RTD("sysq.rtd","","!DTSH`LC.99-1127:2") ->  | C167: =RTD("sysq.rtd","","!DTDH`LC.99-1127:2") ->  | D167: =RTD("sysq.rtd","","!XTSH`LC.99-1127:2") ->  | E167: =RTD("sysq.rtd","","!XTDH`LC.99-1127:2") ->  | F167: =RTD("sysq.rtd","","!DTAI`LC.99-1127:2") ->  | G167: =RTD("sysq.rtd","","WTX&`004.10-1127:2") -> 
A168: 1128 | B168: =RTD("sysq.rtd","","!DTSH`LC.99-1128:2") ->  | C168: =RTD("sysq.rtd","","!DTDH`LC.99-1128:2") ->  | D168: =RTD("sysq.rtd","","!XTSH`LC.99-1128:2") ->  | E168: =RTD("sysq.rtd","","!XTDH`LC.99-1128:2") ->  | F168: =RTD("sysq.rtd","","!DTAI`LC.99-1128:2") ->  | G168: =RTD("sysq.rtd","","WTX&`004.10-1128:2") -> 
A169: 1129 | B169: =RTD("sysq.rtd","","!DTSH`LC.99-1129:2") ->  | C169: =RTD("sysq.rtd","","!DTDH`LC.99-1129:2") ->  | D169: =RTD("sysq.rtd","","!XTSH`LC.99-1129:2") ->  | E169: =RTD("sysq.rtd","","!XTDH`LC.99-1129:2") ->  | F169: =RTD("sysq.rtd","","!DTAI`LC.99-1129:2") ->  | G169: =RTD("sysq.rtd","","WTX&`004.10-1129:2") -> 
A170: 1130 | B170: =RTD("sysq.rtd","","!DTSH`LC.99-1130:2") ->  | C170: =RTD("sysq.rtd","","!DTDH`LC.99-1130:2") ->  | D170: =RTD("sysq.rtd","","!XTSH`LC.99-1130:2") ->  | E170: =RTD("sysq.rtd","","!XTDH`LC.99-1130:2") ->  | F170: =RTD("sysq.rtd","","!DTAI`LC.99-1130:2") ->  | G170: =RTD("sysq.rtd","","WTX&`004.10-1130:2") -> 
A171: 1131 | B171: =RTD("sysq.rtd","","!DTSH`LC.99-1131:2") ->  | C171: =RTD("sysq.rtd","","!DTDH`LC.99-1131:2") ->  | D171: =RTD("sysq.rtd","","!XTSH`LC.99-1131:2") ->  | E171: =RTD("sysq.rtd","","!XTDH`LC.99-1131:2") ->  | F171: =RTD("sysq.rtd","","!DTAI`LC.99-1131:2") ->  | G171: =RTD("sysq.rtd","","WTX&`004.10-1131:2") -> 
A172: 1132 | B172: =RTD("sysq.rtd","","!DTSH`LC.99-1132:2") ->  | C172: =RTD("sysq.rtd","","!DTDH`LC.99-1132:2") ->  | D172: =RTD("sysq.rtd","","!XTSH`LC.99-1132:2") ->  | E172: =RTD("sysq.rtd","","!XTDH`LC.99-1132:2") ->  | F172: =RTD("sysq.rtd","","!DTAI`LC.99-1132:2") ->  | G172: =RTD("sysq.rtd","","WTX&`004.10-1132:2") -> 
A173: 1133 | B173: =RTD("sysq.rtd","","!DTSH`LC.99-1133:2") ->  | C173: =RTD("sysq.rtd","","!DTDH`LC.99-1133:2") ->  | D173: =RTD("sysq.rtd","","!XTSH`LC.99-1133:2") ->  | E173: =RTD("sysq.rtd","","!XTDH`LC.99-1133:2") ->  | F173: =RTD("sysq.rtd","","!DTAI`LC.99-1133:2") ->  | G173: =RTD("sysq.rtd","","WTX&`004.10-1133:2") -> 
A174: 1134 | B174: =RTD("sysq.rtd","","!DTSH`LC.99-1134:2") ->  | C174: =RTD("sysq.rtd","","!DTDH`LC.99-1134:2") ->  | D174: =RTD("sysq.rtd","","!XTSH`LC.99-1134:2") ->  | E174: =RTD("sysq.rtd","","!XTDH`LC.99-1134:2") ->  | F174: =RTD("sysq.rtd","","!DTAI`LC.99-1134:2") ->  | G174: =RTD("sysq.rtd","","WTX&`004.10-1134:2") -> 
A175: 1135 | B175: =RTD("sysq.rtd","","!DTSH`LC.99-1135:2") ->  | C175: =RTD("sysq.rtd","","!DTDH`LC.99-1135:2") ->  | D175: =RTD("sysq.rtd","","!XTSH`LC.99-1135:2") ->  | E175: =RTD("sysq.rtd","","!XTDH`LC.99-1135:2") ->  | F175: =RTD("sysq.rtd","","!DTAI`LC.99-1135:2") ->  | G175: =RTD("sysq.rtd","","WTX&`004.10-1135:2") -> 
A176: 1136 | B176: =RTD("sysq.rtd","","!DTSH`LC.99-1136:2") ->  | C176: =RTD("sysq.rtd","","!DTDH`LC.99-1136:2") ->  | D176: =RTD("sysq.rtd","","!XTSH`LC.99-1136:2") ->  | E176: =RTD("sysq.rtd","","!XTDH`LC.99-1136:2") ->  | F176: =RTD("sysq.rtd","","!DTAI`LC.99-1136:2") ->  | G176: =RTD("sysq.rtd","","WTX&`004.10-1136:2") -> 
A177: 1137 | B177: =RTD("sysq.rtd","","!DTSH`LC.99-1137:2") ->  | C177: =RTD("sysq.rtd","","!DTDH`LC.99-1137:2") ->  | D177: =RTD("sysq.rtd","","!XTSH`LC.99-1137:2") ->  | E177: =RTD("sysq.rtd","","!XTDH`LC.99-1137:2") ->  | F177: =RTD("sysq.rtd","","!DTAI`LC.99-1137:2") ->  | G177: =RTD("sysq.rtd","","WTX&`004.10-1137:2") -> 
A178: 1138 | B178: =RTD("sysq.rtd","","!DTSH`LC.99-1138:2") ->  | C178: =RTD("sysq.rtd","","!DTDH`LC.99-1138:2") ->  | D178: =RTD("sysq.rtd","","!XTSH`LC.99-1138:2") ->  | E178: =RTD("sysq.rtd","","!XTDH`LC.99-1138:2") ->  | F178: =RTD("sysq.rtd","","!DTAI`LC.99-1138:2") ->  | G178: =RTD("sysq.rtd","","WTX&`004.10-1138:2") -> 
A179: 1139 | B179: =RTD("sysq.rtd","","!DTSH`LC.99-1139:2") ->  | C179: =RTD("sysq.rtd","","!DTDH`LC.99-1139:2") ->  | D179: =RTD("sysq.rtd","","!XTSH`LC.99-1139:2") ->  | E179: =RTD("sysq.rtd","","!XTDH`LC.99-1139:2") ->  | F179: =RTD("sysq.rtd","","!DTAI`LC.99-1139:2") ->  | G179: =RTD("sysq.rtd","","WTX&`004.10-1139:2") -> 
A180: 1140 | B180: =RTD("sysq.rtd","","!DTSH`LC.99-1140:2") ->  | C180: =RTD("sysq.rtd","","!DTDH`LC.99-1140:2") ->  | D180: =RTD("sysq.rtd","","!XTSH`LC.99-1140:2") ->  | E180: =RTD("sysq.rtd","","!XTDH`LC.99-1140:2") ->  | F180: =RTD("sysq.rtd","","!DTAI`LC.99-1140:2") ->  | G180: =RTD("sysq.rtd","","WTX&`004.10-1140:2") -> 
A181: 1141 | B181: =RTD("sysq.rtd","","!DTSH`LC.99-1141:2") ->  | C181: =RTD("sysq.rtd","","!DTDH`LC.99-1141:2") ->  | D181: =RTD("sysq.rtd","","!XTSH`LC.99-1141:2") ->  | E181: =RTD("sysq.rtd","","!XTDH`LC.99-1141:2") ->  | F181: =RTD("sysq.rtd","","!DTAI`LC.99-1141:2") ->  | G181: =RTD("sysq.rtd","","WTX&`004.10-1141:2") -> 
A182: 1142 | B182: =RTD("sysq.rtd","","!DTSH`LC.99-1142:2") ->  | C182: =RTD("sysq.rtd","","!DTDH`LC.99-1142:2") ->  | D182: =RTD("sysq.rtd","","!XTSH`LC.99-1142:2") ->  | E182: =RTD("sysq.rtd","","!XTDH`LC.99-1142:2") ->  | F182: =RTD("sysq.rtd","","!DTAI`LC.99-1142:2") ->  | G182: =RTD("sysq.rtd","","WTX&`004.10-1142:2") -> 
A183: 1143 | B183: =RTD("sysq.rtd","","!DTSH`LC.99-1143:2") ->  | C183: =RTD("sysq.rtd","","!DTDH`LC.99-1143:2") ->  | D183: =RTD("sysq.rtd","","!XTSH`LC.99-1143:2") ->  | E183: =RTD("sysq.rtd","","!XTDH`LC.99-1143:2") ->  | F183: =RTD("sysq.rtd","","!DTAI`LC.99-1143:2") ->  | G183: =RTD("sysq.rtd","","WTX&`004.10-1143:2") -> 
A184: 1144 | B184: =RTD("sysq.rtd","","!DTSH`LC.99-1144:2") ->  | C184: =RTD("sysq.rtd","","!DTDH`LC.99-1144:2") ->  | D184: =RTD("sysq.rtd","","!XTSH`LC.99-1144:2") ->  | E184: =RTD("sysq.rtd","","!XTDH`LC.99-1144:2") ->  | F184: =RTD("sysq.rtd","","!DTAI`LC.99-1144:2") ->  | G184: =RTD("sysq.rtd","","WTX&`004.10-1144:2") -> 
A185: 1145 | B185: =RTD("sysq.rtd","","!DTSH`LC.99-1145:2") ->  | C185: =RTD("sysq.rtd","","!DTDH`LC.99-1145:2") ->  | D185: =RTD("sysq.rtd","","!XTSH`LC.99-1145:2") ->  | E185: =RTD("sysq.rtd","","!XTDH`LC.99-1145:2") ->  | F185: =RTD("sysq.rtd","","!DTAI`LC.99-1145:2") ->  | G185: =RTD("sysq.rtd","","WTX&`004.10-1145:2") -> 
A186: 1146 | B186: =RTD("sysq.rtd","","!DTSH`LC.99-1146:2") ->  | C186: =RTD("sysq.rtd","","!DTDH`LC.99-1146:2") ->  | D186: =RTD("sysq.rtd","","!XTSH`LC.99-1146:2") ->  | E186: =RTD("sysq.rtd","","!XTDH`LC.99-1146:2") ->  | F186: =RTD("sysq.rtd","","!DTAI`LC.99-1146:2") ->  | G186: =RTD("sysq.rtd","","WTX&`004.10-1146:2") -> 
A187: 1147 | B187: =RTD("sysq.rtd","","!DTSH`LC.99-1147:2") ->  | C187: =RTD("sysq.rtd","","!DTDH`LC.99-1147:2") ->  | D187: =RTD("sysq.rtd","","!XTSH`LC.99-1147:2") ->  | E187: =RTD("sysq.rtd","","!XTDH`LC.99-1147:2") ->  | F187: =RTD("sysq.rtd","","!DTAI`LC.99-1147:2") ->  | G187: =RTD("sysq.rtd","","WTX&`004.10-1147:2") -> 
A188: 1148 | B188: =RTD("sysq.rtd","","!DTSH`LC.99-1148:2") ->  | C188: =RTD("sysq.rtd","","!DTDH`LC.99-1148:2") ->  | D188: =RTD("sysq.rtd","","!XTSH`LC.99-1148:2") ->  | E188: =RTD("sysq.rtd","","!XTDH`LC.99-1148:2") ->  | F188: =RTD("sysq.rtd","","!DTAI`LC.99-1148:2") ->  | G188: =RTD("sysq.rtd","","WTX&`004.10-1148:2") -> 
A189: 1149 | B189: =RTD("sysq.rtd","","!DTSH`LC.99-1149:2") ->  | C189: =RTD("sysq.rtd","","!DTDH`LC.99-1149:2") ->  | D189: =RTD("sysq.rtd","","!XTSH`LC.99-1149:2") ->  | E189: =RTD("sysq.rtd","","!XTDH`LC.99-1149:2") ->  | F189: =RTD("sysq.rtd","","!DTAI`LC.99-1149:2") ->  | G189: =RTD("sysq.rtd","","WTX&`004.10-1149:2") -> 
A190: 1150 | B190: =RTD("sysq.rtd","","!DTSH`LC.99-1150:2") ->  | C190: =RTD("sysq.rtd","","!DTDH`LC.99-1150:2") ->  | D190: =RTD("sysq.rtd","","!XTSH`LC.99-1150:2") ->  | E190: =RTD("sysq.rtd","","!XTDH`LC.99-1150:2") ->  | F190: =RTD("sysq.rtd","","!DTAI`LC.99-1150:2") ->  | G190: =RTD("sysq.rtd","","WTX&`004.10-1150:2") -> 
A191: 1151 | B191: =RTD("sysq.rtd","","!DTSH`LC.99-1151:2") ->  | C191: =RTD("sysq.rtd","","!DTDH`LC.99-1151:2") ->  | D191: =RTD("sysq.rtd","","!XTSH`LC.99-1151:2") ->  | E191: =RTD("sysq.rtd","","!XTDH`LC.99-1151:2") ->  | F191: =RTD("sysq.rtd","","!DTAI`LC.99-1151:2") ->  | G191: =RTD("sysq.rtd","","WTX&`004.10-1151:2") -> 
A192: 1152 | B192: =RTD("sysq.rtd","","!DTSH`LC.99-1152:2") ->  | C192: =RTD("sysq.rtd","","!DTDH`LC.99-1152:2") ->  | D192: =RTD("sysq.rtd","","!XTSH`LC.99-1152:2") ->  | E192: =RTD("sysq.rtd","","!XTDH`LC.99-1152:2") ->  | F192: =RTD("sysq.rtd","","!DTAI`LC.99-1152:2") ->  | G192: =RTD("sysq.rtd","","WTX&`004.10-1152:2") -> 
A193: 1153 | B193: =RTD("sysq.rtd","","!DTSH`LC.99-1153:2") ->  | C193: =RTD("sysq.rtd","","!DTDH`LC.99-1153:2") ->  | D193: =RTD("sysq.rtd","","!XTSH`LC.99-1153:2") ->  | E193: =RTD("sysq.rtd","","!XTDH`LC.99-1153:2") ->  | F193: =RTD("sysq.rtd","","!DTAI`LC.99-1153:2") ->  | G193: =RTD("sysq.rtd","","WTX&`004.10-1153:2") -> 
A194: 1154 | B194: =RTD("sysq.rtd","","!DTSH`LC.99-1154:2") ->  | C194: =RTD("sysq.rtd","","!DTDH`LC.99-1154:2") ->  | D194: =RTD("sysq.rtd","","!XTSH`LC.99-1154:2") ->  | E194: =RTD("sysq.rtd","","!XTDH`LC.99-1154:2") ->  | F194: =RTD("sysq.rtd","","!DTAI`LC.99-1154:2") ->  | G194: =RTD("sysq.rtd","","WTX&`004.10-1154:2") -> 
A195: 1155 | B195: =RTD("sysq.rtd","","!DTSH`LC.99-1155:2") ->  | C195: =RTD("sysq.rtd","","!DTDH`LC.99-1155:2") ->  | D195: =RTD("sysq.rtd","","!XTSH`LC.99-1155:2") ->  | E195: =RTD("sysq.rtd","","!XTDH`LC.99-1155:2") ->  | F195: =RTD("sysq.rtd","","!DTAI`LC.99-1155:2") ->  | G195: =RTD("sysq.rtd","","WTX&`004.10-1155:2") -> 
A196: 1156 | B196: =RTD("sysq.rtd","","!DTSH`LC.99-1156:2") ->  | C196: =RTD("sysq.rtd","","!DTDH`LC.99-1156:2") ->  | D196: =RTD("sysq.rtd","","!XTSH`LC.99-1156:2") ->  | E196: =RTD("sysq.rtd","","!XTDH`LC.99-1156:2") ->  | F196: =RTD("sysq.rtd","","!DTAI`LC.99-1156:2") ->  | G196: =RTD("sysq.rtd","","WTX&`004.10-1156:2") -> 
A197: 1157 | B197: =RTD("sysq.rtd","","!DTSH`LC.99-1157:2") ->  | C197: =RTD("sysq.rtd","","!DTDH`LC.99-1157:2") ->  | D197: =RTD("sysq.rtd","","!XTSH`LC.99-1157:2") ->  | E197: =RTD("sysq.rtd","","!XTDH`LC.99-1157:2") ->  | F197: =RTD("sysq.rtd","","!DTAI`LC.99-1157:2") ->  | G197: =RTD("sysq.rtd","","WTX&`004.10-1157:2") -> 
A198: 1158 | B198: =RTD("sysq.rtd","","!DTSH`LC.99-1158:2") ->  | C198: =RTD("sysq.rtd","","!DTDH`LC.99-1158:2") ->  | D198: =RTD("sysq.rtd","","!XTSH`LC.99-1158:2") ->  | E198: =RTD("sysq.rtd","","!XTDH`LC.99-1158:2") ->  | F198: =RTD("sysq.rtd","","!DTAI`LC.99-1158:2") ->  | G198: =RTD("sysq.rtd","","WTX&`004.10-1158:2") ->  | H198: =SQRT(ABS(F198))*(ABS(F198)/F198) -> 
A199: 1159 | B199: =RTD("sysq.rtd","","!DTSH`LC.99-1159:2") ->  | C199: =RTD("sysq.rtd","","!DTDH`LC.99-1159:2") ->  | D199: =RTD("sysq.rtd","","!XTSH`LC.99-1159:2") ->  | E199: =RTD("sysq.rtd","","!XTDH`LC.99-1159:2") ->  | F199: =RTD("sysq.rtd","","!DTAI`LC.99-1159:2") ->  | G199: =RTD("sysq.rtd","","WTX&`004.10-1159:2") -> 
A200: 1200 | B200: =RTD("sysq.rtd","","!DTSH`LC.99-1200:2") ->  | C200: =RTD("sysq.rtd","","!DTDH`LC.99-1200:2") ->  | D200: =RTD("sysq.rtd","","!XTSH`LC.99-1200:2") ->  | E200: =RTD("sysq.rtd","","!XTDH`LC.99-1200:2") ->  | F200: =RTD("sysq.rtd","","!DTAI`LC.99-1200:2") ->  | G200: =RTD("sysq.rtd","","WTX&`004.10-1200:2") -> 
... 946 more rows

Sheet 外資大台
A1: 外資 | E1: 單位：億 | H1: 今日進出 | J1: 買方OI | K1: 以當日結算價計算 | L1: 賣方OI | N1: 淨部位
D2: 1 | F2: 2 | H2: 3 | J2: 4 | L2: 5 | N2: 6
A3: 日期 | B3: 代碼 | C3: 名稱 | D3: 多方口數 | E3: 多方契約金額 | F3: 空方口數 | G3: 空方契約金額 | H3: 多空口數 | I3: 多空契約金額 | J3: 多方為未平倉口數 | K3: 多方未平倉契約金額 | L3: 空方未平倉口數 | M3: 空方未平倉契約金額 | N3: 多空未平倉口數 | O3: 多空未平倉契約金額 | P3: 收盤
A4: 20200824 | B4: FITX | C4: 臺股指數期貨 | D4: 59739 | E4: 150.3146 | F4: 58200 | G4: 146.44 | H4: 1539 | I4: 3.8746 | J4: 50924 | K4: 128.3574 | L4: 21210 | M4: 53.4374 | N4: 29714 | O4: 74.9201
A5: 20200821 | B5: FITX | C5: 臺股指數期貨 | D5: 83556 | E5: 208.2154 | F5: 76097 | G5: 189.6567 | H5: 7459 | I5: 18.5587 | J5: 50820 | K5: 127.5669 | L5: 22648 | M5: 56.8263 | N5: 28172 | O5: 70.7406
A6: 20200820 | B6: FITX | C6: 臺股指數期貨 | D6: 116932 | E6: 290.3492 | F6: 118280 | G6: 293.9639 | H6: -1348 | I6: -3.6147 | J6: 48970 | K6: 120.4454 | L6: 28266 | M6: 69.5009 | N6: 20704 | O6: 50.9446
A7: 20200819 | B7: FITX | C7: 臺股指數期貨 | D7: 64712 | E7: 166.2808 | F7: 66791 | G7: 171.6363 | H7: -2079 | I7: -5.3555 | J7: 46718 | K7: 119.1213 | L7: 23469 | M7: 59.8237 | N7: 23249 | O7: 59.2976
A8: 20200818 | B8: FITX | C8: 臺股指數期貨 | D8: 89627 | E8: 231.0627 | F8: 92474 | G8: 238.5213 | H8: -2847 | I8: -7.4587 | J8: 53796 | K8: 138.1644 | L8: 26875 | M8: 69.0289 | N8: 26921 | O8: 69.1354
A9: 20200817 | B9: FITX | C9: 臺股指數期貨 | D9: 80293 | E9: 206.5502 | F9: 79669 | G9: 205.1359 | H9: 624 | I9: 1.4143 | J9: 56664 | K9: 146.5272 | L9: 26396 | M9: 68.2182 | N9: 30268 | O9: 78.309
A10: 20200814 | B10: FITX | C10: 臺股指數期貨 | D10: 63767 | E10: 162.24 | F10: 63594 | G10: 161.8487 | H10: 173 | I10: 0.3913 | J10: 55260 | K10: 141.26 | L10: 26516 | M10: 67.6752 | N10: 28744 | O10: 73.5848
A11: 20200813 | B11: FITX | C11: 臺股指數期貨 | D11: 62504 | E11: 159.3991 | F11: 62433 | G11: 159.2349 | H11: 71 | I11: 0.1642 | J11: 55616 | K11: 141.5221 | L11: 27045 | M11: 68.6929 | N11: 28571 | O11: 72.8292
A12: 20200812 | B12: FITX | C12: 臺股指數期貨 | D12: 73678 | E12: 186.4919 | F12: 72146 | G12: 182.6011 | H12: 1532 | I12: 3.8909 | J12: 55669 | K12: 140.8915 | L12: 27137 | M12: 68.555 | N12: 28532 | O12: 72.3366
A13: 20200811 | B13: FITX | C13: 臺股指數期貨 | D13: 54658 | E13: 140.0824 | F13: 55854 | G13: 143.1434 | H13: -1196 | I13: -3.061 | J13: 58185 | K13: 148.1912 | L13: 30232 | M13: 76.8834 | N13: 27953 | O13: 71.3078
A14: 20200810 | B14: FITX | C14: 臺股指數期貨 | D14: 58485 | E14: 149.9651 | F14: 61191 | G14: 156.9056 | H14: -2706 | I14: -6.9405 | J14: 59574 | K14: 153.1469 | L14: 30425 | M14: 78.0956 | N14: 29149 | O14: 75.0513
A15: 20200807 | B15: FITX | C15: 臺股指數期貨 | D15: 62758 | E15: 160.484 | F15: 62381 | G15: 159.5494 | H15: 377 | I15: 0.9346 | J15: 61378 | K15: 156.6186 | L15: 29523 | M15: 75.2175 | N15: 31855 | O15: 81.4012
A16: 20200806 | B16: FITX | C16: 臺股指數期貨 | D16: 73989 | E16: 189.838 | F16: 74174 | G16: 190.3329 | H16: -185 | I16: -0.4949 | J16: 62223 | K16: 159.7334 | L16: 30745 | M16: 78.8087 | N16: 31478 | O16: 80.9247
A17: 20200805 | B17: FITX | C17: 臺股指數期貨 | D17: 56408 | E17: 143.144 | F17: 55571 | G17: 141.0115 | H17: 837 | I17: 2.1325 | J17: 62719 | K17: 159.8149 | L17: 31056 | M17: 79.0226 | N17: 31663 | O17: 80.7923
A18: 20200804 | B18: FITX | C18: 臺股指數期貨 | D18: 66844 | E18: 167.3932 | F18: 60641 | G18: 151.8909 | H18: 6203 | I18: 15.5022 | J18: 61047 | K18: 154.1879 | L18: 30221 | M18: 76.23 | N18: 30826 | O18: 77.9579
A19: 20200803 | B19: FITX | C19: 臺股指數期貨 | D19: 79893 | E19: 199.53 | F19: 83112 | G19: 207.6123 | H19: -3219 | I19: -8.0824 | J19: 58563 | K19: 145.7 | L19: 33940 | M19: 84.344 | N19: 24623 | O19: 61.3561
A20: 20200731 | B20: FITX | C20: 臺股指數期貨 | D20: 83183 | E20: 209.0025 | F20: 85814 | G20: 215.58 | H20: -2631 | I20: -6.5775 | J20: 60051 | K20: 151.036 | L20: 30809 | M20: 77.392 | N20: 29242 | O20: 73.6439
A21: 20200730 | B21: FITX | C21: 臺股指數期貨 | D21: 76844 | E21: 192.9117 | F21: 74102 | G21: 186.0596 | H21: 2742 | I21: 6.8521 | J21: 59809 | K21: 150.6551 | L21: 27936 | M21: 70.2813 | N21: 31873 | O21: 80.3739
A22: 20200729 | B22: FITX | C22: 臺股指數期貨 | D22: 84834 | E22: 211.3117 | F22: 84957 | G22: 211.6112 | H22: -123 | I22: -0.2995 | J22: 59034 | K22: 146.6484 | L22: 29904 | M22: 74.1996 | N22: 29130 | O22: 72.4488
A23: 20200728 | B23: FITX | C23: 臺股指數期貨 | D23: 133456 | E23: 337.5451 | F23: 135648 | G23: 343.0705 | H23: -2192 | I23: -5.5253 | J23: 56475 | K23: 140.6643 | L23: 27208 | M23: 67.6941 | N23: 29267 | O23: 72.9702
A24: 20200727 | B24: FITX | C24: 臺股指數期貨 | D24: 97694 | E24: 242.488 | F24: 94689 | G24: 235.1547 | H24: 3005 | I24: 7.3333 | J24: 57718 | K24: 144.2692 | L24: 25262 | M24: 63.0757 | N24: 32456 | O24: 81.1935
A25: 20200724 | B25: FITX | C25: 臺股指數期貨 | D25: 90033 | E25: 220.4495 | F25: 85651 | G25: 209.7104 | H25: 4382 | I25: 10.7391 | J25: 57673 | K25: 140.143 | L25: 29218 | M25: 70.9346 | N25: 28455 | O25: 69.2084
A26: 20200723 | B26: FITX | C26: 臺股指數期貨 | D26: 64718 | E26: 158.8374 | F26: 67130 | G26: 164.7674 | H26: -2412 | I26: -5.9299 | J26: 55788 | K26: 137.0913 | L26: 31715 | M26: 77.8806 | N26: 24073 | O26: 59.2107
A27: 20200722 | B27: FITX | C27: 臺股指數期貨 | D27: 55109 | E27: 135.7638 | F27: 56147 | G27: 138.3262 | H27: -1038 | I27: -2.5624 | J27: 58438 | K27: 144.1295 | L27: 30700 | M27: 75.6652 | N27: 27738 | O27: 68.4643
A28: 20200721 | B28: FITX | C28: 臺股指數期貨 | D28: 59862 | E28: 146.3263 | F28: 60243 | G28: 147.2886 | H28: -381 | I28: -0.9623 | J28: 58044 | K28: 142.6466 | L28: 29268 | M28: 71.8873 | N28: 28776 | O28: 70.7593
A29: 20200720 | B29: FITX | C29: 臺股指數期貨 | D29: 61223 | E29: 146.975 | F29: 60991 | G29: 146.4287 | H29: 232 | I29: 0.5464 | J29: 53429 | K29: 128.5757 | L29: 24271 | M29: 58.3727 | N29: 29158 | O29: 70.203
A30: 20200717 | B30: FITX | C30: 臺股指數期貨 | D30: 64239 | E30: 154.8845 | F30: 61578 | G30: 148.4667 | H30: 2661 | I30: 6.4178 | J30: 52594 | K30: 126.6294 | L30: 23673 | M30: 56.9647 | N30: 28921 | O30: 69.6647
A31: 20200716 | B31: FITX | C31: 臺股指數期貨 | D31: 70500 | E31: 169.682 | F31: 71762 | G31: 172.7352 | H31: -1262 | I31: -3.0533 | J31: 50745 | K31: 122.077 | L31: 24487 | M31: 58.8844 | N31: 26258 | O31: 63.1926
A32: 20200715 | B32: FITX | C32: 臺股指數期貨 | D32: 79473 | E32: 193.3133 | F32: 80568 | G32: 196.0495 | H32: -1095 | I32: -2.7362 | J32: 51459 | K32: 124.3604 | L32: 23953 | M32: 57.8633 | N32: 27506 | O32: 66.4971
A33: 20200714 | B33: FITX | C33: 臺股指數期貨 | D33: 112914 | E33: 273.7278 | F33: 114307 | G33: 277.6364 | H33: -1393 | I33: -3.9086 | J33: 61707 | K33: 148.8553 | L33: 30101 | M33: 72.6396 | N33: 31606 | O33: 76.2157
A34: 20200713 | B34: FITX | C34: 臺股指數期貨 | D34: 81394 | E34: 196.81 | F34: 86673 | G34: 210.1301 | H34: -5279 | I34: -13.3201 | J34: 62052 | K34: 150.6509 | L34: 28053 | M34: 68.0389 | N34: 33999 | O34: 82.6121
A35: 20200710 | B35: FITX | C35: 臺股指數期貨 | D35: 83768 | E35: 202.2371 | F35: 78975 | G35: 190.7975 | H35: 4793 | I35: 11.4397 | J35: 66724 | K35: 159.835 | L35: 27453 | M35: 65.5017 | N35: 39271 | O35: 94.3333
A36: 20200709 | B36: FITX | C36: 臺股指數期貨 | D36: 60589 | E36: 147.3914 | F36: 60441 | G36: 147.0242 | H36: 148 | I36: 0.3671 | J36: 63971 | K36: 155.3823 | L36: 29493 | M36: 71.361 | N36: 34478 | O36: 84.0213
A37: 20200708 | B37: FITX | C37: 臺股指數期貨 | D37: 58435 | E37: 141.1459 | F37: 60368 | G37: 145.8601 | H37: -1933 | I37: -4.7143 | J37: 64631 | K37: 156.6996 | L37: 30301 | M37: 73.2188 | N37: 34330 | O37: 83.4807
A38: 20200707 | B38: FITX | C38: 臺股指數期貨 | D38: 71734 | E38: 173.2684 | F38: 71688 | G38: 173.1549 | H38: 46 | I38: 0.1135 | J38: 65787 | K38: 158.2136 | L38: 29530 | M38: 70.7787 | N38: 36257 | O38: 87.4349
A39: 20200706 | B39: FITX | C39: 臺股指數期貨 | D39: 48021 | E39: 115.1061 | F39: 53454 | G39: 128.1594 | H39: -5433 | I39: -13.0533 | J39: 66252 | K39: 159.8478 | L39: 30048 | M39: 72.2663 | N39: 36204 | O39: 87.5816
A40: 20200703 | B40: FITX | C40: 臺股指數期貨 | D40: 58905 | E40: 138.9857 | F40: 55268 | G40: 130.3998 | H40: 3637 | I40: 8.586 | J40: 67409 | K40: 159.5047 | L40: 25763 | M40: 60.7162 | N40: 41646 | O40: 98.7885
A41: 20200702 | B41: FITX | C41: 臺股指數期貨 | D41: 53724 | E41: 124.91 | F41: 50758 | G41: 117.9956 | H41: 2966 | I41: 6.9144 | J41: 65020 | K41: 152.0417 | L41: 28560 | M41: 66.5533 | N41: 36460 | O41: 85.4884
A42: 20200701 | B42: FITX | C42: 臺股指數期貨 | D42: 55302 | E42: 127.5874 | F42: 52644 | G42: 121.3916 | H42: 2658 | I42: 6.1958 | J42: 63447 | K42: 146.4474 | L42: 29952 | M42: 68.9222 | N42: 33495 | O42: 77.5252
A43: 20200630 | B43: FITX | C43: 臺股指數期貨 | D43: 49511 | E43: 113.2269 | F43: 49355 | G43: 112.856 | H43: 156 | I43: 0.3709 | J43: 58662 | K43: 134.5311 | L43: 27824 | M43: 63.5949 | N43: 30838 | O43: 70.9361
A44: 20200629 | B44: FITX | C44: 臺股指數期貨 | D44: 76987 | E44: 175.596 | F44: 78938 | G44: 180.0474 | H44: -1951 | I44: -4.4514 | J44: 59638 | K44: 135.4951 | L44: 27956 | M44: 63.3334 | N44: 31682 | O44: 72.1617
A45: 20200624 | B45: FITX | C45: 臺股指數期貨 | D45: 48392 | E45: 111.5425 | F45: 47863 | G45: 110.3153 | H45: 529 | I45: 1.2271 | J45: 61980 | K45: 142.8021 | L45: 28346 | M45: 65.1412 | N45: 33634 | O45: 77.6609
A46: 20200623 | B46: FITX | C46: 臺股指數期貨 | D46: 75823 | E46: 173.5291 | F46: 75236 | G46: 172.1805 | H46: 587 | I46: 1.3486 | J46: 60736 | K46: 139.1225 | L46: 27627 | M46: 63.1231 | N46: 33109 | O46: 75.9993
A47: 20200622 | B47: FITX | C47: 臺股指數期貨 | D47: 65896 | E47: 150.5653 | F47: 65326 | G47: 149.2437 | H47: 570 | I47: 1.3215 | J47: 59695 | K47: 136.3216 | L47: 27174 | M47: 61.925 | N47: 32521 | O47: 74.3966
A48: 20200619 | B48: FITX | C48: 臺股指數期貨 | D48: 56030 | E48: 127.8511 | F48: 56989 | G48: 130.0345 | H48: -959 | I48: -2.1833 | J48: 54928 | K48: 125.3009 | L48: 22973 | M48: 52.3074 | N48: 31955 | O48: 72.9936
A49: 20200618 | B49: FITX | C49: 臺股指數期貨 | D49: 67303 | E49: 153.0441 | F49: 65911 | G49: 149.877 | H49: 1392 | I49: 3.1672 | J49: 55977 | K49: 127.5388 | L49: 23062 | M49: 52.4544 | N49: 32915 | O49: 75.0844
A50: 20200617 | B50: FITX | C50: 臺股指數期貨 | D50: 83343 | E50: 190.3541 | F50: 82839 | G50: 189.2947 | H50: 504 | I50: 1.0594 | J50: 55668 | K50: 126.4357 | L50: 24154 | M50: 54.7766 | N50: 31514 | O50: 71.6591
A51: 20200616 | B51: FITX | C51: 臺股指數期貨 | D51: 116733 | E51: 265.8527 | F51: 118133 | G51: 269.5615 | H51: -1400 | I51: -3.7088 | J51: 66214 | K51: 150.5621 | L51: 30635 | M51: 69.6097 | N51: 35579 | O51: 80.9523
A52: 20200615 | B52: FITX | C52: 臺股指數期貨 | D52: 130709 | E52: 296.0267 | F52: 127325 | G52: 289.0517 | H52: 3384 | I52: 6.975 | J52: 63753 | K52: 141.9157 | L52: 26783 | M52: 59.505 | N52: 36970 | O52: 82.4107
A53: 20200612 | B53: FITX | C53: 臺股指數期貨 | D53: 93462 | E53: 212.3168 | F53: 99098 | G53: 225.4554 | H53: -5636 | I53: -13.1385 | J53: 63832 | K53: 145.0852 | L53: 28695 | M53: 64.9562 | N53: 35137 | O53: 80.1289
A54: 20200611 | B54: FITX | C54: 臺股指數期貨 | D54: 79541 | E54: 184.7848 | F54: 75965 | G54: 176.5524 | H54: 3576 | I54: 8.2324 | J54: 64318 | K54: 147.754 | L54: 23542 | M54: 53.6687 | N54: 40776 | O54: 94.0853
A55: 20200610 | B55: FITX | C55: 臺股指數期貨 | D55: 53517 | E55: 124.704 | F55: 55377 | G55: 129.0383 | H55: -1860 | I55: -4.3343 | J55: 61176 | K55: 143.1468 | L55: 23975 | M55: 55.7332 | N55: 37201 | O55: 87.4136
A56: 20200609 | B56: FITX | C56: 臺股指數期貨 | D56: 54256 | E56: 125.6843 | F56: 52346 | G56: 121.2157 | H56: 1910 | I56: 4.4685 | J56: 61433 | K56: 142.5481 | L56: 22390 | M56: 51.5971 | N56: 39043 | O56: 90.951
A57: 20200608 | B57: FITX | C57: 臺股指數期貨 | D57: 67744 | E57: 156.6301 | F57: 70650 | G57: 163.3457 | H57: -2906 | I57: -6.7156 | J57: 58002 | K57: 134.1673 | L57: 20873 | M57: 47.9674 | N57: 37129 | O57: 86.1999
A58: 20200605 | B58: FITX | C58: 臺股指數期貨 | D58: 51364 | E58: 117.1939 | F58: 50755 | G58: 115.8029 | H58: 609 | I58: 1.3909 | J58: 59383 | K58: 136.0291 | L58: 19348 | M58: 44.0373 | N58: 40035 | O58: 91.9918
A59: 20200604 | B59: FITX | C59: 臺股指數期貨 | D59: 62605 | E59: 142.2923 | F59: 64082 | G59: 145.6374 | H59: -1477 | I59: -3.345 | J59: 56523 | K59: 128.357 | L59: 17097 | M59: 38.5549 | N59: 39426 | O59: 89.8021
A60: 20200603 | B60: FITX | C60: 臺股指數期貨 | D60: 58528 | E60: 131.4244 | F60: 57050 | G60: 128.1281 | H60: 1478 | I60: 3.2962 | J60: 59054 | K60: 133.2199 | L60: 18160 | M60: 40.7149 | N60: 40894 | O60: 92.505
A61: 20200602 | B61: FITX | C61: 臺股指數期貨 | D61: 46678 | E61: 103.487 | F61: 45984 | G61: 101.9212 | H61: 694 | I61: 1.5658 | J61: 57432 | K61: 127.5386 | L61: 18038 | M61: 39.8184 | N61: 39394 | O61: 87.7203
A62: 20200601 | B62: FITX | C62: 臺股指數期貨 | D62: 62685 | E62: 138.0677 | F62: 62202 | G62: 136.9204 | H62: 483 | I62: 1.1473 | J62: 58294 | K62: 128.8707 | L62: 19599 | M62: 43.1152 | N62: 38695 | O62: 85.7555
A63: 20200529 | B63: FITX | C63: 臺股指數期貨 | D63: 64667 | E63: 140.8468 | F63: 63070 | G63: 137.3718 | H63: 1597 | I63: 3.475 | J63: 54853 | K63: 119.7472 | L63: 18241 | M63: 39.6725 | N63: 36612 | O63: 80.0748
A64: 20200528 | B64: FITX | C64: 臺股指數期貨 | D64: 76075 | E64: 166.8224 | F64: 75243 | G64: 165.053 | H64: 832 | I64: 1.7694 | J64: 53556 | K64: 116.8283 | L64: 18541 | M64: 40.3003 | N64: 35015 | O64: 76.528
A65: 20200527 | B65: FITX | C65: 臺股指數期貨 | D65: 54171 | E65: 119.0004 | F65: 54186 | G65: 119.0342 | H65: -15 | I65: -0.0338 | J65: 52624 | K65: 115.447 | L65: 18441 | M65: 40.3216 | N65: 34183 | O65: 75.1254
A66: 20200526 | B66: FITX | C66: 臺股指數期貨 | D66: 48046 | E66: 105.3643 | F66: 46575 | G66: 102.1499 | H66: 1471 | I66: 3.2144 | J66: 53509 | K66: 117.5037 | L66: 19311 | M66: 42.2659 | N66: 34198 | O66: 75.2378
A67: 20200525 | B67: FITX | C67: 臺股指數期貨 | D67: 67636 | E67: 145.4782 | F67: 68168 | G67: 146.6862 | H67: -532 | I67: -1.208 | J67: 51254 | K67: 110.8787 | L67: 18533 | M67: 39.9556 | N67: 32721 | O67: 70.9231
A68: 20200522 | B68: FITX | C68: 臺股指數期貨 | D68: 75992 | E68: 164.6004 | F68: 76862 | G68: 166.5247 | H68: -870 | I68: -1.9243 | J68: 53263 | K68: 114.4061 | L68: 20010 | M68: 42.8435 | N68: 33253 | O68: 71.5626
A69: 20200521 | B69: FITX | C69: 臺股指數期貨 | D69: 60115 | E69: 131.4347 | F69: 62001 | G69: 135.5404 | H69: -1886 | I69: -4.1056 | J69: 52661 | K69: 115.3149 | L69: 18534 | M69: 40.4854 | N69: 34127 | O69: 74.8295
A70: 20200520 | B70: FITX | C70: 臺股指數期貨 | D70: 63088 | E70: 137.2301 | F70: 63033 | G70: 137.1458 | H70: 55 | I70: 0.0843 | J70: 51771 | K70: 112.3074 | L70: 15758 | M70: 34.1209 | N70: 36013 | O70: 78.1866
A71: 20200519 | B71: FITX | C71: 臺股指數期貨 | D71: 97699 | E71: 212.2647 | F71: 96226 | G71: 209.1478 | H71: 1473 | I71: 3.1169 | J71: 63349 | K71: 137.0682 | L71: 25919 | M71: 56.0963 | N71: 37430 | O71: 80.9719
A72: 20200518 | B72: FITX | C72: 臺股指數期貨 | D72: 99189 | E72: 213.3031 | F72: 104089 | G72: 224.026 | H72: -4900 | I72: -10.7229 | J72: 65514 | K72: 140.5071 | L72: 29557 | M72: 63.4197 | N72: 35957 | O72: 77.0874
A73: 20200515 | B73: FITX | C73: 臺股指數期貨 | D73: 94307 | E73: 203.1144 | F73: 91794 | G73: 197.834 | H73: 2513 | I73: 5.2804 | J73: 65077 | K73: 140.5169 | L73: 23811 | M73: 51.3663 | N73: 41266 | O73: 89.1506
A74: 20200514 | B74: FITX | C74: 臺股指數期貨 | D74: 77338 | E74: 167.5305 | F74: 79079 | G74: 171.3914 | H74: -1741 | I74: -3.8609 | J74: 63806 | K74: 137.0052 | L74: 25053 | M74: 53.7023 | N74: 38753 | O74: 83.3029
A75: 20200513 | B75: FITX | C75: 臺股指數期貨 | D75: 57544 | E75: 125.0313 | F75: 54396 | G75: 118.2538 | H75: 3148 | I75: 6.7775 | J75: 64559 | K75: 140.7899 | L75: 22864 | M75: 49.7579 | N75: 41695 | O75: 91.032
A76: 20200512 | B76: FITX | C76: 臺股指數期貨 | D76: 60638 | E76: 131.9429 | F76: 58973 | G76: 128.3667 | H76: 1665 | I76: 3.5763 | J76: 62025 | K76: 134.6778 | L76: 23478 | M76: 50.878 | N76: 38547 | O76: 83.7999
A77: 20200511 | B77: FITX | C77: 臺股指數期貨 | D77: 50039 | E77: 109.8047 | F77: 50244 | G77: 110.2752 | H77: -205 | I77: -0.4704 | J77: 60376 | K77: 132.5125 | L77: 23494 | M77: 51.4557 | N77: 36882 | O77: 81.0568
A78: 20200508 | B78: FITX | C78: 臺股指數期貨 | D78: 57754 | E78: 125.7402 | F78: 58530 | G78: 127.4263 | H78: -776 | I78: -1.6862 | J78: 59538 | K78: 129.6365 | L78: 22450 | M78: 48.7646 | N78: 37088 | O78: 80.8719
A79: 20200507 | B79: FITX | C79: 臺股指數期貨 | D79: 62582 | E79: 135.0362 | F79: 64687 | G79: 139.5808 | H79: -2105 | I79: -4.5446 | J79: 58944 | K79: 127.6231 | L79: 21080 | M79: 45.5291 | N79: 37864 | O79: 82.094
A80: 20200506 | B80: FITX | C80: 臺股指數期貨 | D80: 66554 | E80: 142.6047 | F80: 62670 | G80: 134.2841 | H80: 3884 | I80: 8.3206 | J80: 58880 | K80: 126.4963 | L80: 18911 | M80: 40.5293 | N80: 39969 | O80: 85.967
A81: 20200505 | B81: FITX | C81: 臺股指數期貨 | D81: 61114 | E81: 130.6844 | F81: 60441 | G81: 129.2278 | H81: 673 | I81: 1.4566 | J81: 57029 | K81: 122.1795 | L81: 20944 | M81: 44.792 | N81: 36085 | O81: 77.3876
A82: 20200504 | B82: FITX | C82: 臺股指數期貨 | D82: 82815 | E82: 177.0524 | F82: 82795 | G82: 177.1051 | H82: 20 | I82: -0.0527 | J82: 58597 | K82: 124.2628 | L82: 21987 | M82: 46.576 | N82: 36610 | O82: 77.6868
A83: 20200430 | B83: FITX | C83: 臺股指數期貨 | D83: 59967 | E83: 130.2835 | F83: 61821 | G83: 134.3526 | H83: -1854 | I83: -4.0691 | J83: 59196 | K83: 129.5237 | L83: 22607 | M83: 49.4348 | N83: 36589 | O83: 80.089
A84: 20200429 | B84: FITX | C84: 臺股指數期貨 | D84: 61781 | E84: 132.1947 | F84: 59900 | G84: 128.1755 | H84: 1881 | I84: 4.0192 | J84: 60706 | K84: 129.9417 | L84: 22267 | M84: 47.6361 | N84: 38439 | O84: 82.3056
A85: 20200428 | B85: FITX | C85: 臺股指數期貨 | D85: 59192 | E85: 124.8412 | F85: 58855 | G85: 124.1518 | H85: 337 | I85: 0.6894 | J85: 60000 | K85: 126.9175 | L85: 23442 | M85: 49.5746 | N85: 36558 | O85: 77.3429
A86: 20200427 | B86: FITX | C86: 臺股指數期貨 | D86: 67752 | E86: 141.4846 | F86: 69736 | G86: 145.7281 | H86: -1984 | I86: -4.2435 | J86: 59287 | K86: 124.9595 | L86: 23998 | M86: 50.5762 | N86: 35289 | O86: 74.3832
A87: 20200424 | B87: FITX | C87: 臺股指數期貨 | D87: 66176 | E87: 135.9885 | F87: 65540 | G87: 134.6853 | H87: 636 | I87: 1.3032 | J87: 57572 | K87: 118.1485 | L87: 20298 | M87: 41.6431 | N87: 37274 | O87: 76.5054
A88: 20200423 | B88: FITX | C88: 臺股指數期貨 | D88: 86319 | E88: 177.3211 | F88: 84642 | G88: 173.8905 | H88: 1677 | I88: 3.4306 | J88: 56781 | K88: 116.7983 | L88: 20144 | M88: 41.4276 | N88: 36637 | O88: 75.3707
A89: 20200422 | B89: FITX | C89: 臺股指數期貨 | D89: 85382 | E89: 173.1632 | F89: 89213 | G89: 180.9419 | H89: -3831 | I89: -7.7787 | J89: 56378 | K89: 115.179 | L89: 21418 | M89: 43.7542 | N89: 34960 | O89: 71.4248
A90: 20200421 | B90: FITX | C90: 臺股指數期貨 | D90: 105359 | E90: 216.8211 | F90: 96722 | G90: 199.2049 | H90: 8637 | I90: 17.6163 | J90: 57351 | K90: 116.8741 | L90: 18561 | M90: 37.8231 | N90: 38790 | O90: 79.051
A91: 20200420 | B91: FITX | C91: 臺股指數期貨 | D91: 56310 | E91: 118.3197 | F91: 59018 | G91: 124.0198 | H91: -2708 | I91: -5.7001 | J91: 49340 | K91: 103.2923 | L91: 19187 | M91: 40.1749 | N91: 30153 | O91: 63.1174
A92: 20200417 | B92: FITX | C92: 臺股指數期貨 | D92: 85280 | E92: 179.4101 | F92: 87803 | G92: 184.742 | H92: -2523 | I92: -5.3319 | J92: 49553 | K92: 104.6096 | L92: 16689 | M92: 35.2368 | N92: 32864 | O92: 69.3728
A93: 20200416 | B93: FITX | C93: 臺股指數期貨 | D93: 65317 | E93: 134.0192 | F93: 65188 | G93: 133.7282 | H93: 129 | I93: 0.2911 | J93: 50359 | K93: 103.6711 | L93: 14974 | M93: 30.8284 | N93: 35385 | O93: 72.8427
A94: 20200415 | B94: FITX | C94: 臺股指數期貨 | D94: 59347 | E94: 122.86 | F94: 62646 | G94: 129.7778 | H94: -3299 | I94: -6.9178 | J94: 48097 | K94: 99.2423 | L94: 12841 | M94: 26.4981 | N94: 35256 | O94: 72.7441
A95: 20200414 | B95: FITX | C95: 臺股指數期貨 | D95: 91316 | E95: 186.5524 | F95: 95386 | G95: 195.3576 | H95: -4070 | I95: -8.8052 | J95: 63881 | K95: 131.343 | L95: 21360 | M95: 43.9601 | N95: 42521 | O95: 87.3828
A96: 20200413 | B96: FITX | C96: 臺股指數期貨 | D96: 70230 | E96: 141.185 | F96: 68492 | G96: 138.1563 | H96: 1738 | I96: 3.0288 | J96: 64321 | K96: 129.0189 | L96: 17744 | M96: 35.5309 | N96: 46577 | O96: 93.488
A97: 20200410 | B97: FITX | C97: 臺股指數期貨 | D97: 59426 | E97: 119.8562 | F97: 57353 | G97: 115.7027 | H97: 2073 | I97: 4.1535 | J97: 67521 | K97: 136.6964 | L97: 21884 | M97: 44.124 | N97: 45637 | O97: 92.5724
A98: 20200409 | B98: FITX | C98: 臺股指數期貨 | D98: 86226 | E98: 174.0364 | F98: 84462 | G98: 170.4531 | H98: 1764 | I98: 3.5834 | J98: 66436 | K98: 134.1143 | L98: 22907 | M98: 46.0834 | N98: 43529 | O98: 88.0309
A99: 20200408 | B99: FITX | C99: 臺股指數期貨 | D99: 91197 | E99: 183.6892 | F99: 95655 | G99: 192.6811 | H99: -4458 | I99: -8.992 | J99: 63340 | K99: 128.1674 | L99: 21575 | M99: 43.5814 | N99: 41765 | O99: 84.5859
A100: 20200407 | B100: FITX | C100: 臺股指數期貨 | D100: 79439 | E100: 157.6649 | F100: 79730 | G100: 158.3025 | H100: -291 | I100: -0.6376 | J100: 62715 | K100: 125.3528 | L100: 16855 | M100: 33.6373 | N100: 45860 | O100: 91.7154
A101: 20200406 | B101: FITX | C101: 臺股指數期貨 | D101: 87792 | E101: 169.3976 | F101: 92757 | G101: 178.984 | H101: -4965 | I101: -9.5864 | J101: 62584 | K101: 122.8989 | L101: 16432 | M101: 32.2177 | N101: 46152 | O101: 90.6812
A102: 20200401 | B102: FITX | C102: 臺股指數期貨 | D102: 79042 | E102: 151.8321 | F102: 75938 | G102: 145.8766 | H102: 3104 | I102: 5.9555 | J102: 65435 | K102: 124.9904 | L102: 14318 | M102: 27.293 | N102: 51117 | O102: 97.6974
A103: 20200331 | B103: FITX | C103: 臺股指數期貨 | D103: 88421 | E103: 169.4649 | F103: 87480 | G103: 167.6934 | H103: 941 | I103: 1.7716 | J103: 63320 | K103: 121.4547 | L103: 15245 | M103: 29.1897 | N103: 48075 | O103: 92.2651
A104: 20200330 | B104: FITX | C104: 臺股指數期貨 | D104: 115200 | E104: 217.7222 | F104: 114774 | G104: 216.9957 | H104: 426 | I104: 0.7265 | J104: 61261 | K104: 117.1505 | L104: 14127 | M104: 26.9661 | N104: 47134 | O104: 90.1843
A105: 20200327 | B105: FITX | C105: 臺股指數期貨 | D105: 134202 | E105: 260.1247 | F105: 133324 | G105: 258.4601 | H105: 878 | I105: 1.6647 | J105: 60301 | K105: 115.4704 | L105: 13577 | M105: 25.9539 | N105: 46724 | O105: 89.5164
A106: 20200326 | B106: FITX | C106: 臺股指數期貨 | D106: 159087 | E106: 305.4952 | F106: 161874 | G106: 310.9424 | H106: -2787 | I106: -5.4472 | J106: 60090 | K106: 115.69 | L106: 14244 | M106: 27.3814 | N106: 45846 | O106: 88.3086
A107: 20200325 | B107: FITX | C107: 臺股指數期貨 | D107: 139986 | E107: 264.6472 | F107: 146059 | G107: 276.2049 | H107: -6073 | I107: -11.5576 | J107: 60967 | K107: 116.8175 | L107: 14145 | M107: 27.0779 | N107: 46822 | O107: 89.7395
A108: 20200324 | B108: FITX | C108: 臺股指數期貨 | D108: 161921 | E108: 291.1988 | F108: 166221 | G108: 299.0443 | H108: -4300 | I108: -7.8455 | J108: 65243 | K108: 119.9105 | L108: 14168 | M108: 26.0246 | N108: 51075 | O108: 93.8859
A109: 20200323 | B109: FITX | C109: 臺股指數期貨 | D109: 157900 | E109: 281.9873 | F109: 152190 | G109: 272.1108 | H109: 5710 | I109: 9.8765 | J109: 70371 | K109: 121.9145 | L109: 14995 | M109: 25.966 | N109: 55376 | O109: 95.9486
A110: 20200320 | B110: FITX | C110: 臺股指數期貨 | D110: 201446 | E110: 352.2755 | F110: 203128 | G110: 355.5455 | H110: -1682 | I110: -3.27 | J110: 66648 | K110: 120.4736 | L110: 15679 | M110: 28.3314 | N110: 50969 | O110: 92.1422
A111: 20200319 | B111: FITX | C111: 臺股指數期貨 | D111: 227787 | E111: 390.9318 | F111: 218977 | G111: 376.0585 | H111: 8810 | I111: 14.8733 | J111: 67444 | K111: 112.6733 | L111: 14809 | M111: 24.7254 | N111: 52635 | O111: 87.9479
A112: 20200318 | B112: FITX | C112: 臺股指數期貨 | D112: 206919 | E112: 382.7968 | F112: 191204 | G112: 354.0006 | H112: 15715 | I112: 28.7962 | J112: 58829 | K112: 104.9135 | L112: 15029 | M112: 26.7853 | N112: 43800 | O112: 78.1282
A113: 20200317 | B113: FITX | C113: 臺股指數期貨 | D113: 249168 | E113: 469.2727 | F113: 245192 | G113: 462.4086 | H113: 3976 | I113: 6.8641 | J113: 82351 | K113: 152.7845 | L113: 40398 | M113: 75.1421 | N113: 41953 | O113: 77.6424
A114: 20200316 | B114: FITX | C114: 臺股指數期貨 | D114: 246881 | E114: 488.8969 | F114: 243823 | G114: 483.7263 | H114: 3058 | I114: 5.1706 | J114: 81012 | K114: 156.1139 | L114: 43036 | M114: 82.8654 | N114: 37976 | O114: 73.2484
A115: 20200313 | B115: FITX | C115: 臺股指數期貨 | D115: 272795 | E115: 536.4552 | F115: 268727 | G115: 528.95 | H115: 4068 | I115: 7.5052 | J115: 82320 | K115: 164.9315 | L115: 46372 | M115: 92.7251 | N115: 35948 | O115: 72.2064
A116: 20200312 | B116: FITX | C116: 臺股指數期貨 | D116: 214137 | E116: 450.4448 | F116: 208041 | G116: 437.9624 | H116: 6096 | I116: 12.4824 | J116: 68161 | K116: 141.2371 | L116: 36307 | M116: 75.0672 | N116: 31854 | O116: 66.1699
A117: 20200311 | B117: FITX | C117: 臺股指數期貨 | D117: 140150 | E117: 306.5559 | F117: 135905 | G117: 297.3585 | H117: 4245 | I117: 9.1975 | J117: 58143 | K117: 125.8617 | L117: 32380 | M117: 69.97 | N117: 25763 | O117: 55.8917
A118: 20200310 | B118: FITX | C118: 臺股指數期貨 | D118: 154687 | E118: 335.8084 | F118: 163651 | G118: 355.3965 | H118: -8964 | I118: -19.5882 | J118: 55902 | K118: 122.7673 | L118: 34383 | M118: 75.4119 | N118: 21519 | O118: 47.3554
A119: 20200309 | B119: FITX | C119: 臺股指數期貨 | D119: 156061 | E119: 345.1152 | F119: 147870 | G119: 327.1573 | H119: 8191 | I119: 17.9579 | J119: 60098 | K119: 131.6233 | L119: 28722 | M119: 62.8499 | N119: 31376 | O119: 68.7734
A120: 20200306 | B120: FITX | C120: 臺股指數期貨 | D120: 88677 | E120: 201.3039 | F120: 95154 | G120: 215.951 | H120: -6477 | I120: -14.6471 | J120: 55222 | K120: 124.4571 | L120: 32937 | M120: 74.197 | N120: 22285 | O120: 50.2601
A121: 20200305 | B121: FITX | C121: 臺股指數期貨 | D121: 73507 | E121: 168.332 | F121: 70745 | G121: 161.9728 | H121: 2762 | I121: 6.3593 | J121: 61929 | K121: 142.324 | L121: 32165 | M121: 73.8995 | N121: 29764 | O121: 68.4244
A122: 20200304 | B122: FITX | C122: 臺股指數期貨 | D122: 117281 | E122: 265.7451 | F122: 112632 | G122: 255.1895 | H122: 4649 | I122: 10.5556 | J122: 57256 | K122: 130.0615 | L122: 30259 | M122: 68.7202 | N122: 26997 | O122: 61.3413
A123: 20200303 | B123: FITX | C123: 臺股指數期貨 | D123: 136653 | E123: 307.5125 | F123: 132320 | G123: 297.6491 | H123: 4333 | I123: 9.8634 | J123: 54614 | K123: 123.6557 | L123: 31265 | M123: 70.7742 | N123: 23349 | O123: 52.8814
A124: 20200302 | B124: FITX | C124: 臺股指數期貨 | D124: 157941 | E124: 353.9212 | F124: 159510 | G124: 357.4663 | H124: -1569 | I124: -3.5452 | J124: 54019 | K124: 120.7421 | L124: 35010 | M124: 78.2405 | N124: 19009 | O124: 42.5016
A125: 20200227 | B125: FITX | C125: 臺股指數期貨 | D125: 121454 | E125: 276.0753 | F125: 122334 | G125: 278.1157 | H125: -880 | I125: -2.0404 | J125: 51868 | K125: 116.9717 | L125: 31287 | M125: 70.5431 | N125: 20581 | O125: 46.4286
A126: 20200226 | B126: FITX | C126: 臺股指數期貨 | D126: 110540 | E126: 252.924 | F126: 114380 | G126: 261.7448 | H126: -3840 | I126: -8.8207 | J126: 51597 | K126: 117.8569 | L126: 30136 | M126: 68.8244 | N126: 21461 | O126: 49.0325
A127: 20200225 | B127: FITX | C127: 臺股指數期貨 | D127: 97369 | E127: 223.0956 | F127: 96695 | G127: 221.5655 | H127: 674 | I127: 1.5302 | J127: 53429 | K127: 123.3236 | L127: 25975 | M127: 59.9458 | N127: 27454 | O127: 63.3778
A128: 20200224 | B128: FITX | C128: 臺股指數期貨 | D128: 71525 | E128: 165.3561 | F128: 71438 | G128: 165.1442 | H128: 87 | I128: 0.2119 | J128: 51745 | K128: 119.1261 | L128: 24989 | M128: 57.5201 | N128: 26756 | O128: 61.606
A129: 20200221 | B129: FITX | C129: 臺股指數期貨 | D129: 72352 | E129: 169.1446 | F129: 71505 | G129: 167.1679 | H129: 847 | I129: 1.9767 | J129: 48927 | K129: 114.126 | L129: 22265 | M129: 51.927 | N129: 26662 | O129: 62.199
A130: 20200220 | B130: FITX | C130: 臺股指數期貨 | D130: 58126 | E130: 136.543 | F130: 63647 | G130: 149.5938 | H130: -5521 | I130: -13.0508 | J130: 48034 | K130: 112.5234 | L130: 22227 | M130: 52.0609 | N130: 25807 | O130: 60.4625
A131: 20200219 | B131: FITX | C131: 臺股指數期貨 | D131: 74718 | E131: 174.8205 | F131: 71981 | G131: 168.461 | H131: 2737 | I131: 6.3595 | J131: 52660 | K131: 123.8866 | L131: 21332 | M131: 50.1773 | N131: 31328 | O131: 73.7093
A132: 20200218 | B132: FITX | C132: 臺股指數期貨 | D132: 89830 | E132: 209.5466 | F132: 95018 | G132: 221.7071 | H132: -5188 | I132: -12.1606 | J132: 71690 | K132: 166.7857 | L132: 40025 | M132: 93.1218 | N132: 31665 | O132: 73.6638
A133: 20200217 | B133: FITX | C133: 臺股指數期貨 | D133: 79532 | E133: 186.9392 | F133: 81023 | G133: 190.5019 | H133: -1491 | I133: -3.5627 | J133: 69501 | K133: 163.4751 | L133: 32648 | M133: 76.7827 | N133: 36853 | O133: 86.6924
A134: 20200214 | B134: FITX | C134: 臺股指數期貨 | D134: 63922 | E134: 150.7461 | F134: 67163 | G134: 158.4126 | H134: -3241 | I134: -7.6665 | J134: 62689 | K134: 148.0228 | L134: 24338 | M134: 57.4426 | N134: 38351 | O134: 90.5802
A135: 20200213 | B135: FITX | C135: 臺股指數期貨 | D135: 59521 | E135: 140.4745 | F135: 57369 | G135: 135.4186 | H135: 2152 | I135: 5.0558 | J135: 62089 | K135: 146.2017 | L135: 20491 | M135: 48.2252 | N135: 41598 | O135: 97.9765
A136: 20200212 | B136: FITX | C136: 臺股指數期貨 | D136: 49330 | E136: 115.6494 | F136: 45030 | G136: 105.567 | H136: 4300 | I136: 10.0823 | J136: 60944 | K136: 143.4561 | L136: 21770 | M136: 51.2165 | N136: 39174 | O136: 92.2396
A137: 20200211 | B137: FITX | C137: 臺股指數期貨 | D137: 46876 | E137: 109.0015 | F137: 47887 | G137: 111.3282 | H137: -1011 | I137: -2.3267 | J137: 56386 | K137: 131.5327 | L137: 21497 | M137: 50.1257 | N137: 34889 | O137: 81.4069
A138: 20200210 | B138: FITX | C138: 臺股指數期貨 | D138: 81002 | E138: 186.652 | F138: 81152 | G138: 187.0168 | H138: -150 | I138: -0.3647 | J138: 57666 | K138: 133.3774 | L138: 21758 | M138: 50.3101 | N138: 35908 | O138: 83.0673
A139: 20200207 | B139: FITX | C139: 臺股指數期貨 | D139: 66790 | E139: 155.4472 | F139: 67740 | G139: 157.6757 | H139: -950 | I139: -2.2285 | J139: 56893 | K139: 131.8625 | L139: 20831 | M139: 48.2677 | N139: 36062 | O139: 83.5948
A140: 20200206 | B140: FITX | C140: 臺股指數期貨 | D140: 72139 | E140: 168.2098 | F140: 70106 | G140: 163.5196 | H140: 2033 | I140: 4.6902 | J140: 60185 | K140: 141.2982 | L140: 23173 | M140: 54.3912 | N140: 37012 | O140: 86.907
A141: 20200205 | B141: FITX | C141: 臺股指數期貨 | D141: 77944 | E141: 180.2138 | F141: 77172 | G141: 178.4399 | H141: 772 | I141: 1.7739 | J141: 59210 | K141: 136.6763 | L141: 24530 | M141: 56.6108 | N141: 34680 | O141: 80.0656
A142: 20200204 | B142: FITX | C142: 臺股指數期貨 | D142: 77866 | E142: 178.324 | F142: 76292 | G142: 174.6727 | H142: 1574 | I142: 3.6514 | J142: 58261 | K142: 134.3928 | L142: 24351 | M142: 56.1598 | N142: 33910 | O142: 78.233
A143: 20200203 | B143: FITX | C143: 臺股指數期貨 | D143: 123579 | E143: 279.1767 | F143: 121910 | G143: 275.4304 | H143: 1669 | I143: 3.7463 | J143: 59336 | K143: 134.3804 | L143: 26988 | M143: 61.1089 | N143: 32348 | O143: 73.2715
A144: 20200131 | B144: FITX | C144: 臺股指數期貨 | D144: 102551 | E144: 234.9779 | F144: 91019 | G144: 208.5189 | H144: 11532 | I144: 26.4589 | J144: 59241 | K144: 135.8835 | L144: 29462 | M144: 67.5655 | N144: 29779 | O144: 68.318
A145: 20200130 | B145: FITX | C145: 臺股指數期貨 | D145: 107119 | E145: 247.8223 | F145: 118870 | G145: 275.242 | H145: -11751 | I145: -27.4197 | J145: 54398 | K145: 123.72 | L145: 36159 | M145: 82.2318 | N145: 18239 | O145: 41.4883
A146: 20200120 | B146: FITX | C146: 臺股指數期貨 | D146: 31751 | E146: 76.9801 | F146: 32343 | G146: 78.4263 | H146: -592 | I146: -1.4462 | J146: 56731 | K146: 137.4118 | L146: 24942 | M146: 60.4068 | N146: 31789 | O146: 77.005
A147: 20200117 | B147: FITX | C147: 臺股指數期貨 | D147: 46280 | E147: 111.7531 | F147: 45344 | G147: 109.4987 | H147: 936 | I147: 2.2544 | J147: 56046 | K147: 135.3042 | L147: 23664 | M147: 57.1218 | N147: 32382 | O147: 78.1824
A148: 20200116 | B148: FITX | C148: 臺股指數期貨 | D148: 45534 | E148: 109.7142 | F148: 50834 | G148: 122.4897 | H148: -5300 | I148: -12.7755 | J148: 56368 | K148: 135.8677 | L148: 24919 | M148: 60.0578 | N148: 31449 | O148: 75.8099
A149: 20200115 | B149: FITX | C149: 臺股指數期貨 | D149: 64790 | E149: 157.0091 | F149: 66716 | G149: 161.6884 | H149: -1926 | I149: -4.6793 | J149: 58949 | K149: 142.1123 | L149: 22200 | M149: 53.5125 | N149: 36749 | O149: 88.5998
A150: 20200114 | B150: FITX | C150: 臺股指數期貨 | D150: 70941 | E150: 172.522 | F150: 73447 | G150: 178.6767 | H150: -2506 | I150: -6.1547 | J150: 73536 | K150: 178.8776 | L150: 33657 | M150: 81.8844 | N150: 39879 | O150: 96.9931
A151: 20200113 | B151: FITX | C151: 臺股指數期貨 | D151: 95662 | E151: 231.0836 | F151: 92634 | G151: 223.8291 | H151: 3028 | I151: 7.2544 | J151: 77470 | K151: 187.5776 | L151: 35077 | M151: 84.9269 | N151: 42393 | O151: 102.6507
A152: 20200110 | B152: FITX | C152: 臺股指數期貨 | D152: 70201 | E152: 168.37 | F152: 68274 | G152: 163.7611 | H152: 1927 | I152: 4.6089 | J152: 70250 | K152: 168.7077 | L152: 30888 | M152: 74.1615 | N152: 39362 | O152: 94.5462
A153: 20200109 | B153: FITX | C153: 臺股指數期貨 | D153: 63751 | E153: 152.0367 | F153: 61886 | G153: 147.6034 | H153: 1865 | I153: 4.4332 | J153: 63723 | K153: 152.5281 | L153: 26297 | M153: 62.9334 | N153: 37426 | O153: 89.5948
A154: 20200108 | B154: FITX | C154: 臺股指數期貨 | D154: 81956 | E154: 193.8371 | F154: 75697 | G154: 179.083 | H154: 6259 | I154: 14.7541 | J154: 60742 | K154: 143.2015 | L154: 25196 | M154: 59.3928 | N154: 35546 | O154: 83.8088
A155: 20200107 | B155: FITX | C155: 臺股指數期貨 | D155: 68172 | E155: 162.2883 | F155: 71097 | G155: 169.2724 | H155: -2925 | I155: -6.9841 | J155: 56006 | K155: 132.9666 | L155: 26743 | M155: 63.4884 | N155: 29263 | O155: 69.4783
A156: 20200106 | B156: FITX | C156: 臺股指數期貨 | D156: 55498 | E156: 133.2443 | F156: 57945 | G156: 139.122 | H156: -2447 | I156: -5.8777 | J156: 59175 | K156: 141.4136 | L156: 26999 | M156: 64.5173 | N156: 32176 | O156: 76.8963
A157: 20200103 | B157: FITX | C157: 臺股指數期貨 | D157: 72436 | E157: 175.2046 | F157: 73270 | G157: 177.246 | H157: -834 | I157: -2.0414 | J157: 60907 | K157: 147.2336 | L157: 26284 | M157: 63.5339 | N157: 34623 | O157: 83.6997
A158: 20200102 | B158: FITX | C158: 臺股指數期貨 | D158: 39566 | E158: 95.4254 | F158: 41019 | G158: 98.9413 | H158: -1453 | I158: -3.516 | J158: 60992 | K158: 147.6099 | L158: 25535 | M158: 61.7942 | N158: 35457 | O158: 85.8157
A159: 20191231 | B159: FITX | C159: 臺股指數期貨 | D159: 29046 | E159: 69.8743 | F159: 30294 | G159: 72.8749 | H159: -1248 | I159: -3.0005 | J159: 62273 | K159: 149.3776 | L159: 25363 | M159: 60.8354 | N159: 36910 | O159: 88.5422
A160: 20191230 | B160: FITX | C160: 臺股指數期貨 | D160: 26402 | E160: 63.8544 | F160: 26692 | G160: 64.5615 | H160: -290 | I160: -0.707 | J160: 62439 | K160: 150.7125 | L160: 24281 | M160: 58.6041 | N160: 38158 | O160: 92.1084
A161: 20191227 | B161: FITX | C161: 臺股指數期貨 | D161: 30986 | E161: 74.8478 | F161: 27405 | G161: 66.212 | H161: 3581 | I161: 8.6358 | J161: 62944 | K161: 152.2839 | L161: 24501 | M161: 59.2721 | N161: 38443 | O161: 93.0117
A162: 20191226 | B162: FITX | C162: 臺股指數期貨 | D162: 15924 | E162: 38.2522 | F162: 18249 | G162: 43.84 | H162: -2325 | I162: -5.5878 | J162: 59494 | K162: 142.8662 | L162: 24635 | M162: 59.1529 | N162: 34859 | O162: 83.7133
A163: 20191225 | B163: FITX | C163: 臺股指數期貨 | D163: 13343 | E163: 32.0116 | F163: 13252 | G163: 31.7957 | H163: 91 | I163: 0.2159 | J163: 59478 | K163: 142.9706 | L163: 22294 | M163: 53.5849 | N163: 37184 | O163: 89.3857
A164: 20191224 | B164: FITX | C164: 臺股指數期貨 | D164: 21012 | E164: 50.4863 | F164: 24587 | G164: 59.0812 | H164: -3575 | I164: -8.5949 | J164: 59344 | K164: 142.2215 | L164: 22251 | M164: 53.3214 | N164: 37093 | O164: 88.9001
A165: 20191223 | B165: FITX | C165: 臺股指數期貨 | D165: 33242 | E165: 79.7734 | F165: 33577 | G165: 80.5767 | H165: -335 | I165: -0.8033 | J165: 62012 | K165: 149.074 | L165: 21344 | M165: 51.3049 | N165: 40668 | O165: 97.7691
A166: 20191220 | B166: FITX | C166: 臺股指數期貨 | D166: 51223 | E166: 123.0532 | F166: 52712 | G166: 126.6312 | H166: -1489 | I166: -3.578 | J166: 61926 | K166: 148.3598 | L166: 20923 | M166: 50.1217 | N166: 41003 | O166: 98.2382
A167: 20191219 | B167: FITX | C167: 臺股指數期貨 | D167: 36600 | E167: 88.2507 | F167: 38021 | G167: 91.7087 | H167: -1421 | I167: -3.458 | J167: 62709 | K167: 150.8881 | L167: 20222 | M167: 48.654 | N167: 42487 | O167: 102.2342
A168: 20191218 | B168: FITX | C168: 臺股指數期貨 | D168: 42410 | E168: 102.4688 | F168: 45132 | G168: 109.0587 | H168: -2722 | I168: -6.59 | J168: 62392 | K168: 150.9368 | L168: 18484 | M168: 44.7119 | N168: 43908 | O168: 106.2249
A169: 20191217 | B169: FITX | C169: 臺股指數期貨 | D169: 76561 | E169: 184.0191 | F169: 81180 | G169: 195.147 | H169: -4619 | I169: -11.1279 | J169: 84836 | K169: 205.1886 | L169: 39792 | M169: 96.2541 | N169: 45044 | O169: 108.9344
A170: 20191216 | B170: FITX | C170: 臺股指數期貨 | D170: 90350 | E170: 215.903 | F170: 89591 | G170: 214.1408 | H170: 759 | I170: 1.7622 | J170: 88942 | K170: 212.6264 | L170: 39274 | M170: 93.8983 | N170: 49668 | O170: 118.7281
A171: 20191213 | B171: FITX | C171: 臺股指數期貨 | D171: 79890 | E171: 190.7309 | F171: 82456 | G171: 196.9049 | H171: -2566 | I171: -6.1741 | J171: 79657 | K171: 190.513 | L171: 30754 | M171: 73.5379 | N171: 48903 | O171: 116.975
A172: 20191212 | B172: FITX | C172: 臺股指數期貨 | D172: 65225 | E172: 154.1437 | F172: 63124 | G172: 149.2349 | H172: 2101 | I172: 4.9089 | J172: 71563 | K172: 169.589 | L172: 20101 | M172: 47.6226 | N172: 51462 | O172: 121.9664
A173: 20191211 | B173: FITX | C173: 臺股指數期貨 | D173: 51584 | E173: 120.0222 | F173: 45507 | G173: 105.8972 | H173: 6077 | I173: 14.1251 | J173: 70860 | K173: 165.8465 | L173: 21499 | M173: 50.3065 | N173: 49361 | O173: 115.54
A174: 20191210 | B174: FITX | C174: 臺股指數期貨 | D174: 28877 | E174: 67.2096 | F174: 37343 | G174: 86.8966 | H174: -8466 | I174: -19.687 | J174: 68175 | K174: 158.4762 | L174: 24905 | M174: 57.8878 | N174: 43270 | O174: 100.5884
A175: 20191209 | B175: FITX | C175: 臺股指數期貨 | D175: 36794 | E175: 85.8295 | F175: 36281 | G175: 84.6371 | H175: 513 | I175: 1.1924 | J175: 73475 | K175: 171.4876 | L175: 21708 | M175: 50.6633 | N175: 51767 | O175: 120.8243
A176: 20191206 | B176: FITX | C176: 臺股指數期貨 | D176: 41079 | E176: 95.5127 | F176: 39765 | G176: 92.4539 | H176: 1314 | I176: 3.0588 | J176: 70853 | K176: 164.5232 | L176: 20799 | M176: 48.2969 | N176: 50054 | O176: 116.2262
A177: 20191205 | B177: FITX | C177: 臺股指數期貨 | D177: 47958 | E177: 111.0248 | F177: 44170 | G177: 102.2583 | H177: 3788 | I177: 8.7666 | J177: 70779 | K177: 164.1674 | L177: 22039 | M177: 51.1191 | N177: 48740 | O177: 113.0483
A178: 20191204 | B178: FITX | C178: 臺股指數期貨 | D178: 61469 | E178: 141.1392 | F178: 63161 | G178: 145.0126 | H178: -1692 | I178: -3.8735 | J178: 66475 | K178: 152.908 | L178: 21523 | M178: 49.509 | N178: 44952 | O178: 103.399
A179: 20191203 | B179: FITX | C179: 臺股指數期貨 | D179: 50701 | E179: 116.5085 | F179: 45945 | G179: 105.6108 | H179: 4756 | I179: 10.8977 | J179: 68071 | K179: 156.8645 | L179: 21427 | M179: 49.3784 | N179: 46644 | O179: 107.4862
A180: 20191202 | B180: FITX | C180: 臺股指數期貨 | D180: 46958 | E180: 107.9373 | F180: 40213 | G180: 92.4284 | H180: 6745 | I180: 15.5089 | J180: 64845 | K180: 149.1579 | L180: 22957 | M180: 52.8081 | N180: 41888 | O180: 96.3497
A181: 20191129 | B181: FITX | C181: 臺股指數期貨 | D181: 46481 | E181: 107.1965 | F181: 52349 | G181: 120.7657 | H181: -5868 | I181: -13.5692 | J181: 61938 | K181: 142.0008 | L181: 26095 | M181: 59.8285 | N181: 35843 | O181: 82.1723
A182: 20191128 | B182: FITX | C182: 臺股指數期貨 | D182: 35559 | E182: 82.7501 | F182: 41043 | G182: 95.5178 | H182: -5484 | I182: -12.7677 | J182: 62947 | K182: 146.1908 | L182: 21234 | M182: 49.3162 | N182: 41713 | O182: 96.8746
A183: 20191127 | B183: FITX | C183: 臺股指數期貨 | D183: 30638 | E183: 71.2147 | F183: 29146 | G183: 67.7498 | H183: 1492 | I183: 3.4649 | J183: 66177 | K183: 154.1433 | L183: 18980 | M183: 44.21 | N183: 47197 | O183: 109.9333
A184: 20191126 | B184: FITX | C184: 臺股指數期貨 | D184: 46323 | E184: 107.6891 | F184: 43063 | G184: 100.103 | H184: 3260 | I184: 7.5861 | J184: 65253 | K184: 151.6125 | L184: 19559 | M184: 45.4452 | N184: 45694 | O184: 106.1673
A185: 20191125 | B185: FITX | C185: 臺股指數期貨 | D185: 37109 | E185: 85.9838 | F185: 36831 | G185: 85.3403 | H185: 278 | I185: 0.6435 | J185: 61675 | K185: 142.6597 | L185: 20243 | M185: 46.8251 | N185: 41432 | O185: 95.8347
A186: 20191122 | B186: FITX | C186: 臺股指數期貨 | D186: 38742 | E186: 89.5219 | F186: 40357 | G186: 93.2525 | H186: -1615 | I186: -3.7306 | J186: 61995 | K186: 143.2519 | L186: 20841 | M186: 48.1584 | N186: 41154 | O186: 95.0935
A187: 20191121 | B187: FITX | C187: 臺股指數期貨 | D187: 64412 | E187: 148.346 | F187: 62618 | G187: 144.2005 | H187: 1794 | I187: 4.1455 | J187: 62946 | K187: 145.3362 | L187: 20185 | M187: 46.6061 | N187: 42761 | O187: 98.7301
A188: 20191120 | B188: FITX | C188: 臺股指數期貨 | D188: 49945 | E188: 116.0295 | F188: 53477 | G188: 124.2457 | H188: -3532 | I188: -8.2162 | J188: 60595 | K188: 140.5625 | L188: 19627 | M188: 45.5296 | N188: 40968 | O188: 95.0329
A189: 20191119 | B189: FITX | C189: 臺股指數期貨 | D189: 66699 | E189: 155.0222 | F189: 67867 | G189: 157.7477 | H189: -1168 | I189: -2.7255 | J189: 79979 | K189: 186.2198 | L189: 35345 | M189: 82.3013 | N189: 44634 | O189: 103.9185
A190: 20191118 | B190: FITX | C190: 臺股指數期貨 | D190: 79261 | E190: 183.1459 | F190: 78787 | G190: 182.0867 | H190: 474 | I190: 1.0591 | J190: 79201 | K190: 183.5587 | L190: 33403 | M190: 77.4214 | N190: 45798 | O190: 106.1373
A191: 20191115 | B191: FITX | C191: 臺股指數期貨 | D191: 56966 | E191: 131.231 | F191: 60118 | G191: 138.5309 | H191: -3152 | I191: -7.2999 | J191: 78015 | K191: 179.8848 | L191: 32691 | M191: 75.378 | N191: 45324 | O191: 104.5068
A192: 20191114 | B192: FITX | C192: 臺股指數期貨 | D192: 53337 | E192: 122.2132 | F192: 54789 | G192: 125.542 | H192: -1452 | I192: -3.3288 | J192: 77743 | K192: 178.099 | L192: 29267 | M192: 67.0393 | N192: 48476 | O192: 111.0597
A193: 20191113 | B193: FITX | C193: 臺股指數期貨 | D193: 45683 | E193: 104.7667 | F193: 45916 | G193: 105.2909 | H193: -233 | I193: -0.5241 | J193: 75784 | K193: 173.7699 | L193: 25856 | M193: 59.2793 | N193: 49928 | O193: 114.4906
A194: 20191112 | B194: FITX | C194: 臺股指數期貨 | D194: 37393 | E194: 85.8623 | F194: 39494 | G194: 90.7124 | H194: -2101 | I194: -4.8502 | J194: 76769 | K194: 176.9198 | L194: 26608 | M194: 61.315 | N194: 50161 | O194: 115.6048
A195: 20191111 | B195: FITX | C195: 臺股指數期貨 | D195: 50756 | E195: 116.7053 | F195: 50599 | G195: 116.3722 | H195: 157 | I195: 0.3331 | J195: 77409 | K195: 177.0533 | L195: 25146 | M195: 57.5124 | N195: 52263 | O195: 119.5409
A196: 20191108 | B196: FITX | C196: 臺股指數期貨 | D196: 46386 | E196: 107.671 | F196: 47507 | G196: 110.2781 | H196: -1121 | I196: -2.6071 | J196: 75211 | K196: 174.0576 | L196: 23105 | M196: 53.4676 | N196: 52106 | O196: 120.5899
A197: 20191107 | B197: FITX | C197: 臺股指數期貨 | D197: 39140 | E197: 90.8486 | F197: 41607 | G197: 96.5738 | H197: -2467 | I197: -5.7252 | J197: 76762 | K197: 178.0157 | L197: 23535 | M197: 54.5755 | N197: 53227 | O197: 123.4402
A198: 20191106 | B198: FITX | C198: 臺股指數期貨 | D198: 43252 | E198: 100.6857 | F198: 44762 | G198: 104.2159 | H198: -1510 | I198: -3.5302 | J198: 79351 | K198: 184.8769 | L198: 23657 | M198: 55.1137 | N198: 55694 | O198: 129.7632
A199: 20191105 | B199: FITX | C199: 臺股指數期貨 | D199: 42419 | E199: 98.4076 | F199: 47131 | G199: 109.3586 | H199: -4712 | I199: -10.951 | J199: 81238 | K199: 189.1918 | L199: 24034 | M199: 55.9657 | N199: 57204 | O199: 133.2261
A200: 20191104 | B200: FITX | C200: 臺股指數期貨 | D200: 43902 | E200: 100.7091 | F200: 41168 | G200: 94.5028 | H200: 2734 | I200: 6.2063 | J200: 83811 | K200: 193.4571 | L200: 21895 | M200: 50.532 | N200: 61916 | O200: 142.9251
... 3 more rows

Sheet 外資小台
A3: 日期 | B3: 代碼 | C3: 名稱 | D3: 多方口數 | E3: 多方契約金額 | F3: 空方口數 | G3: 空方契約金額 | H3: 多空口數 | I3: 多空契約金額 | J3: 多方為未平倉口數 | K3: 多方未平倉契約金額 | L3: 空方未平倉口數 | M3: 空方未平倉契約金額 | N3: 多空未平倉口數 | O3: 多空未平倉契約金額 | P3: 收盤
A4: 20200824 | B4: FIMTX | C4: 小型臺指期貨 | D4: 79426 | E4: 49944.58 | F4: 78304 | G4: 49240.336 | H4: 1122 | I4: 704.243 | J4: 4996 | K4: 3147.768 | L4: 4462 | M4: 2811.377 | N4: 534 | O4: 336.391
A5: 20200821 | B5: FIMTX | C5: 小型臺指期貨 | D5: 102328 | E5: 63687.116 | F5: 92322 | G5: 57465.612 | H5: 10006 | I5: 6221.502 | J5: 3772 | K5: 2366.657 | L5: 4348 | M5: 2728.29 | N5: -576 | O5: -361.633
A6: 20200820 | B6: FIMTX | C6: 小型臺指期貨 | D6: 139944 | E6: 86918.4 | F6: 147644 | G6: 91748.512 | H6: -7700 | I6: -4830.115 | J6: 303 | K6: 185.832 | L6: 10849 | M6: 6670.872 | N6: -10546 | O6: -6485.04
A7: 20200819 | B7: FIMTX | C7: 小型臺指期貨 | D7: 66469 | E7: 42744.136 | F7: 72440 | G7: 46564.456 | H7: -5971 | I7: -3820.318 | J7: 229 | K7: 145.523 | L7: 7863 | M7: 5012.229 | N7: -7634 | O7: -4866.706
A8: 20200818 | B8: FIMTX | C8: 小型臺指期貨 | D8: 69224 | E8: 44669.556 | F8: 77200 | G8: 49820.28 | H8: -7976 | I8: -5150.723 | J8: 3992 | K8: 2568.808 | L8: 7665 | M8: 4927.451 | N8: -3673 | O8: -2358.643
A9: 20200817 | B9: FIMTX | C9: 小型臺指期貨 | D9: 65380 | E9: 42008.928 | F9: 59284 | G9: 38078.576 | H9: 6096 | I9: 3930.348 | J9: 7553 | K9: 4890.592 | L9: 5250 | M9: 3395.531 | N9: 2303 | O9: 1495.061
A10: 20200814 | B10: FIMTX | C10: 小型臺指期貨 | D10: 71326 | E10: 45362.536 | F10: 68108 | G10: 43308.052 | H10: 3218 | I10: 2054.484 | J10: 5664 | K10: 3621.112 | L10: 5857 | M10: 3740.112 | N10: -193 | O10: -119
A11: 20200813 | B11: FIMTX | C11: 小型臺指期貨 | D11: 69778 | E11: 44492.232 | F11: 69998 | G11: 44631.664 | H11: -220 | I11: -139.432 | J11: 3237 | K11: 2058.863 | L11: 6648 | M11: 4224.503 | N11: -3411 | O11: -2165.64
A12: 20200812 | B12: FIMTX | C12: 小型臺指期貨 | D12: 83613 | E12: 52932.488 | F12: 84794 | G12: 53669.92 | H12: -1181 | I12: -737.433 | J12: 2261 | K12: 1430.077 | L12: 5552 | M12: 3508.81 | N12: -3291 | O12: -2078.733
A13: 20200811 | B13: FIMTX | C13: 小型臺指期貨 | D13: 66691 | E13: 42731.508 | F13: 72923 | G13: 46717.072 | H13: -6232 | I13: -3985.565 | J13: 1768 | K13: 1125.33 | L13: 7712 | M13: 4907.862 | N13: -5944 | O13: -3782.532
A14: 20200810 | B14: FIMTX | C14: 小型臺指期貨 | D14: 73196 | E14: 46899.368 | F14: 72413 | G14: 46397.396 | H14: 783 | I14: 501.974 | J14: 3833 | K14: 2462.979 | L14: 3545 | M14: 2275.617 | N14: 288 | O14: 187.362
A15: 20200807 | B15: FIMTX | C15: 小型臺指期貨 | D15: 79047 | E15: 50543.612 | F15: 84341 | G15: 53932.896 | H15: -5294 | I15: -3389.284 | J15: 3080 | K15: 1964.448 | L15: 3575 | M15: 2277.919 | N15: -495 | O15: -313.471
A16: 20200806 | B16: FIMTX | C16: 小型臺指期貨 | D16: 88819 | E16: 56968.02 | F16: 88669 | G16: 56866.856 | H16: 150 | I16: 101.162 | J16: 6006 | K16: 3854.294 | L16: 1207 | M16: 772.237 | N16: 4799 | O16: 3082.057
A17: 20200805 | B17: FIMTX | C17: 小型臺指期貨 | D17: 64920 | E17: 41175.26 | F17: 64117 | G17: 40662.488 | H17: 803 | I17: 512.772 | J17: 5563 | K17: 3543.284 | L17: 914 | M17: 579.977 | N17: 4649 | O17: 2963.307
A18: 20200804 | B18: FIMTX | C18: 小型臺指期貨 | D18: 77757 | E18: 48649.788 | F18: 68030 | G18: 42558.832 | H18: 9727 | I18: 6090.957 | J18: 4845 | K18: 3058.68 | L18: 1069 | M18: 672.617 | N18: 3776 | O18: 2386.063
A19: 20200803 | B19: FIMTX | C19: 小型臺指期貨 | D19: 87412 | E19: 54605.752 | F19: 98079 | G19: 61269.708 | H19: -10667 | I19: -6663.955 | J19: 899 | K19: 558.698 | L19: 6850 | M19: 4257.911 | N19: -5951 | O19: -3699.213
A20: 20200731 | B20: FIMTX | C20: 小型臺指期貨 | D20: 95679 | E20: 60075.66 | F20: 99178 | G20: 62257.908 | H20: -3499 | I20: -2182.249 | J20: 3187 | K20: 2003.06 | L20: 4071 | M20: 2557.395 | N20: -884 | O20: -554.335
A21: 20200730 | B21: FIMTX | C21: 小型臺指期貨 | D21: 92733 | E21: 58191.328 | F21: 87171 | G21: 54704.564 | H21: 5562 | I21: 3486.762 | J21: 4448 | K21: 2800.219 | L21: 1833 | M21: 1152.511 | N21: 2615 | O21: 1647.708
A22: 20200729 | B22: FIMTX | C22: 小型臺指期貨 | D22: 102683 | E22: 63933.504 | F22: 103860 | G22: 64663.064 | H22: -1177 | I22: -729.558 | J22: 1661 | K22: 1030.714 | L22: 4604 | M22: 2856.133 | N22: -2943 | O22: -1825.419
A23: 20200728 | B23: FIMTX | C23: 小型臺指期貨 | D23: 163348 | E23: 103280.392 | F23: 170545 | G23: 107832.496 | H23: -7197 | I23: -4552.098 | J23: 1216 | K23: 756.426 | L23: 3146 | M23: 1957.552 | N23: -1930 | O23: -1201.126
A24: 20200727 | B24: FIMTX | C24: 小型臺指期貨 | D24: 109164 | E24: 67655.232 | F24: 98314 | G24: 60987.872 | H24: 10850 | I24: 6667.364 | J24: 3683 | K24: 2300.814 | L24: 2416 | M24: 1508.691 | N24: 1267 | O24: 792.123
A25: 20200724 | B25: FIMTX | C25: 小型臺指期貨 | D25: 101105 | E25: 61903.368 | F25: 102876 | G25: 62969.056 | H25: -1771 | I25: -1065.688 | J25: 1535 | K25: 932.403 | L25: 7122 | M25: 4324.117 | N25: -5587 | O25: -3391.714
A26: 20200723 | B26: FIMTX | C26: 小型臺指期貨 | D26: 71055 | E26: 43598.836 | F26: 75498 | G26: 46326.496 | H26: -4443 | I26: -2727.66 | J26: 1632 | K26: 1002.567 | L26: 5448 | M26: 3344.282 | N26: -3816 | O26: -2341.715
A27: 20200722 | B27: FIMTX | C27: 小型臺指期貨 | D27: 59970 | E27: 36932.608 | F27: 65392 | G27: 40268.92 | H27: -5422 | I27: -3336.311 | J27: 1569 | K27: 967.445 | L27: 5954 | M27: 3668.393 | N27: -4385 | O27: -2700.948
A28: 20200721 | B28: FIMTX | C28: 小型臺指期貨 | D28: 61959 | E28: 37813.46 | F28: 59359 | G28: 36223.004 | H28: 2600 | I28: 1590.455 | J28: 3449 | K28: 2119.02 | L28: 2399 | M28: 1471.943 | N28: 1050 | O28: 647.077
A29: 20200720 | B29: FIMTX | C29: 小型臺指期貨 | D29: 67144 | E29: 40294.64 | F29: 65108 | G29: 39067.104 | H29: 2036 | I29: 1227.535 | J29: 2385 | K29: 1434.907 | L29: 3939 | M29: 2367.633 | N29: -1554 | O29: -932.726
A30: 20200717 | B30: FIMTX | C30: 小型臺指期貨 | D30: 71536 | E30: 43117.944 | F30: 70910 | G30: 42733.4 | H30: 626 | I30: 384.544 | J30: 921 | K30: 554.393 | L30: 4491 | M30: 2701.188 | N30: -3570 | O30: -2146.795
A31: 20200716 | B31: FIMTX | C31: 小型臺指期貨 | D31: 79128 | E31: 47628.056 | F31: 82634 | G31: 49734.224 | H31: -3506 | I31: -2106.165 | J31: 1283 | K31: 771.612 | L31: 5471 | M31: 3288.862 | N31: -4188 | O31: -2517.25
A32: 20200715 | B32: FIMTX | C32: 小型臺指期貨 | D32: 78735 | E32: 47941.588 | F32: 80132 | G32: 48803.184 | H32: -1397 | I32: -861.597 | J32: 952 | K32: 575.143 | L32: 1578 | M32: 951.912 | N32: -626 | O32: -376.769
A33: 20200714 | B33: FIMTX | C33: 小型臺指期貨 | D33: 73079 | E33: 44436.06 | F33: 77289 | G33: 47004.548 | H33: -4210 | I33: -2568.487 | J33: 2601 | K33: 1583.556 | L33: 1896 | M33: 1148.222 | N33: 705 | O33: 435.334

Sheet 前5大大台
A3: 日期 | B3: 代碼 | C3: 名稱 | D3: 前五大交易人買方部位 | E3: 前五大交易人賣方部位 | F3: 前十大交易人買方部位 | G3: 前十大交易人賣方部位 | H3: 特定法人前五大買方部位 | I3: 特定法人前五大賣方部位 | J3: 特定法人前十大買方部位 | K3: 特定法人前十大賣方部位 | L3: 全市場合計 | O3: 前5大淨部位 | P3: 增減
A4: 20200824 | B4: FITX | C4: 臺股指數期貨 | D4: 34993 | E4: 50581 | F4: 49791 | G4: 60847 | H4: 34993 | I4: 50581 | J4: 47335 | K4: 59218 | L4: 95501 | O4: =D4-E4 -> -15588 | P4: =IF(O4=0,"N/A",O4-O5) -> -1211
A5: 20200821 | B5: FITX | C5: 臺股指數期貨 | D5: 36158 | E5: 50535 | F5: 50926 | G5: 61564 | H5: 36158 | I5: 50535 | J5: 48025 | K5: 61564 | L5: 94839 | O5: =D5-E5 -> -14377 | P5: =O5-O6 -> 6092
A6: 20200820 | B6: FITX | C6: 臺股指數期貨 | D6: 34921 | E6: 55390 | F6: 49352 | G6: 67557 | H6: 34921 | I6: 55390 | J6: 46143 | K6: 67557 | L6: 97262 | O6: -20469 | P6: -3576
A7: 20200819 | B7: FITX | C7: 臺股指數期貨 | D7: 33688 | E7: 50581 | F7: 46353 | G7: 61269 | H7: 33688 | I7: 50581 | J7: 44608 | K7: 61269 | L7: 85905 | O7: -16893 | P7: -15985
A8: 20200818 | B8: FITX | C8: 臺股指數期貨 | D8: 8423 | E8: 9331 | F8: 13310 | G8: 12921 | H8: 6892 | I8: 9331 | J8: 10833 | K8: 10746 | L8: 33143 | O8: -908 | P8: 2052
A9: 20200817 | B9: FITX | C9: 臺股指數期貨 | D9: 19643 | E9: 22603 | F9: 28338 | G9: 30373 | H9: 19643 | I9: 20493 | J9: 28338 | K9: 25390 | L9: 61776 | O9: -2960 | P9: 11027
A10: 20200814 | B10: FITX | C10: 臺股指數期貨 | D10: 26310 | E10: 40297 | F10: 38021 | G10: 48358 | H10: 26310 | I10: 40297 | J10: 38021 | K10: 48358 | L10: 77142 | O10: -13987 | P10: 4314
A11: 20200813 | B11: FITX | C11: 臺股指數期貨 | D11: 28827 | E11: 47128 | F11: 42501 | G11: 55644 | H11: 28827 | I11: 47128 | J11: 42501 | K11: 55644 | L11: 84516 | O11: -18301 | P11: 5792
A12: 20200812 | B12: FITX | C12: 臺股指數期貨 | D12: 27846 | E12: 51939 | F12: 42294 | G12: 60376 | H12: 27846 | I12: 51939 | J12: 42294 | K12: 59476 | L12: 88919 | O12: -24093 | P12: -695
A13: 20200811 | B13: FITX | C13: 臺股指數期貨 | D13: 30882 | E13: 54280 | F13: 46171 | G13: 65067 | H13: 30882 | I13: 54280 | J13: 43251 | K13: 62363 | L13: 95418 | O13: -23398 | P13: 561
A14: 20200810 | B14: FITX | C14: 臺股指數期貨 | D14: 30969 | E14: 54928 | F14: 46346 | G14: 65534 | H14: 30969 | I14: 54928 | J14: 46346 | K14: 63058 | L14: 96705 | O14: -23959 | P14: -2532
A15: 20200807 | B15: FITX | C15: 臺股指數期貨 | D15: 33150 | E15: 54577 | F15: 49565 | G15: 63991 | H15: 33150 | I15: 54577 | J15: 49565 | K15: 62017 | L15: 96639 | O15: -21427 | P15: 1987
A16: 20200806 | B16: FITX | C16: 臺股指數期貨 | D16: 31995 | E16: 55409 | F16: 48314 | G16: 64112 | H16: 31995 | I16: 55409 | J16: 48314 | K16: 62548 | L16: 96401 | O16: -23414 | P16: -894
A17: 20200805 | B17: FITX | C17: 臺股指數期貨 | D17: 32348 | E17: 54868 | F17: 49775 | G17: 63507 | H17: 32348 | I17: 54868 | J17: 49775 | K17: 62458 | L17: 97951 | O17: -22520 | P17: 1289
A18: 20200804 | B18: FITX | C18: 臺股指數期貨 | D18: 31328 | E18: 55137 | F18: 48972 | G18: 64862 | H18: 31328 | I18: 55137 | J18: 48972 | K18: 62762 | L18: 98953 | O18: -23809 | P18: 3081
A19: 20200803 | B19: FITX | C19: 臺股指數期貨 | D19: 30653 | E19: 57543 | F19: 46635 | G19: 66693 | H19: 30653 | I19: 57543 | J19: 46635 | K19: 65431 | L19: 98808 | O19: -26890 | P19: -981
A20: 20200731 | B20: FITX | C20: 臺股指數期貨 | D20: 29879 | E20: 55788 | F20: 47326 | G20: 65642 | H20: 29879 | I20: 55788 | J20: 47326 | K20: 63896 | L20: 94212 | O20: -25909 | P20: -961
A21: 20200730 | B21: FITX | C21: 臺股指數期貨 | D21: 30237 | E21: 55185 | F21: 48309 | G21: 63222 | H21: 30237 | I21: 55185 | J21: 48309 | K21: 61121 | L21: 92025 | O21: -24948 | P21: -24948
A22: 20200729 | B22: FITX | C22: 臺股指數期貨 | D22: 29707 | E22: 56621 | F22: 47495 | G22: 66075 | H22: 29707 | I22: 56621 | J22: 47495 | K22: 64814 | L22: 92607
A23: 20200728 | B23: FITX | C23: 臺股指數期貨 | D23: 28384 | E23: 54018 | F23: 45613 | G23: 62431 | H23: 28384 | I23: 54018 | J23: 45613 | K23: 59748 | L23: 89476
A24: 20200727 | B24: FITX | C24: 臺股指數期貨 | D24: 29909 | E24: 53489 | F24: 48309 | G24: 60311 | H24: 29909 | I24: 53489 | J24: 48309 | K24: 57650 | L24: 91259
A25: 20200724 | B25: FITX | C25: 臺股指數期貨 | D25: 30208 | E25: 56241 | F25: 47944 | G25: 63733 | H25: 30208 | I25: 56241 | J25: 47944 | K25: 61927 | L25: 93832
A26: 20200723 | B26: FITX | C26: 臺股指數期貨 | D26: 30456 | E26: 56880 | F26: 48071 | G26: 65587 | H26: 30456 | I26: 56880 | J26: 48071 | K26: 64287 | L26: 93778
A27: 20200722 | B27: FITX | C27: 臺股指數期貨 | D27: 31575 | E27: 55602 | F27: 50471 | G27: 64220 | H27: 31575 | I27: 55602 | J27: 50471 | K27: 62438 | L27: 95118
A28: 20200721 | B28: FITX | C28: 臺股指數期貨 | D28: 32817 | E28: 56272 | F28: 50893 | G28: 64540 | H28: 32817 | I28: 52525 | J28: 50893 | K28: 60793 | L28: 97396
A29: 20200720 | B29: FITX | C29: 臺股指數期貨 | D29: 30658 | E29: 52275 | F29: 46103 | G29: 59725 | H29: 30658 | I29: 52275 | J29: 46103 | K29: 56734 | L29: 88152
A30: 20200717 | B30: FITX | C30: 臺股指數期貨 | D30: 30784 | E30: 52326 | F30: 45753 | G30: 59328 | H30: 30784 | I30: 50138 | J30: 45753 | K30: 56198 | L30: 86828
A31: 20200716 | B31: FITX | C31: 臺股指數期貨 | D31: 30733 | E31: 52011 | F31: 45059 | G31: 57515 | H31: 30733 | I31: 52011 | J31: 45059 | K31: 56573 | L31: 85195
A32: 20200715 | B32: FITX | C32: 臺股指數期貨 | D32: 32961 | E32: 50901 | F32: 48285 | G32: 56183 | H32: 32961 | I32: 50901 | J32: 48285 | K32: 55241 | L32: 80242
A33: 20200714 | B33: FITX | C33: 臺股指數期貨 | D33: 9105 | E33: 9120 | F33: 15297 | G33: 12612 | H33: 7274 | I33: 9120 | J33: 11974 | K33: 11428 | L33: 33107

Sheet 總市值 (hidden)
B1: 日期 | C1: 20200824
A2: 代碼 | B2: 名稱 | C2: 市值
A3: TWNT0000 | B3: 集中市場加權股價指數 | C3: 391603.8
